Workbook

Sheet Introduction & Rules

Sheet Guide

Sheet Site Inputs
B1: Site factors
B2: Enter data into the pink coloured cells
B3: Heating duration | C3: Intermittent
B5: Source for Design External Temperature (DET) | C5: City and altitude | D5: =VTables!$B$28 -> Specify value
B6: Local City (to determine DET) | C6: Manchester
B7: Height (m) above mean sea level | C7: 100
B8: Design External Temperature (DET) in °C | C8: =IF(AND(C7="",C3<>VTables!B28),"",ROUND(IF(C5=VTables!B27,VLOOKUP('Site Inputs'!C6,DET,IF(C3=VTables!D27,3,4),FALSE)-(C7-VLOOKUP('Site Inputs'!C6,DET,2,FALSE))*0.6/100,C9),1)) -> -3.8
B9: ="Enter specified Design External Temperature (DET) in °C" -> Enter specified Design External Temperature (DET) in °C | C9: -10
B11: Building Regulation criteria | C11: Built after 2006 and complies with all current Building Regulations
C15: ="Tool Version "&TEXT('Version History'!A4,"0.0")&" - "&TEXT('Version History'!B4,"dd.mm.yyyy") -> Tool Version 1.2 - 11.08.2014

Sheet Room Inputs
D1: =IF(D5=VTables!$B$33,1,0) -> 0 | E1: =IF(E5=VTables!$B$33,1,0) -> 0 | F1: =IF(F5=VTables!$B$33,1,0) -> 1 | G1: =IF(G5=VTables!$B$33,1,0) -> 0 | H1: =IF(H5=VTables!$B$33,1,0) -> 0 | I1: =IF(I5=VTables!$B$33,1,0) -> 0 | J1: =IF(J5=VTables!$B$33,1,0) -> 0 | K1: =IF(K5=VTables!$B$33,1,0) -> 0 | L1: =IF(L5=VTables!$B$33,1,0) -> 0 | M1: =IF(M5=VTables!$B$33,1,0) -> 0 | N1: =IF(N5=VTables!$B$33,1,0) -> 0 | O1: =IF(O5=VTables!$B$33,1,0) -> 0 | P1: =IF(P5=VTables!$B$33,1,0) -> 0 | Q1: =IF(Q5=VTables!$B$33,1,0) -> 0 | R1: =IF(R5=VTables!$B$33,1,0) -> 0 | S1: =IF(S5=VTables!$B$33,1,0) -> 0 | T1: =IF(T5=VTables!$B$33,1,0) -> 0 | U1: =IF(U5=VTables!$B$33,1,0) -> 0 | V1: =IF(V5=VTables!$B$33,1,0) -> 0 | W1: =IF(W5=VTables!$B$33,1,0) -> 0 | X1: =IF(X5=VTables!$B$33,1,0) -> 0
B2: Room input data | D2: =IF(OR(D5=VTables!$B$32,D5=VTables!$B$33,D5=""),0,1) -> 1 | E2: =IF(OR(E5=VTables!$B$32,E5=VTables!$B$33,E5=""),0,1) -> 0 | F2: =IF(OR(F5=VTables!$B$32,F5=VTables!$B$33,F5=""),0,1) -> 0 | G2: =IF(OR(G5=VTables!$B$32,G5=VTables!$B$33,G5=""),0,1) -> 0 | H2: =IF(OR(H5=VTables!$B$32,H5=VTables!$B$33,H5=""),0,1) -> 0 | I2: =IF(OR(I5=VTables!$B$32,I5=VTables!$B$33,I5=""),0,1) -> 0 | J2: =IF(OR(J5=VTables!$B$32,J5=VTables!$B$33,J5=""),0,1) -> 0 | K2: =IF(OR(K5=VTables!$B$32,K5=VTables!$B$33,K5=""),0,1) -> 0 | L2: =IF(OR(L5=VTables!$B$32,L5=VTables!$B$33,L5=""),0,1) -> 0 | M2: =IF(OR(M5=VTables!$B$32,M5=VTables!$B$33,M5=""),0,1) -> 0 | N2: =IF(OR(N5=VTables!$B$32,N5=VTables!$B$33,N5=""),0,1) -> 0 | O2: =IF(OR(O5=VTables!$B$32,O5=VTables!$B$33,O5=""),0,1) -> 0 | P2: =IF(OR(P5=VTables!$B$32,P5=VTables!$B$33,P5=""),0,1) -> 0 | Q2: =IF(OR(Q5=VTables!$B$32,Q5=VTables!$B$33,Q5=""),0,1) -> 0 | R2: =IF(OR(R5=VTables!$B$32,R5=VTables!$B$33,R5=""),0,1) -> 0 | S2: =IF(OR(S5=VTables!$B$32,S5=VTables!$B$33,S5=""),0,1) -> 0 | T2: =IF(OR(T5=VTables!$B$32,T5=VTables!$B$33,T5=""),0,1) -> 0 | U2: =IF(OR(U5=VTables!$B$32,U5=VTables!$B$33,U5=""),0,1) -> 0 | V2: =IF(OR(V5=VTables!$B$32,V5=VTables!$B$33,V5=""),0,1) -> 0 | W2: =IF(OR(W5=VTables!$B$32,W5=VTables!$B$33,W5=""),0,1) -> 0 | X2: =IF(OR(X5=VTables!$B$32,X5=VTables!$B$33,X5=""),0,1) -> 0
A3: 1 | C3: Input name | D3: Room1 | E3: Room2 | F3: Room3 | G3: Room4 | H3: Room5 | I3: Room6 | J3: Room7 | K3: Room8 | L3: Room9 | M3: Room10 | O3: Room11 | P3: Room12 | Q3: Room13 | R3: Room14 | S3: Room15 | T3: Room16 | U3: Room17 | V3: Room18 | W3: Room19 | X3: Room20
A4: 2 | C4: Room name | D4: Kitchen | E4: Living room | F4: Bedroom 1
A5: 3 | C5: Emitter type | D5: Underfloor heating (UFH) | E5: Convector | F5: Radiator
A6: 4 | C6: Temperature factor (convectors only) | D6: ='Emitter Specifications'!$J7 -> 0.85 | E6: ='Emitter Specifications'!$J8 -> 0.85 | F6: ='Emitter Specifications'!$J9 -> 0.85 | G6: ='Emitter Specifications'!$J10 -> 0.85 | H6: ='Emitter Specifications'!$J11 -> 0.85 | I6: ='Emitter Specifications'!$J12 -> 0.85 | J6: ='Emitter Specifications'!$J13 -> 0.85 | K6: ='Emitter Specifications'!$J14 -> 0.85 | L6: ='Emitter Specifications'!$J15 -> 0.85 | M6: ='Emitter Specifications'!$J16 -> 0.85 | O6: ='Emitter Specifications'!$J17 -> 0.85 | P6: ='Emitter Specifications'!$J18 -> 0.85 | Q6: ='Emitter Specifications'!$J19 -> 0.85 | R6: ='Emitter Specifications'!$J20 -> 0.85 | S6: ='Emitter Specifications'!$J21 -> 0.85 | T6: ='Emitter Specifications'!$J22 -> 0.85 | U6: ='Emitter Specifications'!$J23 -> 0.85 | V6: ='Emitter Specifications'!$J24 -> 0.85 | W6: ='Emitter Specifications'!$J25 -> 0.85 | X6: ='Emitter Specifications'!$J26 -> 0.85
A7: 5 | C7: n-coefficient (radiators only) | D7: ='Emitter Specifications'!$I7 -> 1.3 | E7: ='Emitter Specifications'!$I8 -> 1.3 | F7: ='Emitter Specifications'!$I9 -> 1.3 | G7: ='Emitter Specifications'!$I10 -> 1.3 | H7: ='Emitter Specifications'!$I11 -> 1.3 | I7: ='Emitter Specifications'!$I12 -> 1.3 | J7: ='Emitter Specifications'!$I13 -> 1.3 | K7: ='Emitter Specifications'!$I14 -> 1.3 | L7: ='Emitter Specifications'!$I15 -> 1.3 | M7: ='Emitter Specifications'!$I16 -> 1.3 | N7: ='Emitter Specifications'!$I7 -> 1.3 | O7: ='Emitter Specifications'!$I17 -> 1.3 | P7: ='Emitter Specifications'!$I18 -> 1.3 | Q7: ='Emitter Specifications'!$I19 -> 1.3 | R7: ='Emitter Specifications'!$I20 -> 1.3 | S7: ='Emitter Specifications'!$I21 -> 1.3 | T7: ='Emitter Specifications'!$I22 -> 1.3 | U7: ='Emitter Specifications'!$I23 -> 1.3 | V7: ='Emitter Specifications'!$I24 -> 1.3 | W7: ='Emitter Specifications'!$I25 -> 1.3 | X7: ='Emitter Specifications'!$I26 -> 1.3
A8: 6 | C8: Floor surface type or temperature limit (°C) [underfloor only] | D8: Normally occupied space
A9: 7 | C9: Floor construction (underfloor only) | D9: Floating screed floor
A10: 8 | C10: Floor TOG value (underfloor only) | D10: ='Emitter Specifications'!$N7 -> 0.25 | E10: ='Emitter Specifications'!$N8 -> 0.25 | F10: ='Emitter Specifications'!$N9 -> 0.25 | G10: ='Emitter Specifications'!$N10 -> 0.25 | H10: ='Emitter Specifications'!$N11 -> 0.25 | I10: ='Emitter Specifications'!$N12 -> 0.25 | J10: ='Emitter Specifications'!$N13 -> 0.25 | K10: ='Emitter Specifications'!$N14 -> 0.25 | L10: ='Emitter Specifications'!$N15 -> 0.25 | M10: ='Emitter Specifications'!$N16 -> 0.25 | O10: ='Emitter Specifications'!$N17 -> 0.25 | P10: ='Emitter Specifications'!$N18 -> 0.25 | Q10: ='Emitter Specifications'!$N19 -> 0.25 | R10: ='Emitter Specifications'!$N20 -> 0.25 | S10: ='Emitter Specifications'!$N21 -> 0.25 | T10: ='Emitter Specifications'!$N22 -> 0.25 | U10: ='Emitter Specifications'!$N23 -> 0.25 | V10: ='Emitter Specifications'!$N24 -> 0.25 | W10: ='Emitter Specifications'!$N25 -> 0.25 | X10: ='Emitter Specifications'!$N26 -> 0.25
A11: 9 | C11: Active floor area in m² (underfloor only) | D11: 25 | E11: 12
A12: 10 | C12: Room type | D12: Kitchen | E12: Living room | F12: Bedroom
A13: 11 | C13: Chimney type | D13: No chimney or open fire | E13: No chimney or open fire | F13: No chimney or open fire
A14: 12 | C14: Design room ventilation rate (air changes per hour) | D14: ='1'!$H$8 -> 2 | E14: ='2'!$H$8 -> 1.5 | F14: ='3'!$H$8 -> 1 | G14: ='4'!$H$8 ->  | H14: ='5'!$H$8 ->  | I14: ='6'!$H$8 ->  | J14: ='7'!$H$8 ->  | K14: ='8'!$H$8 ->  | L14: ='9'!$H$8 ->  | M14: ='10'!$H$8 ->  | O14: ='11'!$H$8 ->  | P14: ='12'!$H$8 ->  | Q14: ='13'!$H$8 ->  | R14: ='14'!$H$8 ->  | S14: ='15'!$H$8 ->  | T14: ='16'!$H$8 ->  | U14: ='17'!$H$8 ->  | V14: ='18'!$H$8 ->  | W14: ='19'!$H$8 ->  | X14: ='20'!$H$8 -> 
A15: 13 | C15: Room length (m) | D15: 5 | E15: 3 | F15: 3
A16: 14 | C16: Room width (m) | D16: 5 | E16: 4 | F16: 3
A17: 15 | C17: Room height (m) | D17: 2.4 | E17: 2.4 | F17: 2.4
A18: 16 | B18: Wall, floor, or ceiling 1 | C18: Description | D18: External wall | E18: External wall | F18: External wall
A19: 17 | C19: Space type on other side of construction | D19: Outside | E19: Outside | F19: Outside
A20: 18 | C20: Height or length (m) | D20: 2.4 | E20: 2.4 | F20: 2
A21: 19 | C21: Width (m) | D21: 5 | E21: 3 | F21: 3
A22: 20 | C22: Construction | D22: Enter a U-value | E22: Enter a U-value | F22: Enter a U-value
A23: 21 | C23: U-value (W/m2K) | D23: 0.2 | E23: 0.3 | F23: 0.3
A24: 22 | B24: Wall, floor, or ceiling 2 | C24: Description | D24: External wall | E24: External wall | F24: Ceiling
A25: 23 | C25: Space type on other side of construction | D25: Outside | E25: Outside | F25: Outside
A26: 24 | C26: Height or length (m) | D26: 2.4 | E26: 2.4 | F26: 3
A27: 25 | C27: Width (m) | D27: 5 | E27: 4 | F27: 3
A28: 26 | C28: Construction | D28: Enter a U-value | E28: Enter a U-value | F28: Enter a U-value
A29: 27 | C29: U-value (W/m2K) | D29: 0.2 | E29: 0.3 | F29: 0.2
A30: 28 | B30: Wall, floor, or ceiling 3 | C30: Description | E30: Internal wall
A31: 29 | C31: Space type on other side of construction | E31: Kitchen
A32: 30 | C32: Height or length (m) | E32: 2.4
A33: 31 | C33: Width (m) | E33: 4
A34: 32 | C34: Construction | E34: Plasterboard 12.5mm, studding 75mm, plasterboard 12.5mm
A35: 33 | C35: U-value (W/m2K)
A36: 34
A37: 35 | B37: Wall, floor, or ceiling 4 | C37: Description
A38: 36 | C38: Space type on other side of construction
A39: 37 | C39: Height or length (m)
A40: 38 | C40: Width (m)
A41: 39 | C41: Construction
A42: 40 | C42: U-value (W/m2K)
A43: 41 | B43: Wall, floor, or ceiling 5 | C43: Description
A44: 42 | C44: Space type on other side of construction
A45: 43 | C45: Height or length (m)
A46: 44 | C46: Width (m)
A47: 45 | C47: Construction
A48: 46 | C48: U-value (W/m2K)
A49: 47 | B49: Wall, floor, or ceiling 6 | C49: Description
A50: 48 | C50: Space type on other side of construction
A51: 49 | C51: Height or length (m)
A52: 50 | C52: Width (m)
A53: 51 | C53: Construction
A54: 52 | C54: U-value (W/m2K)
A55: 53 | B55: Wall, floor, or ceiling 7 | C55: Description
A56: 54 | C56: Space type on other side of construction
A57: 55 | C57: Height or length (m)
A58: 56 | C58: Width (m)
A59: 57 | C59: Construction
A60: 58 | C60: U-value (W/m2K)
A61: 59 | B61: Wall, floor, or ceiling 8 | C61: Description
A62: 60 | C62: Space type on other side of construction
A63: 61 | C63: Height or length (m)
A64: 62 | C64: Width (m)
A65: 63 | C65: Construction
A66: 64 | C66: U-value (W/m2K)
A67: 65 | B67: Wall, floor, or ceiling 9 | C67: Description
A68: 66 | C68: Space type on other side of construction
A69: 67 | C69: Height or length (m)
A70: 68 | C70: Width (m)
A71: 69 | C71: Construction
A72: 70 | C72: U-value (W/m2K)
A73: 71 | B73: Wall, floor, or ceiling 10 | C73: Description
A74: 72 | C74: Space type on other side of construction
A75: 73 | C75: Height or length (m)
A76: 74 | C76: Width (m)
A77: 75 | C77: Construction
A78: 76 | C78: U-value (W/m2K)
A79: 77 | B79: Wall, floor, or ceiling 11 | C79: Description
A80: 78 | C80: Space type on other side of construction
A81: 79 | C81: Height or length (m)
A82: 80 | C82: Width (m)
A83: 81 | C83: Construction
A84: 82 | C84: U-value (W/m2K)
A85: 83 | B85: Wall, floor, or ceiling 12 | C85: Description
A86: 84 | C86: Space type on other side of construction
A87: 85 | C87: Height or length (m)
A88: 86 | C88: Width (m)
A89: 87 | C89: Construction
A90: 88 | C90: U-value (W/m2K)
A91: 89 | B91: Ground floor 1 | C91: Short length (m) | D91: 5 | E91: 3
A92: 90 | C92: Long length (m) | D92: 5 | E92: 4
A93: 91 | C93: Edges exposed | D93: Two adjacent edges | E93: Two adjacent edges
A94: 92 | C94: Insulation type and thickness | D94: Solid floor - Enter a U-value | E94: Solid floor - Enter a U-value
A95: 93 | C95: U-value (W/m2K) | D95: 0.15 | E95: 0.15
A96: 94
A97: 95 | B97: Ground floor 2 | C97: Short length (m)
A98: 96 | C98: Long length (m)
A99: 97 | C99: Edges exposed
A100: 98 | C100: Insulation type and thickness
A101: 99 | C101: U-value (W/m2K)
A102: 100 | B102: Ground floor 3 | C102: Short length (m)
A103: 101 | C103: Long length (m)
A104: 102 | C104: Edges exposed
A105: 103 | C105: Insulation type and thickness
A106: 104 | C106: U-value (W/m2K)
A107: 105 | B107: Window or door 1 | C107: In which wall/ceiling/door | D107: External | E107: External | F107: External Wall
A108: 106 | C108: Window/door height (m) | D108: 0.9 | E108: 0.9 | F108: 0.9
A109: 107 | C109: Window/door width (m) | D109: 1.6 | E109: 1.2 | F109: 1.2
A110: 108 | C110: Frame/glazing type | D110: Wood/PVC Double, low-E glass, argon filled | E110: Wood/PVC Double, low-E glass, argon filled | F110: Wood/PVC Double, low-E glass, argon filled
A111: 109 | C111: U-value (W/m2K)
A112: 110
A113: 111 | B113: Window or door 2 | C113: In which wall/ceiling/door
A114: 112 | C114: Window/door height (m)
A115: 113 | C115: Window/door width (m)
A116: 114 | C116: Frame/glazing type
A117: 115 | C117: U-value (W/m2K)
A118: 116 | B118: Window or door 3 | C118: In which wall/ceiling/door
A119: 117 | C119: Window/door height (m)
A120: 118 | C120: Window/door width (m)
A121: 119 | C121: Frame/glazing type
A122: 120 | C122: U-value (W/m2K)
A123: 121 | B123: Window or door 4 | C123: In which wall/ceiling/door
A124: 122 | C124: Window/door height (m)
A125: 123 | C125: Window/door width (m)
A126: 124 | C126: Frame/glazing type
A127: 125 | C127: U-value (W/m2K)
A128: 126 | B128: Window or door 5 | C128: In which wall/ceiling/door
A129: 127 | C129: Window/door height (m)
A130: 128 | C130: Window/door width (m)
A131: 129 | C131: Frame/glazing type
A132: 130 | C132: U-value (W/m2K)
A133: 131 | B133: Window or door 6 | C133: In which wall/ceiling/door
A134: 132 | C134: Window/door height (m)
A135: 133 | C135: Window/door width (m)
A136: 134 | C136: Frame/glazing type
A137: 135 | C137: U-value (W/m2K)
C140: ='Site Inputs'!$C$15 -> Tool Version 1.2 - 11.08.2014
D141: Window in which wall/ceiling/door choices
D142: =IF(D18="","",D18) -> External wall | E142: =IF(E18="","",E18) -> External wall | F142: External wall
D143: =IF(D24="","",D24) -> External wall | E143: =IF(E24="","",E24) -> External wall | F143: Ceiling
D144: =IF(D30="","",D30) ->  | E144: =IF(E30="","",E30) -> Internal wall
D145: =IF(D37="","",D37) ->  | E145: =IF(E37="","",E37) -> 
D146: =IF(D43="","",D43) ->  | E146: =IF(E43="","",E43) -> 
D147: =IF(D49="","",D49) ->  | E147: =IF(E49="","",E49) -> 
D148: =IF(D55="","",D55) ->  | E148: =IF(E55="","",E55) -> 
D149: =IF(D61="","",D61) ->  | E149: =IF(E61="","",E61) -> 
D150: =IF(D67="","",D67) ->  | E150: =IF(E67="","",E67) -> 
D151: =IF(D73="","",D73) ->  | E151: =IF(E73="","",E73) -> 
D152: =IF(D79="","",D79) ->  | E152: =IF(E79="","",E79) -> 
D153: =IF(D85="","",D85) ->  | E153: =IF(E85="","",E85) -> 
D166: =UvaluesFlr!$U$3 -> Solid floor - Enter a U-value
D167: =UvaluesFlr!$U$4 -> Suspended floor - Enter U-value

Sheet Emitter Specifications
B1: Summary of Emitter Specifications | M1: MWT
F3: Enter Design flow (Tf) temperature | I3: Design flow temperature (Tf) ≤35°C | M3: =IF(I3=VTables!D34,(L3*13/14),ROUND(VLOOKUP('Emitter Specifications'!I3,VTables!D31:E34,2,FALSE),1)) -> 32.5 | N3: =VTables!$D$34 -> Specified design flow temp (Tf) - N/A for SAP 2012
C5: Room details | F5: Emitter type | G5: Radiators or convectors, if any | N5: Underfloor Heating, if any | AI5: Actual ΔROOM | AJ5: =M3-20 -> 12.5
B6: Room Number | C6: Room name | D6: Design heat loss (W) | E6: Design room temperature (°C) | G6: Radiator Surface Finish Factor F1 | H6: Radiator Enclosure Factor F2 | I6: n-coefficient (radiators only) | J6: Convector Temperature Factor (FTEMP) | K6: Radiator Temperature Factor (FTEMP) | L6: ="Required minimum emitter size (Watts) from EN442 standard test conditions (ΔROOM = 50°C) if actual ΔROOM = "&ROUND(AJ5,1)&"°C" -> Required minimum emitter size (Watts) from EN442 standard test conditions (ΔROOM = 50°C) if actual ΔROOM = 12.5°C | M6: Actual installed emitter size (Watts) from EN442 standard test conditions (ΔROOM = 50°C) | N6: Floor Tog Value | O6: Required System Performance Factor KH in W/m2K (from Table 13) | P6: Required minimum pipe spacing from Table 13 (mm) | Q6: Minimum pipe spacing from manufacturer's data, if any (mm) | R6: Floor surface temperature (Room specific MWT) limited to lower temperature than MWT? | S6: Limited MWT (°C) / Floor surface temperature for room (only) | U6: Tables from: BRE Trust Report FB 59, Design of low-temperature domestic heating systems | AG6: UFH specifications | AH6: Blending valve installed? | AI6: Radiator | AJ6: Not Radiator | AK6: Conv or Radiator | AL6: Conv | AM6: UFH | AN6: UFH or Blank F1 or F2 is zero | AO6: F1 | AP6: F2 | AQ6: Actual Conv or Rad output (Watts) | AR6: qR(W/m2) | AS6: Temp limit C | AT6: Design Temp restricted | AU6: ΔROOM | AV6: KH | AW6: Tog | AX6: Tog col | AY6: tab height | AZ6: tab row
B7: 1 | C7: ='1'!C$3 -> Kitchen | D7: ='1'!$K$42 -> 997.92 | E7: =IF(ISERROR('1'!$K$8),"",'1'!$K$8) -> 18 | F7: =IF(AI7,"Radiator",IF(AL7,"Convector",IF(AM7,"UFH",""))) -> UFH | G7: 1 | H7: 1 | I7: 1.3 | J7: 0.85 | K7: =IF('1'!F$3=VTables!B$33,(((M$3-'1'!$K$8)/50)^'1'!K$3),"") ->  | L7: =IF(AK7,IF('1'!$F$3=VTables!$B$33,D7/(G7*H7*$G$31*$K7),0)+IF('1'!$F$3=VTables!$B$32,D7/($G$31*$J7),0),"") ->  | M7: 4000 | N7: 0.25 | O7: =AV7 -> 5.343614458 | P7: =BB7 -> Outside Range | R7: =IF(AND($AM7,$AT7<$M$3),"YES",IF(AND($AM7,$AS7>$M$3),"Note: Floor surface temperature capped at MWT")) -> YES | S7: =IF(R7="YES",AT7,"") -> 27 | U7: Table 5: System parameters | AG7: =IF(AM7=TRUE,CONCATENATE($C7,CONCATENATE(": KH=",ROUND(O7,2),CONCATENATE(", Spacing (mm)=",(MIN(P7:Q7)),CONCATENATE("; ")))),"") -> Kitchen: KH=5.34, Spacing (mm)=0; | AH7: =IF(ISNA(R7),"",IF(R7="YES",CONCATENATE(C7,", "),"")) -> Kitchen, | AI7: =IF('Room Inputs'!$D$5="Radiator",1,0) -> 0 | AJ7: ='1'!F$3<>VTables!B$33 -> TRUE | AK7: =OR('1'!F$3=VTables!B$33,'1'!F$3=VTables!B$32) -> FALSE | AL7: ='1'!F$3=VTables!B$32 -> FALSE | AM7: =OR('1'!F$3=VTables!B$31) -> TRUE | AN7: =OR('1'!F$3=VTables!$B$33,'1'!F$3="",AND(OR(G7=0,H7=0))) -> FALSE | AO7: =IF(AL7,1,G7) -> 1 | AP7: =IF(AL7,1,H7) -> 1 | AQ7: =$M7*$AO7*$AP7*$G$31 -> 3320 | AR7: =D7/($G$31*'1'!$K$5) -> 48.09253012 | AS7: =IF(ISNUMBER('Room Inputs'!$D$8),'Room Inputs'!$D$8,IF('1'!$C$5=VTables!$B$38,0,'1'!$K$8)+VLOOKUP('1'!$C$5,VTables!$B$36:$C$38,2,FALSE)) -> 27 | AT7: =MIN($M$3,AS7) -> 27 | AU7: =AT7-'1'!$K$8 -> 9 | AV7: =AR7/AU7 -> 5.343614458 | AW7: ='1'!$H$5 -> 0.25 | AX7: =MATCH(AW7,W$48:AE$48,1) -> 2 | AY7: =VLOOKUP('1'!$F$5,VTables!B$42:D$44,2,FALSE) -> 5 | AZ7: =VLOOKUP('1'!$F$5,VTables!B$42:D$44,3,FALSE) -> 1 | BA7: =MATCH(AV7,OFFSET(V$48,AZ7,AX7,AY7,1),-1) ->  | BB7: =IF(ISNA(BA7),"Outside Range",OFFSET(V$48,AZ7+BA7-1,0,1,1)) -> Outside Range
B8: 2 | C8: =IF('2'!C$3=0,"",'2'!C$3) -> Living room | D8: ='2'!$K$42 -> 547.878 | E8: =IF(ISERROR('2'!$K$8),"",'2'!$K$8) -> 21 | F8: =IF(AI8,"Radiator",IF(AL8,"Convector",IF(AM8,"UFH",""))) -> Convector | G8: 1 | H8: 1 | I8: 1.3 | J8: 0.85 | K8: =IF('2'!F$3=VTables!B$33,(((M$3-'2'!$K$8)/50)^'2'!K$3),"") ->  | L8: =IF(AK8,IF('2'!$F$3=VTables!$B$33,D8/(G8*H8*$G$31*$K8),0)+IF('2'!$F$3=VTables!$B$32,D8/($G$31*$J8),0),"") -> 776.5811481 | M8: 800 | N8: 0.25 | O8: =AV8 ->  | P8: =BB8 -> Outside Range | S8: =IF(R8="YES",AT8,"") ->  | U8: Nomenclature | AG8: =IF(AM8=TRUE,CONCATENATE($C8,CONCATENATE(": KH=",ROUND(O8,2),CONCATENATE(", Spacing (mm)=",(MIN(P8:Q8)),CONCATENATE("; ")))),"") ->  | AH8: =IF(ISNA(R8),"",IF(R8="YES",CONCATENATE(C8,", "),"")) ->  | AI8: =IF('Room Inputs'!$E$5="Radiator",1,0) -> 0 | AJ8: ='2'!F$3<>VTables!B$33 -> TRUE | AK8: =OR('2'!F$3=VTables!B$33,'2'!F$3=VTables!B$32) -> TRUE | AL8: ='2'!F$3=VTables!B$32 -> TRUE | AM8: =OR('2'!F$3=VTables!B$31) -> FALSE | AN8: =OR('2'!F$3=VTables!$B$33,'2'!F$3="",AND(OR(G8=0,H8=0))) -> FALSE | AO8: 1 | AP8: 1 | AQ8: =$M8*$AO8*$AP8*$G$31 -> 664 | AR8: =D8/($G$31*'2'!$K$5) -> 55.00783133 | AS8: =IF(ISNUMBER('Room Inputs'!$E$8),'Room Inputs'!$E$8,IF('2'!$C$5=VTables!$B$38,0,'2'!$K$8)+VLOOKUP('2'!$C$5,VTables!$B$36:$C$38,2,FALSE)) ->  | AT8: =MIN($M$3,AS8) ->  | AU8: =AT8-'2'!$K$8 ->  | AV8: =AR8/AU8 ->  | AW8: ='2'!$H$5 -> 0.25 | AX8: =MATCH(AW8,W$48:AE$48,1) -> 2 | AY8: =VLOOKUP('2'!$F$5,VTables!B$42:D$44,2,FALSE) ->  | AZ8: =VLOOKUP('2'!$F$5,VTables!B$42:D$44,3,FALSE) ->  | BA8: =MATCH(AV8,OFFSET(V$48,AZ8,AX8,AY8,1),-1) ->  | BB8: =IF(ISNA(BA8),"Outside Range",OFFSET(V$48,AZ8+BA8-1,0,1,1)) -> Outside Range
B9: 3 | C9: =IF('3'!C$3=0,"",'3'!C$3) -> Bedroom 1 | D9: ='3'!$K$42 -> 316.274 | E9: =IF(ISERROR('3'!$K$8),"",'3'!$K$8) -> 18 | F9: Radiator | G9: 1 | H9: 1 | I9: 1.3 | J9: 0.85 | K9: =IF('3'!F$3=VTables!B$33,(((M$3-'3'!$K$8)/50)^'3'!K$3),"") -> 0.200040254 | L9: =IF(AK9,IF('3'!$F$3=VTables!$B$33,D9/(G9*H9*$G$31*$K9),0)+IF('3'!$F$3=VTables!$B$32,D9/($G$31*$J9),0),"") -> 1904.881665 | M9: 2000 | N9: 0.25 | O9: =AV9 ->  | U9: Tf | V9: Heat generator flow temperature | AI9: =IF('Room Inputs'!$F$5="Radiator",1,0) -> 1 | AJ9: ='3'!F$3<>VTables!B$33 -> FALSE | AK9: =OR('3'!F$3=VTables!B$33,'3'!F$3=VTables!B$32) -> TRUE | AL9: ='3'!F$3=VTables!B$32 -> FALSE | AM9: =OR('3'!F$3=VTables!B$31) -> FALSE | AN9: =OR('3'!F$3=VTables!$B$33,'3'!F$3="",AND(OR(G9=0,H9=0))) -> TRUE | AO9: 1 | AP9: 1 | AQ9: 1660 | AR9: =D9/($G$31*'3'!$K$5) ->  | AS9: =IF(ISNUMBER('Room Inputs'!$F$8),'Room Inputs'!$F$8,IF('3'!$C$5=VTables!$B$38,0,'3'!$K$8)+VLOOKUP('3'!$C$5,VTables!$B$36:$C$38,2,FALSE)) ->  | AU9: =AT9-'3'!$K$8 ->  | AW9: ='3'!$H$5 -> 0.25 | AX9: 2 | AY9: =VLOOKUP('3'!$F$5,VTables!B$42:D$44,2,FALSE) ->  | AZ9: =VLOOKUP('3'!$F$5,VTables!B$42:D$44,3,FALSE) -> 
B10: 4 | C10: =IF('4'!C$3=0,"",'4'!C$3) ->  | D10: ='4'!$K$42 -> 0 | E10: =IF(ISERROR('4'!$K$8),"",'4'!$K$8) ->  | G10: 1 | H10: 1 | I10: 1.3 | J10: 0.85 | K10: =IF('4'!F$3=VTables!B$33,(((M$3-'4'!$K$8)/50)^'4'!K$3),"") ->  | L10: =IF(AK10,IF('4'!$F$3=VTables!$B$33,D10/(G10*H10*$G$31*$K10),0)+IF('4'!$F$3=VTables!$B$32,D10/($G$31*$J10),0),"") ->  | M10: 4000 | N10: 0.25 | U10: Tf | V10: Heat generator return temperature | AI10: =IF('Room Inputs'!$G$5="Radiator",1,0) -> 0 | AJ10: ='4'!F$3<>VTables!B$33 -> TRUE | AK10: =OR('4'!F$3=VTables!B$33,'4'!F$3=VTables!B$32) -> FALSE | AL10: ='4'!F$3=VTables!B$32 -> FALSE | AM10: =OR('4'!F$3=VTables!B$31) -> FALSE | AN10: =OR('4'!F$3=VTables!$B$33,'4'!F$3="",AND(OR(G10=0,H10=0))) -> FALSE | AO10: 1 | AP10: 1 | AQ10: 3320 | AR10: =D10/($G$31*'4'!$K$5) ->  | AS10: =IF(ISNUMBER('Room Inputs'!$G$8),'Room Inputs'!$G$8,IF('4'!$C$5=VTables!$B$38,0,'4'!$K$8)+VLOOKUP('4'!$C$5,VTables!$B$36:$C$38,2,FALSE)) ->  | AU10: =AT10-'4'!$K$8 ->  | AW10: ='4'!$H$5 -> 0.25 | AX10: 2 | AY10: =VLOOKUP('4'!$F$5,VTables!B$42:D$44,2,FALSE) ->  | AZ10: =VLOOKUP('4'!$F$5,VTables!B$42:D$44,3,FALSE) -> 
B11: 5 | C11: =IF('5'!C$3=0,"",'5'!C$3) ->  | D11: ='5'!$K$42 -> 0 | E11: =IF(ISERROR('5'!$K$8),"",'5'!$K$8) ->  | G11: 1 | H11: 1 | I11: 1.3 | J11: 0.85 | K11: =IF('5'!F$3=VTables!B$33,(((M$3-'5'!$K$8)/50)^'5'!K$3),"") ->  | L11: =IF(AK11,IF('5'!$F$3=VTables!$B$33,D11/(G11*H11*$G$31*$K11),0)+IF('5'!$F$3=VTables!$B$32,D11/($G$31*$J11),0),"") ->  | M11: 4000 | N11: 0.25 | U11: ΔSYSTEM | V11: System temperature drop = Tf - Tr | AI11: =IF('Room Inputs'!$H$5="Radiator",1,0) -> 0 | AJ11: ='5'!F$3<>VTables!B$33 -> TRUE | AK11: =OR('5'!F$3=VTables!B$33,'5'!F$3=VTables!B$32) -> FALSE | AL11: ='5'!F$3=VTables!B$32 -> FALSE | AM11: =OR('5'!F$3=VTables!B$31) -> FALSE | AN11: =OR('5'!F$3=VTables!$B$33,'5'!F$3="",AND(OR(G11=0,H11=0))) -> FALSE | AO11: 1 | AP11: 1 | AQ11: 3320 | AR11: =D11/($G$31*'5'!$K$5) ->  | AS11: =IF(ISNUMBER('Room Inputs'!$H$8),'Room Inputs'!$H$8,IF('5'!$C$5=VTables!$B$38,0,'5'!$K$8)+VLOOKUP('5'!$C$5,VTables!$B$36:$C$38,2,FALSE)) ->  | AU11: =AT11-'5'!$K$8 ->  | AW11: ='5'!$H$5 -> 0.25 | AX11: 2 | AY11: =VLOOKUP('5'!$F$5,VTables!B$42:D$44,2,FALSE) ->  | AZ11: =VLOOKUP('5'!$F$5,VTables!B$42:D$44,3,FALSE) -> 
B12: 6 | C12: =IF('6'!C$3=0,"",'6'!C$3) ->  | D12: ='6'!$K$42 -> 0 | E12: =IF(ISERROR('6'!$K$8),"",'6'!$K$8) ->  | G12: 1 | H12: 1 | I12: 1.3 | J12: 0.85 | K12: =IF('6'!F$3=VTables!B$33,(((M$3-'6'!$K$8)/50)^'6'!K$3),"") ->  | L12: =IF(AK12,IF('6'!$F$3=VTables!$B$33,D12/(G12*H12*$G$31*$K12),0)+IF('6'!$F$3=VTables!$B$32,D12/($G$31*$J12),0),"") ->  | M12: 4000 | N12: 0.25 | U12: MWT | V12: Mean water temperature = (Tf + Tr) / 2 | AI12: =IF('Room Inputs'!$I$5="Radiator",1,0) -> 0 | AJ12: ='6'!F$3<>VTables!B$33 -> TRUE | AK12: =OR('6'!F$3=VTables!B$33,'6'!F$3=VTables!B$32) -> FALSE | AL12: ='6'!F$3=VTables!B$32 -> FALSE | AM12: =OR('6'!F$3=VTables!B$31) -> FALSE | AN12: =OR('6'!F$3=VTables!$B$33,'6'!F$3="",AND(OR(G12=0,H12=0))) -> FALSE | AO12: 1 | AP12: 1 | AQ12: 3320 | AR12: =D12/($G$31*'6'!$K$5) ->  | AS12: =IF(ISNUMBER('Room Inputs'!$I$8),'Room Inputs'!$I$8,IF('6'!$C$5=VTables!$B$38,0,'6'!$K$8)+VLOOKUP('6'!$C$5,VTables!$B$36:$C$38,2,FALSE)) ->  | AU12: =AT12-'6'!$K$8 ->  | AW12: ='6'!$H$5 -> 0.25 | AX12: 2 | AY12: =VLOOKUP('6'!$F$5,VTables!B$42:D$44,2,FALSE) ->  | AZ12: =VLOOKUP('6'!$F$5,VTables!B$42:D$44,3,FALSE) -> 
B13: 7 | C13: =IF('7'!C$3=0,"",'7'!C$3) ->  | D13: ='7'!$K$42 -> 0 | E13: =IF(ISERROR('7'!$K$8),"",'7'!$K$8) ->  | G13: 1 | H13: 1 | I13: 1.3 | J13: 0.85 | K13: =IF('7'!F$3=VTables!B$33,(((M$3-'7'!$K$8)/50)^'7'!K$3),"") ->  | L13: =IF(AK13,IF('7'!$F$3=VTables!$B$33,D13/(G13*H13*$G$31*$K13),0)+IF('7'!$F$3=VTables!$B$32,D13/($G$31*$J13),0),"") ->  | M13: 4000 | N13: 0.25 | U13: DRT | V13: Design room temperature | AI13: =IF('Room Inputs'!$J$5="Radiator",1,0) -> 0 | AJ13: ='7'!F$3<>VTables!B$33 -> TRUE | AK13: =OR('7'!F$3=VTables!B$33,'7'!F$3=VTables!B$32) -> FALSE | AL13: ='7'!F$3=VTables!B$32 -> FALSE | AM13: =OR('7'!F$3=VTables!B$31) -> FALSE | AN13: =OR('7'!F$3=VTables!$B$33,'7'!F$3="",AND(OR(G13=0,H13=0))) -> FALSE | AO13: 1 | AP13: 1 | AQ13: 3320 | AR13: =D13/($G$31*'7'!$K$5) ->  | AS13: =IF(ISNUMBER('Room Inputs'!$J$8),'Room Inputs'!$J$8,IF('7'!$C$5=VTables!$B$38,0,'7'!$K$8)+VLOOKUP('7'!$C$5,VTables!$B$36:$C$38,2,FALSE)) ->  | AU13: =AT13-'7'!$K$8 ->  | AW13: ='7'!$H$5 -> 0.25 | AX13: 2 | AY13: =VLOOKUP('7'!$F$5,VTables!B$42:D$44,2,FALSE) ->  | AZ13: =VLOOKUP('7'!$F$5,VTables!B$42:D$44,3,FALSE) -> 
B14: 8 | C14: =IF('8'!C$3=0,"",'8'!C$3) ->  | D14: ='8'!$K$42 -> 0 | E14: =IF(ISERROR('8'!$K$8),"",'8'!$K$8) ->  | G14: 1 | H14: 1 | I14: 1.3 | J14: 0.85 | K14: =IF('8'!F$3=VTables!B$33,(((M$3-'8'!$K$8)/50)^'8'!K$3),"") ->  | L14: =IF(AK14,IF('8'!$F$3=VTables!$B$33,D14/(G14*H14*$G$31*$K14),0)+IF('8'!$F$3=VTables!$B$32,D14/($G$31*$J14),0),"") ->  | M14: 4000 | N14: 0.25 | U14: ΔROOM | V14: Mean water to air temperature difference = MWT - DRT | AI14: =IF('Room Inputs'!$K$5="Radiator",1,0) -> 0 | AJ14: ='8'!F$3<>VTables!B$33 -> TRUE | AK14: =OR('8'!F$3=VTables!B$33,'8'!F$3=VTables!B$32) -> FALSE | AL14: ='8'!F$3=VTables!B$32 -> FALSE | AM14: =OR('8'!F$3=VTables!B$31) -> FALSE | AN14: =OR('8'!F$3=VTables!$B$33,'8'!F$3="",AND(OR(G14=0,H14=0))) -> FALSE | AO14: 1 | AP14: 1 | AQ14: 3320 | AR14: =D14/($G$31*'8'!$K$5) ->  | AS14: =IF(ISNUMBER('Room Inputs'!$K$8),'Room Inputs'!$K$8,IF('8'!$C$5=VTables!$B$38,0,'8'!$K$8)+VLOOKUP('8'!$C$5,VTables!$B$36:$C$38,2,FALSE)) ->  | AU14: =AT14-'8'!$K$8 ->  | AW14: ='8'!$H$5 -> 0.25 | AX14: 2 | AY14: =VLOOKUP('8'!$F$5,VTables!B$42:D$44,2,FALSE) ->  | AZ14: =VLOOKUP('8'!$F$5,VTables!B$42:D$44,3,FALSE) -> 
B15: 9 | C15: =IF('9'!C$3=0,"",'9'!C$3) ->  | D15: ='9'!$K$42 -> 0 | E15: =IF(ISERROR('9'!$K$8),"",'9'!$K$8) ->  | G15: 1 | H15: 1 | I15: 1.3 | J15: 0.85 | K15: =IF('9'!F$3=VTables!B$33,(((M$3-'9'!$K$8)/50)^'9'!K$3),"") ->  | L15: =IF(AK15,IF('9'!$F$3=VTables!$B$33,D15/(G15*H15*$G$31*$K15),0)+IF('9'!$F$3=VTables!$B$32,D15/($G$31*$J15),0),"") ->  | M15: 4000 | N15: 0.25 | U15: DET | V15: Design external temperature | AI15: =IF('Room Inputs'!$L$5="Radiator",1,0) -> 0 | AJ15: ='9'!F$3<>VTables!B$33 -> TRUE | AK15: =OR('9'!F$3=VTables!B$33,'9'!F$3=VTables!B$32) -> FALSE | AL15: ='9'!F$3=VTables!B$32 -> FALSE | AM15: =OR('9'!F$3=VTables!B$31) -> FALSE | AN15: =OR('9'!F$3=VTables!$B$33,'9'!F$3="",AND(OR(G15=0,H15=0))) -> FALSE | AO15: 1 | AP15: 1 | AQ15: 3320 | AR15: =D15/($G$31*'9'!$K$5) ->  | AS15: =IF(ISNUMBER('Room Inputs'!$L$8),'Room Inputs'!$L$8,IF('9'!$C$5=VTables!$B$38,0,'9'!$K$8)+VLOOKUP('9'!$C$5,VTables!$B$36:$C$38,2,FALSE)) ->  | AU15: =AT15-'9'!$K$8 ->  | AW15: ='9'!$H$5 -> 0.25 | AX15: 2 | AY15: =VLOOKUP('9'!$F$5,VTables!B$42:D$44,2,FALSE) ->  | AZ15: =VLOOKUP('9'!$F$5,VTables!B$42:D$44,3,FALSE) -> 
B16: 10 | C16: =IF('10'!C$3=0,"",'10'!C$3) ->  | D16: ='10'!$K$42 -> 0 | E16: =IF(ISERROR('10'!$K$8),"",'10'!$K$8) ->  | G16: 1 | H16: 1 | I16: 1.3 | J16: 0.85 | K16: =IF('10'!F$3=VTables!B$33,(((M$3-'10'!$K$8)/50)^'10'!K$3),"") ->  | L16: =IF(AK16,IF('10'!$F$3=VTables!$B$33,D16/(G16*H16*$G$31*$K16),0)+IF('10'!$F$3=VTables!$B$32,D16/($G$31*$J16),0),"") ->  | M16: 4000 | N16: 0.25 | AI16: =IF('Room Inputs'!$M$5="Radiator",1,0) -> 0 | AJ16: ='10'!F$3<>VTables!B$33 -> TRUE | AK16: =OR('10'!F$3=VTables!B$33,'10'!F$3=VTables!B$32) -> FALSE | AL16: ='10'!F$3=VTables!B$32 -> FALSE | AM16: =OR('10'!F$3=VTables!B$31) -> FALSE | AN16: =OR('10'!F$3=VTables!$B$33,'10'!F$3="",AND(OR(G16=0,H16=0))) -> FALSE | AO16: 1 | AP16: 1 | AQ16: 3320 | AR16: =D16/($G$31*'10'!$K$5) ->  | AS16: =IF(ISNUMBER('Room Inputs'!$M$8),'Room Inputs'!$M$8,IF('10'!$C$5=VTables!$B$38,0,'10'!$K$8)+VLOOKUP('10'!$C$5,VTables!$B$36:$C$38,2,FALSE)) ->  | AU16: =AT16-'10'!$K$8 ->  | AW16: ='10'!$H$5 -> 0.25 | AX16: 2 | AY16: =VLOOKUP('10'!$F$5,VTables!B$42:D$44,2,FALSE) ->  | AZ16: =VLOOKUP('10'!$F$5,VTables!B$42:D$44,3,FALSE) -> 
B17: 11 | C17: =IF('11'!C$3=0,"",'11'!C$3) ->  | D17: ='11'!$K$42 -> 0 | E17: =IF(ISERROR('11'!$K$8),"",'11'!$K$8) ->  | G17: 1 | H17: 1 | I17: 1.3 | J17: 0.85 | K17: =IF('11'!F$3=VTables!B$33,(((M$3-'11'!$K$8)/50)^'11'!K$3),"") ->  | L17: =IF(AK17,IF('11'!$F$3=VTables!$B$33,D17/(G17*H17*$G$31*$K17),0)+IF('11'!$F$3=VTables!$B$32,D17/($G$31*$J17),0),"") ->  | M17: 4000 | N17: 0.25 | U17: Table 6: Installation factors (surface finish) | AI17: =IF('Room Inputs'!$O$5="Radiator",1,0) -> 0 | AJ17: ='11'!F$3<>VTables!B$33 -> TRUE | AK17: =OR('11'!F$3=VTables!B$33,'11'!F$3=VTables!B$32) -> FALSE | AL17: ='11'!F$3=VTables!B$32 -> FALSE | AM17: =OR('11'!F$3=VTables!B$31) -> FALSE | AN17: =OR('11'!F$3=VTables!$B$33,'11'!F$3="",AND(OR(G17=0,H17=0))) -> FALSE | AO17: 1 | AP17: 1 | AQ17: 3320 | AR17: =D17/($G$31*'11'!$K$5) ->  | AS17: =IF(ISNUMBER('Room Inputs'!$O$8),'Room Inputs'!$O$8,IF('11'!$C$5=VTables!$B$38,0,'11'!$K$8)+VLOOKUP('11'!$C$5,VTables!$B$36:$C$38,2,FALSE)) ->  | AU17: =AT17-'11'!$K$8 ->  | AW17: ='11'!$H$5 -> 0.25 | AX17: 2 | AY17: =VLOOKUP('11'!$F$5,VTables!B$42:D$44,2,FALSE) ->  | AZ17: =VLOOKUP('11'!$F$5,VTables!B$42:D$44,3,FALSE) -> 
B18: 12 | C18: =IF('12'!C$3=0,"",'12'!C$3) ->  | D18: ='12'!$K$42 -> 0 | E18: =IF(ISERROR('12'!$K$8),"",'12'!$K$8) ->  | G18: 1 | H18: 1 | I18: 1.3 | J18: 0.85 | K18: =IF('12'!F$3=VTables!B$33,(((M$3-'12'!$K$8)/50)^'12'!K$3),"") ->  | L18: =IF(AK18,IF('12'!$F$3=VTables!$B$33,D18/(G18*H18*$G$31*$K18),0)+IF('12'!$F$3=VTables!$B$32,D18/($G$31*$J18),0),"") ->  | M18: 4000 | N18: 0.25 | U18: Paint finish | V18: Factor F1 | AI18: =IF('Room Inputs'!$P$5="Radiator",1,0) -> 0 | AJ18: ='12'!F$3<>VTables!B$33 -> TRUE | AK18: =OR('12'!F$3=VTables!B$33,'12'!F$3=VTables!B$32) -> FALSE | AL18: ='12'!F$3=VTables!B$32 -> FALSE | AM18: =OR('12'!F$3=VTables!B$31) -> FALSE | AN18: =OR('12'!F$3=VTables!$B$33,'12'!F$3="",AND(OR(G18=0,H18=0))) -> FALSE | AO18: 1 | AP18: 1 | AQ18: 3320 | AR18: =D18/($G$31*'12'!$K$5) ->  | AS18: =IF(ISNUMBER('Room Inputs'!$P$8),'Room Inputs'!$P$8,IF('12'!$C$5=VTables!$B$38,0,'12'!$K$8)+VLOOKUP('12'!$C$5,VTables!$B$36:$C$38,2,FALSE)) ->  | AU18: =AT18-'12'!$K$8 ->  | AW18: ='12'!$H$5 -> 0.25 | AX18: 2 | AY18: =VLOOKUP('12'!$F$5,VTables!B$42:D$44,2,FALSE) ->  | AZ18: =VLOOKUP('12'!$F$5,VTables!B$42:D$44,3,FALSE) -> 
B19: 13 | C19: =IF('13'!C$3=0,"",'13'!C$3) ->  | D19: ='13'!$K$42 -> 0 | E19: =IF(ISERROR('13'!$K$8),"",'13'!$K$8) ->  | G19: 1 | H19: 1 | I19: 1.3 | J19: 0.85 | K19: =IF('13'!F$3=VTables!B$33,(((M$3-'13'!$K$8)/50)^'13'!K$3),"") ->  | L19: =IF(AK19,IF('13'!$F$3=VTables!$B$33,D19/(G19*H19*$G$31*$K19),0)+IF('13'!$F$3=VTables!$B$32,D19/($G$31*$J19),0),"") ->  | M19: 4000 | N19: 0.25 | U19: Plain paint | V19: 1 | AI19: =IF('Room Inputs'!$Q$5="Radiator",1,0) -> 0 | AJ19: ='13'!F$3<>VTables!B$33 -> TRUE | AK19: =OR('13'!F$3=VTables!B$33,'13'!F$3=VTables!B$32) -> FALSE | AL19: ='13'!F$3=VTables!B$32 -> FALSE | AM19: =OR('13'!F$3=VTables!B$31) -> FALSE | AN19: =OR('13'!F$3=VTables!$B$33,'13'!F$3="",AND(OR(G19=0,H19=0))) -> FALSE | AO19: 1 | AP19: 1 | AQ19: 3320 | AR19: =D19/($G$31*'13'!$K$5) ->  | AS19: =IF(ISNUMBER('Room Inputs'!$Q$8),'Room Inputs'!$Q$8,IF('13'!$C$5=VTables!$B$38,0,'13'!$K$8)+VLOOKUP('13'!$C$5,VTables!$B$36:$C$38,2,FALSE)) ->  | AU19: =AT19-'13'!$K$8 ->  | AW19: ='13'!$H$5 -> 0.25 | AX19: 2 | AY19: =VLOOKUP('13'!$F$5,VTables!B$42:D$44,2,FALSE) ->  | AZ19: =VLOOKUP('13'!$F$5,VTables!B$42:D$44,3,FALSE) -> 
B20: 14 | C20: =IF('14'!C$3=0,"",'14'!C$3) ->  | D20: ='14'!$K$42 -> 0 | E20: =IF(ISERROR('14'!$K$8),"",'14'!$K$8) ->  | G20: 1 | H20: 1 | I20: 1.3 | J20: 0.85 | K20: =IF('14'!F$3=VTables!B$33,(((M$3-'14'!$K$8)/50)^'14'!K$3),"") ->  | L20: =IF(AK20,IF('14'!$F$3=VTables!$B$33,D20/(G20*H20*$G$31*$K20),0)+IF('14'!$F$3=VTables!$B$32,D20/($G$31*$J20),0),"") ->  | M20: 4000 | N20: 0.25 | U20: Metallic based paint | V20: 0.85 | AI20: =IF('Room Inputs'!$R$5="Radiator",1,0) -> 0 | AJ20: ='14'!F$3<>VTables!B$33 -> TRUE | AK20: =OR('14'!F$3=VTables!B$33,'14'!F$3=VTables!B$32) -> FALSE | AL20: ='14'!F$3=VTables!B$32 -> FALSE | AM20: =OR('14'!F$3=VTables!B$31) -> FALSE | AN20: =OR('14'!F$3=VTables!$B$33,'14'!F$3="",AND(OR(G20=0,H20=0))) -> FALSE | AO20: 1 | AP20: 1 | AQ20: 3320 | AR20: =D20/($G$31*'14'!$K$5) ->  | AS20: =IF(ISNUMBER('Room Inputs'!$R$8),'Room Inputs'!$R$8,IF('14'!$C$5=VTables!$B$38,0,'14'!$K$8)+VLOOKUP('14'!$C$5,VTables!$B$36:$C$38,2,FALSE)) ->  | AU20: =AT20-'14'!$K$8 ->  | AW20: ='14'!$H$5 -> 0.25 | AX20: 2 | AY20: =VLOOKUP('14'!$F$5,VTables!B$42:D$44,2,FALSE) ->  | AZ20: =VLOOKUP('14'!$F$5,VTables!B$42:D$44,3,FALSE) -> 
B21: 15 | C21: =IF('15'!C$3=0,"",'15'!C$3) ->  | D21: ='15'!$K$42 -> 0 | E21: =IF(ISERROR('15'!$K$8),"",'15'!$K$8) ->  | G21: 1 | H21: 1 | I21: 1.3 | J21: 0.85 | K21: =IF('15'!F$3=VTables!B$33,(((M$3-'15'!$K$8)/50)^'15'!K$3),"") ->  | L21: =IF(AK21,IF('15'!$F$3=VTables!$B$33,D21/(G21*H21*$G$31*$K21),0)+IF('15'!$F$3=VTables!$B$32,D21/($G$31*$J21),0),"") ->  | M21: 4000 | N21: 0.25 | U21: Highly polished, such as chrome plated | V21: Consult manufacturer, or if no information available use 0.65 | AI21: =IF('Room Inputs'!$S$5="Radiator",1,0) -> 0 | AJ21: ='15'!F$3<>VTables!B$33 -> TRUE | AK21: =OR('15'!F$3=VTables!B$33,'15'!F$3=VTables!B$32) -> FALSE | AL21: ='15'!F$3=VTables!B$32 -> FALSE | AM21: =OR('15'!F$3=VTables!B$31) -> FALSE | AN21: =OR('15'!F$3=VTables!$B$33,'15'!F$3="",AND(OR(G21=0,H21=0))) -> FALSE | AO21: 1 | AP21: 1 | AQ21: 3320 | AR21: =D21/($G$31*'15'!$K$5) ->  | AS21: =IF(ISNUMBER('Room Inputs'!$S$8),'Room Inputs'!$S$8,IF('15'!$C$5=VTables!$B$38,0,'15'!$K$8)+VLOOKUP('15'!$C$5,VTables!$B$36:$C$38,2,FALSE)) ->  | AU21: =AT21-'15'!$K$8 ->  | AW21: ='15'!$H$5 -> 0.25 | AX21: 2 | AY21: =VLOOKUP('15'!$F$5,VTables!B$42:D$44,2,FALSE) ->  | AZ21: =VLOOKUP('15'!$F$5,VTables!B$42:D$44,3,FALSE) -> 
B22: 16 | C22: =IF('16'!C$3=0,"",'16'!C$3) ->  | D22: ='16'!$K$42 -> 0 | E22: =IF(ISERROR('16'!$K$8),"",'16'!$K$8) ->  | G22: 1 | H22: 1 | I22: 1.3 | J22: 0.85 | K22: =IF('16'!F$3=VTables!B$33,(((M$3-'16'!$K$8)/50)^'16'!K$3),"") ->  | L22: =IF(AK22,IF('16'!$F$3=VTables!$B$33,D22/(G22*H22*$G$31*$K22),0)+IF('16'!$F$3=VTables!$B$32,D22/($G$31*$J22),0),"") ->  | M22: 4000 | N22: 0.25 | AI22: =IF('Room Inputs'!$T$5="Radiator",1,0) -> 0 | AJ22: ='16'!F$3<>VTables!B$33 -> TRUE | AK22: =OR('16'!F$3=VTables!B$33,'16'!F$3=VTables!B$32) -> FALSE | AL22: ='16'!F$3=VTables!B$32 -> FALSE | AM22: =OR('16'!F$3=VTables!B$31) -> FALSE | AN22: =OR('16'!F$3=VTables!$B$33,'16'!F$3="",AND(OR(G22=0,H22=0))) -> FALSE | AO22: 1 | AP22: 1 | AQ22: 3320 | AR22: =D22/($G$31*'16'!$K$5) ->  | AS22: =IF(ISNUMBER('Room Inputs'!$T$8),'Room Inputs'!$T$8,IF('16'!$C$5=VTables!$B$38,0,'16'!$K$8)+VLOOKUP('16'!$C$5,VTables!$B$36:$C$38,2,FALSE)) ->  | AU22: =AT22-'16'!$K$8 ->  | AW22: ='16'!$H$5 -> 0.25 | AX22: 2 | AY22: =VLOOKUP('16'!$F$5,VTables!B$42:D$44,2,FALSE) ->  | AZ22: =VLOOKUP('16'!$F$5,VTables!B$42:D$44,3,FALSE) -> 
B23: 17 | C23: =IF('17'!C$3=0,"",'17'!C$3) ->  | D23: ='17'!$K$42 -> 0 | E23: =IF(ISERROR('17'!$K$8),"",'17'!$K$8) ->  | G23: 1 | H23: 1 | I23: 1.3 | J23: 0.85 | K23: =IF('17'!F$3=VTables!B$33,(((M$3-'17'!$K$8)/50)^'17'!K$3),"") ->  | L23: =IF(AK23,IF('17'!$F$3=VTables!$B$33,D23/(G23*H23*$G$31*$K23),0)+IF('17'!$F$3=VTables!$B$32,D23/($G$31*$J23),0),"") ->  | M23: 4000 | N23: 0.25 | U23: Table 7: Installation factors (enclosure type) | AI23: =IF('Room Inputs'!$U$5="Radiator",1,0) -> 0 | AJ23: ='17'!F$3<>VTables!B$33 -> TRUE | AK23: =OR('17'!F$3=VTables!B$33,'17'!F$3=VTables!B$32) -> FALSE | AL23: ='17'!F$3=VTables!B$32 -> FALSE | AM23: =OR('17'!F$3=VTables!B$31) -> FALSE | AN23: =OR('17'!F$3=VTables!$B$33,'17'!F$3="",AND(OR(G23=0,H23=0))) -> FALSE | AO23: 1 | AP23: 1 | AQ23: 3320 | AR23: =D23/($G$31*'17'!$K$5) ->  | AS23: =IF(ISNUMBER('Room Inputs'!$U$8),'Room Inputs'!$U$8,IF('17'!$C$5=VTables!$B$38,0,'17'!$K$8)+VLOOKUP('17'!$C$5,VTables!$B$36:$C$38,2,FALSE)) ->  | AU23: =AT23-'17'!$K$8 ->  | AW23: ='17'!$H$5 -> 0.25 | AX23: 2 | AY23: =VLOOKUP('17'!$F$5,VTables!B$42:D$44,2,FALSE) ->  | AZ23: =VLOOKUP('17'!$F$5,VTables!B$42:D$44,3,FALSE) -> 
B24: 18 | C24: =IF('18'!C$3=0,"",'18'!C$3) ->  | D24: ='18'!$K$42 -> 0 | E24: =IF(ISERROR('18'!$K$8),"",'18'!$K$8) ->  | G24: 1 | H24: 1 | I24: 1.3 | J24: 0.85 | K24: =IF('18'!F$3=VTables!B$33,(((M$3-'18'!$K$8)/50)^'18'!K$3),"") ->  | L24: =IF(AK24,IF('18'!$F$3=VTables!$B$33,D24/(G24*H24*$G$31*$K24),0)+IF('18'!$F$3=VTables!$B$32,D24/($G$31*$J24),0),"") ->  | M24: 4000 | N24: 0.25 | U24: Enclosure type | V24: Factor F2 | AI24: =IF('Room Inputs'!$V$5="Radiator",1,0) -> 0 | AJ24: ='18'!F$3<>VTables!B$33 -> TRUE | AK24: =OR('18'!F$3=VTables!B$33,'18'!F$3=VTables!B$32) -> FALSE | AL24: ='18'!F$3=VTables!B$32 -> FALSE | AM24: =OR('18'!F$3=VTables!B$31) -> FALSE | AN24: =OR('18'!F$3=VTables!$B$33,'18'!F$3="",AND(OR(G24=0,H24=0))) -> FALSE | AO24: 1 | AP24: 1 | AQ24: 3320 | AR24: =D24/($G$31*'18'!$K$5) ->  | AS24: =IF(ISNUMBER('Room Inputs'!$V$8),'Room Inputs'!$V$8,IF('18'!$C$5=VTables!$B$38,0,'18'!$K$8)+VLOOKUP('18'!$C$5,VTables!$B$36:$C$38,2,FALSE)) ->  | AU24: =AT24-'18'!$K$8 ->  | AW24: ='18'!$H$5 -> 0.25 | AX24: 2 | AY24: =VLOOKUP('18'!$F$5,VTables!B$42:D$44,2,FALSE) ->  | AZ24: =VLOOKUP('18'!$F$5,VTables!B$42:D$44,3,FALSE) -> 
B25: 19 | C25: =IF('19'!C$3=0,"",'19'!C$3) ->  | D25: ='19'!$K$42 -> 0 | E25: =IF(ISERROR('19'!$K$8),"",'19'!$K$8) ->  | G25: 1 | H25: 1 | I25: 1.3 | J25: 0.85 | K25: =IF('19'!F$3=VTables!B$33,(((M$3-'19'!$K$8)/50)^'19'!K$3),"") ->  | L25: =IF(AK25,IF('19'!$F$3=VTables!$B$33,D25/(G25*H25*$G$31*$K25),0)+IF('19'!$F$3=VTables!$B$32,D25/($G$31*$J25),0),"") ->  | M25: 4000 | N25: 0.25 | U25: No Enclosure, fixed on plain surface | V25: 1 | AI25: =IF('Room Inputs'!$W$5="Radiator",1,0) -> 0 | AJ25: ='19'!F$3<>VTables!B$33 -> TRUE | AK25: =OR('19'!F$3=VTables!B$33,'19'!F$3=VTables!B$32) -> FALSE | AL25: ='19'!F$3=VTables!B$32 -> FALSE | AM25: =OR('19'!F$3=VTables!B$31) -> FALSE | AN25: =OR('19'!F$3=VTables!$B$33,'19'!F$3="",AND(OR(G25=0,H25=0))) -> FALSE | AO25: 1 | AP25: 1 | AQ25: 3320 | AR25: =D25/($G$31*'19'!$K$5) ->  | AS25: =IF(ISNUMBER('Room Inputs'!$W$8),'Room Inputs'!$W$8,IF('19'!$C$5=VTables!$B$38,0,'19'!$K$8)+VLOOKUP('19'!$C$5,VTables!$B$36:$C$38,2,FALSE)) ->  | AU25: =AT25-'19'!$K$8 ->  | AW25: ='19'!$H$5 -> 0.25 | AX25: 2 | AY25: =VLOOKUP('19'!$F$5,VTables!B$42:D$44,2,FALSE) ->  | AZ25: =VLOOKUP('19'!$F$5,VTables!B$42:D$44,3,FALSE) -> 
B26: 20 | C26: =IF('20'!C$3=0,"",'20'!C$3) ->  | D26: ='20'!$K$42 -> 0 | E26: =IF(ISERROR('20'!$K$8),"",'20'!$K$8) ->  | G26: 1 | H26: 1 | I26: 1.3 | J26: 0.85 | K26: =IF('20'!F$3=VTables!B$33,(((M$3-'20'!$K$8)/50)^'20'!K$3),"") ->  | L26: =IF(AK26,IF('20'!$F$3=VTables!$B$33,D26/(G26*H26*$G$31*$K26),0)+IF('20'!$F$3=VTables!$B$32,D26/($G$31*$J26),0),"") ->  | M26: 2400 | N26: 0.25 | O26: =AV26 ->  | P26: =BB26 ->  | R26: =IF(AND($AM26,$AT26<$M$3),"YES",IF(AND($AM26,$AS26>$M$3),"Note: Floor surface temperature capped at MWT")) ->  | U26: Shelf over plain radiator | V26: 0.95 | AI26: =IF('Room Inputs'!$X$5="Radiator",1,0) -> 0 | AJ26: ='20'!F$3<>VTables!B$33 -> TRUE | AK26: =OR('20'!F$3=VTables!B$33,'20'!F$3=VTables!B$32) -> FALSE | AL26: ='20'!F$3=VTables!B$32 -> FALSE | AM26: =OR('20'!F$3=VTables!B$31) -> FALSE | AN26: =OR('20'!F$3=VTables!$B$33,'20'!F$3="",AND(OR(G26=0,H26=0))) -> FALSE | AO26: 1 | AP26: 1 | AQ26: 1992 | AR26: =D26/($G$31*'20'!$K$5) ->  | AS26: =IF(ISNUMBER('Room Inputs'!$X$8),'Room Inputs'!$X$8,IF('20'!$C$5=VTables!$B$38,0,'20'!$K$8)+VLOOKUP('20'!$C$5,VTables!$B$36:$C$38,2,FALSE)) ->  | AU26: =AT26-'20'!$K$8 ->  | AW26: ='20'!$H$5 -> 0.25 | AX26: 2 | AY26: =VLOOKUP('20'!$F$5,VTables!B$42:D$44,2,FALSE) ->  | AZ26: =VLOOKUP('20'!$F$5,VTables!B$42:D$44,3,FALSE) -> 
U27: Fixed in open recess | V27: 0.9 | AH27: =COUNTIF(R7:R26,"YES") -> 1 | AM27: =COUNTIF(AM7:AM26,"TRUE") -> 1
C28: Total DHL (W) | D28: =SUM(D7:D26) -> 1862.072 | K28: Total | L28: =SUMIF($AK7:$AK26,TRUE,L7:L26) -> 2681.462813 | M28: =SUMIF($AK7:$AK26,TRUE,M7:M26) -> 2800 | U28: Encased cabinet with front and top grill | V28: 0.8 to 0.7
C30: Total Rad/Conv. contribution to DHL (W) | G30: =SUMIF(L7:L26,">0",D7:D26) -> 864.152 | U30: Table 9: Intermittency factor
C31: Intermittency Factor | G31: =IF('Site Inputs'!C3=VTables!D27,0.83,1) -> 0.83 | K31: Radiator/Convector Oversize Factor | M31: =IF(G30=0,"",SUMIF($AK7:$AK26,TRUE,AQ7:AQ26)/G30) -> 2.68934169 | U31: Heating pattern | V31: Factor FINTER
U32: Intermittent heating (one or two periods per day) | V32: 0.83
U33: Continuous heating | V33: 1
U35: Table 10: Value of n for emitter types
D36: ='Site Inputs'!$C$15 -> Tool Version 1.2 - 11.08.2014 | U36: Standard radiators | V36: 1.3
U37: Fan coil units | V37: 1.1
U38: Fan convectors | V38: 1
U40: Table 12: Limiting factors for floor surface temperature
U41: Floor type | V41: Maximum floor surface temperature
U42: Normally occupied space | V42: DRT + 9°C (q ≈ 100 W/m²)
U43: Peripheral zones | V43: DRT + 15°C (q ≈ 175 W/m²)
U44: Vinyl floor finish limit | V44: 27°C (q ≈ 75 W/m² when DRT = 20°C)
U46: Table 13: System performance factor KH (W/m²K)
U47: System | V47: Pipe centres (mm) | W47: Tog value of floor finish
W48: 0 | X48: 0.25 | Y48: 0.5 | Z48: 0.75 | AA48: 1 | AB48: 1.25 | AC48: 1.5 | AD48: 1.75 | AE48: 2
U49: Floating screed floor | V49: 100 | W49: 6.27 | X49: 5.32 | Y49: 4.63 | Z49: 4.1 | AA49: 3.68 | AB49: 3.34 | AC49: 3.06 | AD49: 2.83 | AE49: 2.62
V50: 150 | W50: 5.42 | X50: 4.66 | Y50: 4.1 | Z50: 3.66 | AA50: 3.32 | AB50: 3.04 | AC50: 2.8 | AD50: 2.6 | AE50: 2.43
V51: 200 | W51: 4.7 | X51: 4.09 | Y51: 3.64 | Z51: 3.28 | AA51: 3 | AB51: 2.76 | AC51: 2.56 | AD51: 2.39 | AE51: 2.24
V52: 250 | W52: 4.09 | X52: 3.6 | Y52: 3.23 | Z52: 2.95 | AA52: 2.71 | AB52: 2.52 | AC52: 2.35 | AD52: 2.2 | AE52: 2.08
V53: 300 | W53: 3.56 | X53: 3.17 | Y53: 2.88 | Z53: 2.65 | AA53: 2.46 | AB53: 2.3 | AC53: 2.16 | AD53: 2.03 | AE53: 1.92
U54: Floating dry floor inc. 18 mm chipboard | V54: 150 | W54: 3.6 | X54: 3.26 | Y54: 2.98 | Z54: 2.74 | AA54: 2.53 | AB54: 2.36 | AC54: 2.21 | AD54: 2.07 | AE54: 1.95
V55: 200 | W55: 3.34 | X55: 3.04 | Y55: 2.78 | Z55: 2.57 | AA55: 2.39 | AB55: 2.23 | AC55: 2.09 | AD55: 1.97 | AE55: 1.86
V56: 250 | W56: 3.04 | X56: 2.79 | Y56: 2.57 | Z56: 2.38 | AA56: 2.22 | AB56: 2.08 | AC56: 1.96 | AD56: 1.85 | AE56: 1.75
V57: 300 | W57: 2.73 | X57: 2.51 | Y57: 2.33 | Z57: 2.17 | AA57: 2.04 | AB57: 1.92 | AC57: 1.81 | AD57: 1.71 | AE57: 1.63
U58: Floating dry floor inc. 18 mm gypsum fibreboard | V58: 150 | W58: 5.58 | X58: 4.8 | Y58: 4.21 | Z58: 3.75 | AA58: 3.38 | AB58: 3.07 | AC58: 2.82 | AD58: 2.6 | AE58: 2.42
V59: 200 | W59: 5.1 | X59: 4.43 | Y59: 3.91 | Z59: 3.5 | AA59: 3.17 | AB59: 2.89 | AC59: 2.66 | AD59: 2.47 | AE59: 2.3
V60: 250 | W60: 4.58 | X60: 4.02 | Y60: 3.58 | Z60: 3.23 | AA60: 2.94 | AB60: 2.7 | AC60: 2.49 | AD60: 2.32 | AE60: 2.16
V61: 300 | W61: 4.04 | X61: 3.59 | Y61: 3.23 | Z61: 2.94 | AA61: 2.69 | AB61: 2.48 | AC61: 2.31 | AD61: 2.15 | AE61: 2.02
U63: Table 14: Typical tog values of generic floor coverings
U64: Ceramic or stone + adhesive | V64: 0.05 – 0.15 tog
U65: Vinyl + adhesive | V65: <0.25 tog
U66: 7 mm laminate + UFH underlay | V66: 1.0 tog
U67: 18 mm hardwood or engineered wood + UFH underlay | V67: 1.5 tog
U68: 12 mm carpet (with pile) + UFH underlay | V68: 2.0 tog

Sheet Certificate
B1: Low-temperature domestic heating systems - Calculation tool Design, Installation and Commissioning Certificate
B2: Site address:
B3: Date installation was commissioned
B4: Type of heat generator (boiler/heat pump/other) | C4: PLEASE SELECT
B5: Heat loss calculator used for the design (must conform to UK National Annex of EN12831) | C5: BRE Calculation tool for design of low temperature domestic heating systems
B6: Assumed Design External Temperature (DET) for heat loss calculations | C6: ='Site Inputs'!C8 -> -3.8
B7: Confirm that assumed internal temperatures were as given in Table 2 of the guide*. If there are any exceptions they should be listed here. | C7: YES
B8: Total building heat loss on the design day, in kW | C8: ='Emitter Specifications'!D28/1000 -> 1.862072
B9: Has the installation has been designed for intermittent heating or continuous heating? | C9: ='Site Inputs'!C3 -> Intermittent
B10: If the installation has been designed for intermittent heating, (a) the uplift factor applied to the building heat loss, and (b) the uplift factor applied to the heat generator | C10: =IF($C$9<>"Intermittent","N/A","") -> 
B11: Mean Water Temperature (MWT) assumed in the design | C11: ='Emitter Specifications'!M3 -> 32.5
B12: Oversize Factor for Actual Radiators / Convectors (only) | C12: =IF('Emitter Specifications'!$M$31=0,"",'Emitter Specifications'!$M$31) -> 2.68934169
B13: Underfloor heating (only): System Performance Factor (KH) (W/m2K) Minimum pipe spacing (mm) | C13: =IF('Emitter Specifications'!$AM$27=0,"No UFH installed",CONCATENATE('Emitter Specifications'!AG7,'Emitter Specifications'!AG8,'Emitter Specifications'!AG9,'Emitter Specifications'!AG10,'Emitter Specifications'!AG11,'Emitter Specifications'!AG12,'Emitter Specifications'!AG13,'Emitter Specifications'!AG14,'Emitter Specifications'!AG15,'Emitter Specifications'!AG16,'Emitter Specifications'!AG17,'Emitter Specifications'!AG18,'Emitter Specifications'!AG19,'Emitter Specifications'!AG20,'Emitter Specifications'!AG21,'Emitter Specifications'!AG22,'Emitter Specifications'!AG23,'Emitter Specifications'!AG24,'Emitter Specifications'!AG25,'Emitter Specifications'!AG26)) -> Kitchen: KH=5.34, Spacing (mm)=0;
B14: Design flow temperature (Tf) which is permanently set on the heat generator during commissioning. | C14: =ROUND(14/13*C11,0) -> 35
B15: Describe temperature-limiting control installed to ensure design flow temperature (Tf) from heat generator is not exceeded while the system is providing space heating
B16: Has a blending valve been installed for specific rooms with UFH to limit the Floor Surface Temperature? | C16: =IF('Emitter Specifications'!AH27=0,"No blending valves installed [delete if incorrect and specify locations]",CONCATENATE("Yes, fitted in room(s): ",'Emitter Specifications'!AH7,'Emitter Specifications'!AH8,'Emitter Specifications'!AH9,'Emitter Specifications'!AH10,'Emitter Specifications'!AH11,'Emitter Specifications'!AH12,'Emitter Specifications'!AH13,'Emitter Specifications'!AH14,'Emitter Specifications'!AH15,'Emitter Specifications'!AH16,'Emitter Specifications'!AH17,'Emitter Specifications'!AH18,'Emitter Specifications'!AH19,'Emitter Specifications'!AH20,'Emitter Specifications'!AH21,'Emitter Specifications'!AH22,'Emitter Specifications'!AH23,'Emitter Specifications'!AH24,'Emitter Specifications'!AH25,'Emitter Specifications'!AH26,"[delete if incorrect]")) -> Yes, fitted in room(s): Kitchen, [delete if incorrect]
B17: If the heat generator also provides hot water service, state what controls are used to ensure it does not supply hot water services and space heating service simultaneously
B18: Confirm that the control settings have been recorded for reference in future and a permanent label or suitable permanent documentation is supplied in close proximity to the controls or heat generator stating the required settings. Confirm location.
B19: If the heat generator is a heat pump or biomass boiler, state if the installation has been designed in accordance with the Microgeneration Certification Scheme (MCS) standards | C19: PLEASE SELECT
B20: I certify that:
B21: (i) the central heating installation at the premises whose address is shown above has been designed for low-temperature operation in accordance with the guide*
B22: (ii) the design included a heat loss calculation for every room of the building that is heated by the installation
B23: (iii) the installation conforms with the design
B24: (iv) controls to ensure continued low-temperature operation (limiting flow temperature) have been installed and commissioned in accordance with the design and cannot be overridden by the householder
B25: (v) controls to prevent simultaneous space heating and hot water service have been installed
B26: Name (print):
B27: Signature:
B28: Position/qualification:
B29: If installed by a Microgeneration Certification Scheme (MCS) installation company in compliance with MCS standards, give name, address and certification number of the MCS installation company
B30: Date:
B31: * BRE Trust Report FB 59, Design of low-low temperature domestic heating systems, available from: www.brebookshop.com NOTE: For SAP purposes, the person responsible for the heating system design must be competent to do so, with evidence demonstrating competency available upon request. This Certificate must be supplied to the dwelling SAP assessor, whilst a copy should be retained for own records and supplied to Building Control (if requested). Disclaimer: Building Research Establishment Ltd. makes no representation or warranty that the content of this calculation tool is suitable for any use or that it constitutes accurate data and/or advice.
C32: ='Site Inputs'!$C$15 -> Tool Version 1.2 - 11.08.2014

Sheet 1 (hidden)
B1: ='Room Inputs'!D3 -> Room1
B3: Room name | C3: =HLOOKUP($B$1,'Room Inputs'!$D$3:$X$137,C48,0) -> Kitchen | E3: Emitter type | F3: =HLOOKUP($B$1,'Room Inputs'!$D$3:$X$137,F48,0) -> Underfloor heating (UFH) | G3: For convectors consult the manufacturer's data and enter the temperature factor (FTEMP) for the appropriate fan speed | H3: =HLOOKUP($B$1,'Room Inputs'!$D$3:$X$137,H48,0) -> 0.85 | I3: For radiators enter the n-coefficient (exponent) from manufacturer's data. If unknown 1.3 may be used | K3: =HLOOKUP($B$1,'Room Inputs'!$D$3:$X$137,K48,0) -> 1.3
B5: Enter floor type and construction | C5: =HLOOKUP($B$1,'Room Inputs'!$D$3:$X$137,C50,0) -> Normally occupied space | E5: Enter floor type and construction | F5: =HLOOKUP($B$1,'Room Inputs'!$D$3:$X$137,F50,0) -> Floating screed floor | G5: For UFH enter Tog value (See Table 14) | H5: =HLOOKUP($B$1,'Room Inputs'!$D$3:$X$137,H50,0) -> 0.25 | I5: For UFH enter active or exposed area of the heated floor | K5: =HLOOKUP($B$1,'Room Inputs'!$D$3:$X$137,K50,0) -> 25
B7: Enter Room type below | E7: Enter Open fire/chimney details below | H7: Design room ventilation rate (air changes per hour) | K7: Design room temperature °C
B8: =HLOOKUP($B$1,'Room Inputs'!$D$3:$X$137,B53,0) -> Kitchen | E8: =HLOOKUP($B$1,'Room Inputs'!$D$3:$X$137,E53,0) -> No chimney or open fire | H8: =IF(E8=VTables!B20,VLOOKUP(B8,DRVT,3,FALSE),MAX(VLOOKUP(B8,DRVT,3,FALSE),VLOOKUP(E8,ARVR,2,FALSE))) -> 2 | K8: =VLOOKUP(B8,DRVT,2,FALSE) -> 18
B9: Room Dimensions
B10: Length (m) | D10: Width (m) | F10: Height (m) | G10: Room volume (m³) | J10: Design temperature difference | K10: Heat loss (W)
B11: =HLOOKUP($B$1,'Room Inputs'!$D$3:$X$137,B56,0) -> 5 | D11: =HLOOKUP($B$1,'Room Inputs'!$D$3:$X$137,D56,0) -> 5 | F11: =HLOOKUP($B$1,'Room Inputs'!$D$3:$X$137,F56,0) -> 2.4 | G11: =B11*D11*F11 -> 60 | J11: =K8-'Site Inputs'!C8 -> 21.8 | K11: =IF(G11>0,(ROUND(0.33*G11*H8*J11,2)),"") -> 863.28
B12: Walls, floors not ground floors and ceiling
B13: Name of wall, floor, ceiling | C13: Space on other side | D13: Height or length (m) | E13: Width (m) | F13: Area (m²) | G13: Construction | H13: Entered U- value (W/m²K), if required | I13: U-value (W/m²K) | J13: Design temperature difference | K13: Heat loss (W) | M13: `
B14: =HLOOKUP($B$1,'Room Inputs'!$D$3:$X$137,B59,0) -> External wall | C14: =HLOOKUP($B$1,'Room Inputs'!$D$3:$X$137,C59,0) -> Outside | D14: =HLOOKUP($B$1,'Room Inputs'!$D$3:$X$137,D59,0) -> 2.4 | E14: =HLOOKUP($B$1,'Room Inputs'!$D$3:$X$137,E59,0) -> 5 | F14: =D14*E14 -> 12 | G14: =HLOOKUP($B$1,'Room Inputs'!$D$3:$X$137,G59,0) -> Enter a U-value | H14: =HLOOKUP($B$1,'Room Inputs'!$D$3:$X$137,H59,0) -> 0.2 | I14: =IF(OR(G14=UvaluesWRF!A$2,ISERROR(VLOOKUP(G14,UvaluesWRF!A$3:B$110,2,FALSE))),"",VLOOKUP(G14,UvaluesWRF!A$3:B$110,2,FALSE)) ->  | J14: =IF(C14="","",$K$8-VLOOKUP(C14,DRVT,2,FALSE)) -> 21.8 | K14: =IF(G14=UvaluesWRF!A$2,IF(ISERROR(F14*J14*H14),"",F14*J14*H14),IF(ISERROR(F14*J14*I14),"",F14*J14*I14)) -> 52.32
B15: =HLOOKUP($B$1,'Room Inputs'!$D$3:$X$137,B60,0) -> External wall | C15: =HLOOKUP($B$1,'Room Inputs'!$D$3:$X$137,C60,0) -> Outside | D15: =HLOOKUP($B$1,'Room Inputs'!$D$3:$X$137,D60,0) -> 2.4 | E15: =HLOOKUP($B$1,'Room Inputs'!$D$3:$X$137,E60,0) -> 5 | F15: =D15*E15 -> 12 | G15: =HLOOKUP($B$1,'Room Inputs'!$D$3:$X$137,G60,0) -> Enter a U-value | H15: =HLOOKUP($B$1,'Room Inputs'!$D$3:$X$137,H60,0) -> 0.2 | I15: =IF(OR(G15=UvaluesWRF!A$2,ISERROR(VLOOKUP(G15,UvaluesWRF!A$3:B$110,2,FALSE))),"",VLOOKUP(G15,UvaluesWRF!A$3:B$110,2,FALSE)) ->  | J15: =IF(C15="","",$K$8-VLOOKUP(C15,DRVT,2,FALSE)) -> 21.8 | K15: =IF(G15=UvaluesWRF!A$2,IF(ISERROR(F15*J15*H15),"",F15*J15*H15),IF(ISERROR(F15*J15*I15),"",F15*J15*I15)) -> 52.32
B16: =HLOOKUP($B$1,'Room Inputs'!$D$3:$X$137,B61,0) -> 0 | C16: =HLOOKUP($B$1,'Room Inputs'!$D$3:$X$137,C61,0) -> 0 | D16: =HLOOKUP($B$1,'Room Inputs'!$D$3:$X$137,D61,0) -> 0 | E16: =HLOOKUP($B$1,'Room Inputs'!$D$3:$X$137,E61,0) -> 0 | F16: 0 | G16: =HLOOKUP($B$1,'Room Inputs'!$D$3:$X$137,G61,0) -> 0 | H16: =HLOOKUP($B$1,'Room Inputs'!$D$3:$X$137,H61,0) -> 0 | I16: =IF(OR(G16=UvaluesWRF!A$2,ISERROR(VLOOKUP(G16,UvaluesWRF!A$3:B$110,2,FALSE))),"",VLOOKUP(G16,UvaluesWRF!A$3:B$110,2,FALSE)) ->  | K16: =IF(G16=UvaluesWRF!A$2,IF(ISERROR(F16*J16*H16),"",F16*J16*H16),IF(ISERROR(F16*J16*I16),"",F16*J16*I16)) -> 
B17: =HLOOKUP($B$1,'Room Inputs'!$D$3:$X$137,B62,0) -> 0 | C17: =HLOOKUP($B$1,'Room Inputs'!$D$3:$X$137,C62,0) -> 0 | D17: =HLOOKUP($B$1,'Room Inputs'!$D$3:$X$137,D62,0) -> 0 | E17: =HLOOKUP($B$1,'Room Inputs'!$D$3:$X$137,E62,0) -> 0 | F17: 0 | G17: =HLOOKUP($B$1,'Room Inputs'!$D$3:$X$137,G62,0) -> 0 | H17: =HLOOKUP($B$1,'Room Inputs'!$D$3:$X$137,H62,0) -> 0 | I17: =IF(OR(G17=UvaluesWRF!A$2,ISERROR(VLOOKUP(G17,UvaluesWRF!A$3:B$110,2,FALSE))),"",VLOOKUP(G17,UvaluesWRF!A$3:B$110,2,FALSE)) ->  | K17: =IF(G17=UvaluesWRF!A$2,IF(ISERROR(F17*J17*H17),"",F17*J17*H17),IF(ISERROR(F17*J17*I17),"",F17*J17*I17)) -> 
B18: =HLOOKUP($B$1,'Room Inputs'!$D$3:$X$137,B63,0) -> 0 | C18: =HLOOKUP($B$1,'Room Inputs'!$D$3:$X$137,C63,0) -> 0 | D18: =HLOOKUP($B$1,'Room Inputs'!$D$3:$X$137,D63,0) -> 0 | E18: =HLOOKUP($B$1,'Room Inputs'!$D$3:$X$137,E63,0) -> 0 | F18: 0 | G18: =HLOOKUP($B$1,'Room Inputs'!$D$3:$X$137,G63,0) -> 0 | H18: =HLOOKUP($B$1,'Room Inputs'!$D$3:$X$137,H63,0) -> 0 | I18: =IF(OR(G18=UvaluesWRF!A$2,ISERROR(VLOOKUP(G18,UvaluesWRF!A$3:B$110,2,FALSE))),"",VLOOKUP(G18,UvaluesWRF!A$3:B$110,2,FALSE)) ->  | K18: =IF(G18=UvaluesWRF!A$2,IF(ISERROR(F18*J18*H18),"",F18*J18*H18),IF(ISERROR(F18*J18*I18),"",F18*J18*I18)) -> 
B19: =HLOOKUP($B$1,'Room Inputs'!$D$3:$X$137,B64,0) -> 0 | C19: =HLOOKUP($B$1,'Room Inputs'!$D$3:$X$137,C64,0) -> 0 | D19: =HLOOKUP($B$1,'Room Inputs'!$D$3:$X$137,D64,0) -> 0 | E19: =HLOOKUP($B$1,'Room Inputs'!$D$3:$X$137,E64,0) -> 0 | F19: 0 | G19: =HLOOKUP($B$1,'Room Inputs'!$D$3:$X$137,G64,0) -> 0 | H19: =HLOOKUP($B$1,'Room Inputs'!$D$3:$X$137,H64,0) -> 0 | I19: =IF(OR(G19=UvaluesWRF!A$2,ISERROR(VLOOKUP(G19,UvaluesWRF!A$3:B$110,2,FALSE))),"",VLOOKUP(G19,UvaluesWRF!A$3:B$110,2,FALSE)) ->  | K19: =IF(G19=UvaluesWRF!A$2,IF(ISERROR(F19*J19*H19),"",F19*J19*H19),IF(ISERROR(F19*J19*I19),"",F19*J19*I19)) -> 
B20: =HLOOKUP($B$1,'Room Inputs'!$D$3:$X$137,B65,0) -> 0 | C20: =HLOOKUP($B$1,'Room Inputs'!$D$3:$X$137,C65,0) -> 0 | D20: =HLOOKUP($B$1,'Room Inputs'!$D$3:$X$137,D65,0) -> 0 | E20: =HLOOKUP($B$1,'Room Inputs'!$D$3:$X$137,E65,0) -> 0 | F20: 0 | G20: =HLOOKUP($B$1,'Room Inputs'!$D$3:$X$137,G65,0) -> 0 | H20: =HLOOKUP($B$1,'Room Inputs'!$D$3:$X$137,H65,0) -> 0 | I20: =IF(OR(G20=UvaluesWRF!A$2,ISERROR(VLOOKUP(G20,UvaluesWRF!A$3:B$110,2,FALSE))),"",VLOOKUP(G20,UvaluesWRF!A$3:B$110,2,FALSE)) ->  | K20: =IF(G20=UvaluesWRF!A$2,IF(ISERROR(F20*J20*H20),"",F20*J20*H20),IF(ISERROR(F20*J20*I20),"",F20*J20*I20)) -> 
B21: =HLOOKUP($B$1,'Room Inputs'!$D$3:$X$137,B66,0) -> 0 | C21: =HLOOKUP($B$1,'Room Inputs'!$D$3:$X$137,C66,0) -> 0 | D21: =HLOOKUP($B$1,'Room Inputs'!$D$3:$X$137,D66,0) -> 0 | E21: =HLOOKUP($B$1,'Room Inputs'!$D$3:$X$137,E66,0) -> 0 | F21: 0 | G21: =HLOOKUP($B$1,'Room Inputs'!$D$3:$X$137,G66,0) -> 0 | H21: =HLOOKUP($B$1,'Room Inputs'!$D$3:$X$137,H66,0) -> 0 | I21: =IF(OR(G21=UvaluesWRF!A$2,ISERROR(VLOOKUP(G21,UvaluesWRF!A$3:B$110,2,FALSE))),"",VLOOKUP(G21,UvaluesWRF!A$3:B$110,2,FALSE)) ->  | K21: =IF(G21=UvaluesWRF!A$2,IF(ISERROR(F21*J21*H21),"",F21*J21*H21),IF(ISERROR(F21*J21*I21),"",F21*J21*I21)) -> 
B22: =HLOOKUP($B$1,'Room Inputs'!$D$3:$X$137,B67,0) -> 0 | C22: =HLOOKUP($B$1,'Room Inputs'!$D$3:$X$137,C67,0) -> 0 | D22: =HLOOKUP($B$1,'Room Inputs'!$D$3:$X$137,D67,0) -> 0 | E22: =HLOOKUP($B$1,'Room Inputs'!$D$3:$X$137,E67,0) -> 0 | F22: 0 | G22: =HLOOKUP($B$1,'Room Inputs'!$D$3:$X$137,G67,0) -> 0 | H22: =HLOOKUP($B$1,'Room Inputs'!$D$3:$X$137,H67,0) -> 0 | I22: =IF(OR(G22=UvaluesWRF!A$2,ISERROR(VLOOKUP(G22,UvaluesWRF!A$3:B$110,2,FALSE))),"",VLOOKUP(G22,UvaluesWRF!A$3:B$110,2,FALSE)) ->  | K22: =IF(G22=UvaluesWRF!A$2,IF(ISERROR(F22*J22*H22),"",F22*J22*H22),IF(ISERROR(F22*J22*I22),"",F22*J22*I22)) -> 
B23: =HLOOKUP($B$1,'Room Inputs'!$D$3:$X$137,B68,0) -> 0 | C23: =HLOOKUP($B$1,'Room Inputs'!$D$3:$X$137,C68,0) -> 0 | D23: =HLOOKUP($B$1,'Room Inputs'!$D$3:$X$137,D68,0) -> 0 | E23: =HLOOKUP($B$1,'Room Inputs'!$D$3:$X$137,E68,0) -> 0 | F23: 0 | G23: =HLOOKUP($B$1,'Room Inputs'!$D$3:$X$137,G68,0) -> 0 | H23: =HLOOKUP($B$1,'Room Inputs'!$D$3:$X$137,H68,0) -> 0 | I23: =IF(OR(G23=UvaluesWRF!A$2,ISERROR(VLOOKUP(G23,UvaluesWRF!A$3:B$110,2,FALSE))),"",VLOOKUP(G23,UvaluesWRF!A$3:B$110,2,FALSE)) ->  | K23: =IF(G23=UvaluesWRF!A$2,IF(ISERROR(F23*J23*H23),"",F23*J23*H23),IF(ISERROR(F23*J23*I23),"",F23*J23*I23)) -> 
B24: =HLOOKUP($B$1,'Room Inputs'!$D$3:$X$137,B69,0) -> 0 | C24: =HLOOKUP($B$1,'Room Inputs'!$D$3:$X$137,C69,0) -> 0 | D24: =HLOOKUP($B$1,'Room Inputs'!$D$3:$X$137,D69,0) -> 0 | E24: =HLOOKUP($B$1,'Room Inputs'!$D$3:$X$137,E69,0) -> 0 | F24: 0 | G24: =HLOOKUP($B$1,'Room Inputs'!$D$3:$X$137,G69,0) -> 0 | H24: =HLOOKUP($B$1,'Room Inputs'!$D$3:$X$137,H69,0) -> 0 | I24: =IF(OR(G24=UvaluesWRF!A$2,ISERROR(VLOOKUP(G24,UvaluesWRF!A$3:B$110,2,FALSE))),"",VLOOKUP(G24,UvaluesWRF!A$3:B$110,2,FALSE)) ->  | K24: =IF(G24=UvaluesWRF!A$2,IF(ISERROR(F24*J24*H24),"",F24*J24*H24),IF(ISERROR(F24*J24*I24),"",F24*J24*I24)) -> 
B25: =HLOOKUP($B$1,'Room Inputs'!$D$3:$X$137,B70,0) -> 0 | C25: =HLOOKUP($B$1,'Room Inputs'!$D$3:$X$137,C70,0) -> 0 | D25: =HLOOKUP($B$1,'Room Inputs'!$D$3:$X$137,D70,0) -> 0 | E25: =HLOOKUP($B$1,'Room Inputs'!$D$3:$X$137,E70,0) -> 0 | F25: 0 | G25: =HLOOKUP($B$1,'Room Inputs'!$D$3:$X$137,G70,0) -> 0 | H25: =HLOOKUP($B$1,'Room Inputs'!$D$3:$X$137,H70,0) -> 0 | I25: =IF(OR(G25=UvaluesWRF!A$2,ISERROR(VLOOKUP(G25,UvaluesWRF!A$3:B$110,2,FALSE))),"",VLOOKUP(G25,UvaluesWRF!A$3:B$110,2,FALSE)) ->  | K25: =IF(G25=UvaluesWRF!A$2,IF(ISERROR(F25*J25*H25),"",F25*J25*H25),IF(ISERROR(F25*J25*I25),"",F25*J25*I25)) -> 
B26: Ground floors Short length (m) | C26: long length (m) | D26: Edges exposed | G26: Type and Insulation thickness | M26: U-value | N26: Edge | O26: Insulation | P26: Column | R26: 1 | S26: 2 | T26: 3 | U26: 4 | V26: 5.3 | W26: 5.4 | X26: 5.5 | Y26: 5.6 | Z26: 6.3 | AA26: 6.4 | AB26: 6.5 | AC26: 6.6
B27: =HLOOKUP($B$1,'Room Inputs'!$D$3:$X$137,B72,0) -> 5 | C27: =HLOOKUP($B$1,'Room Inputs'!$D$3:$X$137,C72,0) -> 5 | D27: =HLOOKUP($B$1,'Room Inputs'!$D$3:$X$137,D72,0) -> Two adjacent edges | E27: =HLOOKUP($B$1,'Room Inputs'!$D$3:$X$137,E72,0) -> Solid floor - Enter a U-value | F27: =B27*C27 -> 25 | G27: =HLOOKUP($B$1,'Room Inputs'!$D$3:$X$137,G72,0) -> Solid floor - Enter a U-value | H27: =HLOOKUP($B$1,'Room Inputs'!$D$3:$X$137,H72,0) -> 0.15 | I27: =IF(OR(G27=UvaluesFlr!$U$3,G27=UvaluesFlr!$U$4,ISERROR(M27)),"",M27) ->  | J27: =$K$8-IF(LEFT(G27,2)="So",10,'Site Inputs'!$C$8) -> 8 | K27: =IF(OR(G27=UvaluesFlr!$U$3,G27=UvaluesFlr!$U$4),IF(ISERROR(F27*J27*H27),"",F27*J27*H27),IF(ISERROR(F27*J27*I27),"",F27*J27*I27)) -> 30 | M27: =HLOOKUP(N27+MIN(0.6,IF(N27>4,O27/10,0)),$R$26:$AC$29,2,TRUE) ->  | N27: =VLOOKUP(D27,UvaluesFlr!$U$17:$V$22,2,FALSE) -> 3 | O27: =VLOOKUP(G27,UvaluesFlr!$U$3:$W$14,2,FALSE) -> 0 | P27: =VLOOKUP(G27,UvaluesFlr!$U$3:$W$14,3,FALSE) -> 0 | R27: =VLOOKUP(C27,UvaluesFlr!$C$53:$P$59,$P27,TRUE) ->  | S27: =VLOOKUP(B27,UvaluesFlr!$C$53:$P$59,$P27,TRUE) ->  | T27: =VLOOKUP(B27+C27,UvaluesFlr!$C$4:$P$12,$P27,TRUE) ->  | U27: =VLOOKUP(B27,UvaluesFlr!$C$16:$P$21,$P27,TRUE) ->  | V27: =VLOOKUP($C27,UvaluesFlr!$D$26:$P$29,$P27-1,TRUE) ->  | W27: =VLOOKUP($C27,UvaluesFlr!$D$30:$P$31,$P27-1,TRUE) ->  | X27: =VLOOKUP($C27,UvaluesFlr!$D$32:$P$33,$P27-1,TRUE) ->  | Y27: =VLOOKUP($C27,UvaluesFlr!$D$34:$P$35,$P27-1,TRUE) ->  | Z27: =VLOOKUP($C27,UvaluesFlr!$D$39:$P$42,$P27-1,TRUE) ->  | AA27: =VLOOKUP($C27,UvaluesFlr!$D$43:$P$45,$P27-1,TRUE) ->  | AB27: =VLOOKUP($C27,UvaluesFlr!$D$46:$P$48,$P27-1,TRUE) ->  | AC27: =VLOOKUP($C27,UvaluesFlr!$D$49:$P$50,$P27-1,TRUE) -> 
B28: =HLOOKUP($B$1,'Room Inputs'!$D$3:$X$137,B73,0) -> 0 | C28: =HLOOKUP($B$1,'Room Inputs'!$D$3:$X$137,C73,0) -> 0 | D28: =HLOOKUP($B$1,'Room Inputs'!$D$3:$X$137,D73,0) -> 0 | E28: =HLOOKUP($B$1,'Room Inputs'!$D$3:$X$137,E73,0) ->  | F28: =B28*C28 -> 0 | G28: =HLOOKUP($B$1,'Room Inputs'!$D$3:$X$137,G73,0) -> 0 | H28: =HLOOKUP($B$1,'Room Inputs'!$D$3:$X$137,H73,0) -> 0 | I28: =IF(OR(G28=UvaluesFlr!$U$3,G28=UvaluesFlr!$U$4,ISERROR(M28)),"",M28) ->  | J28: =$K$8-IF(LEFT(G28,2)="So",10,'Site Inputs'!$C$8) -> 21.8 | K28: =IF(OR(G28=UvaluesFlr!$U$3,G28=UvaluesFlr!$U$4),IF(ISERROR(F28*J28*H28),"",F28*J28*H28),IF(ISERROR(F28*J28*I28),"",F28*J28*I28)) ->  | M28: =HLOOKUP(N28+MIN(0.6,IF(N28>4,O28/10,0)),$R$26:$AC$29,3,TRUE) ->  | N28: =VLOOKUP(D28,UvaluesFlr!$U$17:$V$22,2,FALSE) ->  | O28: =VLOOKUP(G28,UvaluesFlr!$U$3:$W$14,2,FALSE) ->  | P28: =VLOOKUP(G28,UvaluesFlr!$U$3:$W$14,3,FALSE) ->  | R28: =VLOOKUP(C28,UvaluesFlr!$C$53:$P$59,$P28,TRUE) ->  | S28: =VLOOKUP(B28,UvaluesFlr!$C$53:$P$59,$P28,TRUE) ->  | T28: =VLOOKUP(B28+C28,UvaluesFlr!$C$4:$P$12,$P28,TRUE) ->  | U28: =VLOOKUP(B28,UvaluesFlr!$C$16:$P$21,$P28,TRUE) ->  | V28: =VLOOKUP($C28,UvaluesFlr!$D$26:$P$29,$P28-1,TRUE) ->  | W28: =VLOOKUP($C28,UvaluesFlr!$D$30:$P$31,$P28-1,TRUE) ->  | X28: =VLOOKUP($C28,UvaluesFlr!$D$32:$P$33,$P28-1,TRUE) ->  | Y28: =VLOOKUP($C28,UvaluesFlr!$D$34:$P$35,$P28-1,TRUE) ->  | Z28: =VLOOKUP($C28,UvaluesFlr!$D$39:$P$42,$P28-1,TRUE) ->  | AA28: =VLOOKUP($C28,UvaluesFlr!$D$43:$P$45,$P28-1,TRUE) ->  | AB28: =VLOOKUP($C28,UvaluesFlr!$D$46:$P$48,$P28-1,TRUE) ->  | AC28: =VLOOKUP($C28,UvaluesFlr!$D$49:$P$50,$P28-1,TRUE) -> 
B29: =HLOOKUP($B$1,'Room Inputs'!$D$3:$X$137,B74,0) -> 0 | C29: =HLOOKUP($B$1,'Room Inputs'!$D$3:$X$137,C74,0) -> 0 | D29: =HLOOKUP($B$1,'Room Inputs'!$D$3:$X$137,D74,0) -> 0 | E29: =HLOOKUP($B$1,'Room Inputs'!$D$3:$X$137,E74,0) ->  | F29: =B29*C29 -> 0 | G29: =HLOOKUP($B$1,'Room Inputs'!$D$3:$X$137,G74,0) -> 0 | H29: =HLOOKUP($B$1,'Room Inputs'!$D$3:$X$137,H74,0) -> 0 | I29: =IF(OR(G29=UvaluesFlr!$U$3,G29=UvaluesFlr!$U$4,ISERROR(M29)),"",M29) ->  | J29: =$K$8-IF(LEFT(G29,2)="So",10,'Site Inputs'!$C$8) -> 21.8 | K29: =IF(OR(G29=UvaluesFlr!$U$3,G29=UvaluesFlr!$U$4),IF(ISERROR(F29*J29*H29),"",F29*J29*H29),IF(ISERROR(F29*J29*I29),"",F29*J29*I29)) ->  | M29: =HLOOKUP(N29+MIN(0.6,IF(N29>4,O29/10,0)),$R$26:$AC$29,4,TRUE) ->  | N29: =VLOOKUP(D29,UvaluesFlr!$U$17:$V$22,2,FALSE) ->  | O29: =VLOOKUP(G29,UvaluesFlr!$U$3:$W$14,2,FALSE) ->  | P29: =VLOOKUP(G29,UvaluesFlr!$U$3:$W$14,3,FALSE) ->  | R29: =VLOOKUP(C29,UvaluesFlr!$C$53:$P$59,$P29,TRUE) ->  | S29: =VLOOKUP(B29,UvaluesFlr!$C$53:$P$59,$P29,TRUE) ->  | T29: =VLOOKUP(B29+C29,UvaluesFlr!$C$4:$P$12,$P29,TRUE) ->  | U29: =VLOOKUP(B29,UvaluesFlr!$C$16:$P$21,$P29,TRUE) ->  | V29: =VLOOKUP($C29,UvaluesFlr!$D$26:$P$29,$P29-1,TRUE) ->  | W29: =VLOOKUP($C29,UvaluesFlr!$D$30:$P$31,$P29-1,TRUE) ->  | X29: =VLOOKUP($C29,UvaluesFlr!$D$32:$P$33,$P29-1,TRUE) ->  | Y29: =VLOOKUP($C29,UvaluesFlr!$D$34:$P$35,$P29-1,TRUE) ->  | Z29: =VLOOKUP($C29,UvaluesFlr!$D$39:$P$42,$P29-1,TRUE) ->  | AA29: =VLOOKUP($C29,UvaluesFlr!$D$43:$P$45,$P29-1,TRUE) ->  | AB29: =VLOOKUP($C29,UvaluesFlr!$D$46:$P$48,$P29-1,TRUE) ->  | AC29: =VLOOKUP($C29,UvaluesFlr!$D$49:$P$50,$P29-1,TRUE) -> 
B32: Windows and doors
B33: Wall or roof with window or door | C33: Window or door height (m) | D33: Window or door width (m) | E33: Area (m²) | F33: Wall/roof U-value (W/m²K) | G33: Frame and glazing type | H33: Entered U- value (W/m²K), if required | I33: U-value | J33: Design temperature difference | K33: Heat loss (W)*
B34: =HLOOKUP($B$1,'Room Inputs'!$D$3:$X$137,B79,0) -> External | C34: =HLOOKUP($B$1,'Room Inputs'!$D$3:$X$137,C79,0) -> 0.9 | D34: =HLOOKUP($B$1,'Room Inputs'!$D$3:$X$137,D79,0) -> 1.6 | E34: =C34*D34 -> 1.44 | F34: =IF(B34<>"",IF(VLOOKUP(B34,B$14:I$25,6,FALSE)=UvalueWD!$C$6,VLOOKUP(B34,B$14:I$25,7,FALSE),VLOOKUP(B34,B$14:I$25,8,FALSE)),"") ->  | G34: =HLOOKUP($B$1,'Room Inputs'!$D$3:$X$137,G79,0) -> Wood/PVC Double, low-E glass, argon filled | H34: =HLOOKUP($B$1,'Room Inputs'!$D$3:$X$137,H79,0) -> 0 | I34: =IF(OR(G34=UvalueWD!C$6,G34=""),"",VLOOKUP(G34,Windows,2,FALSE)) -> 2.1 | J34: =IF(ISERROR(VLOOKUP(B34,B$13:K$29,9,FALSE)),"",VLOOKUP(B34,B$13:K$29,9,FALSE)) ->  | K34: =IF(G34=UvaluesWRF!A$2,IF(ISERROR(F34*J34*(H34-F34)),"",F34*J34*(H34-F34)),IF(ISERROR(F34*J34*(F34-I34)),"",(I34-F34)*J34*I34)) -> 
B35: =HLOOKUP($B$1,'Room Inputs'!$D$3:$X$137,B80,0) -> 0 | C35: =HLOOKUP($B$1,'Room Inputs'!$D$3:$X$137,C80,0) -> 0 | D35: =HLOOKUP($B$1,'Room Inputs'!$D$3:$X$137,D80,0) -> 0 | E35: =C35*D35 -> 0 | F35: =IF(B35<>"",IF(VLOOKUP(B35,B$14:I$25,6,FALSE)=UvalueWD!$C$6,VLOOKUP(B35,B$14:I$25,7,FALSE),VLOOKUP(B35,B$14:I$25,8,FALSE)),"") ->  | G35: =HLOOKUP($B$1,'Room Inputs'!$D$3:$X$137,G80,0) -> 0 | H35: =HLOOKUP($B$1,'Room Inputs'!$D$3:$X$137,H80,0) -> 0 | I35: =IF(OR(G35=UvalueWD!C$6,G35=""),"",VLOOKUP(G35,Windows,2,FALSE)) ->  | K35: =IF(G35=UvaluesWRF!A$2,IF(ISERROR(F35*J35*(H35-F35)),"",F35*J35*(H35-F35)),IF(ISERROR(F35*J35*(F35-I35)),"",(I35-F35)*J35*I35)) -> 
B36: =HLOOKUP($B$1,'Room Inputs'!$D$3:$X$137,B81,0) -> 0 | C36: =HLOOKUP($B$1,'Room Inputs'!$D$3:$X$137,C81,0) -> 0 | D36: =HLOOKUP($B$1,'Room Inputs'!$D$3:$X$137,D81,0) -> 0 | E36: 0 | F36: =IF(B36<>"",IF(VLOOKUP(B36,B$14:I$25,6,FALSE)=UvalueWD!$C$6,VLOOKUP(B36,B$14:I$25,7,FALSE),VLOOKUP(B36,B$14:I$25,8,FALSE)),"") ->  | G36: =HLOOKUP($B$1,'Room Inputs'!$D$3:$X$137,G81,0) -> 0 | H36: =HLOOKUP($B$1,'Room Inputs'!$D$3:$X$137,H81,0) -> 0 | I36: =IF(OR(G36=UvalueWD!C$6,G36=""),"",VLOOKUP(G36,Windows,2,FALSE)) ->  | K36: =IF(G36=UvaluesWRF!A$2,IF(ISERROR(F36*J36*(H36-F36)),"",F36*J36*(H36-F36)),IF(ISERROR(F36*J36*(F36-I36)),"",(I36-F36)*J36*I36)) -> 
B37: =HLOOKUP($B$1,'Room Inputs'!$D$3:$X$137,B82,0) -> 0 | C37: =HLOOKUP($B$1,'Room Inputs'!$D$3:$X$137,C82,0) -> 0 | D37: =HLOOKUP($B$1,'Room Inputs'!$D$3:$X$137,D82,0) -> 0 | E37: 0 | F37: =IF(B37<>"",IF(VLOOKUP(B37,B$14:I$25,6,FALSE)=UvalueWD!$C$6,VLOOKUP(B37,B$14:I$25,7,FALSE),VLOOKUP(B37,B$14:I$25,8,FALSE)),"") ->  | G37: =HLOOKUP($B$1,'Room Inputs'!$D$3:$X$137,G82,0) -> 0 | H37: =HLOOKUP($B$1,'Room Inputs'!$D$3:$X$137,H82,0) -> 0 | I37: =IF(OR(G37=UvalueWD!C$6,G37=""),"",VLOOKUP(G37,Windows,2,FALSE)) ->  | K37: =IF(G37=UvaluesWRF!A$2,IF(ISERROR(F37*J37*(H37-F37)),"",F37*J37*(H37-F37)),IF(ISERROR(F37*J37*(F37-I37)),"",(I37-F37)*J37*I37)) -> 
B38: =HLOOKUP($B$1,'Room Inputs'!$D$3:$X$137,B83,0) -> 0 | C38: =HLOOKUP($B$1,'Room Inputs'!$D$3:$X$137,C83,0) -> 0 | D38: =HLOOKUP($B$1,'Room Inputs'!$D$3:$X$137,D83,0) -> 0 | E38: 0 | F38: =IF(B38<>"",IF(VLOOKUP(B38,B$14:I$25,6,FALSE)=UvalueWD!$C$6,VLOOKUP(B38,B$14:I$25,7,FALSE),VLOOKUP(B38,B$14:I$25,8,FALSE)),"") ->  | G38: =HLOOKUP($B$1,'Room Inputs'!$D$3:$X$137,G83,0) -> 0 | H38: =HLOOKUP($B$1,'Room Inputs'!$D$3:$X$137,H83,0) -> 0 | I38: =IF(OR(G38=UvalueWD!C$6,G38=""),"",VLOOKUP(G38,Windows,2,FALSE)) ->  | K38: =IF(G38=UvaluesWRF!A$2,IF(ISERROR(F38*J38*(H38-F38)),"",F38*J38*(H38-F38)),IF(ISERROR(F38*J38*(F38-I38)),"",(I38-F38)*J38*I38)) -> 
B39: =HLOOKUP($B$1,'Room Inputs'!$D$3:$X$137,B84,0) -> 0 | C39: =HLOOKUP($B$1,'Room Inputs'!$D$3:$X$137,C84,0) -> 0 | D39: =HLOOKUP($B$1,'Room Inputs'!$D$3:$X$137,D84,0) -> 0 | E39: 0 | F39: =IF(B39<>"",IF(VLOOKUP(B39,B$14:I$25,6,FALSE)=UvalueWD!$C$6,VLOOKUP(B39,B$14:I$25,7,FALSE),VLOOKUP(B39,B$14:I$25,8,FALSE)),"") ->  | G39: =HLOOKUP($B$1,'Room Inputs'!$D$3:$X$137,G84,0) -> 0 | H39: =HLOOKUP($B$1,'Room Inputs'!$D$3:$X$137,H84,0) -> 0 | I39: =IF(OR(G39=UvalueWD!C$6,G39=""),"",VLOOKUP(G39,Windows,2,FALSE)) ->  | K39: =IF(G39=UvaluesWRF!A$2,IF(ISERROR(F39*J39*(H39-F39)),"",F39*J39*(H39-F39)),IF(ISERROR(F39*J39*(F39-I39)),"",(I39-F39)*J39*I39)) -> 
B41: * this is net heat loss (i.e. the heat loss of the window minus that of a wall of the same area) and so can be negative. This is done so that the area of the window or door does not have to be subtracted from the wall area.
I42: Room heat loss (W) | K42: =SUM(K10:K39) -> 997.92
B46: Row number lookup map
B48: Room name | C48: 2 | E48: Emitter type | F48: 3 | G48: For convectors consult the manufacturer's data and enter the temperature factor (FTEMP) for the appropriate fan speed | H48: 4 | I48: For radiators enter the n-coefficient (exponent) from manufacturer's data. If unknown 1.3 may be used | K48: 5
B50: Enter floor type and construction | C50: 6 | E50: Enter floor type and construction | F50: 7 | G50: For UFH enter Tog value (See Table 14) | H50: 8 | I50: For UFH enter active or exposed area of the heated floor | K50: 9
B52: Enter Room type below | E52: Enter Open fire/chimney details below
B53: 10 | E53: 11
B54: Room Dimensions
B55: Length (m) | D55: Width (m) | F55: Height (m)
B56: 13 | D56: 14 | F56: 15
B57: Walls, floors not ground floors and ceiling
B58: Name of wall, floor, ceiling | C58: Space on other side | D58: Height or length (m) | E58: Width (m) | G58: Construction | H58: Entered U- value (W/m²K), if required
B59: 16 | C59: 17 | D59: 18 | E59: 19 | G59: 20 | H59: 21
B60: 22 | C60: 23 | D60: 24 | E60: 25 | G60: 26 | H60: 27
B61: 28 | C61: 29 | D61: 30 | E61: 31 | G61: 32 | H61: 33
B62: 35 | C62: 36 | D62: 37 | E62: 38 | G62: 39 | H62: 40
B63: 41 | C63: 42 | D63: 43 | E63: 44 | G63: 45 | H63: 46
B64: 47 | C64: 48 | D64: 49 | E64: 50 | G64: 51 | H64: 52
B65: 53 | C65: 54 | D65: 55 | E65: 56 | G65: 57 | H65: 58
B66: 59 | C66: 60 | D66: 61 | E66: 62 | G66: 63 | H66: 64
B67: 65 | C67: 66 | D67: 67 | E67: 68 | G67: 69 | H67: 70
B68: 71 | C68: 72 | D68: 73 | E68: 74 | G68: 75 | H68: 76
B69: 77 | C69: 78 | D69: 79 | E69: 80 | G69: 81 | H69: 82
B70: 83 | C70: 84 | D70: 85 | E70: 86 | G70: 87 | H70: 88
B71: Ground floors Short length (m) | C71: long length (m) | D71: Edges exposed | G71: Type and Insulation thickness
B72: 89 | C72: 90 | D72: 91 | E72: 92 | G72: 92 | H72: 93
B73: 95 | C73: 96 | D73: 97 | G73: 98 | H73: 99
B74: 100 | C74: 101 | D74: 102 | G74: 103 | H74: 104
B77: Windows and doors
B78: Wall or roof with window or door | C78: Window or door height (m) | D78: Window or door width (m) | E78: Area (m²) | F78: Wall/roof U-value (W/m²K) | G78: Frame and glazing type | H78: Entered U- value (W/m²K), if required
B79: 105 | C79: 106 | D79: 107 | G79: 108 | H79: 109
B80: 111 | C80: 112 | D80: 113 | G80: 114 | H80: 115
B81: 116 | C81: 117 | D81: 118 | G81: 119 | H81: 120
B82: 121 | C82: 122 | D82: 123 | G82: 124 | H82: 125
B83: 126 | C83: 127 | D83: 128 | G83: 129 | H83: 130
B84: 131 | C84: 132 | D84: 133 | G84: 134 | H84: 135

Sheet 2 (hidden)
B1: ='Room Inputs'!E3 -> Room2
B3: Room name | C3: =HLOOKUP($B$1,'Room Inputs'!$D$3:$X$137,C48,0) -> Living room | E3: Emitter type | F3: =HLOOKUP($B$1,'Room Inputs'!$D$3:$X$137,F48,0) -> Convector | G3: For convectors consult the manufacturer's data and enter the temperature factor (FTEMP) for the appropriate fan speed | H3: =HLOOKUP($B$1,'Room Inputs'!$D$3:$X$137,H48,0) -> 0.85 | I3: For radiators enter the n-coefficient (exponent) from manufacturer's data. If unknown 1.3 may be used | K3: =HLOOKUP($B$1,'Room Inputs'!$D$3:$X$137,K48,0) -> 1.3
B5: Enter floor type and construction | C5: =HLOOKUP($B$1,'Room Inputs'!$D$3:$X$137,C50,0) -> 0 | E5: Enter floor type and construction | F5: =HLOOKUP($B$1,'Room Inputs'!$D$3:$X$137,F50,0) -> 0 | G5: For UFH enter Tog value (See Table 14) | H5: =HLOOKUP($B$1,'Room Inputs'!$D$3:$X$137,H50,0) -> 0.25 | I5: For UFH enter active or exposed area of the heated floor | K5: =HLOOKUP($B$1,'Room Inputs'!$D$3:$X$137,K50,0) -> 12
B7: Enter Room type below | E7: Enter Open fire/chimney details below | H7: Design room ventilation rate (air changes per hour) | K7: Design room temperature °C
B8: =HLOOKUP($B$1,'Room Inputs'!$D$3:$X$137,B53,0) -> Living room | E8: =HLOOKUP($B$1,'Room Inputs'!$D$3:$X$137,E53,0) -> No chimney or open fire | H8: =IF(E8=VTables!B20,VLOOKUP(B8,DRVT,3,FALSE),MAX(VLOOKUP(B8,DRVT,3,FALSE),VLOOKUP(E8,ARVR,2,FALSE))) -> 1.5 | K8: =VLOOKUP(B8,DRVT,2,FALSE) -> 21
B9: Room Dimensions
B10: Length (m) | D10: Width (m) | F10: Height (m) | G10: Room volume (m³) | J10: Design temperature difference | K10: Heat loss (W)
B11: =HLOOKUP($B$1,'Room Inputs'!$D$3:$X$137,B56,0) -> 3 | D11: =HLOOKUP($B$1,'Room Inputs'!$D$3:$X$137,D56,0) -> 4 | F11: =HLOOKUP($B$1,'Room Inputs'!$D$3:$X$137,F56,0) -> 2.4 | G11: =B11*D11*F11 -> 28.8 | J11: =K8-'Site Inputs'!C8 -> 24.8 | K11: =IF(G11>0,(ROUND(0.33*G11*H8*J11,2)),"") -> 353.55
B12: Walls, floors not ground floors and ceiling
B13: Name of wall, floor, ceiling | C13: Space on other side | D13: Height or length (m) | E13: Width (m) | F13: Area (m²) | G13: Construction | H13: Entered U- value (W/m²K), if required | I13: U-value (W/m²K) | J13: Design temperature difference | K13: Heat loss (W) | M13: `
B14: =HLOOKUP($B$1,'Room Inputs'!$D$3:$X$137,B59,0) -> External wall | C14: =HLOOKUP($B$1,'Room Inputs'!$D$3:$X$137,C59,0) -> Outside | D14: =HLOOKUP($B$1,'Room Inputs'!$D$3:$X$137,D59,0) -> 2.4 | E14: =HLOOKUP($B$1,'Room Inputs'!$D$3:$X$137,E59,0) -> 3 | F14: =D14*E14 -> 7.2 | G14: =HLOOKUP($B$1,'Room Inputs'!$D$3:$X$137,G59,0) -> Enter a U-value | H14: =HLOOKUP($B$1,'Room Inputs'!$D$3:$X$137,H59,0) -> 0.3 | I14: =IF(OR(G14=UvaluesWRF!A$2,ISERROR(VLOOKUP(G14,UvaluesWRF!A$3:B$110,2,FALSE))),"",VLOOKUP(G14,UvaluesWRF!A$3:B$110,2,FALSE)) ->  | J14: =IF(C14="","",$K$8-VLOOKUP(C14,DRVT,2,FALSE)) -> 24.8 | K14: =IF(G14=UvaluesWRF!A$2,IF(ISERROR(F14*J14*H14),"",F14*J14*H14),IF(ISERROR(F14*J14*I14),"",F14*J14*I14)) -> 53.568
B15: =HLOOKUP($B$1,'Room Inputs'!$D$3:$X$137,B60,0) -> External wall | C15: =HLOOKUP($B$1,'Room Inputs'!$D$3:$X$137,C60,0) -> Outside | D15: =HLOOKUP($B$1,'Room Inputs'!$D$3:$X$137,D60,0) -> 2.4 | E15: =HLOOKUP($B$1,'Room Inputs'!$D$3:$X$137,E60,0) -> 4 | F15: =D15*E15 -> 9.6 | G15: =HLOOKUP($B$1,'Room Inputs'!$D$3:$X$137,G60,0) -> Enter a U-value | H15: =HLOOKUP($B$1,'Room Inputs'!$D$3:$X$137,H60,0) -> 0.3 | I15: =IF(OR(G15=UvaluesWRF!A$2,ISERROR(VLOOKUP(G15,UvaluesWRF!A$3:B$110,2,FALSE))),"",VLOOKUP(G15,UvaluesWRF!A$3:B$110,2,FALSE)) ->  | J15: 24.8 | K15: =IF(G15=UvaluesWRF!A$2,IF(ISERROR(F15*J15*H15),"",F15*J15*H15),IF(ISERROR(F15*J15*I15),"",F15*J15*I15)) -> 71.424
B16: =HLOOKUP($B$1,'Room Inputs'!$D$3:$X$137,B61,0) -> Internal wall | C16: =HLOOKUP($B$1,'Room Inputs'!$D$3:$X$137,C61,0) -> Kitchen | D16: =HLOOKUP($B$1,'Room Inputs'!$D$3:$X$137,D61,0) -> 2.4 | E16: =HLOOKUP($B$1,'Room Inputs'!$D$3:$X$137,E61,0) -> 4 | F16: 9.6 | G16: =HLOOKUP($B$1,'Room Inputs'!$D$3:$X$137,G61,0) -> Plasterboard 12.5mm, studding 75mm, plasterboard 12.5mm | H16: =HLOOKUP($B$1,'Room Inputs'!$D$3:$X$137,H61,0) -> 0 | I16: =IF(OR(G16=UvaluesWRF!A$2,ISERROR(VLOOKUP(G16,UvaluesWRF!A$3:B$110,2,FALSE))),"",VLOOKUP(G16,UvaluesWRF!A$3:B$110,2,FALSE)) -> 1.72 | J16: 3 | K16: =IF(G16=UvaluesWRF!A$2,IF(ISERROR(F16*J16*H16),"",F16*J16*H16),IF(ISERROR(F16*J16*I16),"",F16*J16*I16)) -> 49.536
B17: =HLOOKUP($B$1,'Room Inputs'!$D$3:$X$137,B62,0) -> 0 | C17: =HLOOKUP($B$1,'Room Inputs'!$D$3:$X$137,C62,0) -> 0 | D17: =HLOOKUP($B$1,'Room Inputs'!$D$3:$X$137,D62,0) -> 0 | E17: =HLOOKUP($B$1,'Room Inputs'!$D$3:$X$137,E62,0) -> 0 | F17: 0 | G17: =HLOOKUP($B$1,'Room Inputs'!$D$3:$X$137,G62,0) -> 0 | H17: =HLOOKUP($B$1,'Room Inputs'!$D$3:$X$137,H62,0) -> 0 | I17: =IF(OR(G17=UvaluesWRF!A$2,ISERROR(VLOOKUP(G17,UvaluesWRF!A$3:B$110,2,FALSE))),"",VLOOKUP(G17,UvaluesWRF!A$3:B$110,2,FALSE)) ->  | K17: =IF(G17=UvaluesWRF!A$2,IF(ISERROR(F17*J17*H17),"",F17*J17*H17),IF(ISERROR(F17*J17*I17),"",F17*J17*I17)) -> 
B18: =HLOOKUP($B$1,'Room Inputs'!$D$3:$X$137,B63,0) -> 0 | C18: =HLOOKUP($B$1,'Room Inputs'!$D$3:$X$137,C63,0) -> 0 | D18: =HLOOKUP($B$1,'Room Inputs'!$D$3:$X$137,D63,0) -> 0 | E18: =HLOOKUP($B$1,'Room Inputs'!$D$3:$X$137,E63,0) -> 0 | F18: 0 | G18: =HLOOKUP($B$1,'Room Inputs'!$D$3:$X$137,G63,0) -> 0 | H18: =HLOOKUP($B$1,'Room Inputs'!$D$3:$X$137,H63,0) -> 0 | I18: =IF(OR(G18=UvaluesWRF!A$2,ISERROR(VLOOKUP(G18,UvaluesWRF!A$3:B$110,2,FALSE))),"",VLOOKUP(G18,UvaluesWRF!A$3:B$110,2,FALSE)) ->  | K18: =IF(G18=UvaluesWRF!A$2,IF(ISERROR(F18*J18*H18),"",F18*J18*H18),IF(ISERROR(F18*J18*I18),"",F18*J18*I18)) -> 
B19: =HLOOKUP($B$1,'Room Inputs'!$D$3:$X$137,B64,0) -> 0 | C19: =HLOOKUP($B$1,'Room Inputs'!$D$3:$X$137,C64,0) -> 0 | D19: =HLOOKUP($B$1,'Room Inputs'!$D$3:$X$137,D64,0) -> 0 | E19: =HLOOKUP($B$1,'Room Inputs'!$D$3:$X$137,E64,0) -> 0 | F19: 0 | G19: =HLOOKUP($B$1,'Room Inputs'!$D$3:$X$137,G64,0) -> 0 | H19: =HLOOKUP($B$1,'Room Inputs'!$D$3:$X$137,H64,0) -> 0 | I19: =IF(OR(G19=UvaluesWRF!A$2,ISERROR(VLOOKUP(G19,UvaluesWRF!A$3:B$110,2,FALSE))),"",VLOOKUP(G19,UvaluesWRF!A$3:B$110,2,FALSE)) ->  | K19: =IF(G19=UvaluesWRF!A$2,IF(ISERROR(F19*J19*H19),"",F19*J19*H19),IF(ISERROR(F19*J19*I19),"",F19*J19*I19)) -> 
B20: =HLOOKUP($B$1,'Room Inputs'!$D$3:$X$137,B65,0) -> 0 | C20: =HLOOKUP($B$1,'Room Inputs'!$D$3:$X$137,C65,0) -> 0 | D20: =HLOOKUP($B$1,'Room Inputs'!$D$3:$X$137,D65,0) -> 0 | E20: =HLOOKUP($B$1,'Room Inputs'!$D$3:$X$137,E65,0) -> 0 | F20: 0 | G20: =HLOOKUP($B$1,'Room Inputs'!$D$3:$X$137,G65,0) -> 0 | H20: =HLOOKUP($B$1,'Room Inputs'!$D$3:$X$137,H65,0) -> 0 | I20: =IF(OR(G20=UvaluesWRF!A$2,ISERROR(VLOOKUP(G20,UvaluesWRF!A$3:B$110,2,FALSE))),"",VLOOKUP(G20,UvaluesWRF!A$3:B$110,2,FALSE)) ->  | K20: =IF(G20=UvaluesWRF!A$2,IF(ISERROR(F20*J20*H20),"",F20*J20*H20),IF(ISERROR(F20*J20*I20),"",F20*J20*I20)) -> 
B21: =HLOOKUP($B$1,'Room Inputs'!$D$3:$X$137,B66,0) -> 0 | C21: =HLOOKUP($B$1,'Room Inputs'!$D$3:$X$137,C66,0) -> 0 | D21: =HLOOKUP($B$1,'Room Inputs'!$D$3:$X$137,D66,0) -> 0 | E21: =HLOOKUP($B$1,'Room Inputs'!$D$3:$X$137,E66,0) -> 0 | F21: 0 | G21: =HLOOKUP($B$1,'Room Inputs'!$D$3:$X$137,G66,0) -> 0 | H21: =HLOOKUP($B$1,'Room Inputs'!$D$3:$X$137,H66,0) -> 0 | I21: =IF(OR(G21=UvaluesWRF!A$2,ISERROR(VLOOKUP(G21,UvaluesWRF!A$3:B$110,2,FALSE))),"",VLOOKUP(G21,UvaluesWRF!A$3:B$110,2,FALSE)) ->  | K21: =IF(G21=UvaluesWRF!A$2,IF(ISERROR(F21*J21*H21),"",F21*J21*H21),IF(ISERROR(F21*J21*I21),"",F21*J21*I21)) -> 
B22: =HLOOKUP($B$1,'Room Inputs'!$D$3:$X$137,B67,0) -> 0 | C22: =HLOOKUP($B$1,'Room Inputs'!$D$3:$X$137,C67,0) -> 0 | D22: =HLOOKUP($B$1,'Room Inputs'!$D$3:$X$137,D67,0) -> 0 | E22: =HLOOKUP($B$1,'Room Inputs'!$D$3:$X$137,E67,0) -> 0 | F22: 0 | G22: =HLOOKUP($B$1,'Room Inputs'!$D$3:$X$137,G67,0) -> 0 | H22: =HLOOKUP($B$1,'Room Inputs'!$D$3:$X$137,H67,0) -> 0 | I22: =IF(OR(G22=UvaluesWRF!A$2,ISERROR(VLOOKUP(G22,UvaluesWRF!A$3:B$110,2,FALSE))),"",VLOOKUP(G22,UvaluesWRF!A$3:B$110,2,FALSE)) ->  | K22: =IF(G22=UvaluesWRF!A$2,IF(ISERROR(F22*J22*H22),"",F22*J22*H22),IF(ISERROR(F22*J22*I22),"",F22*J22*I22)) -> 
B23: =HLOOKUP($B$1,'Room Inputs'!$D$3:$X$137,B68,0) -> 0 | C23: =HLOOKUP($B$1,'Room Inputs'!$D$3:$X$137,C68,0) -> 0 | D23: =HLOOKUP($B$1,'Room Inputs'!$D$3:$X$137,D68,0) -> 0 | E23: =HLOOKUP($B$1,'Room Inputs'!$D$3:$X$137,E68,0) -> 0 | F23: 0 | G23: =HLOOKUP($B$1,'Room Inputs'!$D$3:$X$137,G68,0) -> 0 | H23: =HLOOKUP($B$1,'Room Inputs'!$D$3:$X$137,H68,0) -> 0 | I23: =IF(OR(G23=UvaluesWRF!A$2,ISERROR(VLOOKUP(G23,UvaluesWRF!A$3:B$110,2,FALSE))),"",VLOOKUP(G23,UvaluesWRF!A$3:B$110,2,FALSE)) ->  | K23: =IF(G23=UvaluesWRF!A$2,IF(ISERROR(F23*J23*H23),"",F23*J23*H23),IF(ISERROR(F23*J23*I23),"",F23*J23*I23)) -> 
B24: =HLOOKUP($B$1,'Room Inputs'!$D$3:$X$137,B69,0) -> 0 | C24: =HLOOKUP($B$1,'Room Inputs'!$D$3:$X$137,C69,0) -> 0 | D24: =HLOOKUP($B$1,'Room Inputs'!$D$3:$X$137,D69,0) -> 0 | E24: =HLOOKUP($B$1,'Room Inputs'!$D$3:$X$137,E69,0) -> 0 | F24: 0 | G24: =HLOOKUP($B$1,'Room Inputs'!$D$3:$X$137,G69,0) -> 0 | H24: =HLOOKUP($B$1,'Room Inputs'!$D$3:$X$137,H69,0) -> 0 | I24: =IF(OR(G24=UvaluesWRF!A$2,ISERROR(VLOOKUP(G24,UvaluesWRF!A$3:B$110,2,FALSE))),"",VLOOKUP(G24,UvaluesWRF!A$3:B$110,2,FALSE)) ->  | K24: =IF(G24=UvaluesWRF!A$2,IF(ISERROR(F24*J24*H24),"",F24*J24*H24),IF(ISERROR(F24*J24*I24),"",F24*J24*I24)) -> 
B25: =HLOOKUP($B$1,'Room Inputs'!$D$3:$X$137,B70,0) -> 0 | C25: =HLOOKUP($B$1,'Room Inputs'!$D$3:$X$137,C70,0) -> 0 | D25: =HLOOKUP($B$1,'Room Inputs'!$D$3:$X$137,D70,0) -> 0 | E25: =HLOOKUP($B$1,'Room Inputs'!$D$3:$X$137,E70,0) -> 0 | F25: 0 | G25: =HLOOKUP($B$1,'Room Inputs'!$D$3:$X$137,G70,0) -> 0 | H25: =HLOOKUP($B$1,'Room Inputs'!$D$3:$X$137,H70,0) -> 0 | I25: =IF(OR(G25=UvaluesWRF!A$2,ISERROR(VLOOKUP(G25,UvaluesWRF!A$3:B$110,2,FALSE))),"",VLOOKUP(G25,UvaluesWRF!A$3:B$110,2,FALSE)) ->  | K25: =IF(G25=UvaluesWRF!A$2,IF(ISERROR(F25*J25*H25),"",F25*J25*H25),IF(ISERROR(F25*J25*I25),"",F25*J25*I25)) -> 
B26: Ground floors Short length (m) | C26: long length (m) | D26: Edges exposed | G26: Type and Insulation thickness | M26: U-value | N26: Edge | O26: Insulation | P26: Column | R26: 1 | S26: 2 | T26: 3 | U26: 4 | V26: 5.3 | W26: 5.4 | X26: 5.5 | Y26: 5.6 | Z26: 6.3 | AA26: 6.4 | AB26: 6.5 | AC26: 6.6
B27: =HLOOKUP($B$1,'Room Inputs'!$D$3:$X$137,B72,0) -> 3 | C27: =HLOOKUP($B$1,'Room Inputs'!$D$3:$X$137,C72,0) -> 4 | D27: =HLOOKUP($B$1,'Room Inputs'!$D$3:$X$137,D72,0) -> Two adjacent edges | E27: =HLOOKUP($B$1,'Room Inputs'!$D$3:$X$137,E72,0) -> Solid floor - Enter a U-value | F27: =B27*C27 -> 12 | G27: =HLOOKUP($B$1,'Room Inputs'!$D$3:$X$137,G72,0) -> Solid floor - Enter a U-value | H27: =HLOOKUP($B$1,'Room Inputs'!$D$3:$X$137,H72,0) -> 0.15 | I27: =IF(OR(G27=UvaluesFlr!$U$3,G27=UvaluesFlr!$U$4,ISERROR(M27)),"",M27) ->  | J27: =$K$8-IF(LEFT(G27,2)="So",10,'Site Inputs'!$C$8) -> 11 | K27: =IF(OR(G27=UvaluesFlr!$U$3,G27=UvaluesFlr!$U$4),IF(ISERROR(F27*J27*H27),"",F27*J27*H27),IF(ISERROR(F27*J27*I27),"",F27*J27*I27)) -> 19.8 | M27: =HLOOKUP(N27+MIN(0.6,IF(N27>4,O27/10,0)),$R$26:$AC$29,2,TRUE) ->  | N27: =VLOOKUP(D27,UvaluesFlr!$U$17:$V$22,2,FALSE) -> 3 | O27: =VLOOKUP(G27,UvaluesFlr!$U$3:$W$14,2,FALSE) -> 0 | P27: =VLOOKUP(G27,UvaluesFlr!$U$3:$W$14,3,FALSE) -> 0 | R27: =VLOOKUP(C27,UvaluesFlr!$C$53:$P$59,$P27,TRUE) ->  | S27: =VLOOKUP(B27,UvaluesFlr!$C$53:$P$59,$P27,TRUE) ->  | T27: =VLOOKUP(B27+C27,UvaluesFlr!$C$4:$P$12,$P27,TRUE) ->  | U27: =VLOOKUP(B27,UvaluesFlr!$C$16:$P$21,$P27,TRUE) ->  | V27: =VLOOKUP($C27,UvaluesFlr!$D$26:$P$29,$P27-1,TRUE) ->  | W27: =VLOOKUP($C27,UvaluesFlr!$D$30:$P$31,$P27-1,TRUE) ->  | X27: =VLOOKUP($C27,UvaluesFlr!$D$32:$P$33,$P27-1,TRUE) ->  | Y27: =VLOOKUP($C27,UvaluesFlr!$D$34:$P$35,$P27-1,TRUE) ->  | Z27: =VLOOKUP($C27,UvaluesFlr!$D$39:$P$42,$P27-1,TRUE) ->  | AA27: =VLOOKUP($C27,UvaluesFlr!$D$43:$P$45,$P27-1,TRUE) ->  | AB27: =VLOOKUP($C27,UvaluesFlr!$D$46:$P$48,$P27-1,TRUE) ->  | AC27: =VLOOKUP($C27,UvaluesFlr!$D$49:$P$50,$P27-1,TRUE) -> 
B28: =HLOOKUP($B$1,'Room Inputs'!$D$3:$X$137,B73,0) -> 0 | C28: =HLOOKUP($B$1,'Room Inputs'!$D$3:$X$137,C73,0) -> 0 | D28: =HLOOKUP($B$1,'Room Inputs'!$D$3:$X$137,D73,0) -> 0 | E28: =HLOOKUP($B$1,'Room Inputs'!$D$3:$X$137,E73,0) ->  | F28: =B28*C28 -> 0 | G28: =HLOOKUP($B$1,'Room Inputs'!$D$3:$X$137,G73,0) -> 0 | H28: =HLOOKUP($B$1,'Room Inputs'!$D$3:$X$137,H73,0) -> 0 | I28: =IF(OR(G28=UvaluesFlr!$U$3,G28=UvaluesFlr!$U$4,ISERROR(M28)),"",M28) ->  | J28: =$K$8-IF(LEFT(G28,2)="So",10,'Site Inputs'!$C$8) -> 24.8 | K28: =IF(OR(G28=UvaluesFlr!$U$3,G28=UvaluesFlr!$U$4),IF(ISERROR(F28*J28*H28),"",F28*J28*H28),IF(ISERROR(F28*J28*I28),"",F28*J28*I28)) ->  | M28: =HLOOKUP(N28+MIN(0.6,IF(N28>4,O28/10,0)),$R$26:$AC$29,3,TRUE) ->  | N28: =VLOOKUP(D28,UvaluesFlr!$U$17:$V$22,2,FALSE) ->  | O28: =VLOOKUP(G28,UvaluesFlr!$U$3:$W$14,2,FALSE) ->  | P28: =VLOOKUP(G28,UvaluesFlr!$U$3:$W$14,3,FALSE) ->  | R28: =VLOOKUP(C28,UvaluesFlr!$C$53:$P$59,$P28,TRUE) ->  | S28: =VLOOKUP(B28,UvaluesFlr!$C$53:$P$59,$P28,TRUE) ->  | T28: =VLOOKUP(B28+C28,UvaluesFlr!$C$4:$P$12,$P28,TRUE) ->  | U28: =VLOOKUP(B28,UvaluesFlr!$C$16:$P$21,$P28,TRUE) ->  | V28: =VLOOKUP($C28,UvaluesFlr!$D$26:$P$29,$P28-1,TRUE) ->  | W28: =VLOOKUP($C28,UvaluesFlr!$D$30:$P$31,$P28-1,TRUE) ->  | X28: =VLOOKUP($C28,UvaluesFlr!$D$32:$P$33,$P28-1,TRUE) ->  | Y28: =VLOOKUP($C28,UvaluesFlr!$D$34:$P$35,$P28-1,TRUE) ->  | Z28: =VLOOKUP($C28,UvaluesFlr!$D$39:$P$42,$P28-1,TRUE) ->  | AA28: =VLOOKUP($C28,UvaluesFlr!$D$43:$P$45,$P28-1,TRUE) ->  | AB28: =VLOOKUP($C28,UvaluesFlr!$D$46:$P$48,$P28-1,TRUE) ->  | AC28: =VLOOKUP($C28,UvaluesFlr!$D$49:$P$50,$P28-1,TRUE) -> 
B29: =HLOOKUP($B$1,'Room Inputs'!$D$3:$X$137,B74,0) -> 0 | C29: =HLOOKUP($B$1,'Room Inputs'!$D$3:$X$137,C74,0) -> 0 | D29: =HLOOKUP($B$1,'Room Inputs'!$D$3:$X$137,D74,0) -> 0 | E29: =HLOOKUP($B$1,'Room Inputs'!$D$3:$X$137,E74,0) ->  | F29: =B29*C29 -> 0 | G29: =HLOOKUP($B$1,'Room Inputs'!$D$3:$X$137,G74,0) -> 0 | H29: =HLOOKUP($B$1,'Room Inputs'!$D$3:$X$137,H74,0) -> 0 | I29: =IF(OR(G29=UvaluesFlr!$U$3,G29=UvaluesFlr!$U$4,ISERROR(M29)),"",M29) ->  | J29: =$K$8-IF(LEFT(G29,2)="So",10,'Site Inputs'!$C$8) -> 24.8 | K29: =IF(OR(G29=UvaluesFlr!$U$3,G29=UvaluesFlr!$U$4),IF(ISERROR(F29*J29*H29),"",F29*J29*H29),IF(ISERROR(F29*J29*I29),"",F29*J29*I29)) ->  | M29: =HLOOKUP(N29+MIN(0.6,IF(N29>4,O29/10,0)),$R$26:$AC$29,4,TRUE) ->  | N29: =VLOOKUP(D29,UvaluesFlr!$U$17:$V$22,2,FALSE) ->  | O29: =VLOOKUP(G29,UvaluesFlr!$U$3:$W$14,2,FALSE) ->  | P29: =VLOOKUP(G29,UvaluesFlr!$U$3:$W$14,3,FALSE) ->  | R29: =VLOOKUP(C29,UvaluesFlr!$C$53:$P$59,$P29,TRUE) ->  | S29: =VLOOKUP(B29,UvaluesFlr!$C$53:$P$59,$P29,TRUE) ->  | T29: =VLOOKUP(B29+C29,UvaluesFlr!$C$4:$P$12,$P29,TRUE) ->  | U29: =VLOOKUP(B29,UvaluesFlr!$C$16:$P$21,$P29,TRUE) ->  | V29: =VLOOKUP($C29,UvaluesFlr!$D$26:$P$29,$P29-1,TRUE) ->  | W29: =VLOOKUP($C29,UvaluesFlr!$D$30:$P$31,$P29-1,TRUE) ->  | X29: =VLOOKUP($C29,UvaluesFlr!$D$32:$P$33,$P29-1,TRUE) ->  | Y29: =VLOOKUP($C29,UvaluesFlr!$D$34:$P$35,$P29-1,TRUE) ->  | Z29: =VLOOKUP($C29,UvaluesFlr!$D$39:$P$42,$P29-1,TRUE) ->  | AA29: =VLOOKUP($C29,UvaluesFlr!$D$43:$P$45,$P29-1,TRUE) ->  | AB29: =VLOOKUP($C29,UvaluesFlr!$D$46:$P$48,$P29-1,TRUE) ->  | AC29: =VLOOKUP($C29,UvaluesFlr!$D$49:$P$50,$P29-1,TRUE) -> 
B32: Windows and doors
B33: Wall or roof with window or door | C33: Window or door height (m) | D33: Window or door width (m) | E33: Area (m²) | F33: Wall/roof U-value (W/m²K) | G33: Frame and glazing type | H33: Entered U- value (W/m²K), if required | I33: U-value | J33: Design temperature difference | K33: Heat loss (W)*
B34: =HLOOKUP($B$1,'Room Inputs'!$D$3:$X$137,B79,0) -> External | C34: =HLOOKUP($B$1,'Room Inputs'!$D$3:$X$137,C79,0) -> 0.9 | D34: =HLOOKUP($B$1,'Room Inputs'!$D$3:$X$137,D79,0) -> 1.2 | E34: =C34*D34 -> 1.08 | F34: =IF(B34<>"",IF(VLOOKUP(B34,B$14:I$25,6,FALSE)=UvalueWD!$C$6,VLOOKUP(B34,B$14:I$25,7,FALSE),VLOOKUP(B34,B$14:I$25,8,FALSE)),"") ->  | G34: =HLOOKUP($B$1,'Room Inputs'!$D$3:$X$137,G79,0) -> Wood/PVC Double, low-E glass, argon filled | H34: =HLOOKUP($B$1,'Room Inputs'!$D$3:$X$137,H79,0) -> 0 | I34: =IF(OR(G34=UvalueWD!C$6,G34=""),"",VLOOKUP(G34,Windows,2,FALSE)) -> 2.1 | J34: =IF(ISERROR(VLOOKUP(B34,B$13:K$29,9,FALSE)),"",VLOOKUP(B34,B$13:K$29,9,FALSE)) ->  | K34: =IF(G34=UvaluesWRF!A$2,IF(ISERROR(F34*J34*(H34-F34)),"",F34*J34*(H34-F34)),IF(ISERROR(F34*J34*(F34-I34)),"",(I34-F34)*J34*I34)) -> 
B35: =HLOOKUP($B$1,'Room Inputs'!$D$3:$X$137,B80,0) -> 0 | C35: =HLOOKUP($B$1,'Room Inputs'!$D$3:$X$137,C80,0) -> 0 | D35: =HLOOKUP($B$1,'Room Inputs'!$D$3:$X$137,D80,0) -> 0 | E35: 0 | F35: =IF(B35<>"",IF(VLOOKUP(B35,B$14:I$25,6,FALSE)=UvalueWD!$C$6,VLOOKUP(B35,B$14:I$25,7,FALSE),VLOOKUP(B35,B$14:I$25,8,FALSE)),"") ->  | G35: =HLOOKUP($B$1,'Room Inputs'!$D$3:$X$137,G80,0) -> 0 | H35: =HLOOKUP($B$1,'Room Inputs'!$D$3:$X$137,H80,0) -> 0 | I35: =IF(OR(G35=UvalueWD!C$6,G35=""),"",VLOOKUP(G35,Windows,2,FALSE)) ->  | K35: =IF(G35=UvaluesWRF!A$2,IF(ISERROR(F35*J35*(H35-F35)),"",F35*J35*(H35-F35)),IF(ISERROR(F35*J35*(F35-I35)),"",(I35-F35)*J35*I35)) -> 
B36: =HLOOKUP($B$1,'Room Inputs'!$D$3:$X$137,B81,0) -> 0 | C36: =HLOOKUP($B$1,'Room Inputs'!$D$3:$X$137,C81,0) -> 0 | D36: =HLOOKUP($B$1,'Room Inputs'!$D$3:$X$137,D81,0) -> 0 | E36: 0 | F36: =IF(B36<>"",IF(VLOOKUP(B36,B$14:I$25,6,FALSE)=UvalueWD!$C$6,VLOOKUP(B36,B$14:I$25,7,FALSE),VLOOKUP(B36,B$14:I$25,8,FALSE)),"") ->  | G36: =HLOOKUP($B$1,'Room Inputs'!$D$3:$X$137,G81,0) -> 0 | H36: =HLOOKUP($B$1,'Room Inputs'!$D$3:$X$137,H81,0) -> 0 | I36: =IF(OR(G36=UvalueWD!C$6,G36=""),"",VLOOKUP(G36,Windows,2,FALSE)) ->  | K36: =IF(G36=UvaluesWRF!A$2,IF(ISERROR(F36*J36*(H36-F36)),"",F36*J36*(H36-F36)),IF(ISERROR(F36*J36*(F36-I36)),"",(I36-F36)*J36*I36)) -> 
B37: =HLOOKUP($B$1,'Room Inputs'!$D$3:$X$137,B82,0) -> 0 | C37: =HLOOKUP($B$1,'Room Inputs'!$D$3:$X$137,C82,0) -> 0 | D37: =HLOOKUP($B$1,'Room Inputs'!$D$3:$X$137,D82,0) -> 0 | E37: 0 | F37: =IF(B37<>"",IF(VLOOKUP(B37,B$14:I$25,6,FALSE)=UvalueWD!$C$6,VLOOKUP(B37,B$14:I$25,7,FALSE),VLOOKUP(B37,B$14:I$25,8,FALSE)),"") ->  | G37: =HLOOKUP($B$1,'Room Inputs'!$D$3:$X$137,G82,0) -> 0 | H37: =HLOOKUP($B$1,'Room Inputs'!$D$3:$X$137,H82,0) -> 0 | I37: =IF(OR(G37=UvalueWD!C$6,G37=""),"",VLOOKUP(G37,Windows,2,FALSE)) ->  | K37: =IF(G37=UvaluesWRF!A$2,IF(ISERROR(F37*J37*(H37-F37)),"",F37*J37*(H37-F37)),IF(ISERROR(F37*J37*(F37-I37)),"",(I37-F37)*J37*I37)) -> 
B38: =HLOOKUP($B$1,'Room Inputs'!$D$3:$X$137,B83,0) -> 0 | C38: =HLOOKUP($B$1,'Room Inputs'!$D$3:$X$137,C83,0) -> 0 | D38: =HLOOKUP($B$1,'Room Inputs'!$D$3:$X$137,D83,0) -> 0 | E38: 0 | F38: =IF(B38<>"",IF(VLOOKUP(B38,B$14:I$25,6,FALSE)=UvalueWD!$C$6,VLOOKUP(B38,B$14:I$25,7,FALSE),VLOOKUP(B38,B$14:I$25,8,FALSE)),"") ->  | G38: =HLOOKUP($B$1,'Room Inputs'!$D$3:$X$137,G83,0) -> 0 | H38: =HLOOKUP($B$1,'Room Inputs'!$D$3:$X$137,H83,0) -> 0 | I38: =IF(OR(G38=UvalueWD!C$6,G38=""),"",VLOOKUP(G38,Windows,2,FALSE)) ->  | K38: =IF(G38=UvaluesWRF!A$2,IF(ISERROR(F38*J38*(H38-F38)),"",F38*J38*(H38-F38)),IF(ISERROR(F38*J38*(F38-I38)),"",(I38-F38)*J38*I38)) -> 
B39: =HLOOKUP($B$1,'Room Inputs'!$D$3:$X$137,B84,0) -> 0 | C39: =HLOOKUP($B$1,'Room Inputs'!$D$3:$X$137,C84,0) -> 0 | D39: =HLOOKUP($B$1,'Room Inputs'!$D$3:$X$137,D84,0) -> 0 | E39: 0 | F39: =IF(B39<>"",IF(VLOOKUP(B39,B$14:I$25,6,FALSE)=UvalueWD!$C$6,VLOOKUP(B39,B$14:I$25,7,FALSE),VLOOKUP(B39,B$14:I$25,8,FALSE)),"") ->  | G39: =HLOOKUP($B$1,'Room Inputs'!$D$3:$X$137,G84,0) -> 0 | H39: =HLOOKUP($B$1,'Room Inputs'!$D$3:$X$137,H84,0) -> 0 | I39: =IF(OR(G39=UvalueWD!C$6,G39=""),"",VLOOKUP(G39,Windows,2,FALSE)) ->  | K39: =IF(G39=UvaluesWRF!A$2,IF(ISERROR(F39*J39*(H39-F39)),"",F39*J39*(H39-F39)),IF(ISERROR(F39*J39*(F39-I39)),"",(I39-F39)*J39*I39)) -> 
B41: * this is net heat loss (i.e. the heat loss of the window minus that of a wall of the same area) and so can be negative. This is done so that the area of the window or door does not have to be subtracted from the wall area.
I42: Room heat loss (W) | K42: =SUM(K10:K39) -> 547.878
B46: Row number lookup map
B48: Room name | C48: 2 | E48: Emitter type | F48: 3 | G48: For convectors consult the manufacturer's data and enter the temperature factor (FTEMP) for the appropriate fan speed | H48: 4 | I48: For radiators enter the n-coefficient (exponent) from manufacturer's data. If unknown 1.3 may be used | K48: 5
B50: Enter floor type and construction | C50: 6 | E50: Enter floor type and construction | F50: 7 | G50: For UFH enter Tog value (See Table 14) | H50: 8 | I50: For UFH enter active or exposed area of the heated floor | K50: 9
B52: Enter Room type below | E52: Enter Open fire/chimney details below
B53: 10 | E53: 11
B54: Room Dimensions
B55: Length (m) | D55: Width (m) | F55: Height (m)
B56: 13 | D56: 14 | F56: 15
B57: Walls, floors not ground floors and ceiling
B58: Name of wall, floor, ceiling | C58: Space on other side | D58: Height or length (m) | E58: Width (m) | G58: Construction | H58: Entered U- value (W/m²K), if required
B59: 16 | C59: 17 | D59: 18 | E59: 19 | G59: 20 | H59: 21
B60: 22 | C60: 23 | D60: 24 | E60: 25 | G60: 26 | H60: 27
B61: 28 | C61: 29 | D61: 30 | E61: 31 | G61: 32 | H61: 33
B62: 35 | C62: 36 | D62: 37 | E62: 38 | G62: 39 | H62: 40
B63: 41 | C63: 42 | D63: 43 | E63: 44 | G63: 45 | H63: 46
B64: 47 | C64: 48 | D64: 49 | E64: 50 | G64: 51 | H64: 52
B65: 53 | C65: 54 | D65: 55 | E65: 56 | G65: 57 | H65: 58
B66: 59 | C66: 60 | D66: 61 | E66: 62 | G66: 63 | H66: 64
B67: 65 | C67: 66 | D67: 67 | E67: 68 | G67: 69 | H67: 70
B68: 71 | C68: 72 | D68: 73 | E68: 74 | G68: 75 | H68: 76
B69: 77 | C69: 78 | D69: 79 | E69: 80 | G69: 81 | H69: 82
B70: 83 | C70: 84 | D70: 85 | E70: 86 | G70: 87 | H70: 88
B71: Ground floors Short length (m) | C71: long length (m) | D71: Edges exposed | G71: Type and Insulation thickness
B72: 89 | C72: 90 | D72: 91 | E72: 92 | G72: 92 | H72: 93
B73: 95 | C73: 96 | D73: 97 | G73: 98 | H73: 99
B74: 100 | C74: 101 | D74: 102 | G74: 103 | H74: 104
B77: Windows and doors
B78: Wall or roof with window or door | C78: Window or door height (m) | D78: Window or door width (m) | E78: Area (m²) | F78: Wall/roof U-value (W/m²K) | G78: Frame and glazing type | H78: Entered U- value (W/m²K), if required
B79: 105 | C79: 106 | D79: 107 | G79: 108 | H79: 109
B80: 111 | C80: 112 | D80: 113 | G80: 114 | H80: 115
B81: 116 | C81: 117 | D81: 118 | G81: 119 | H81: 120
B82: 121 | C82: 122 | D82: 123 | G82: 124 | H82: 125
B83: 126 | C83: 127 | D83: 128 | G83: 129 | H83: 130
B84: 131 | C84: 132 | D84: 133 | G84: 134 | H84: 135

Sheet 3 (hidden)
B1: ='Room Inputs'!F3 -> Room3
B3: Room name | C3: =HLOOKUP($B$1,'Room Inputs'!$D$3:$X$137,C48,0) -> Bedroom 1 | E3: Emitter type | F3: =HLOOKUP($B$1,'Room Inputs'!$D$3:$X$137,F48,0) -> Radiator | G3: For convectors consult the manufacturer's data and enter the temperature factor (FTEMP) for the appropriate fan speed | H3: =HLOOKUP($B$1,'Room Inputs'!$D$3:$X$137,H48,0) -> 0.85 | I3: For radiators enter the n-coefficient (exponent) from manufacturer's data. If unknown 1.3 may be used | K3: =HLOOKUP($B$1,'Room Inputs'!$D$3:$X$137,K48,0) -> 1.3
B5: Enter floor type and construction | C5: =HLOOKUP($B$1,'Room Inputs'!$D$3:$X$137,C50,0) -> 0 | E5: Enter floor type and construction | F5: =HLOOKUP($B$1,'Room Inputs'!$D$3:$X$137,F50,0) -> 0 | G5: For UFH enter Tog value (See Table 14) | H5: =HLOOKUP($B$1,'Room Inputs'!$D$3:$X$137,H50,0) -> 0.25 | I5: For UFH enter active or exposed area of the heated floor | K5: =HLOOKUP($B$1,'Room Inputs'!$D$3:$X$137,K50,0) -> 0
B7: Enter Room type below | E7: Enter Open fire/chimney details below | H7: Design room ventilation rate (air changes per hour) | K7: Design room temperature °C
B8: =HLOOKUP($B$1,'Room Inputs'!$D$3:$X$137,B53,0) -> Bedroom | E8: =HLOOKUP($B$1,'Room Inputs'!$D$3:$X$137,E53,0) -> No chimney or open fire | H8: =IF(E8=VTables!B20,VLOOKUP(B8,DRVT,3,FALSE),MAX(VLOOKUP(B8,DRVT,3,FALSE),VLOOKUP(E8,ARVR,2,FALSE))) -> 1 | K8: =VLOOKUP(B8,DRVT,2,FALSE) -> 18
B9: Room Dimensions
B10: Length (m) | D10: Width (m) | F10: Height (m) | G10: Room volume (m³) | J10: Design temperature difference | K10: Heat loss (W)
B11: =HLOOKUP($B$1,'Room Inputs'!$D$3:$X$137,B56,0) -> 3 | D11: =HLOOKUP($B$1,'Room Inputs'!$D$3:$X$137,D56,0) -> 3 | F11: =HLOOKUP($B$1,'Room Inputs'!$D$3:$X$137,F56,0) -> 2.4 | G11: =B11*D11*F11 -> 21.6 | J11: =K8-'Site Inputs'!C8 -> 21.8 | K11: =IF(G11>0,(ROUND(0.33*G11*H8*J11,2)),"") -> 155.39
B12: Walls, floors not ground floors and ceiling
B13: Name of wall, floor, ceiling | C13: Space on other side | D13: Height or length (m) | E13: Width (m) | F13: Area (m²) | G13: Construction | H13: Entered U- value (W/m²K), if required | I13: U-value (W/m²K) | J13: Design temperature difference | K13: Heat loss (W) | M13: `
B14: =HLOOKUP($B$1,'Room Inputs'!$D$3:$X$137,B59,0) -> External wall | C14: =HLOOKUP($B$1,'Room Inputs'!$D$3:$X$137,C59,0) -> Outside | D14: =HLOOKUP($B$1,'Room Inputs'!$D$3:$X$137,D59,0) -> 2 | E14: =HLOOKUP($B$1,'Room Inputs'!$D$3:$X$137,E59,0) -> 3 | F14: =D14*E14 -> 6 | G14: =HLOOKUP($B$1,'Room Inputs'!$D$3:$X$137,G59,0) -> Enter a U-value | H14: =HLOOKUP($B$1,'Room Inputs'!$D$3:$X$137,H59,0) -> 0.3 | I14: =IF(OR(G14=UvaluesWRF!A$2,ISERROR(VLOOKUP(G14,UvaluesWRF!A$3:B$110,2,FALSE))),"",VLOOKUP(G14,UvaluesWRF!A$3:B$110,2,FALSE)) ->  | J14: =IF(C14="","",$K$8-VLOOKUP(C14,DRVT,2,FALSE)) -> 21.8 | K14: =IF(G14=UvaluesWRF!A$2,IF(ISERROR(F14*J14*H14),"",F14*J14*H14),IF(ISERROR(F14*J14*I14),"",F14*J14*I14)) -> 39.24
B15: =HLOOKUP($B$1,'Room Inputs'!$D$3:$X$137,B60,0) -> Ceiling | C15: =HLOOKUP($B$1,'Room Inputs'!$D$3:$X$137,C60,0) -> Outside | D15: =HLOOKUP($B$1,'Room Inputs'!$D$3:$X$137,D60,0) -> 3 | E15: =HLOOKUP($B$1,'Room Inputs'!$D$3:$X$137,E60,0) -> 3 | F15: =D15*E15 -> 9 | G15: =HLOOKUP($B$1,'Room Inputs'!$D$3:$X$137,G60,0) -> Enter a U-value | H15: =HLOOKUP($B$1,'Room Inputs'!$D$3:$X$137,H60,0) -> 0.2 | I15: =IF(OR(G15=UvaluesWRF!A$2,ISERROR(VLOOKUP(G15,UvaluesWRF!A$3:B$110,2,FALSE))),"",VLOOKUP(G15,UvaluesWRF!A$3:B$110,2,FALSE)) ->  | J15: 21.8 | K15: =IF(G15=UvaluesWRF!A$2,IF(ISERROR(F15*J15*H15),"",F15*J15*H15),IF(ISERROR(F15*J15*I15),"",F15*J15*I15)) -> 39.24
B16: =HLOOKUP($B$1,'Room Inputs'!$D$3:$X$137,B61,0) -> 0 | C16: =HLOOKUP($B$1,'Room Inputs'!$D$3:$X$137,C61,0) -> 0 | D16: =HLOOKUP($B$1,'Room Inputs'!$D$3:$X$137,D61,0) -> 0 | E16: =HLOOKUP($B$1,'Room Inputs'!$D$3:$X$137,E61,0) -> 0 | F16: 0 | G16: =HLOOKUP($B$1,'Room Inputs'!$D$3:$X$137,G61,0) -> 0 | H16: =HLOOKUP($B$1,'Room Inputs'!$D$3:$X$137,H61,0) -> 0 | I16: =IF(OR(G16=UvaluesWRF!A$2,ISERROR(VLOOKUP(G16,UvaluesWRF!A$3:B$110,2,FALSE))),"",VLOOKUP(G16,UvaluesWRF!A$3:B$110,2,FALSE)) ->  | K16: =IF(G16=UvaluesWRF!A$2,IF(ISERROR(F16*J16*H16),"",F16*J16*H16),IF(ISERROR(F16*J16*I16),"",F16*J16*I16)) -> 
B17: =HLOOKUP($B$1,'Room Inputs'!$D$3:$X$137,B62,0) -> 0 | C17: =HLOOKUP($B$1,'Room Inputs'!$D$3:$X$137,C62,0) -> 0 | D17: =HLOOKUP($B$1,'Room Inputs'!$D$3:$X$137,D62,0) -> 0 | E17: =HLOOKUP($B$1,'Room Inputs'!$D$3:$X$137,E62,0) -> 0 | F17: 0 | G17: =HLOOKUP($B$1,'Room Inputs'!$D$3:$X$137,G62,0) -> 0 | H17: =HLOOKUP($B$1,'Room Inputs'!$D$3:$X$137,H62,0) -> 0 | I17: =IF(OR(G17=UvaluesWRF!A$2,ISERROR(VLOOKUP(G17,UvaluesWRF!A$3:B$110,2,FALSE))),"",VLOOKUP(G17,UvaluesWRF!A$3:B$110,2,FALSE)) ->  | K17: =IF(G17=UvaluesWRF!A$2,IF(ISERROR(F17*J17*H17),"",F17*J17*H17),IF(ISERROR(F17*J17*I17),"",F17*J17*I17)) -> 
B18: =HLOOKUP($B$1,'Room Inputs'!$D$3:$X$137,B63,0) -> 0 | C18: =HLOOKUP($B$1,'Room Inputs'!$D$3:$X$137,C63,0) -> 0 | D18: =HLOOKUP($B$1,'Room Inputs'!$D$3:$X$137,D63,0) -> 0 | E18: =HLOOKUP($B$1,'Room Inputs'!$D$3:$X$137,E63,0) -> 0 | F18: 0 | G18: =HLOOKUP($B$1,'Room Inputs'!$D$3:$X$137,G63,0) -> 0 | H18: =HLOOKUP($B$1,'Room Inputs'!$D$3:$X$137,H63,0) -> 0 | I18: =IF(OR(G18=UvaluesWRF!A$2,ISERROR(VLOOKUP(G18,UvaluesWRF!A$3:B$110,2,FALSE))),"",VLOOKUP(G18,UvaluesWRF!A$3:B$110,2,FALSE)) ->  | K18: =IF(G18=UvaluesWRF!A$2,IF(ISERROR(F18*J18*H18),"",F18*J18*H18),IF(ISERROR(F18*J18*I18),"",F18*J18*I18)) -> 
B19: =HLOOKUP($B$1,'Room Inputs'!$D$3:$X$137,B64,0) -> 0 | C19: =HLOOKUP($B$1,'Room Inputs'!$D$3:$X$137,C64,0) -> 0 | D19: =HLOOKUP($B$1,'Room Inputs'!$D$3:$X$137,D64,0) -> 0 | E19: =HLOOKUP($B$1,'Room Inputs'!$D$3:$X$137,E64,0) -> 0 | F19: 0 | G19: =HLOOKUP($B$1,'Room Inputs'!$D$3:$X$137,G64,0) -> 0 | H19: =HLOOKUP($B$1,'Room Inputs'!$D$3:$X$137,H64,0) -> 0 | I19: =IF(OR(G19=UvaluesWRF!A$2,ISERROR(VLOOKUP(G19,UvaluesWRF!A$3:B$110,2,FALSE))),"",VLOOKUP(G19,UvaluesWRF!A$3:B$110,2,FALSE)) ->  | K19: =IF(G19=UvaluesWRF!A$2,IF(ISERROR(F19*J19*H19),"",F19*J19*H19),IF(ISERROR(F19*J19*I19),"",F19*J19*I19)) -> 
B20: =HLOOKUP($B$1,'Room Inputs'!$D$3:$X$137,B65,0) -> 0 | C20: =HLOOKUP($B$1,'Room Inputs'!$D$3:$X$137,C65,0) -> 0 | D20: =HLOOKUP($B$1,'Room Inputs'!$D$3:$X$137,D65,0) -> 0 | E20: =HLOOKUP($B$1,'Room Inputs'!$D$3:$X$137,E65,0) -> 0 | F20: 0 | G20: =HLOOKUP($B$1,'Room Inputs'!$D$3:$X$137,G65,0) -> 0 | H20: =HLOOKUP($B$1,'Room Inputs'!$D$3:$X$137,H65,0) -> 0 | I20: =IF(OR(G20=UvaluesWRF!A$2,ISERROR(VLOOKUP(G20,UvaluesWRF!A$3:B$110,2,FALSE))),"",VLOOKUP(G20,UvaluesWRF!A$3:B$110,2,FALSE)) ->  | K20: =IF(G20=UvaluesWRF!A$2,IF(ISERROR(F20*J20*H20),"",F20*J20*H20),IF(ISERROR(F20*J20*I20),"",F20*J20*I20)) -> 
B21: =HLOOKUP($B$1,'Room Inputs'!$D$3:$X$137,B66,0) -> 0 | C21: =HLOOKUP($B$1,'Room Inputs'!$D$3:$X$137,C66,0) -> 0 | D21: =HLOOKUP($B$1,'Room Inputs'!$D$3:$X$137,D66,0) -> 0 | E21: =HLOOKUP($B$1,'Room Inputs'!$D$3:$X$137,E66,0) -> 0 | F21: 0 | G21: =HLOOKUP($B$1,'Room Inputs'!$D$3:$X$137,G66,0) -> 0 | H21: =HLOOKUP($B$1,'Room Inputs'!$D$3:$X$137,H66,0) -> 0 | I21: =IF(OR(G21=UvaluesWRF!A$2,ISERROR(VLOOKUP(G21,UvaluesWRF!A$3:B$110,2,FALSE))),"",VLOOKUP(G21,UvaluesWRF!A$3:B$110,2,FALSE)) ->  | K21: =IF(G21=UvaluesWRF!A$2,IF(ISERROR(F21*J21*H21),"",F21*J21*H21),IF(ISERROR(F21*J21*I21),"",F21*J21*I21)) -> 
B22: =HLOOKUP($B$1,'Room Inputs'!$D$3:$X$137,B67,0) -> 0 | C22: =HLOOKUP($B$1,'Room Inputs'!$D$3:$X$137,C67,0) -> 0 | D22: =HLOOKUP($B$1,'Room Inputs'!$D$3:$X$137,D67,0) -> 0 | E22: =HLOOKUP($B$1,'Room Inputs'!$D$3:$X$137,E67,0) -> 0 | F22: 0 | G22: =HLOOKUP($B$1,'Room Inputs'!$D$3:$X$137,G67,0) -> 0 | H22: =HLOOKUP($B$1,'Room Inputs'!$D$3:$X$137,H67,0) -> 0 | I22: =IF(OR(G22=UvaluesWRF!A$2,ISERROR(VLOOKUP(G22,UvaluesWRF!A$3:B$110,2,FALSE))),"",VLOOKUP(G22,UvaluesWRF!A$3:B$110,2,FALSE)) ->  | K22: =IF(G22=UvaluesWRF!A$2,IF(ISERROR(F22*J22*H22),"",F22*J22*H22),IF(ISERROR(F22*J22*I22),"",F22*J22*I22)) -> 
B23: =HLOOKUP($B$1,'Room Inputs'!$D$3:$X$137,B68,0) -> 0 | C23: =HLOOKUP($B$1,'Room Inputs'!$D$3:$X$137,C68,0) -> 0 | D23: =HLOOKUP($B$1,'Room Inputs'!$D$3:$X$137,D68,0) -> 0 | E23: =HLOOKUP($B$1,'Room Inputs'!$D$3:$X$137,E68,0) -> 0 | F23: 0 | G23: =HLOOKUP($B$1,'Room Inputs'!$D$3:$X$137,G68,0) -> 0 | H23: =HLOOKUP($B$1,'Room Inputs'!$D$3:$X$137,H68,0) -> 0 | I23: =IF(OR(G23=UvaluesWRF!A$2,ISERROR(VLOOKUP(G23,UvaluesWRF!A$3:B$110,2,FALSE))),"",VLOOKUP(G23,UvaluesWRF!A$3:B$110,2,FALSE)) ->  | K23: =IF(G23=UvaluesWRF!A$2,IF(ISERROR(F23*J23*H23),"",F23*J23*H23),IF(ISERROR(F23*J23*I23),"",F23*J23*I23)) -> 
B24: =HLOOKUP($B$1,'Room Inputs'!$D$3:$X$137,B69,0) -> 0 | C24: =HLOOKUP($B$1,'Room Inputs'!$D$3:$X$137,C69,0) -> 0 | D24: =HLOOKUP($B$1,'Room Inputs'!$D$3:$X$137,D69,0) -> 0 | E24: =HLOOKUP($B$1,'Room Inputs'!$D$3:$X$137,E69,0) -> 0 | F24: 0 | G24: =HLOOKUP($B$1,'Room Inputs'!$D$3:$X$137,G69,0) -> 0 | H24: =HLOOKUP($B$1,'Room Inputs'!$D$3:$X$137,H69,0) -> 0 | I24: =IF(OR(G24=UvaluesWRF!A$2,ISERROR(VLOOKUP(G24,UvaluesWRF!A$3:B$110,2,FALSE))),"",VLOOKUP(G24,UvaluesWRF!A$3:B$110,2,FALSE)) ->  | K24: =IF(G24=UvaluesWRF!A$2,IF(ISERROR(F24*J24*H24),"",F24*J24*H24),IF(ISERROR(F24*J24*I24),"",F24*J24*I24)) -> 
B25: =HLOOKUP($B$1,'Room Inputs'!$D$3:$X$137,B70,0) -> 0 | C25: =HLOOKUP($B$1,'Room Inputs'!$D$3:$X$137,C70,0) -> 0 | D25: =HLOOKUP($B$1,'Room Inputs'!$D$3:$X$137,D70,0) -> 0 | E25: =HLOOKUP($B$1,'Room Inputs'!$D$3:$X$137,E70,0) -> 0 | F25: 0 | G25: =HLOOKUP($B$1,'Room Inputs'!$D$3:$X$137,G70,0) -> 0 | H25: =HLOOKUP($B$1,'Room Inputs'!$D$3:$X$137,H70,0) -> 0 | I25: =IF(OR(G25=UvaluesWRF!A$2,ISERROR(VLOOKUP(G25,UvaluesWRF!A$3:B$110,2,FALSE))),"",VLOOKUP(G25,UvaluesWRF!A$3:B$110,2,FALSE)) ->  | K25: =IF(G25=UvaluesWRF!A$2,IF(ISERROR(F25*J25*H25),"",F25*J25*H25),IF(ISERROR(F25*J25*I25),"",F25*J25*I25)) -> 
B26: Ground floors Short length (m) | C26: long length (m) | D26: Edges exposed | G26: Type and Insulation thickness | M26: U-value | N26: Edge | O26: Insulation | P26: Column | R26: 1 | S26: 2 | T26: 3 | U26: 4 | V26: 5.3 | W26: 5.4 | X26: 5.5 | Y26: 5.6 | Z26: 6.3 | AA26: 6.4 | AB26: 6.5 | AC26: 6.6
B27: =HLOOKUP($B$1,'Room Inputs'!$D$3:$X$137,B72,0) -> 0 | C27: =HLOOKUP($B$1,'Room Inputs'!$D$3:$X$137,C72,0) -> 0 | D27: =HLOOKUP($B$1,'Room Inputs'!$D$3:$X$137,D72,0) -> 0 | E27: =HLOOKUP($B$1,'Room Inputs'!$D$3:$X$137,E72,0) -> 0 | F27: =B27*C27 -> 0 | G27: =HLOOKUP($B$1,'Room Inputs'!$D$3:$X$137,G72,0) -> 0 | H27: =HLOOKUP($B$1,'Room Inputs'!$D$3:$X$137,H72,0) -> 0 | I27: =IF(OR(G27=UvaluesFlr!$U$3,G27=UvaluesFlr!$U$4,ISERROR(M27)),"",M27) ->  | J27: =$K$8-IF(LEFT(G27,2)="So",10,'Site Inputs'!$C$8) -> 21.8 | K27: =IF(OR(G27=UvaluesFlr!$U$3,G27=UvaluesFlr!$U$4),IF(ISERROR(F27*J27*H27),"",F27*J27*H27),IF(ISERROR(F27*J27*I27),"",F27*J27*I27)) ->  | M27: =HLOOKUP(N27+MIN(0.6,IF(N27>4,O27/10,0)),$R$26:$AC$29,2,TRUE) ->  | N27: =VLOOKUP(D27,UvaluesFlr!$U$17:$V$22,2,FALSE) ->  | O27: =VLOOKUP(G27,UvaluesFlr!$U$3:$W$14,2,FALSE) ->  | P27: =VLOOKUP(G27,UvaluesFlr!$U$3:$W$14,3,FALSE) ->  | R27: =VLOOKUP(C27,UvaluesFlr!$C$53:$P$59,$P27,TRUE) ->  | S27: =VLOOKUP(B27,UvaluesFlr!$C$53:$P$59,$P27,TRUE) ->  | T27: =VLOOKUP(B27+C27,UvaluesFlr!$C$4:$P$12,$P27,TRUE) ->  | U27: =VLOOKUP(B27,UvaluesFlr!$C$16:$P$21,$P27,TRUE) ->  | V27: =VLOOKUP($C27,UvaluesFlr!$D$26:$P$29,$P27-1,TRUE) ->  | W27: =VLOOKUP($C27,UvaluesFlr!$D$30:$P$31,$P27-1,TRUE) ->  | X27: =VLOOKUP($C27,UvaluesFlr!$D$32:$P$33,$P27-1,TRUE) ->  | Y27: =VLOOKUP($C27,UvaluesFlr!$D$34:$P$35,$P27-1,TRUE) ->  | Z27: =VLOOKUP($C27,UvaluesFlr!$D$39:$P$42,$P27-1,TRUE) ->  | AA27: =VLOOKUP($C27,UvaluesFlr!$D$43:$P$45,$P27-1,TRUE) ->  | AB27: =VLOOKUP($C27,UvaluesFlr!$D$46:$P$48,$P27-1,TRUE) ->  | AC27: =VLOOKUP($C27,UvaluesFlr!$D$49:$P$50,$P27-1,TRUE) -> 
B28: =HLOOKUP($B$1,'Room Inputs'!$D$3:$X$137,B73,0) -> 0 | C28: =HLOOKUP($B$1,'Room Inputs'!$D$3:$X$137,C73,0) -> 0 | D28: =HLOOKUP($B$1,'Room Inputs'!$D$3:$X$137,D73,0) -> 0 | E28: =HLOOKUP($B$1,'Room Inputs'!$D$3:$X$137,E73,0) ->  | F28: =B28*C28 -> 0 | G28: =HLOOKUP($B$1,'Room Inputs'!$D$3:$X$137,G73,0) -> 0 | H28: =HLOOKUP($B$1,'Room Inputs'!$D$3:$X$137,H73,0) -> 0 | I28: =IF(OR(G28=UvaluesFlr!$U$3,G28=UvaluesFlr!$U$4,ISERROR(M28)),"",M28) ->  | J28: =$K$8-IF(LEFT(G28,2)="So",10,'Site Inputs'!$C$8) -> 21.8 | K28: =IF(OR(G28=UvaluesFlr!$U$3,G28=UvaluesFlr!$U$4),IF(ISERROR(F28*J28*H28),"",F28*J28*H28),IF(ISERROR(F28*J28*I28),"",F28*J28*I28)) ->  | M28: =HLOOKUP(N28+MIN(0.6,IF(N28>4,O28/10,0)),$R$26:$AC$29,3,TRUE) ->  | N28: =VLOOKUP(D28,UvaluesFlr!$U$17:$V$22,2,FALSE) ->  | O28: =VLOOKUP(G28,UvaluesFlr!$U$3:$W$14,2,FALSE) ->  | P28: =VLOOKUP(G28,UvaluesFlr!$U$3:$W$14,3,FALSE) ->  | R28: =VLOOKUP(C28,UvaluesFlr!$C$53:$P$59,$P28,TRUE) ->  | S28: =VLOOKUP(B28,UvaluesFlr!$C$53:$P$59,$P28,TRUE) ->  | T28: =VLOOKUP(B28+C28,UvaluesFlr!$C$4:$P$12,$P28,TRUE) ->  | U28: =VLOOKUP(B28,UvaluesFlr!$C$16:$P$21,$P28,TRUE) ->  | V28: =VLOOKUP($C28,UvaluesFlr!$D$26:$P$29,$P28-1,TRUE) ->  | W28: =VLOOKUP($C28,UvaluesFlr!$D$30:$P$31,$P28-1,TRUE) ->  | X28: =VLOOKUP($C28,UvaluesFlr!$D$32:$P$33,$P28-1,TRUE) ->  | Y28: =VLOOKUP($C28,UvaluesFlr!$D$34:$P$35,$P28-1,TRUE) ->  | Z28: =VLOOKUP($C28,UvaluesFlr!$D$39:$P$42,$P28-1,TRUE) ->  | AA28: =VLOOKUP($C28,UvaluesFlr!$D$43:$P$45,$P28-1,TRUE) ->  | AB28: =VLOOKUP($C28,UvaluesFlr!$D$46:$P$48,$P28-1,TRUE) ->  | AC28: =VLOOKUP($C28,UvaluesFlr!$D$49:$P$50,$P28-1,TRUE) -> 
B29: =HLOOKUP($B$1,'Room Inputs'!$D$3:$X$137,B74,0) -> 0 | C29: =HLOOKUP($B$1,'Room Inputs'!$D$3:$X$137,C74,0) -> 0 | D29: =HLOOKUP($B$1,'Room Inputs'!$D$3:$X$137,D74,0) -> 0 | E29: =HLOOKUP($B$1,'Room Inputs'!$D$3:$X$137,E74,0) ->  | F29: =B29*C29 -> 0 | G29: =HLOOKUP($B$1,'Room Inputs'!$D$3:$X$137,G74,0) -> 0 | H29: =HLOOKUP($B$1,'Room Inputs'!$D$3:$X$137,H74,0) -> 0 | I29: =IF(OR(G29=UvaluesFlr!$U$3,G29=UvaluesFlr!$U$4,ISERROR(M29)),"",M29) ->  | J29: =$K$8-IF(LEFT(G29,2)="So",10,'Site Inputs'!$C$8) -> 21.8 | K29: =IF(OR(G29=UvaluesFlr!$U$3,G29=UvaluesFlr!$U$4),IF(ISERROR(F29*J29*H29),"",F29*J29*H29),IF(ISERROR(F29*J29*I29),"",F29*J29*I29)) ->  | M29: =HLOOKUP(N29+MIN(0.6,IF(N29>4,O29/10,0)),$R$26:$AC$29,4,TRUE) ->  | N29: =VLOOKUP(D29,UvaluesFlr!$U$17:$V$22,2,FALSE) ->  | O29: =VLOOKUP(G29,UvaluesFlr!$U$3:$W$14,2,FALSE) ->  | P29: =VLOOKUP(G29,UvaluesFlr!$U$3:$W$14,3,FALSE) ->  | R29: =VLOOKUP(C29,UvaluesFlr!$C$53:$P$59,$P29,TRUE) ->  | S29: =VLOOKUP(B29,UvaluesFlr!$C$53:$P$59,$P29,TRUE) ->  | T29: =VLOOKUP(B29+C29,UvaluesFlr!$C$4:$P$12,$P29,TRUE) ->  | U29: =VLOOKUP(B29,UvaluesFlr!$C$16:$P$21,$P29,TRUE) ->  | V29: =VLOOKUP($C29,UvaluesFlr!$D$26:$P$29,$P29-1,TRUE) ->  | W29: =VLOOKUP($C29,UvaluesFlr!$D$30:$P$31,$P29-1,TRUE) ->  | X29: =VLOOKUP($C29,UvaluesFlr!$D$32:$P$33,$P29-1,TRUE) ->  | Y29: =VLOOKUP($C29,UvaluesFlr!$D$34:$P$35,$P29-1,TRUE) ->  | Z29: =VLOOKUP($C29,UvaluesFlr!$D$39:$P$42,$P29-1,TRUE) ->  | AA29: =VLOOKUP($C29,UvaluesFlr!$D$43:$P$45,$P29-1,TRUE) ->  | AB29: =VLOOKUP($C29,UvaluesFlr!$D$46:$P$48,$P29-1,TRUE) ->  | AC29: =VLOOKUP($C29,UvaluesFlr!$D$49:$P$50,$P29-1,TRUE) -> 
B32: Windows and doors
B33: Wall or roof with window or door | C33: Window or door height (m) | D33: Window or door width (m) | E33: Area (m²) | F33: Wall/roof U-value (W/m²K) | G33: Frame and glazing type | H33: Entered U- value (W/m²K), if required | I33: U-value | J33: Design temperature difference | K33: Heat loss (W)*
B34: =HLOOKUP($B$1,'Room Inputs'!$D$3:$X$137,B79,0) -> External Wall | C34: =HLOOKUP($B$1,'Room Inputs'!$D$3:$X$137,C79,0) -> 0.9 | D34: =HLOOKUP($B$1,'Room Inputs'!$D$3:$X$137,D79,0) -> 1.2 | E34: =C34*D34 -> 1.08 | F34: =IF(B34<>"",IF(VLOOKUP(B34,B$14:I$25,6,FALSE)=UvalueWD!$C$6,VLOOKUP(B34,B$14:I$25,7,FALSE),VLOOKUP(B34,B$14:I$25,8,FALSE)),"") -> 0.3 | G34: =HLOOKUP($B$1,'Room Inputs'!$D$3:$X$137,G79,0) -> Wood/PVC Double, low-E glass, argon filled | H34: =HLOOKUP($B$1,'Room Inputs'!$D$3:$X$137,H79,0) -> 0 | I34: =IF(OR(G34=UvalueWD!C$6,G34=""),"",VLOOKUP(G34,Windows,2,FALSE)) -> 2.1 | J34: =IF(ISERROR(VLOOKUP(B34,B$13:K$29,9,FALSE)),"",VLOOKUP(B34,B$13:K$29,9,FALSE)) -> 21.8 | K34: =IF(G34=UvaluesWRF!A$2,IF(ISERROR(F34*J34*(H34-F34)),"",F34*J34*(H34-F34)),IF(ISERROR(F34*J34*(F34-I34)),"",(I34-F34)*J34*I34)) -> 82.404
B35: =HLOOKUP($B$1,'Room Inputs'!$D$3:$X$137,B80,0) -> 0 | C35: =HLOOKUP($B$1,'Room Inputs'!$D$3:$X$137,C80,0) -> 0 | D35: =HLOOKUP($B$1,'Room Inputs'!$D$3:$X$137,D80,0) -> 0 | E35: 0 | F35: =IF(B35<>"",IF(VLOOKUP(B35,B$14:I$25,6,FALSE)=UvalueWD!$C$6,VLOOKUP(B35,B$14:I$25,7,FALSE),VLOOKUP(B35,B$14:I$25,8,FALSE)),"") ->  | G35: =HLOOKUP($B$1,'Room Inputs'!$D$3:$X$137,G80,0) -> 0 | H35: =HLOOKUP($B$1,'Room Inputs'!$D$3:$X$137,H80,0) -> 0 | I35: =IF(OR(G35=UvalueWD!C$6,G35=""),"",VLOOKUP(G35,Windows,2,FALSE)) ->  | K35: =IF(G35=UvaluesWRF!A$2,IF(ISERROR(F35*J35*(H35-F35)),"",F35*J35*(H35-F35)),IF(ISERROR(F35*J35*(F35-I35)),"",(I35-F35)*J35*I35)) -> 
B36: =HLOOKUP($B$1,'Room Inputs'!$D$3:$X$137,B81,0) -> 0 | C36: =HLOOKUP($B$1,'Room Inputs'!$D$3:$X$137,C81,0) -> 0 | D36: =HLOOKUP($B$1,'Room Inputs'!$D$3:$X$137,D81,0) -> 0 | E36: 0 | F36: =IF(B36<>"",IF(VLOOKUP(B36,B$14:I$25,6,FALSE)=UvalueWD!$C$6,VLOOKUP(B36,B$14:I$25,7,FALSE),VLOOKUP(B36,B$14:I$25,8,FALSE)),"") ->  | G36: =HLOOKUP($B$1,'Room Inputs'!$D$3:$X$137,G81,0) -> 0 | H36: =HLOOKUP($B$1,'Room Inputs'!$D$3:$X$137,H81,0) -> 0 | I36: =IF(OR(G36=UvalueWD!C$6,G36=""),"",VLOOKUP(G36,Windows,2,FALSE)) ->  | K36: =IF(G36=UvaluesWRF!A$2,IF(ISERROR(F36*J36*(H36-F36)),"",F36*J36*(H36-F36)),IF(ISERROR(F36*J36*(F36-I36)),"",(I36-F36)*J36*I36)) -> 
B37: =HLOOKUP($B$1,'Room Inputs'!$D$3:$X$137,B82,0) -> 0 | C37: =HLOOKUP($B$1,'Room Inputs'!$D$3:$X$137,C82,0) -> 0 | D37: =HLOOKUP($B$1,'Room Inputs'!$D$3:$X$137,D82,0) -> 0 | E37: 0 | F37: =IF(B37<>"",IF(VLOOKUP(B37,B$14:I$25,6,FALSE)=UvalueWD!$C$6,VLOOKUP(B37,B$14:I$25,7,FALSE),VLOOKUP(B37,B$14:I$25,8,FALSE)),"") ->  | G37: =HLOOKUP($B$1,'Room Inputs'!$D$3:$X$137,G82,0) -> 0 | H37: =HLOOKUP($B$1,'Room Inputs'!$D$3:$X$137,H82,0) -> 0 | I37: =IF(OR(G37=UvalueWD!C$6,G37=""),"",VLOOKUP(G37,Windows,2,FALSE)) ->  | K37: =IF(G37=UvaluesWRF!A$2,IF(ISERROR(F37*J37*(H37-F37)),"",F37*J37*(H37-F37)),IF(ISERROR(F37*J37*(F37-I37)),"",(I37-F37)*J37*I37)) -> 
B38: =HLOOKUP($B$1,'Room Inputs'!$D$3:$X$137,B83,0) -> 0 | C38: =HLOOKUP($B$1,'Room Inputs'!$D$3:$X$137,C83,0) -> 0 | D38: =HLOOKUP($B$1,'Room Inputs'!$D$3:$X$137,D83,0) -> 0 | E38: 0 | F38: =IF(B38<>"",IF(VLOOKUP(B38,B$14:I$25,6,FALSE)=UvalueWD!$C$6,VLOOKUP(B38,B$14:I$25,7,FALSE),VLOOKUP(B38,B$14:I$25,8,FALSE)),"") ->  | G38: =HLOOKUP($B$1,'Room Inputs'!$D$3:$X$137,G83,0) -> 0 | H38: =HLOOKUP($B$1,'Room Inputs'!$D$3:$X$137,H83,0) -> 0 | I38: =IF(OR(G38=UvalueWD!C$6,G38=""),"",VLOOKUP(G38,Windows,2,FALSE)) ->  | K38: =IF(G38=UvaluesWRF!A$2,IF(ISERROR(F38*J38*(H38-F38)),"",F38*J38*(H38-F38)),IF(ISERROR(F38*J38*(F38-I38)),"",(I38-F38)*J38*I38)) -> 
B39: =HLOOKUP($B$1,'Room Inputs'!$D$3:$X$137,B84,0) -> 0 | C39: =HLOOKUP($B$1,'Room Inputs'!$D$3:$X$137,C84,0) -> 0 | D39: =HLOOKUP($B$1,'Room Inputs'!$D$3:$X$137,D84,0) -> 0 | E39: 0 | F39: =IF(B39<>"",IF(VLOOKUP(B39,B$14:I$25,6,FALSE)=UvalueWD!$C$6,VLOOKUP(B39,B$14:I$25,7,FALSE),VLOOKUP(B39,B$14:I$25,8,FALSE)),"") ->  | G39: =HLOOKUP($B$1,'Room Inputs'!$D$3:$X$137,G84,0) -> 0 | H39: =HLOOKUP($B$1,'Room Inputs'!$D$3:$X$137,H84,0) -> 0 | I39: =IF(OR(G39=UvalueWD!C$6,G39=""),"",VLOOKUP(G39,Windows,2,FALSE)) ->  | K39: =IF(G39=UvaluesWRF!A$2,IF(ISERROR(F39*J39*(H39-F39)),"",F39*J39*(H39-F39)),IF(ISERROR(F39*J39*(F39-I39)),"",(I39-F39)*J39*I39)) -> 
B41: * this is net heat loss (i.e. the heat loss of the window minus that of a wall of the same area) and so can be negative. This is done so that the area of the window or door does not have to be subtracted from the wall area.
I42: Room heat loss (W) | K42: =SUM(K10:K39) -> 316.274
B46: Row number lookup map
B48: Room name | C48: 2 | E48: Emitter type | F48: 3 | G48: For convectors consult the manufacturer's data and enter the temperature factor (FTEMP) for the appropriate fan speed | H48: 4 | I48: For radiators enter the n-coefficient (exponent) from manufacturer's data. If unknown 1.3 may be used | K48: 5
B50: Enter floor type and construction | C50: 6 | E50: Enter floor type and construction | F50: 7 | G50: For UFH enter Tog value (See Table 14) | H50: 8 | I50: For UFH enter active or exposed area of the heated floor | K50: 9
B52: Enter Room type below | E52: Enter Open fire/chimney details below
B53: 10 | E53: 11
B54: Room Dimensions
B55: Length (m) | D55: Width (m) | F55: Height (m)
B56: 13 | D56: 14 | F56: 15
B57: Walls, floors not ground floors and ceiling
B58: Name of wall, floor, ceiling | C58: Space on other side | D58: Height or length (m) | E58: Width (m) | G58: Construction | H58: Entered U- value (W/m²K), if required
B59: 16 | C59: 17 | D59: 18 | E59: 19 | G59: 20 | H59: 21
B60: 22 | C60: 23 | D60: 24 | E60: 25 | G60: 26 | H60: 27
B61: 28 | C61: 29 | D61: 30 | E61: 31 | G61: 32 | H61: 33
B62: 35 | C62: 36 | D62: 37 | E62: 38 | G62: 39 | H62: 40
B63: 41 | C63: 42 | D63: 43 | E63: 44 | G63: 45 | H63: 46
B64: 47 | C64: 48 | D64: 49 | E64: 50 | G64: 51 | H64: 52
B65: 53 | C65: 54 | D65: 55 | E65: 56 | G65: 57 | H65: 58
B66: 59 | C66: 60 | D66: 61 | E66: 62 | G66: 63 | H66: 64
B67: 65 | C67: 66 | D67: 67 | E67: 68 | G67: 69 | H67: 70
B68: 71 | C68: 72 | D68: 73 | E68: 74 | G68: 75 | H68: 76
B69: 77 | C69: 78 | D69: 79 | E69: 80 | G69: 81 | H69: 82
B70: 83 | C70: 84 | D70: 85 | E70: 86 | G70: 87 | H70: 88
B71: Ground floors Short length (m) | C71: long length (m) | D71: Edges exposed | G71: Type and Insulation thickness
B72: 89 | C72: 90 | D72: 91 | E72: 92 | G72: 92 | H72: 93
B73: 95 | C73: 96 | D73: 97 | G73: 98 | H73: 99
B74: 100 | C74: 101 | D74: 102 | G74: 103 | H74: 104
B77: Windows and doors
B78: Wall or roof with window or door | C78: Window or door height (m) | D78: Window or door width (m) | E78: Area (m²) | F78: Wall/roof U-value (W/m²K) | G78: Frame and glazing type | H78: Entered U- value (W/m²K), if required
B79: 105 | C79: 106 | D79: 107 | G79: 108 | H79: 109
B80: 111 | C80: 112 | D80: 113 | G80: 114 | H80: 115
B81: 116 | C81: 117 | D81: 118 | G81: 119 | H81: 120
B82: 121 | C82: 122 | D82: 123 | G82: 124 | H82: 125
B83: 126 | C83: 127 | D83: 128 | G83: 129 | H83: 130
B84: 131 | C84: 132 | D84: 133 | G84: 134 | H84: 135

Sheet 4 (hidden)
B1: ='Room Inputs'!G3 -> Room4
B3: Room name | C3: =HLOOKUP($B$1,'Room Inputs'!$D$3:$X$137,C48,0) -> 0 | E3: Emitter type | F3: =HLOOKUP($B$1,'Room Inputs'!$D$3:$X$137,F48,0) -> 0 | G3: For convectors consult the manufacturer's data and enter the temperature factor (FTEMP) for the appropriate fan speed | H3: =HLOOKUP($B$1,'Room Inputs'!$D$3:$X$137,H48,0) -> 0.85 | I3: For radiators enter the n-coefficient (exponent) from manufacturer's data. If unknown 1.3 may be used | K3: =HLOOKUP($B$1,'Room Inputs'!$D$3:$X$137,K48,0) -> 1.3
B5: Enter floor type and construction | C5: =HLOOKUP($B$1,'Room Inputs'!$D$3:$X$137,C50,0) -> 0 | E5: Enter floor type and construction | F5: =HLOOKUP($B$1,'Room Inputs'!$D$3:$X$137,F50,0) -> 0 | G5: For UFH enter Tog value (See Table 14) | H5: =HLOOKUP($B$1,'Room Inputs'!$D$3:$X$137,H50,0) -> 0.25 | I5: For UFH enter active or exposed area of the heated floor | K5: =HLOOKUP($B$1,'Room Inputs'!$D$3:$X$137,K50,0) -> 0
B7: Enter Room type below | E7: Enter Open fire/chimney details below | H7: Design room ventilation rate (air changes per hour) | K7: Design room temperature °C
B8: =HLOOKUP($B$1,'Room Inputs'!$D$3:$X$137,B53,0) -> 0 | E8: =HLOOKUP($B$1,'Room Inputs'!$D$3:$X$137,E53,0) -> 0 | H8: =IF(E8=VTables!B20,VLOOKUP(B8,DRVT,3,FALSE),MAX(VLOOKUP(B8,DRVT,3,FALSE),VLOOKUP(E8,ARVR,2,FALSE))) ->  | K8: =VLOOKUP(B8,DRVT,2,FALSE) -> 
B9: Room Dimensions
B10: Length (m) | D10: Width (m) | F10: Height (m) | G10: Room volume (m³) | J10: Design temperature difference | K10: Heat loss (W)
B11: =HLOOKUP($B$1,'Room Inputs'!$D$3:$X$137,B56,0) -> 0 | D11: =HLOOKUP($B$1,'Room Inputs'!$D$3:$X$137,D56,0) -> 0 | F11: =HLOOKUP($B$1,'Room Inputs'!$D$3:$X$137,F56,0) -> 0 | G11: =B11*D11*F11 -> 0 | J11: =K8-'Site Inputs'!C8 ->  | K11: =IF(G11>0,(ROUND(0.33*G11*H8*J11,2)),"") -> 
B12: Walls, floors not ground floors and ceiling
B13: Name of wall, floor, ceiling | C13: Space on other side | D13: Height or length (m) | E13: Width (m) | F13: Area (m²) | G13: Construction | H13: Entered U- value (W/m²K), if required | I13: U-value (W/m²K) | J13: Design temperature difference | K13: Heat loss (W) | M13: `
B14: =HLOOKUP($B$1,'Room Inputs'!$D$3:$X$137,B59,0) -> 0 | C14: =HLOOKUP($B$1,'Room Inputs'!$D$3:$X$137,C59,0) -> 0 | D14: =HLOOKUP($B$1,'Room Inputs'!$D$3:$X$137,D59,0) -> 0 | E14: =HLOOKUP($B$1,'Room Inputs'!$D$3:$X$137,E59,0) -> 0 | F14: =D14*E14 -> 0 | G14: =HLOOKUP($B$1,'Room Inputs'!$D$3:$X$137,G59,0) -> 0 | H14: =HLOOKUP($B$1,'Room Inputs'!$D$3:$X$137,H59,0) -> 0 | I14: =IF(OR(G14=UvaluesWRF!A$2,ISERROR(VLOOKUP(G14,UvaluesWRF!A$3:B$110,2,FALSE))),"",VLOOKUP(G14,UvaluesWRF!A$3:B$110,2,FALSE)) ->  | J14: =IF(C14="","",$K$8-VLOOKUP(C14,DRVT,2,FALSE)) ->  | K14: =IF(G14=UvaluesWRF!A$2,IF(ISERROR(F14*J14*H14),"",F14*J14*H14),IF(ISERROR(F14*J14*I14),"",F14*J14*I14)) -> 
B15: =HLOOKUP($B$1,'Room Inputs'!$D$3:$X$137,B60,0) -> 0 | C15: =HLOOKUP($B$1,'Room Inputs'!$D$3:$X$137,C60,0) -> 0 | D15: =HLOOKUP($B$1,'Room Inputs'!$D$3:$X$137,D60,0) -> 0 | E15: =HLOOKUP($B$1,'Room Inputs'!$D$3:$X$137,E60,0) -> 0 | F15: =D15*E15 -> 0 | G15: =HLOOKUP($B$1,'Room Inputs'!$D$3:$X$137,G60,0) -> 0 | H15: =HLOOKUP($B$1,'Room Inputs'!$D$3:$X$137,H60,0) -> 0 | I15: =IF(OR(G15=UvaluesWRF!A$2,ISERROR(VLOOKUP(G15,UvaluesWRF!A$3:B$110,2,FALSE))),"",VLOOKUP(G15,UvaluesWRF!A$3:B$110,2,FALSE)) ->  | K15: =IF(G15=UvaluesWRF!A$2,IF(ISERROR(F15*J15*H15),"",F15*J15*H15),IF(ISERROR(F15*J15*I15),"",F15*J15*I15)) -> 
B16: =HLOOKUP($B$1,'Room Inputs'!$D$3:$X$137,B61,0) -> 0 | C16: =HLOOKUP($B$1,'Room Inputs'!$D$3:$X$137,C61,0) -> 0 | D16: =HLOOKUP($B$1,'Room Inputs'!$D$3:$X$137,D61,0) -> 0 | E16: =HLOOKUP($B$1,'Room Inputs'!$D$3:$X$137,E61,0) -> 0 | F16: 0 | G16: =HLOOKUP($B$1,'Room Inputs'!$D$3:$X$137,G61,0) -> 0 | H16: =HLOOKUP($B$1,'Room Inputs'!$D$3:$X$137,H61,0) -> 0 | I16: =IF(OR(G16=UvaluesWRF!A$2,ISERROR(VLOOKUP(G16,UvaluesWRF!A$3:B$110,2,FALSE))),"",VLOOKUP(G16,UvaluesWRF!A$3:B$110,2,FALSE)) ->  | K16: =IF(G16=UvaluesWRF!A$2,IF(ISERROR(F16*J16*H16),"",F16*J16*H16),IF(ISERROR(F16*J16*I16),"",F16*J16*I16)) -> 
B17: =HLOOKUP($B$1,'Room Inputs'!$D$3:$X$137,B62,0) -> 0 | C17: =HLOOKUP($B$1,'Room Inputs'!$D$3:$X$137,C62,0) -> 0 | D17: =HLOOKUP($B$1,'Room Inputs'!$D$3:$X$137,D62,0) -> 0 | E17: =HLOOKUP($B$1,'Room Inputs'!$D$3:$X$137,E62,0) -> 0 | F17: 0 | G17: =HLOOKUP($B$1,'Room Inputs'!$D$3:$X$137,G62,0) -> 0 | H17: =HLOOKUP($B$1,'Room Inputs'!$D$3:$X$137,H62,0) -> 0 | I17: =IF(OR(G17=UvaluesWRF!A$2,ISERROR(VLOOKUP(G17,UvaluesWRF!A$3:B$110,2,FALSE))),"",VLOOKUP(G17,UvaluesWRF!A$3:B$110,2,FALSE)) ->  | K17: =IF(G17=UvaluesWRF!A$2,IF(ISERROR(F17*J17*H17),"",F17*J17*H17),IF(ISERROR(F17*J17*I17),"",F17*J17*I17)) -> 
B18: =HLOOKUP($B$1,'Room Inputs'!$D$3:$X$137,B63,0) -> 0 | C18: =HLOOKUP($B$1,'Room Inputs'!$D$3:$X$137,C63,0) -> 0 | D18: =HLOOKUP($B$1,'Room Inputs'!$D$3:$X$137,D63,0) -> 0 | E18: =HLOOKUP($B$1,'Room Inputs'!$D$3:$X$137,E63,0) -> 0 | F18: 0 | G18: =HLOOKUP($B$1,'Room Inputs'!$D$3:$X$137,G63,0) -> 0 | H18: =HLOOKUP($B$1,'Room Inputs'!$D$3:$X$137,H63,0) -> 0 | I18: =IF(OR(G18=UvaluesWRF!A$2,ISERROR(VLOOKUP(G18,UvaluesWRF!A$3:B$110,2,FALSE))),"",VLOOKUP(G18,UvaluesWRF!A$3:B$110,2,FALSE)) ->  | K18: =IF(G18=UvaluesWRF!A$2,IF(ISERROR(F18*J18*H18),"",F18*J18*H18),IF(ISERROR(F18*J18*I18),"",F18*J18*I18)) -> 
B19: =HLOOKUP($B$1,'Room Inputs'!$D$3:$X$137,B64,0) -> 0 | C19: =HLOOKUP($B$1,'Room Inputs'!$D$3:$X$137,C64,0) -> 0 | D19: =HLOOKUP($B$1,'Room Inputs'!$D$3:$X$137,D64,0) -> 0 | E19: =HLOOKUP($B$1,'Room Inputs'!$D$3:$X$137,E64,0) -> 0 | F19: 0 | G19: =HLOOKUP($B$1,'Room Inputs'!$D$3:$X$137,G64,0) -> 0 | H19: =HLOOKUP($B$1,'Room Inputs'!$D$3:$X$137,H64,0) -> 0 | I19: =IF(OR(G19=UvaluesWRF!A$2,ISERROR(VLOOKUP(G19,UvaluesWRF!A$3:B$110,2,FALSE))),"",VLOOKUP(G19,UvaluesWRF!A$3:B$110,2,FALSE)) ->  | K19: =IF(G19=UvaluesWRF!A$2,IF(ISERROR(F19*J19*H19),"",F19*J19*H19),IF(ISERROR(F19*J19*I19),"",F19*J19*I19)) -> 
B20: =HLOOKUP($B$1,'Room Inputs'!$D$3:$X$137,B65,0) -> 0 | C20: =HLOOKUP($B$1,'Room Inputs'!$D$3:$X$137,C65,0) -> 0 | D20: =HLOOKUP($B$1,'Room Inputs'!$D$3:$X$137,D65,0) -> 0 | E20: =HLOOKUP($B$1,'Room Inputs'!$D$3:$X$137,E65,0) -> 0 | F20: 0 | G20: =HLOOKUP($B$1,'Room Inputs'!$D$3:$X$137,G65,0) -> 0 | H20: =HLOOKUP($B$1,'Room Inputs'!$D$3:$X$137,H65,0) -> 0 | I20: =IF(OR(G20=UvaluesWRF!A$2,ISERROR(VLOOKUP(G20,UvaluesWRF!A$3:B$110,2,FALSE))),"",VLOOKUP(G20,UvaluesWRF!A$3:B$110,2,FALSE)) ->  | K20: =IF(G20=UvaluesWRF!A$2,IF(ISERROR(F20*J20*H20),"",F20*J20*H20),IF(ISERROR(F20*J20*I20),"",F20*J20*I20)) -> 
B21: =HLOOKUP($B$1,'Room Inputs'!$D$3:$X$137,B66,0) -> 0 | C21: =HLOOKUP($B$1,'Room Inputs'!$D$3:$X$137,C66,0) -> 0 | D21: =HLOOKUP($B$1,'Room Inputs'!$D$3:$X$137,D66,0) -> 0 | E21: =HLOOKUP($B$1,'Room Inputs'!$D$3:$X$137,E66,0) -> 0 | F21: 0 | G21: =HLOOKUP($B$1,'Room Inputs'!$D$3:$X$137,G66,0) -> 0 | H21: =HLOOKUP($B$1,'Room Inputs'!$D$3:$X$137,H66,0) -> 0 | I21: =IF(OR(G21=UvaluesWRF!A$2,ISERROR(VLOOKUP(G21,UvaluesWRF!A$3:B$110,2,FALSE))),"",VLOOKUP(G21,UvaluesWRF!A$3:B$110,2,FALSE)) ->  | K21: =IF(G21=UvaluesWRF!A$2,IF(ISERROR(F21*J21*H21),"",F21*J21*H21),IF(ISERROR(F21*J21*I21),"",F21*J21*I21)) -> 
B22: =HLOOKUP($B$1,'Room Inputs'!$D$3:$X$137,B67,0) -> 0 | C22: =HLOOKUP($B$1,'Room Inputs'!$D$3:$X$137,C67,0) -> 0 | D22: =HLOOKUP($B$1,'Room Inputs'!$D$3:$X$137,D67,0) -> 0 | E22: =HLOOKUP($B$1,'Room Inputs'!$D$3:$X$137,E67,0) -> 0 | F22: 0 | G22: =HLOOKUP($B$1,'Room Inputs'!$D$3:$X$137,G67,0) -> 0 | H22: =HLOOKUP($B$1,'Room Inputs'!$D$3:$X$137,H67,0) -> 0 | I22: =IF(OR(G22=UvaluesWRF!A$2,ISERROR(VLOOKUP(G22,UvaluesWRF!A$3:B$110,2,FALSE))),"",VLOOKUP(G22,UvaluesWRF!A$3:B$110,2,FALSE)) ->  | K22: =IF(G22=UvaluesWRF!A$2,IF(ISERROR(F22*J22*H22),"",F22*J22*H22),IF(ISERROR(F22*J22*I22),"",F22*J22*I22)) -> 
B23: =HLOOKUP($B$1,'Room Inputs'!$D$3:$X$137,B68,0) -> 0 | C23: =HLOOKUP($B$1,'Room Inputs'!$D$3:$X$137,C68,0) -> 0 | D23: =HLOOKUP($B$1,'Room Inputs'!$D$3:$X$137,D68,0) -> 0 | E23: =HLOOKUP($B$1,'Room Inputs'!$D$3:$X$137,E68,0) -> 0 | F23: 0 | G23: =HLOOKUP($B$1,'Room Inputs'!$D$3:$X$137,G68,0) -> 0 | H23: =HLOOKUP($B$1,'Room Inputs'!$D$3:$X$137,H68,0) -> 0 | I23: =IF(OR(G23=UvaluesWRF!A$2,ISERROR(VLOOKUP(G23,UvaluesWRF!A$3:B$110,2,FALSE))),"",VLOOKUP(G23,UvaluesWRF!A$3:B$110,2,FALSE)) ->  | K23: =IF(G23=UvaluesWRF!A$2,IF(ISERROR(F23*J23*H23),"",F23*J23*H23),IF(ISERROR(F23*J23*I23),"",F23*J23*I23)) -> 
B24: =HLOOKUP($B$1,'Room Inputs'!$D$3:$X$137,B69,0) -> 0 | C24: =HLOOKUP($B$1,'Room Inputs'!$D$3:$X$137,C69,0) -> 0 | D24: =HLOOKUP($B$1,'Room Inputs'!$D$3:$X$137,D69,0) -> 0 | E24: =HLOOKUP($B$1,'Room Inputs'!$D$3:$X$137,E69,0) -> 0 | F24: 0 | G24: =HLOOKUP($B$1,'Room Inputs'!$D$3:$X$137,G69,0) -> 0 | H24: =HLOOKUP($B$1,'Room Inputs'!$D$3:$X$137,H69,0) -> 0 | I24: =IF(OR(G24=UvaluesWRF!A$2,ISERROR(VLOOKUP(G24,UvaluesWRF!A$3:B$110,2,FALSE))),"",VLOOKUP(G24,UvaluesWRF!A$3:B$110,2,FALSE)) ->  | K24: =IF(G24=UvaluesWRF!A$2,IF(ISERROR(F24*J24*H24),"",F24*J24*H24),IF(ISERROR(F24*J24*I24),"",F24*J24*I24)) -> 
B25: =HLOOKUP($B$1,'Room Inputs'!$D$3:$X$137,B70,0) -> 0 | C25: =HLOOKUP($B$1,'Room Inputs'!$D$3:$X$137,C70,0) -> 0 | D25: =HLOOKUP($B$1,'Room Inputs'!$D$3:$X$137,D70,0) -> 0 | E25: =HLOOKUP($B$1,'Room Inputs'!$D$3:$X$137,E70,0) -> 0 | F25: 0 | G25: =HLOOKUP($B$1,'Room Inputs'!$D$3:$X$137,G70,0) -> 0 | H25: =HLOOKUP($B$1,'Room Inputs'!$D$3:$X$137,H70,0) -> 0 | I25: =IF(OR(G25=UvaluesWRF!A$2,ISERROR(VLOOKUP(G25,UvaluesWRF!A$3:B$110,2,FALSE))),"",VLOOKUP(G25,UvaluesWRF!A$3:B$110,2,FALSE)) ->  | K25: =IF(G25=UvaluesWRF!A$2,IF(ISERROR(F25*J25*H25),"",F25*J25*H25),IF(ISERROR(F25*J25*I25),"",F25*J25*I25)) -> 
B26: Ground floors Short length (m) | C26: long length (m) | D26: Edges exposed | G26: Type and Insulation thickness | M26: U-value | N26: Edge | O26: Insulation | P26: Column | R26: 1 | S26: 2 | T26: 3 | U26: 4 | V26: 5.3 | W26: 5.4 | X26: 5.5 | Y26: 5.6 | Z26: 6.3 | AA26: 6.4 | AB26: 6.5 | AC26: 6.6
B27: =HLOOKUP($B$1,'Room Inputs'!$D$3:$X$137,B72,0) -> 0 | C27: =HLOOKUP($B$1,'Room Inputs'!$D$3:$X$137,C72,0) -> 0 | D27: =HLOOKUP($B$1,'Room Inputs'!$D$3:$X$137,D72,0) -> 0 | E27: =HLOOKUP($B$1,'Room Inputs'!$D$3:$X$137,E72,0) -> 0 | F27: =B27*C27 -> 0 | G27: =HLOOKUP($B$1,'Room Inputs'!$D$3:$X$137,G72,0) -> 0 | H27: =HLOOKUP($B$1,'Room Inputs'!$D$3:$X$137,H72,0) -> 0 | I27: =IF(OR(G27=UvaluesFlr!$U$3,G27=UvaluesFlr!$U$4,ISERROR(M27)),"",M27) ->  | J27: =$K$8-IF(LEFT(G27,2)="So",10,'Site Inputs'!$C$8) ->  | K27: =IF(OR(G27=UvaluesFlr!$U$3,G27=UvaluesFlr!$U$4),IF(ISERROR(F27*J27*H27),"",F27*J27*H27),IF(ISERROR(F27*J27*I27),"",F27*J27*I27)) ->  | M27: =HLOOKUP(N27+MIN(0.6,IF(N27>4,O27/10,0)),$R$26:$AC$29,2,TRUE) ->  | N27: =VLOOKUP(D27,UvaluesFlr!$U$17:$V$22,2,FALSE) ->  | O27: =VLOOKUP(G27,UvaluesFlr!$U$3:$W$14,2,FALSE) ->  | P27: =VLOOKUP(G27,UvaluesFlr!$U$3:$W$14,3,FALSE) ->  | R27: =VLOOKUP(C27,UvaluesFlr!$C$53:$P$59,$P27,TRUE) ->  | S27: =VLOOKUP(B27,UvaluesFlr!$C$53:$P$59,$P27,TRUE) ->  | T27: =VLOOKUP(B27+C27,UvaluesFlr!$C$4:$P$12,$P27,TRUE) ->  | U27: =VLOOKUP(B27,UvaluesFlr!$C$16:$P$21,$P27,TRUE) ->  | V27: =VLOOKUP($C27,UvaluesFlr!$D$26:$P$29,$P27-1,TRUE) ->  | W27: =VLOOKUP($C27,UvaluesFlr!$D$30:$P$31,$P27-1,TRUE) ->  | X27: =VLOOKUP($C27,UvaluesFlr!$D$32:$P$33,$P27-1,TRUE) ->  | Y27: =VLOOKUP($C27,UvaluesFlr!$D$34:$P$35,$P27-1,TRUE) ->  | Z27: =VLOOKUP($C27,UvaluesFlr!$D$39:$P$42,$P27-1,TRUE) ->  | AA27: =VLOOKUP($C27,UvaluesFlr!$D$43:$P$45,$P27-1,TRUE) ->  | AB27: =VLOOKUP($C27,UvaluesFlr!$D$46:$P$48,$P27-1,TRUE) ->  | AC27: =VLOOKUP($C27,UvaluesFlr!$D$49:$P$50,$P27-1,TRUE) -> 
B28: =HLOOKUP($B$1,'Room Inputs'!$D$3:$X$137,B73,0) -> 0 | C28: =HLOOKUP($B$1,'Room Inputs'!$D$3:$X$137,C73,0) -> 0 | D28: =HLOOKUP($B$1,'Room Inputs'!$D$3:$X$137,D73,0) -> 0 | E28: =HLOOKUP($B$1,'Room Inputs'!$D$3:$X$137,E73,0) ->  | F28: =B28*C28 -> 0 | G28: =HLOOKUP($B$1,'Room Inputs'!$D$3:$X$137,G73,0) -> 0 | H28: =HLOOKUP($B$1,'Room Inputs'!$D$3:$X$137,H73,0) -> 0 | I28: =IF(OR(G28=UvaluesFlr!$U$3,G28=UvaluesFlr!$U$4,ISERROR(M28)),"",M28) ->  | J28: =$K$8-IF(LEFT(G28,2)="So",10,'Site Inputs'!$C$8) ->  | K28: =IF(OR(G28=UvaluesFlr!$U$3,G28=UvaluesFlr!$U$4),IF(ISERROR(F28*J28*H28),"",F28*J28*H28),IF(ISERROR(F28*J28*I28),"",F28*J28*I28)) ->  | M28: =HLOOKUP(N28+MIN(0.6,IF(N28>4,O28/10,0)),$R$26:$AC$29,3,TRUE) ->  | N28: =VLOOKUP(D28,UvaluesFlr!$U$17:$V$22,2,FALSE) ->  | O28: =VLOOKUP(G28,UvaluesFlr!$U$3:$W$14,2,FALSE) ->  | P28: =VLOOKUP(G28,UvaluesFlr!$U$3:$W$14,3,FALSE) ->  | R28: =VLOOKUP(C28,UvaluesFlr!$C$53:$P$59,$P28,TRUE) ->  | S28: =VLOOKUP(B28,UvaluesFlr!$C$53:$P$59,$P28,TRUE) ->  | T28: =VLOOKUP(B28+C28,UvaluesFlr!$C$4:$P$12,$P28,TRUE) ->  | U28: =VLOOKUP(B28,UvaluesFlr!$C$16:$P$21,$P28,TRUE) ->  | V28: =VLOOKUP($C28,UvaluesFlr!$D$26:$P$29,$P28-1,TRUE) ->  | W28: =VLOOKUP($C28,UvaluesFlr!$D$30:$P$31,$P28-1,TRUE) ->  | X28: =VLOOKUP($C28,UvaluesFlr!$D$32:$P$33,$P28-1,TRUE) ->  | Y28: =VLOOKUP($C28,UvaluesFlr!$D$34:$P$35,$P28-1,TRUE) ->  | Z28: =VLOOKUP($C28,UvaluesFlr!$D$39:$P$42,$P28-1,TRUE) ->  | AA28: =VLOOKUP($C28,UvaluesFlr!$D$43:$P$45,$P28-1,TRUE) ->  | AB28: =VLOOKUP($C28,UvaluesFlr!$D$46:$P$48,$P28-1,TRUE) ->  | AC28: =VLOOKUP($C28,UvaluesFlr!$D$49:$P$50,$P28-1,TRUE) -> 
B29: =HLOOKUP($B$1,'Room Inputs'!$D$3:$X$137,B74,0) -> 0 | C29: =HLOOKUP($B$1,'Room Inputs'!$D$3:$X$137,C74,0) -> 0 | D29: =HLOOKUP($B$1,'Room Inputs'!$D$3:$X$137,D74,0) -> 0 | E29: =HLOOKUP($B$1,'Room Inputs'!$D$3:$X$137,E74,0) ->  | F29: =B29*C29 -> 0 | G29: =HLOOKUP($B$1,'Room Inputs'!$D$3:$X$137,G74,0) -> 0 | H29: =HLOOKUP($B$1,'Room Inputs'!$D$3:$X$137,H74,0) -> 0 | I29: =IF(OR(G29=UvaluesFlr!$U$3,G29=UvaluesFlr!$U$4,ISERROR(M29)),"",M29) ->  | J29: =$K$8-IF(LEFT(G29,2)="So",10,'Site Inputs'!$C$8) ->  | K29: =IF(OR(G29=UvaluesFlr!$U$3,G29=UvaluesFlr!$U$4),IF(ISERROR(F29*J29*H29),"",F29*J29*H29),IF(ISERROR(F29*J29*I29),"",F29*J29*I29)) ->  | M29: =HLOOKUP(N29+MIN(0.6,IF(N29>4,O29/10,0)),$R$26:$AC$29,4,TRUE) ->  | N29: =VLOOKUP(D29,UvaluesFlr!$U$17:$V$22,2,FALSE) ->  | O29: =VLOOKUP(G29,UvaluesFlr!$U$3:$W$14,2,FALSE) ->  | P29: =VLOOKUP(G29,UvaluesFlr!$U$3:$W$14,3,FALSE) ->  | R29: =VLOOKUP(C29,UvaluesFlr!$C$53:$P$59,$P29,TRUE) ->  | S29: =VLOOKUP(B29,UvaluesFlr!$C$53:$P$59,$P29,TRUE) ->  | T29: =VLOOKUP(B29+C29,UvaluesFlr!$C$4:$P$12,$P29,TRUE) ->  | U29: =VLOOKUP(B29,UvaluesFlr!$C$16:$P$21,$P29,TRUE) ->  | V29: =VLOOKUP($C29,UvaluesFlr!$D$26:$P$29,$P29-1,TRUE) ->  | W29: =VLOOKUP($C29,UvaluesFlr!$D$30:$P$31,$P29-1,TRUE) ->  | X29: =VLOOKUP($C29,UvaluesFlr!$D$32:$P$33,$P29-1,TRUE) ->  | Y29: =VLOOKUP($C29,UvaluesFlr!$D$34:$P$35,$P29-1,TRUE) ->  | Z29: =VLOOKUP($C29,UvaluesFlr!$D$39:$P$42,$P29-1,TRUE) ->  | AA29: =VLOOKUP($C29,UvaluesFlr!$D$43:$P$45,$P29-1,TRUE) ->  | AB29: =VLOOKUP($C29,UvaluesFlr!$D$46:$P$48,$P29-1,TRUE) ->  | AC29: =VLOOKUP($C29,UvaluesFlr!$D$49:$P$50,$P29-1,TRUE) -> 
B32: Windows and doors
B33: Wall or roof with window or door | C33: Window or door height (m) | D33: Window or door width (m) | E33: Area (m²) | F33: Wall/roof U-value (W/m²K) | G33: Frame and glazing type | H33: Entered U- value (W/m²K), if required | I33: U-value | J33: Design temperature difference | K33: Heat loss (W)*
B34: =HLOOKUP($B$1,'Room Inputs'!$D$3:$X$137,B79,0) -> 0 | C34: =HLOOKUP($B$1,'Room Inputs'!$D$3:$X$137,C79,0) -> 0 | D34: =HLOOKUP($B$1,'Room Inputs'!$D$3:$X$137,D79,0) -> 0 | E34: =C34*D34 -> 0 | F34: =IF(B34<>"",IF(VLOOKUP(B34,B$14:I$25,6,FALSE)=UvalueWD!$C$6,VLOOKUP(B34,B$14:I$25,7,FALSE),VLOOKUP(B34,B$14:I$25,8,FALSE)),"") ->  | G34: =HLOOKUP($B$1,'Room Inputs'!$D$3:$X$137,G79,0) -> 0 | H34: =HLOOKUP($B$1,'Room Inputs'!$D$3:$X$137,H79,0) -> 0 | I34: =IF(OR(G34=UvalueWD!C$6,G34=""),"",VLOOKUP(G34,Windows,2,FALSE)) ->  | J34: =IF(ISERROR(VLOOKUP(B34,B$13:K$29,9,FALSE)),"",VLOOKUP(B34,B$13:K$29,9,FALSE)) ->  | K34: =IF(G34=UvaluesWRF!A$2,IF(ISERROR(F34*J34*(H34-F34)),"",F34*J34*(H34-F34)),IF(ISERROR(F34*J34*(F34-I34)),"",(I34-F34)*J34*I34)) -> 
B35: =HLOOKUP($B$1,'Room Inputs'!$D$3:$X$137,B80,0) -> 0 | C35: =HLOOKUP($B$1,'Room Inputs'!$D$3:$X$137,C80,0) -> 0 | D35: =HLOOKUP($B$1,'Room Inputs'!$D$3:$X$137,D80,0) -> 0 | E35: 0 | F35: =IF(B35<>"",IF(VLOOKUP(B35,B$14:I$25,6,FALSE)=UvalueWD!$C$6,VLOOKUP(B35,B$14:I$25,7,FALSE),VLOOKUP(B35,B$14:I$25,8,FALSE)),"") ->  | G35: =HLOOKUP($B$1,'Room Inputs'!$D$3:$X$137,G80,0) -> 0 | H35: =HLOOKUP($B$1,'Room Inputs'!$D$3:$X$137,H80,0) -> 0 | I35: =IF(OR(G35=UvalueWD!C$6,G35=""),"",VLOOKUP(G35,Windows,2,FALSE)) ->  | K35: =IF(G35=UvaluesWRF!A$2,IF(ISERROR(F35*J35*(H35-F35)),"",F35*J35*(H35-F35)),IF(ISERROR(F35*J35*(F35-I35)),"",(I35-F35)*J35*I35)) -> 
B36: =HLOOKUP($B$1,'Room Inputs'!$D$3:$X$137,B81,0) -> 0 | C36: =HLOOKUP($B$1,'Room Inputs'!$D$3:$X$137,C81,0) -> 0 | D36: =HLOOKUP($B$1,'Room Inputs'!$D$3:$X$137,D81,0) -> 0 | E36: 0 | F36: =IF(B36<>"",IF(VLOOKUP(B36,B$14:I$25,6,FALSE)=UvalueWD!$C$6,VLOOKUP(B36,B$14:I$25,7,FALSE),VLOOKUP(B36,B$14:I$25,8,FALSE)),"") ->  | G36: =HLOOKUP($B$1,'Room Inputs'!$D$3:$X$137,G81,0) -> 0 | H36: =HLOOKUP($B$1,'Room Inputs'!$D$3:$X$137,H81,0) -> 0 | I36: =IF(OR(G36=UvalueWD!C$6,G36=""),"",VLOOKUP(G36,Windows,2,FALSE)) ->  | K36: =IF(G36=UvaluesWRF!A$2,IF(ISERROR(F36*J36*(H36-F36)),"",F36*J36*(H36-F36)),IF(ISERROR(F36*J36*(F36-I36)),"",(I36-F36)*J36*I36)) -> 
B37: =HLOOKUP($B$1,'Room Inputs'!$D$3:$X$137,B82,0) -> 0 | C37: =HLOOKUP($B$1,'Room Inputs'!$D$3:$X$137,C82,0) -> 0 | D37: =HLOOKUP($B$1,'Room Inputs'!$D$3:$X$137,D82,0) -> 0 | E37: 0 | F37: =IF(B37<>"",IF(VLOOKUP(B37,B$14:I$25,6,FALSE)=UvalueWD!$C$6,VLOOKUP(B37,B$14:I$25,7,FALSE),VLOOKUP(B37,B$14:I$25,8,FALSE)),"") ->  | G37: =HLOOKUP($B$1,'Room Inputs'!$D$3:$X$137,G82,0) -> 0 | H37: =HLOOKUP($B$1,'Room Inputs'!$D$3:$X$137,H82,0) -> 0 | I37: =IF(OR(G37=UvalueWD!C$6,G37=""),"",VLOOKUP(G37,Windows,2,FALSE)) ->  | K37: =IF(G37=UvaluesWRF!A$2,IF(ISERROR(F37*J37*(H37-F37)),"",F37*J37*(H37-F37)),IF(ISERROR(F37*J37*(F37-I37)),"",(I37-F37)*J37*I37)) -> 
B38: =HLOOKUP($B$1,'Room Inputs'!$D$3:$X$137,B83,0) -> 0 | C38: =HLOOKUP($B$1,'Room Inputs'!$D$3:$X$137,C83,0) -> 0 | D38: =HLOOKUP($B$1,'Room Inputs'!$D$3:$X$137,D83,0) -> 0 | E38: 0 | F38: =IF(B38<>"",IF(VLOOKUP(B38,B$14:I$25,6,FALSE)=UvalueWD!$C$6,VLOOKUP(B38,B$14:I$25,7,FALSE),VLOOKUP(B38,B$14:I$25,8,FALSE)),"") ->  | G38: =HLOOKUP($B$1,'Room Inputs'!$D$3:$X$137,G83,0) -> 0 | H38: =HLOOKUP($B$1,'Room Inputs'!$D$3:$X$137,H83,0) -> 0 | I38: =IF(OR(G38=UvalueWD!C$6,G38=""),"",VLOOKUP(G38,Windows,2,FALSE)) ->  | K38: =IF(G38=UvaluesWRF!A$2,IF(ISERROR(F38*J38*(H38-F38)),"",F38*J38*(H38-F38)),IF(ISERROR(F38*J38*(F38-I38)),"",(I38-F38)*J38*I38)) -> 
B39: =HLOOKUP($B$1,'Room Inputs'!$D$3:$X$137,B84,0) -> 0 | C39: =HLOOKUP($B$1,'Room Inputs'!$D$3:$X$137,C84,0) -> 0 | D39: =HLOOKUP($B$1,'Room Inputs'!$D$3:$X$137,D84,0) -> 0 | E39: 0 | F39: =IF(B39<>"",IF(VLOOKUP(B39,B$14:I$25,6,FALSE)=UvalueWD!$C$6,VLOOKUP(B39,B$14:I$25,7,FALSE),VLOOKUP(B39,B$14:I$25,8,FALSE)),"") ->  | G39: =HLOOKUP($B$1,'Room Inputs'!$D$3:$X$137,G84,0) -> 0 | H39: =HLOOKUP($B$1,'Room Inputs'!$D$3:$X$137,H84,0) -> 0 | I39: =IF(OR(G39=UvalueWD!C$6,G39=""),"",VLOOKUP(G39,Windows,2,FALSE)) ->  | K39: =IF(G39=UvaluesWRF!A$2,IF(ISERROR(F39*J39*(H39-F39)),"",F39*J39*(H39-F39)),IF(ISERROR(F39*J39*(F39-I39)),"",(I39-F39)*J39*I39)) -> 
B41: * this is net heat loss (i.e. the heat loss of the window minus that of a wall of the same area) and so can be negative. This is done so that the area of the window or door does not have to be subtracted from the wall area.
I42: Room heat loss (W) | K42: =SUM(K10:K39) -> 0
B46: Row number lookup map
B48: Room name | C48: 2 | E48: Emitter type | F48: 3 | G48: For convectors consult the manufacturer's data and enter the temperature factor (FTEMP) for the appropriate fan speed | H48: 4 | I48: For radiators enter the n-coefficient (exponent) from manufacturer's data. If unknown 1.3 may be used | K48: 5
B50: Enter floor type and construction | C50: 6 | E50: Enter floor type and construction | F50: 7 | G50: For UFH enter Tog value (See Table 14) | H50: 8 | I50: For UFH enter active or exposed area of the heated floor | K50: 9
B52: Enter Room type below | E52: Enter Open fire/chimney details below
B53: 10 | E53: 11
B54: Room Dimensions
B55: Length (m) | D55: Width (m) | F55: Height (m)
B56: 13 | D56: 14 | F56: 15
B57: Walls, floors not ground floors and ceiling
B58: Name of wall, floor, ceiling | C58: Space on other side | D58: Height or length (m) | E58: Width (m) | G58: Construction | H58: Entered U- value (W/m²K), if required
B59: 16 | C59: 17 | D59: 18 | E59: 19 | G59: 20 | H59: 21
B60: 22 | C60: 23 | D60: 24 | E60: 25 | G60: 26 | H60: 27
B61: 28 | C61: 29 | D61: 30 | E61: 31 | G61: 32 | H61: 33
B62: 35 | C62: 36 | D62: 37 | E62: 38 | G62: 39 | H62: 40
B63: 41 | C63: 42 | D63: 43 | E63: 44 | G63: 45 | H63: 46
B64: 47 | C64: 48 | D64: 49 | E64: 50 | G64: 51 | H64: 52
B65: 53 | C65: 54 | D65: 55 | E65: 56 | G65: 57 | H65: 58
B66: 59 | C66: 60 | D66: 61 | E66: 62 | G66: 63 | H66: 64
B67: 65 | C67: 66 | D67: 67 | E67: 68 | G67: 69 | H67: 70
B68: 71 | C68: 72 | D68: 73 | E68: 74 | G68: 75 | H68: 76
B69: 77 | C69: 78 | D69: 79 | E69: 80 | G69: 81 | H69: 82
B70: 83 | C70: 84 | D70: 85 | E70: 86 | G70: 87 | H70: 88
B71: Ground floors Short length (m) | C71: long length (m) | D71: Edges exposed | G71: Type and Insulation thickness
B72: 89 | C72: 90 | D72: 91 | E72: 92 | G72: 92 | H72: 93
B73: 95 | C73: 96 | D73: 97 | G73: 98 | H73: 99
B74: 100 | C74: 101 | D74: 102 | G74: 103 | H74: 104
B77: Windows and doors
B78: Wall or roof with window or door | C78: Window or door height (m) | D78: Window or door width (m) | E78: Area (m²) | F78: Wall/roof U-value (W/m²K) | G78: Frame and glazing type | H78: Entered U- value (W/m²K), if required
B79: 105 | C79: 106 | D79: 107 | G79: 108 | H79: 109
B80: 111 | C80: 112 | D80: 113 | G80: 114 | H80: 115
B81: 116 | C81: 117 | D81: 118 | G81: 119 | H81: 120
B82: 121 | C82: 122 | D82: 123 | G82: 124 | H82: 125
B83: 126 | C83: 127 | D83: 128 | G83: 129 | H83: 130
B84: 131 | C84: 132 | D84: 133 | G84: 134 | H84: 135

Sheet 5 (hidden)
B1: ='Room Inputs'!H3 -> Room5
B3: Room name | C3: =HLOOKUP($B$1,'Room Inputs'!$D$3:$X$137,C48,0) -> 0 | E3: Emitter type | F3: =HLOOKUP($B$1,'Room Inputs'!$D$3:$X$137,F48,0) -> 0 | G3: For convectors consult the manufacturer's data and enter the temperature factor (FTEMP) for the appropriate fan speed | H3: =HLOOKUP($B$1,'Room Inputs'!$D$3:$X$137,H48,0) -> 0.85 | I3: For radiators enter the n-coefficient (exponent) from manufacturer's data. If unknown 1.3 may be used | K3: =HLOOKUP($B$1,'Room Inputs'!$D$3:$X$137,K48,0) -> 1.3
B5: Enter floor type and construction | C5: =HLOOKUP($B$1,'Room Inputs'!$D$3:$X$137,C50,0) -> 0 | E5: Enter floor type and construction | F5: =HLOOKUP($B$1,'Room Inputs'!$D$3:$X$137,F50,0) -> 0 | G5: For UFH enter Tog value (See Table 14) | H5: =HLOOKUP($B$1,'Room Inputs'!$D$3:$X$137,H50,0) -> 0.25 | I5: For UFH enter active or exposed area of the heated floor | K5: =HLOOKUP($B$1,'Room Inputs'!$D$3:$X$137,K50,0) -> 0
B7: Enter Room type below | E7: Enter Open fire/chimney details below | H7: Design room ventilation rate (air changes per hour) | K7: Design room temperature °C
B8: =HLOOKUP($B$1,'Room Inputs'!$D$3:$X$137,B53,0) -> 0 | E8: =HLOOKUP($B$1,'Room Inputs'!$D$3:$X$137,E53,0) -> 0 | H8: =IF(E8=VTables!B20,VLOOKUP(B8,DRVT,3,FALSE),MAX(VLOOKUP(B8,DRVT,3,FALSE),VLOOKUP(E8,ARVR,2,FALSE))) ->  | K8: =VLOOKUP(B8,DRVT,2,FALSE) -> 
B9: Room Dimensions
B10: Length (m) | D10: Width (m) | F10: Height (m) | G10: Room volume (m³) | J10: Design temperature difference | K10: Heat loss (W)
B11: =HLOOKUP($B$1,'Room Inputs'!$D$3:$X$137,B56,0) -> 0 | D11: =HLOOKUP($B$1,'Room Inputs'!$D$3:$X$137,D56,0) -> 0 | F11: =HLOOKUP($B$1,'Room Inputs'!$D$3:$X$137,F56,0) -> 0 | G11: =B11*D11*F11 -> 0 | J11: =K8-'Site Inputs'!C8 ->  | K11: =IF(G11>0,(ROUND(0.33*G11*H8*J11,2)),"") -> 
B12: Walls, floors not ground floors and ceiling
B13: Name of wall, floor, ceiling | C13: Space on other side | D13: Height or length (m) | E13: Width (m) | F13: Area (m²) | G13: Construction | H13: Entered U- value (W/m²K), if required | I13: U-value (W/m²K) | J13: Design temperature difference | K13: Heat loss (W) | M13: `
B14: =HLOOKUP($B$1,'Room Inputs'!$D$3:$X$137,B59,0) -> 0 | C14: =HLOOKUP($B$1,'Room Inputs'!$D$3:$X$137,C59,0) -> 0 | D14: =HLOOKUP($B$1,'Room Inputs'!$D$3:$X$137,D59,0) -> 0 | E14: =HLOOKUP($B$1,'Room Inputs'!$D$3:$X$137,E59,0) -> 0 | F14: =D14*E14 -> 0 | G14: =HLOOKUP($B$1,'Room Inputs'!$D$3:$X$137,G59,0) -> 0 | H14: =HLOOKUP($B$1,'Room Inputs'!$D$3:$X$137,H59,0) -> 0 | I14: =IF(OR(G14=UvaluesWRF!A$2,ISERROR(VLOOKUP(G14,UvaluesWRF!A$3:B$110,2,FALSE))),"",VLOOKUP(G14,UvaluesWRF!A$3:B$110,2,FALSE)) ->  | J14: =IF(C14="","",$K$8-VLOOKUP(C14,DRVT,2,FALSE)) ->  | K14: =IF(G14=UvaluesWRF!A$2,IF(ISERROR(F14*J14*H14),"",F14*J14*H14),IF(ISERROR(F14*J14*I14),"",F14*J14*I14)) -> 
B15: =HLOOKUP($B$1,'Room Inputs'!$D$3:$X$137,B60,0) -> 0 | C15: =HLOOKUP($B$1,'Room Inputs'!$D$3:$X$137,C60,0) -> 0 | D15: =HLOOKUP($B$1,'Room Inputs'!$D$3:$X$137,D60,0) -> 0 | E15: =HLOOKUP($B$1,'Room Inputs'!$D$3:$X$137,E60,0) -> 0 | F15: =D15*E15 -> 0 | G15: =HLOOKUP($B$1,'Room Inputs'!$D$3:$X$137,G60,0) -> 0 | H15: =HLOOKUP($B$1,'Room Inputs'!$D$3:$X$137,H60,0) -> 0 | I15: =IF(OR(G15=UvaluesWRF!A$2,ISERROR(VLOOKUP(G15,UvaluesWRF!A$3:B$110,2,FALSE))),"",VLOOKUP(G15,UvaluesWRF!A$3:B$110,2,FALSE)) ->  | K15: =IF(G15=UvaluesWRF!A$2,IF(ISERROR(F15*J15*H15),"",F15*J15*H15),IF(ISERROR(F15*J15*I15),"",F15*J15*I15)) -> 
B16: =HLOOKUP($B$1,'Room Inputs'!$D$3:$X$137,B61,0) -> 0 | C16: =HLOOKUP($B$1,'Room Inputs'!$D$3:$X$137,C61,0) -> 0 | D16: =HLOOKUP($B$1,'Room Inputs'!$D$3:$X$137,D61,0) -> 0 | E16: =HLOOKUP($B$1,'Room Inputs'!$D$3:$X$137,E61,0) -> 0 | F16: 0 | G16: =HLOOKUP($B$1,'Room Inputs'!$D$3:$X$137,G61,0) -> 0 | H16: =HLOOKUP($B$1,'Room Inputs'!$D$3:$X$137,H61,0) -> 0 | I16: =IF(OR(G16=UvaluesWRF!A$2,ISERROR(VLOOKUP(G16,UvaluesWRF!A$3:B$110,2,FALSE))),"",VLOOKUP(G16,UvaluesWRF!A$3:B$110,2,FALSE)) ->  | K16: =IF(G16=UvaluesWRF!A$2,IF(ISERROR(F16*J16*H16),"",F16*J16*H16),IF(ISERROR(F16*J16*I16),"",F16*J16*I16)) -> 
B17: =HLOOKUP($B$1,'Room Inputs'!$D$3:$X$137,B62,0) -> 0 | C17: =HLOOKUP($B$1,'Room Inputs'!$D$3:$X$137,C62,0) -> 0 | D17: =HLOOKUP($B$1,'Room Inputs'!$D$3:$X$137,D62,0) -> 0 | E17: =HLOOKUP($B$1,'Room Inputs'!$D$3:$X$137,E62,0) -> 0 | F17: 0 | G17: =HLOOKUP($B$1,'Room Inputs'!$D$3:$X$137,G62,0) -> 0 | H17: =HLOOKUP($B$1,'Room Inputs'!$D$3:$X$137,H62,0) -> 0 | I17: =IF(OR(G17=UvaluesWRF!A$2,ISERROR(VLOOKUP(G17,UvaluesWRF!A$3:B$110,2,FALSE))),"",VLOOKUP(G17,UvaluesWRF!A$3:B$110,2,FALSE)) ->  | K17: =IF(G17=UvaluesWRF!A$2,IF(ISERROR(F17*J17*H17),"",F17*J17*H17),IF(ISERROR(F17*J17*I17),"",F17*J17*I17)) -> 
B18: =HLOOKUP($B$1,'Room Inputs'!$D$3:$X$137,B63,0) -> 0 | C18: =HLOOKUP($B$1,'Room Inputs'!$D$3:$X$137,C63,0) -> 0 | D18: =HLOOKUP($B$1,'Room Inputs'!$D$3:$X$137,D63,0) -> 0 | E18: =HLOOKUP($B$1,'Room Inputs'!$D$3:$X$137,E63,0) -> 0 | F18: 0 | G18: =HLOOKUP($B$1,'Room Inputs'!$D$3:$X$137,G63,0) -> 0 | H18: =HLOOKUP($B$1,'Room Inputs'!$D$3:$X$137,H63,0) -> 0 | I18: =IF(OR(G18=UvaluesWRF!A$2,ISERROR(VLOOKUP(G18,UvaluesWRF!A$3:B$110,2,FALSE))),"",VLOOKUP(G18,UvaluesWRF!A$3:B$110,2,FALSE)) ->  | K18: =IF(G18=UvaluesWRF!A$2,IF(ISERROR(F18*J18*H18),"",F18*J18*H18),IF(ISERROR(F18*J18*I18),"",F18*J18*I18)) -> 
B19: =HLOOKUP($B$1,'Room Inputs'!$D$3:$X$137,B64,0) -> 0 | C19: =HLOOKUP($B$1,'Room Inputs'!$D$3:$X$137,C64,0) -> 0 | D19: =HLOOKUP($B$1,'Room Inputs'!$D$3:$X$137,D64,0) -> 0 | E19: =HLOOKUP($B$1,'Room Inputs'!$D$3:$X$137,E64,0) -> 0 | F19: 0 | G19: =HLOOKUP($B$1,'Room Inputs'!$D$3:$X$137,G64,0) -> 0 | H19: =HLOOKUP($B$1,'Room Inputs'!$D$3:$X$137,H64,0) -> 0 | I19: =IF(OR(G19=UvaluesWRF!A$2,ISERROR(VLOOKUP(G19,UvaluesWRF!A$3:B$110,2,FALSE))),"",VLOOKUP(G19,UvaluesWRF!A$3:B$110,2,FALSE)) ->  | K19: =IF(G19=UvaluesWRF!A$2,IF(ISERROR(F19*J19*H19),"",F19*J19*H19),IF(ISERROR(F19*J19*I19),"",F19*J19*I19)) -> 
B20: =HLOOKUP($B$1,'Room Inputs'!$D$3:$X$137,B65,0) -> 0 | C20: =HLOOKUP($B$1,'Room Inputs'!$D$3:$X$137,C65,0) -> 0 | D20: =HLOOKUP($B$1,'Room Inputs'!$D$3:$X$137,D65,0) -> 0 | E20: =HLOOKUP($B$1,'Room Inputs'!$D$3:$X$137,E65,0) -> 0 | F20: 0 | G20: =HLOOKUP($B$1,'Room Inputs'!$D$3:$X$137,G65,0) -> 0 | H20: =HLOOKUP($B$1,'Room Inputs'!$D$3:$X$137,H65,0) -> 0 | I20: =IF(OR(G20=UvaluesWRF!A$2,ISERROR(VLOOKUP(G20,UvaluesWRF!A$3:B$110,2,FALSE))),"",VLOOKUP(G20,UvaluesWRF!A$3:B$110,2,FALSE)) ->  | K20: =IF(G20=UvaluesWRF!A$2,IF(ISERROR(F20*J20*H20),"",F20*J20*H20),IF(ISERROR(F20*J20*I20),"",F20*J20*I20)) -> 
B21: =HLOOKUP($B$1,'Room Inputs'!$D$3:$X$137,B66,0) -> 0 | C21: =HLOOKUP($B$1,'Room Inputs'!$D$3:$X$137,C66,0) -> 0 | D21: =HLOOKUP($B$1,'Room Inputs'!$D$3:$X$137,D66,0) -> 0 | E21: =HLOOKUP($B$1,'Room Inputs'!$D$3:$X$137,E66,0) -> 0 | F21: 0 | G21: =HLOOKUP($B$1,'Room Inputs'!$D$3:$X$137,G66,0) -> 0 | H21: =HLOOKUP($B$1,'Room Inputs'!$D$3:$X$137,H66,0) -> 0 | I21: =IF(OR(G21=UvaluesWRF!A$2,ISERROR(VLOOKUP(G21,UvaluesWRF!A$3:B$110,2,FALSE))),"",VLOOKUP(G21,UvaluesWRF!A$3:B$110,2,FALSE)) ->  | K21: =IF(G21=UvaluesWRF!A$2,IF(ISERROR(F21*J21*H21),"",F21*J21*H21),IF(ISERROR(F21*J21*I21),"",F21*J21*I21)) -> 
B22: =HLOOKUP($B$1,'Room Inputs'!$D$3:$X$137,B67,0) -> 0 | C22: =HLOOKUP($B$1,'Room Inputs'!$D$3:$X$137,C67,0) -> 0 | D22: =HLOOKUP($B$1,'Room Inputs'!$D$3:$X$137,D67,0) -> 0 | E22: =HLOOKUP($B$1,'Room Inputs'!$D$3:$X$137,E67,0) -> 0 | F22: 0 | G22: =HLOOKUP($B$1,'Room Inputs'!$D$3:$X$137,G67,0) -> 0 | H22: =HLOOKUP($B$1,'Room Inputs'!$D$3:$X$137,H67,0) -> 0 | I22: =IF(OR(G22=UvaluesWRF!A$2,ISERROR(VLOOKUP(G22,UvaluesWRF!A$3:B$110,2,FALSE))),"",VLOOKUP(G22,UvaluesWRF!A$3:B$110,2,FALSE)) ->  | K22: =IF(G22=UvaluesWRF!A$2,IF(ISERROR(F22*J22*H22),"",F22*J22*H22),IF(ISERROR(F22*J22*I22),"",F22*J22*I22)) -> 
B23: =HLOOKUP($B$1,'Room Inputs'!$D$3:$X$137,B68,0) -> 0 | C23: =HLOOKUP($B$1,'Room Inputs'!$D$3:$X$137,C68,0) -> 0 | D23: =HLOOKUP($B$1,'Room Inputs'!$D$3:$X$137,D68,0) -> 0 | E23: =HLOOKUP($B$1,'Room Inputs'!$D$3:$X$137,E68,0) -> 0 | F23: 0 | G23: =HLOOKUP($B$1,'Room Inputs'!$D$3:$X$137,G68,0) -> 0 | H23: =HLOOKUP($B$1,'Room Inputs'!$D$3:$X$137,H68,0) -> 0 | I23: =IF(OR(G23=UvaluesWRF!A$2,ISERROR(VLOOKUP(G23,UvaluesWRF!A$3:B$110,2,FALSE))),"",VLOOKUP(G23,UvaluesWRF!A$3:B$110,2,FALSE)) ->  | K23: =IF(G23=UvaluesWRF!A$2,IF(ISERROR(F23*J23*H23),"",F23*J23*H23),IF(ISERROR(F23*J23*I23),"",F23*J23*I23)) -> 
B24: =HLOOKUP($B$1,'Room Inputs'!$D$3:$X$137,B69,0) -> 0 | C24: =HLOOKUP($B$1,'Room Inputs'!$D$3:$X$137,C69,0) -> 0 | D24: =HLOOKUP($B$1,'Room Inputs'!$D$3:$X$137,D69,0) -> 0 | E24: =HLOOKUP($B$1,'Room Inputs'!$D$3:$X$137,E69,0) -> 0 | F24: 0 | G24: =HLOOKUP($B$1,'Room Inputs'!$D$3:$X$137,G69,0) -> 0 | H24: =HLOOKUP($B$1,'Room Inputs'!$D$3:$X$137,H69,0) -> 0 | I24: =IF(OR(G24=UvaluesWRF!A$2,ISERROR(VLOOKUP(G24,UvaluesWRF!A$3:B$110,2,FALSE))),"",VLOOKUP(G24,UvaluesWRF!A$3:B$110,2,FALSE)) ->  | K24: =IF(G24=UvaluesWRF!A$2,IF(ISERROR(F24*J24*H24),"",F24*J24*H24),IF(ISERROR(F24*J24*I24),"",F24*J24*I24)) -> 
B25: =HLOOKUP($B$1,'Room Inputs'!$D$3:$X$137,B70,0) -> 0 | C25: =HLOOKUP($B$1,'Room Inputs'!$D$3:$X$137,C70,0) -> 0 | D25: =HLOOKUP($B$1,'Room Inputs'!$D$3:$X$137,D70,0) -> 0 | E25: =HLOOKUP($B$1,'Room Inputs'!$D$3:$X$137,E70,0) -> 0 | F25: 0 | G25: =HLOOKUP($B$1,'Room Inputs'!$D$3:$X$137,G70,0) -> 0 | H25: =HLOOKUP($B$1,'Room Inputs'!$D$3:$X$137,H70,0) -> 0 | I25: =IF(OR(G25=UvaluesWRF!A$2,ISERROR(VLOOKUP(G25,UvaluesWRF!A$3:B$110,2,FALSE))),"",VLOOKUP(G25,UvaluesWRF!A$3:B$110,2,FALSE)) ->  | K25: =IF(G25=UvaluesWRF!A$2,IF(ISERROR(F25*J25*H25),"",F25*J25*H25),IF(ISERROR(F25*J25*I25),"",F25*J25*I25)) -> 
B26: Ground floors Short length (m) | C26: long length (m) | D26: Edges exposed | G26: Type and Insulation thickness | M26: U-value | N26: Edge | O26: Insulation | P26: Column | R26: 1 | S26: 2 | T26: 3 | U26: 4 | V26: 5.3 | W26: 5.4 | X26: 5.5 | Y26: 5.6 | Z26: 6.3 | AA26: 6.4 | AB26: 6.5 | AC26: 6.6
B27: =HLOOKUP($B$1,'Room Inputs'!$D$3:$X$137,B72,0) -> 0 | C27: =HLOOKUP($B$1,'Room Inputs'!$D$3:$X$137,C72,0) -> 0 | D27: =HLOOKUP($B$1,'Room Inputs'!$D$3:$X$137,D72,0) -> 0 | E27: =HLOOKUP($B$1,'Room Inputs'!$D$3:$X$137,E72,0) -> 0 | F27: =B27*C27 -> 0 | G27: =HLOOKUP($B$1,'Room Inputs'!$D$3:$X$137,G72,0) -> 0 | H27: =HLOOKUP($B$1,'Room Inputs'!$D$3:$X$137,H72,0) -> 0 | I27: =IF(OR(G27=UvaluesFlr!$U$3,G27=UvaluesFlr!$U$4,ISERROR(M27)),"",M27) ->  | J27: =$K$8-IF(LEFT(G27,2)="So",10,'Site Inputs'!$C$8) ->  | K27: =IF(OR(G27=UvaluesFlr!$U$3,G27=UvaluesFlr!$U$4),IF(ISERROR(F27*J27*H27),"",F27*J27*H27),IF(ISERROR(F27*J27*I27),"",F27*J27*I27)) ->  | M27: =HLOOKUP(N27+MIN(0.6,IF(N27>4,O27/10,0)),$R$26:$AC$29,2,TRUE) ->  | N27: =VLOOKUP(D27,UvaluesFlr!$U$17:$V$22,2,FALSE) ->  | O27: =VLOOKUP(G27,UvaluesFlr!$U$3:$W$14,2,FALSE) ->  | P27: =VLOOKUP(G27,UvaluesFlr!$U$3:$W$14,3,FALSE) ->  | R27: =VLOOKUP(C27,UvaluesFlr!$C$53:$P$59,$P27,TRUE) ->  | S27: =VLOOKUP(B27,UvaluesFlr!$C$53:$P$59,$P27,TRUE) ->  | T27: =VLOOKUP(B27+C27,UvaluesFlr!$C$4:$P$12,$P27,TRUE) ->  | U27: =VLOOKUP(B27,UvaluesFlr!$C$16:$P$21,$P27,TRUE) ->  | V27: =VLOOKUP($C27,UvaluesFlr!$D$26:$P$29,$P27-1,TRUE) ->  | W27: =VLOOKUP($C27,UvaluesFlr!$D$30:$P$31,$P27-1,TRUE) ->  | X27: =VLOOKUP($C27,UvaluesFlr!$D$32:$P$33,$P27-1,TRUE) ->  | Y27: =VLOOKUP($C27,UvaluesFlr!$D$34:$P$35,$P27-1,TRUE) ->  | Z27: =VLOOKUP($C27,UvaluesFlr!$D$39:$P$42,$P27-1,TRUE) ->  | AA27: =VLOOKUP($C27,UvaluesFlr!$D$43:$P$45,$P27-1,TRUE) ->  | AB27: =VLOOKUP($C27,UvaluesFlr!$D$46:$P$48,$P27-1,TRUE) ->  | AC27: =VLOOKUP($C27,UvaluesFlr!$D$49:$P$50,$P27-1,TRUE) -> 
B28: =HLOOKUP($B$1,'Room Inputs'!$D$3:$X$137,B73,0) -> 0 | C28: =HLOOKUP($B$1,'Room Inputs'!$D$3:$X$137,C73,0) -> 0 | D28: =HLOOKUP($B$1,'Room Inputs'!$D$3:$X$137,D73,0) -> 0 | E28: =HLOOKUP($B$1,'Room Inputs'!$D$3:$X$137,E73,0) ->  | F28: =B28*C28 -> 0 | G28: =HLOOKUP($B$1,'Room Inputs'!$D$3:$X$137,G73,0) -> 0 | H28: =HLOOKUP($B$1,'Room Inputs'!$D$3:$X$137,H73,0) -> 0 | I28: =IF(OR(G28=UvaluesFlr!$U$3,G28=UvaluesFlr!$U$4,ISERROR(M28)),"",M28) ->  | J28: =$K$8-IF(LEFT(G28,2)="So",10,'Site Inputs'!$C$8) ->  | K28: =IF(OR(G28=UvaluesFlr!$U$3,G28=UvaluesFlr!$U$4),IF(ISERROR(F28*J28*H28),"",F28*J28*H28),IF(ISERROR(F28*J28*I28),"",F28*J28*I28)) ->  | M28: =HLOOKUP(N28+MIN(0.6,IF(N28>4,O28/10,0)),$R$26:$AC$29,3,TRUE) ->  | N28: =VLOOKUP(D28,UvaluesFlr!$U$17:$V$22,2,FALSE) ->  | O28: =VLOOKUP(G28,UvaluesFlr!$U$3:$W$14,2,FALSE) ->  | P28: =VLOOKUP(G28,UvaluesFlr!$U$3:$W$14,3,FALSE) ->  | R28: =VLOOKUP(C28,UvaluesFlr!$C$53:$P$59,$P28,TRUE) ->  | S28: =VLOOKUP(B28,UvaluesFlr!$C$53:$P$59,$P28,TRUE) ->  | T28: =VLOOKUP(B28+C28,UvaluesFlr!$C$4:$P$12,$P28,TRUE) ->  | U28: =VLOOKUP(B28,UvaluesFlr!$C$16:$P$21,$P28,TRUE) ->  | V28: =VLOOKUP($C28,UvaluesFlr!$D$26:$P$29,$P28-1,TRUE) ->  | W28: =VLOOKUP($C28,UvaluesFlr!$D$30:$P$31,$P28-1,TRUE) ->  | X28: =VLOOKUP($C28,UvaluesFlr!$D$32:$P$33,$P28-1,TRUE) ->  | Y28: =VLOOKUP($C28,UvaluesFlr!$D$34:$P$35,$P28-1,TRUE) ->  | Z28: =VLOOKUP($C28,UvaluesFlr!$D$39:$P$42,$P28-1,TRUE) ->  | AA28: =VLOOKUP($C28,UvaluesFlr!$D$43:$P$45,$P28-1,TRUE) ->  | AB28: =VLOOKUP($C28,UvaluesFlr!$D$46:$P$48,$P28-1,TRUE) ->  | AC28: =VLOOKUP($C28,UvaluesFlr!$D$49:$P$50,$P28-1,TRUE) -> 
B29: =HLOOKUP($B$1,'Room Inputs'!$D$3:$X$137,B74,0) -> 0 | C29: =HLOOKUP($B$1,'Room Inputs'!$D$3:$X$137,C74,0) -> 0 | D29: =HLOOKUP($B$1,'Room Inputs'!$D$3:$X$137,D74,0) -> 0 | E29: =HLOOKUP($B$1,'Room Inputs'!$D$3:$X$137,E74,0) ->  | F29: =B29*C29 -> 0 | G29: =HLOOKUP($B$1,'Room Inputs'!$D$3:$X$137,G74,0) -> 0 | H29: =HLOOKUP($B$1,'Room Inputs'!$D$3:$X$137,H74,0) -> 0 | I29: =IF(OR(G29=UvaluesFlr!$U$3,G29=UvaluesFlr!$U$4,ISERROR(M29)),"",M29) ->  | J29: =$K$8-IF(LEFT(G29,2)="So",10,'Site Inputs'!$C$8) ->  | K29: =IF(OR(G29=UvaluesFlr!$U$3,G29=UvaluesFlr!$U$4),IF(ISERROR(F29*J29*H29),"",F29*J29*H29),IF(ISERROR(F29*J29*I29),"",F29*J29*I29)) ->  | M29: =HLOOKUP(N29+MIN(0.6,IF(N29>4,O29/10,0)),$R$26:$AC$29,4,TRUE) ->  | N29: =VLOOKUP(D29,UvaluesFlr!$U$17:$V$22,2,FALSE) ->  | O29: =VLOOKUP(G29,UvaluesFlr!$U$3:$W$14,2,FALSE) ->  | P29: =VLOOKUP(G29,UvaluesFlr!$U$3:$W$14,3,FALSE) ->  | R29: =VLOOKUP(C29,UvaluesFlr!$C$53:$P$59,$P29,TRUE) ->  | S29: =VLOOKUP(B29,UvaluesFlr!$C$53:$P$59,$P29,TRUE) ->  | T29: =VLOOKUP(B29+C29,UvaluesFlr!$C$4:$P$12,$P29,TRUE) ->  | U29: =VLOOKUP(B29,UvaluesFlr!$C$16:$P$21,$P29,TRUE) ->  | V29: =VLOOKUP($C29,UvaluesFlr!$D$26:$P$29,$P29-1,TRUE) ->  | W29: =VLOOKUP($C29,UvaluesFlr!$D$30:$P$31,$P29-1,TRUE) ->  | X29: =VLOOKUP($C29,UvaluesFlr!$D$32:$P$33,$P29-1,TRUE) ->  | Y29: =VLOOKUP($C29,UvaluesFlr!$D$34:$P$35,$P29-1,TRUE) ->  | Z29: =VLOOKUP($C29,UvaluesFlr!$D$39:$P$42,$P29-1,TRUE) ->  | AA29: =VLOOKUP($C29,UvaluesFlr!$D$43:$P$45,$P29-1,TRUE) ->  | AB29: =VLOOKUP($C29,UvaluesFlr!$D$46:$P$48,$P29-1,TRUE) ->  | AC29: =VLOOKUP($C29,UvaluesFlr!$D$49:$P$50,$P29-1,TRUE) -> 
B32: Windows and doors
B33: Wall or roof with window or door | C33: Window or door height (m) | D33: Window or door width (m) | E33: Area (m²) | F33: Wall/roof U-value (W/m²K) | G33: Frame and glazing type | H33: Entered U- value (W/m²K), if required | I33: U-value | J33: Design temperature difference | K33: Heat loss (W)*
B34: =HLOOKUP($B$1,'Room Inputs'!$D$3:$X$137,B79,0) -> 0 | C34: =HLOOKUP($B$1,'Room Inputs'!$D$3:$X$137,C79,0) -> 0 | D34: =HLOOKUP($B$1,'Room Inputs'!$D$3:$X$137,D79,0) -> 0 | E34: =C34*D34 -> 0 | F34: =IF(B34<>"",IF(VLOOKUP(B34,B$14:I$25,6,FALSE)=UvalueWD!$C$6,VLOOKUP(B34,B$14:I$25,7,FALSE),VLOOKUP(B34,B$14:I$25,8,FALSE)),"") ->  | G34: =HLOOKUP($B$1,'Room Inputs'!$D$3:$X$137,G79,0) -> 0 | H34: =HLOOKUP($B$1,'Room Inputs'!$D$3:$X$137,H79,0) -> 0 | I34: =IF(OR(G34=UvalueWD!C$6,G34=""),"",VLOOKUP(G34,Windows,2,FALSE)) ->  | J34: =IF(ISERROR(VLOOKUP(B34,B$13:K$29,9,FALSE)),"",VLOOKUP(B34,B$13:K$29,9,FALSE)) ->  | K34: =IF(G34=UvaluesWRF!A$2,IF(ISERROR(F34*J34*(H34-F34)),"",F34*J34*(H34-F34)),IF(ISERROR(F34*J34*(F34-I34)),"",(I34-F34)*J34*I34)) -> 
B35: =HLOOKUP($B$1,'Room Inputs'!$D$3:$X$137,B80,0) -> 0 | C35: =HLOOKUP($B$1,'Room Inputs'!$D$3:$X$137,C80,0) -> 0 | D35: =HLOOKUP($B$1,'Room Inputs'!$D$3:$X$137,D80,0) -> 0 | E35: 0 | F35: =IF(B35<>"",IF(VLOOKUP(B35,B$14:I$25,6,FALSE)=UvalueWD!$C$6,VLOOKUP(B35,B$14:I$25,7,FALSE),VLOOKUP(B35,B$14:I$25,8,FALSE)),"") ->  | G35: =HLOOKUP($B$1,'Room Inputs'!$D$3:$X$137,G80,0) -> 0 | H35: =HLOOKUP($B$1,'Room Inputs'!$D$3:$X$137,H80,0) -> 0 | I35: =IF(OR(G35=UvalueWD!C$6,G35=""),"",VLOOKUP(G35,Windows,2,FALSE)) ->  | K35: =IF(G35=UvaluesWRF!A$2,IF(ISERROR(F35*J35*(H35-F35)),"",F35*J35*(H35-F35)),IF(ISERROR(F35*J35*(F35-I35)),"",(I35-F35)*J35*I35)) -> 
B36: =HLOOKUP($B$1,'Room Inputs'!$D$3:$X$137,B81,0) -> 0 | C36: =HLOOKUP($B$1,'Room Inputs'!$D$3:$X$137,C81,0) -> 0 | D36: =HLOOKUP($B$1,'Room Inputs'!$D$3:$X$137,D81,0) -> 0 | E36: 0 | F36: =IF(B36<>"",IF(VLOOKUP(B36,B$14:I$25,6,FALSE)=UvalueWD!$C$6,VLOOKUP(B36,B$14:I$25,7,FALSE),VLOOKUP(B36,B$14:I$25,8,FALSE)),"") ->  | G36: =HLOOKUP($B$1,'Room Inputs'!$D$3:$X$137,G81,0) -> 0 | H36: =HLOOKUP($B$1,'Room Inputs'!$D$3:$X$137,H81,0) -> 0 | I36: =IF(OR(G36=UvalueWD!C$6,G36=""),"",VLOOKUP(G36,Windows,2,FALSE)) ->  | K36: =IF(G36=UvaluesWRF!A$2,IF(ISERROR(F36*J36*(H36-F36)),"",F36*J36*(H36-F36)),IF(ISERROR(F36*J36*(F36-I36)),"",(I36-F36)*J36*I36)) -> 
B37: =HLOOKUP($B$1,'Room Inputs'!$D$3:$X$137,B82,0) -> 0 | C37: =HLOOKUP($B$1,'Room Inputs'!$D$3:$X$137,C82,0) -> 0 | D37: =HLOOKUP($B$1,'Room Inputs'!$D$3:$X$137,D82,0) -> 0 | E37: 0 | F37: =IF(B37<>"",IF(VLOOKUP(B37,B$14:I$25,6,FALSE)=UvalueWD!$C$6,VLOOKUP(B37,B$14:I$25,7,FALSE),VLOOKUP(B37,B$14:I$25,8,FALSE)),"") ->  | G37: =HLOOKUP($B$1,'Room Inputs'!$D$3:$X$137,G82,0) -> 0 | H37: =HLOOKUP($B$1,'Room Inputs'!$D$3:$X$137,H82,0) -> 0 | I37: =IF(OR(G37=UvalueWD!C$6,G37=""),"",VLOOKUP(G37,Windows,2,FALSE)) ->  | K37: =IF(G37=UvaluesWRF!A$2,IF(ISERROR(F37*J37*(H37-F37)),"",F37*J37*(H37-F37)),IF(ISERROR(F37*J37*(F37-I37)),"",(I37-F37)*J37*I37)) -> 
B38: =HLOOKUP($B$1,'Room Inputs'!$D$3:$X$137,B83,0) -> 0 | C38: =HLOOKUP($B$1,'Room Inputs'!$D$3:$X$137,C83,0) -> 0 | D38: =HLOOKUP($B$1,'Room Inputs'!$D$3:$X$137,D83,0) -> 0 | E38: 0 | F38: =IF(B38<>"",IF(VLOOKUP(B38,B$14:I$25,6,FALSE)=UvalueWD!$C$6,VLOOKUP(B38,B$14:I$25,7,FALSE),VLOOKUP(B38,B$14:I$25,8,FALSE)),"") ->  | G38: =HLOOKUP($B$1,'Room Inputs'!$D$3:$X$137,G83,0) -> 0 | H38: =HLOOKUP($B$1,'Room Inputs'!$D$3:$X$137,H83,0) -> 0 | I38: =IF(OR(G38=UvalueWD!C$6,G38=""),"",VLOOKUP(G38,Windows,2,FALSE)) ->  | K38: =IF(G38=UvaluesWRF!A$2,IF(ISERROR(F38*J38*(H38-F38)),"",F38*J38*(H38-F38)),IF(ISERROR(F38*J38*(F38-I38)),"",(I38-F38)*J38*I38)) -> 
B39: =HLOOKUP($B$1,'Room Inputs'!$D$3:$X$137,B84,0) -> 0 | C39: =HLOOKUP($B$1,'Room Inputs'!$D$3:$X$137,C84,0) -> 0 | D39: =HLOOKUP($B$1,'Room Inputs'!$D$3:$X$137,D84,0) -> 0 | E39: 0 | F39: =IF(B39<>"",IF(VLOOKUP(B39,B$14:I$25,6,FALSE)=UvalueWD!$C$6,VLOOKUP(B39,B$14:I$25,7,FALSE),VLOOKUP(B39,B$14:I$25,8,FALSE)),"") ->  | G39: =HLOOKUP($B$1,'Room Inputs'!$D$3:$X$137,G84,0) -> 0 | H39: =HLOOKUP($B$1,'Room Inputs'!$D$3:$X$137,H84,0) -> 0 | I39: =IF(OR(G39=UvalueWD!C$6,G39=""),"",VLOOKUP(G39,Windows,2,FALSE)) ->  | K39: =IF(G39=UvaluesWRF!A$2,IF(ISERROR(F39*J39*(H39-F39)),"",F39*J39*(H39-F39)),IF(ISERROR(F39*J39*(F39-I39)),"",(I39-F39)*J39*I39)) -> 
B41: * this is net heat loss (i.e. the heat loss of the window minus that of a wall of the same area) and so can be negative. This is done so that the area of the window or door does not have to be subtracted from the wall area.
I42: Room heat loss (W) | K42: =SUM(K10:K39) -> 0
B46: Row number lookup map
B48: Room name | C48: 2 | E48: Emitter type | F48: 3 | G48: For convectors consult the manufacturer's data and enter the temperature factor (FTEMP) for the appropriate fan speed | H48: 4 | I48: For radiators enter the n-coefficient (exponent) from manufacturer's data. If unknown 1.3 may be used | K48: 5
B50: Enter floor type and construction | C50: 6 | E50: Enter floor type and construction | F50: 7 | G50: For UFH enter Tog value (See Table 14) | H50: 8 | I50: For UFH enter active or exposed area of the heated floor | K50: 9
B52: Enter Room type below | E52: Enter Open fire/chimney details below
B53: 10 | E53: 11
B54: Room Dimensions
B55: Length (m) | D55: Width (m) | F55: Height (m)
B56: 13 | D56: 14 | F56: 15
B57: Walls, floors not ground floors and ceiling
B58: Name of wall, floor, ceiling | C58: Space on other side | D58: Height or length (m) | E58: Width (m) | G58: Construction | H58: Entered U- value (W/m²K), if required
B59: 16 | C59: 17 | D59: 18 | E59: 19 | G59: 20 | H59: 21
B60: 22 | C60: 23 | D60: 24 | E60: 25 | G60: 26 | H60: 27
B61: 28 | C61: 29 | D61: 30 | E61: 31 | G61: 32 | H61: 33
B62: 35 | C62: 36 | D62: 37 | E62: 38 | G62: 39 | H62: 40
B63: 41 | C63: 42 | D63: 43 | E63: 44 | G63: 45 | H63: 46
B64: 47 | C64: 48 | D64: 49 | E64: 50 | G64: 51 | H64: 52
B65: 53 | C65: 54 | D65: 55 | E65: 56 | G65: 57 | H65: 58
B66: 59 | C66: 60 | D66: 61 | E66: 62 | G66: 63 | H66: 64
B67: 65 | C67: 66 | D67: 67 | E67: 68 | G67: 69 | H67: 70
B68: 71 | C68: 72 | D68: 73 | E68: 74 | G68: 75 | H68: 76
B69: 77 | C69: 78 | D69: 79 | E69: 80 | G69: 81 | H69: 82
B70: 83 | C70: 84 | D70: 85 | E70: 86 | G70: 87 | H70: 88
B71: Ground floors Short length (m) | C71: long length (m) | D71: Edges exposed | G71: Type and Insulation thickness
B72: 89 | C72: 90 | D72: 91 | E72: 92 | G72: 92 | H72: 93
B73: 95 | C73: 96 | D73: 97 | G73: 98 | H73: 99
B74: 100 | C74: 101 | D74: 102 | G74: 103 | H74: 104
B77: Windows and doors
B78: Wall or roof with window or door | C78: Window or door height (m) | D78: Window or door width (m) | E78: Area (m²) | F78: Wall/roof U-value (W/m²K) | G78: Frame and glazing type | H78: Entered U- value (W/m²K), if required
B79: 105 | C79: 106 | D79: 107 | G79: 108 | H79: 109
B80: 111 | C80: 112 | D80: 113 | G80: 114 | H80: 115
B81: 116 | C81: 117 | D81: 118 | G81: 119 | H81: 120
B82: 121 | C82: 122 | D82: 123 | G82: 124 | H82: 125
B83: 126 | C83: 127 | D83: 128 | G83: 129 | H83: 130
B84: 131 | C84: 132 | D84: 133 | G84: 134 | H84: 135

Sheet 6 (hidden)
B1: ='Room Inputs'!I3 -> Room6
B3: Room name | C3: =HLOOKUP($B$1,'Room Inputs'!$D$3:$X$137,C48,0) -> 0 | E3: Emitter type | F3: =HLOOKUP($B$1,'Room Inputs'!$D$3:$X$137,F48,0) -> 0 | G3: For convectors consult the manufacturer's data and enter the temperature factor (FTEMP) for the appropriate fan speed | H3: =HLOOKUP($B$1,'Room Inputs'!$D$3:$X$137,H48,0) -> 0.85 | I3: For radiators enter the n-coefficient (exponent) from manufacturer's data. If unknown 1.3 may be used | K3: =HLOOKUP($B$1,'Room Inputs'!$D$3:$X$137,K48,0) -> 1.3
B5: Enter floor type and construction | C5: =HLOOKUP($B$1,'Room Inputs'!$D$3:$X$137,C50,0) -> 0 | E5: Enter floor type and construction | F5: =HLOOKUP($B$1,'Room Inputs'!$D$3:$X$137,F50,0) -> 0 | G5: For UFH enter Tog value (See Table 14) | H5: =HLOOKUP($B$1,'Room Inputs'!$D$3:$X$137,H50,0) -> 0.25 | I5: For UFH enter active or exposed area of the heated floor | K5: =HLOOKUP($B$1,'Room Inputs'!$D$3:$X$137,K50,0) -> 0
B7: Enter Room type below | E7: Enter Open fire/chimney details below | H7: Design room ventilation rate (air changes per hour) | K7: Design room temperature °C
B8: =HLOOKUP($B$1,'Room Inputs'!$D$3:$X$137,B53,0) -> 0 | E8: =HLOOKUP($B$1,'Room Inputs'!$D$3:$X$137,E53,0) -> 0 | H8: =IF(E8=VTables!B20,VLOOKUP(B8,DRVT,3,FALSE),MAX(VLOOKUP(B8,DRVT,3,FALSE),VLOOKUP(E8,ARVR,2,FALSE))) ->  | K8: =VLOOKUP(B8,DRVT,2,FALSE) -> 
B9: Room Dimensions
B10: Length (m) | D10: Width (m) | F10: Height (m) | G10: Room volume (m³) | J10: Design temperature difference | K10: Heat loss (W)
B11: =HLOOKUP($B$1,'Room Inputs'!$D$3:$X$137,B56,0) -> 0 | D11: =HLOOKUP($B$1,'Room Inputs'!$D$3:$X$137,D56,0) -> 0 | F11: =HLOOKUP($B$1,'Room Inputs'!$D$3:$X$137,F56,0) -> 0 | G11: =B11*D11*F11 -> 0 | J11: =K8-'Site Inputs'!C8 ->  | K11: =IF(G11>0,(ROUND(0.33*G11*H8*J11,2)),"") -> 
B12: Walls, floors not ground floors and ceiling
B13: Name of wall, floor, ceiling | C13: Space on other side | D13: Height or length (m) | E13: Width (m) | F13: Area (m²) | G13: Construction | H13: Entered U- value (W/m²K), if required | I13: U-value (W/m²K) | J13: Design temperature difference | K13: Heat loss (W) | M13: `
B14: =HLOOKUP($B$1,'Room Inputs'!$D$3:$X$137,B59,0) -> 0 | C14: =HLOOKUP($B$1,'Room Inputs'!$D$3:$X$137,C59,0) -> 0 | D14: =HLOOKUP($B$1,'Room Inputs'!$D$3:$X$137,D59,0) -> 0 | E14: =HLOOKUP($B$1,'Room Inputs'!$D$3:$X$137,E59,0) -> 0 | F14: =D14*E14 -> 0 | G14: =HLOOKUP($B$1,'Room Inputs'!$D$3:$X$137,G59,0) -> 0 | H14: =HLOOKUP($B$1,'Room Inputs'!$D$3:$X$137,H59,0) -> 0 | I14: =IF(OR(G14=UvaluesWRF!A$2,ISERROR(VLOOKUP(G14,UvaluesWRF!A$3:B$110,2,FALSE))),"",VLOOKUP(G14,UvaluesWRF!A$3:B$110,2,FALSE)) ->  | J14: =IF(C14="","",$K$8-VLOOKUP(C14,DRVT,2,FALSE)) ->  | K14: =IF(G14=UvaluesWRF!A$2,IF(ISERROR(F14*J14*H14),"",F14*J14*H14),IF(ISERROR(F14*J14*I14),"",F14*J14*I14)) -> 
B15: =HLOOKUP($B$1,'Room Inputs'!$D$3:$X$137,B60,0) -> 0 | C15: =HLOOKUP($B$1,'Room Inputs'!$D$3:$X$137,C60,0) -> 0 | D15: =HLOOKUP($B$1,'Room Inputs'!$D$3:$X$137,D60,0) -> 0 | E15: =HLOOKUP($B$1,'Room Inputs'!$D$3:$X$137,E60,0) -> 0 | F15: =D15*E15 -> 0 | G15: =HLOOKUP($B$1,'Room Inputs'!$D$3:$X$137,G60,0) -> 0 | H15: =HLOOKUP($B$1,'Room Inputs'!$D$3:$X$137,H60,0) -> 0 | I15: =IF(OR(G15=UvaluesWRF!A$2,ISERROR(VLOOKUP(G15,UvaluesWRF!A$3:B$110,2,FALSE))),"",VLOOKUP(G15,UvaluesWRF!A$3:B$110,2,FALSE)) ->  | K15: =IF(G15=UvaluesWRF!A$2,IF(ISERROR(F15*J15*H15),"",F15*J15*H15),IF(ISERROR(F15*J15*I15),"",F15*J15*I15)) -> 
B16: =HLOOKUP($B$1,'Room Inputs'!$D$3:$X$137,B61,0) -> 0 | C16: =HLOOKUP($B$1,'Room Inputs'!$D$3:$X$137,C61,0) -> 0 | D16: =HLOOKUP($B$1,'Room Inputs'!$D$3:$X$137,D61,0) -> 0 | E16: =HLOOKUP($B$1,'Room Inputs'!$D$3:$X$137,E61,0) -> 0 | F16: 0 | G16: =HLOOKUP($B$1,'Room Inputs'!$D$3:$X$137,G61,0) -> 0 | H16: =HLOOKUP($B$1,'Room Inputs'!$D$3:$X$137,H61,0) -> 0 | I16: =IF(OR(G16=UvaluesWRF!A$2,ISERROR(VLOOKUP(G16,UvaluesWRF!A$3:B$110,2,FALSE))),"",VLOOKUP(G16,UvaluesWRF!A$3:B$110,2,FALSE)) ->  | K16: =IF(G16=UvaluesWRF!A$2,IF(ISERROR(F16*J16*H16),"",F16*J16*H16),IF(ISERROR(F16*J16*I16),"",F16*J16*I16)) -> 
B17: =HLOOKUP($B$1,'Room Inputs'!$D$3:$X$137,B62,0) -> 0 | C17: =HLOOKUP($B$1,'Room Inputs'!$D$3:$X$137,C62,0) -> 0 | D17: =HLOOKUP($B$1,'Room Inputs'!$D$3:$X$137,D62,0) -> 0 | E17: =HLOOKUP($B$1,'Room Inputs'!$D$3:$X$137,E62,0) -> 0 | F17: 0 | G17: =HLOOKUP($B$1,'Room Inputs'!$D$3:$X$137,G62,0) -> 0 | H17: =HLOOKUP($B$1,'Room Inputs'!$D$3:$X$137,H62,0) -> 0 | I17: =IF(OR(G17=UvaluesWRF!A$2,ISERROR(VLOOKUP(G17,UvaluesWRF!A$3:B$110,2,FALSE))),"",VLOOKUP(G17,UvaluesWRF!A$3:B$110,2,FALSE)) ->  | K17: =IF(G17=UvaluesWRF!A$2,IF(ISERROR(F17*J17*H17),"",F17*J17*H17),IF(ISERROR(F17*J17*I17),"",F17*J17*I17)) -> 
B18: =HLOOKUP($B$1,'Room Inputs'!$D$3:$X$137,B63,0) -> 0 | C18: =HLOOKUP($B$1,'Room Inputs'!$D$3:$X$137,C63,0) -> 0 | D18: =HLOOKUP($B$1,'Room Inputs'!$D$3:$X$137,D63,0) -> 0 | E18: =HLOOKUP($B$1,'Room Inputs'!$D$3:$X$137,E63,0) -> 0 | F18: 0 | G18: =HLOOKUP($B$1,'Room Inputs'!$D$3:$X$137,G63,0) -> 0 | H18: =HLOOKUP($B$1,'Room Inputs'!$D$3:$X$137,H63,0) -> 0 | I18: =IF(OR(G18=UvaluesWRF!A$2,ISERROR(VLOOKUP(G18,UvaluesWRF!A$3:B$110,2,FALSE))),"",VLOOKUP(G18,UvaluesWRF!A$3:B$110,2,FALSE)) ->  | K18: =IF(G18=UvaluesWRF!A$2,IF(ISERROR(F18*J18*H18),"",F18*J18*H18),IF(ISERROR(F18*J18*I18),"",F18*J18*I18)) -> 
B19: =HLOOKUP($B$1,'Room Inputs'!$D$3:$X$137,B64,0) -> 0 | C19: =HLOOKUP($B$1,'Room Inputs'!$D$3:$X$137,C64,0) -> 0 | D19: =HLOOKUP($B$1,'Room Inputs'!$D$3:$X$137,D64,0) -> 0 | E19: =HLOOKUP($B$1,'Room Inputs'!$D$3:$X$137,E64,0) -> 0 | F19: 0 | G19: =HLOOKUP($B$1,'Room Inputs'!$D$3:$X$137,G64,0) -> 0 | H19: =HLOOKUP($B$1,'Room Inputs'!$D$3:$X$137,H64,0) -> 0 | I19: =IF(OR(G19=UvaluesWRF!A$2,ISERROR(VLOOKUP(G19,UvaluesWRF!A$3:B$110,2,FALSE))),"",VLOOKUP(G19,UvaluesWRF!A$3:B$110,2,FALSE)) ->  | K19: =IF(G19=UvaluesWRF!A$2,IF(ISERROR(F19*J19*H19),"",F19*J19*H19),IF(ISERROR(F19*J19*I19),"",F19*J19*I19)) -> 
B20: =HLOOKUP($B$1,'Room Inputs'!$D$3:$X$137,B65,0) -> 0 | C20: =HLOOKUP($B$1,'Room Inputs'!$D$3:$X$137,C65,0) -> 0 | D20: =HLOOKUP($B$1,'Room Inputs'!$D$3:$X$137,D65,0) -> 0 | E20: =HLOOKUP($B$1,'Room Inputs'!$D$3:$X$137,E65,0) -> 0 | F20: 0 | G20: =HLOOKUP($B$1,'Room Inputs'!$D$3:$X$137,G65,0) -> 0 | H20: =HLOOKUP($B$1,'Room Inputs'!$D$3:$X$137,H65,0) -> 0 | I20: =IF(OR(G20=UvaluesWRF!A$2,ISERROR(VLOOKUP(G20,UvaluesWRF!A$3:B$110,2,FALSE))),"",VLOOKUP(G20,UvaluesWRF!A$3:B$110,2,FALSE)) ->  | K20: =IF(G20=UvaluesWRF!A$2,IF(ISERROR(F20*J20*H20),"",F20*J20*H20),IF(ISERROR(F20*J20*I20),"",F20*J20*I20)) -> 
B21: =HLOOKUP($B$1,'Room Inputs'!$D$3:$X$137,B66,0) -> 0 | C21: =HLOOKUP($B$1,'Room Inputs'!$D$3:$X$137,C66,0) -> 0 | D21: =HLOOKUP($B$1,'Room Inputs'!$D$3:$X$137,D66,0) -> 0 | E21: =HLOOKUP($B$1,'Room Inputs'!$D$3:$X$137,E66,0) -> 0 | F21: 0 | G21: =HLOOKUP($B$1,'Room Inputs'!$D$3:$X$137,G66,0) -> 0 | H21: =HLOOKUP($B$1,'Room Inputs'!$D$3:$X$137,H66,0) -> 0 | I21: =IF(OR(G21=UvaluesWRF!A$2,ISERROR(VLOOKUP(G21,UvaluesWRF!A$3:B$110,2,FALSE))),"",VLOOKUP(G21,UvaluesWRF!A$3:B$110,2,FALSE)) ->  | K21: =IF(G21=UvaluesWRF!A$2,IF(ISERROR(F21*J21*H21),"",F21*J21*H21),IF(ISERROR(F21*J21*I21),"",F21*J21*I21)) -> 
B22: =HLOOKUP($B$1,'Room Inputs'!$D$3:$X$137,B67,0) -> 0 | C22: =HLOOKUP($B$1,'Room Inputs'!$D$3:$X$137,C67,0) -> 0 | D22: =HLOOKUP($B$1,'Room Inputs'!$D$3:$X$137,D67,0) -> 0 | E22: =HLOOKUP($B$1,'Room Inputs'!$D$3:$X$137,E67,0) -> 0 | F22: 0 | G22: =HLOOKUP($B$1,'Room Inputs'!$D$3:$X$137,G67,0) -> 0 | H22: =HLOOKUP($B$1,'Room Inputs'!$D$3:$X$137,H67,0) -> 0 | I22: =IF(OR(G22=UvaluesWRF!A$2,ISERROR(VLOOKUP(G22,UvaluesWRF!A$3:B$110,2,FALSE))),"",VLOOKUP(G22,UvaluesWRF!A$3:B$110,2,FALSE)) ->  | K22: =IF(G22=UvaluesWRF!A$2,IF(ISERROR(F22*J22*H22),"",F22*J22*H22),IF(ISERROR(F22*J22*I22),"",F22*J22*I22)) -> 
B23: =HLOOKUP($B$1,'Room Inputs'!$D$3:$X$137,B68,0) -> 0 | C23: =HLOOKUP($B$1,'Room Inputs'!$D$3:$X$137,C68,0) -> 0 | D23: =HLOOKUP($B$1,'Room Inputs'!$D$3:$X$137,D68,0) -> 0 | E23: =HLOOKUP($B$1,'Room Inputs'!$D$3:$X$137,E68,0) -> 0 | F23: 0 | G23: =HLOOKUP($B$1,'Room Inputs'!$D$3:$X$137,G68,0) -> 0 | H23: =HLOOKUP($B$1,'Room Inputs'!$D$3:$X$137,H68,0) -> 0 | I23: =IF(OR(G23=UvaluesWRF!A$2,ISERROR(VLOOKUP(G23,UvaluesWRF!A$3:B$110,2,FALSE))),"",VLOOKUP(G23,UvaluesWRF!A$3:B$110,2,FALSE)) ->  | K23: =IF(G23=UvaluesWRF!A$2,IF(ISERROR(F23*J23*H23),"",F23*J23*H23),IF(ISERROR(F23*J23*I23),"",F23*J23*I23)) -> 
B24: =HLOOKUP($B$1,'Room Inputs'!$D$3:$X$137,B69,0) -> 0 | C24: =HLOOKUP($B$1,'Room Inputs'!$D$3:$X$137,C69,0) -> 0 | D24: =HLOOKUP($B$1,'Room Inputs'!$D$3:$X$137,D69,0) -> 0 | E24: =HLOOKUP($B$1,'Room Inputs'!$D$3:$X$137,E69,0) -> 0 | F24: 0 | G24: =HLOOKUP($B$1,'Room Inputs'!$D$3:$X$137,G69,0) -> 0 | H24: =HLOOKUP($B$1,'Room Inputs'!$D$3:$X$137,H69,0) -> 0 | I24: =IF(OR(G24=UvaluesWRF!A$2,ISERROR(VLOOKUP(G24,UvaluesWRF!A$3:B$110,2,FALSE))),"",VLOOKUP(G24,UvaluesWRF!A$3:B$110,2,FALSE)) ->  | K24: =IF(G24=UvaluesWRF!A$2,IF(ISERROR(F24*J24*H24),"",F24*J24*H24),IF(ISERROR(F24*J24*I24),"",F24*J24*I24)) -> 
B25: =HLOOKUP($B$1,'Room Inputs'!$D$3:$X$137,B70,0) -> 0 | C25: =HLOOKUP($B$1,'Room Inputs'!$D$3:$X$137,C70,0) -> 0 | D25: =HLOOKUP($B$1,'Room Inputs'!$D$3:$X$137,D70,0) -> 0 | E25: =HLOOKUP($B$1,'Room Inputs'!$D$3:$X$137,E70,0) -> 0 | F25: 0 | G25: =HLOOKUP($B$1,'Room Inputs'!$D$3:$X$137,G70,0) -> 0 | H25: =HLOOKUP($B$1,'Room Inputs'!$D$3:$X$137,H70,0) -> 0 | I25: =IF(OR(G25=UvaluesWRF!A$2,ISERROR(VLOOKUP(G25,UvaluesWRF!A$3:B$110,2,FALSE))),"",VLOOKUP(G25,UvaluesWRF!A$3:B$110,2,FALSE)) ->  | K25: =IF(G25=UvaluesWRF!A$2,IF(ISERROR(F25*J25*H25),"",F25*J25*H25),IF(ISERROR(F25*J25*I25),"",F25*J25*I25)) -> 
B26: Ground floors Short length (m) | C26: long length (m) | D26: Edges exposed | G26: Type and Insulation thickness | M26: U-value | N26: Edge | O26: Insulation | P26: Column | R26: 1 | S26: 2 | T26: 3 | U26: 4 | V26: 5.3 | W26: 5.4 | X26: 5.5 | Y26: 5.6 | Z26: 6.3 | AA26: 6.4 | AB26: 6.5 | AC26: 6.6
B27: =HLOOKUP($B$1,'Room Inputs'!$D$3:$X$137,B72,0) -> 0 | C27: =HLOOKUP($B$1,'Room Inputs'!$D$3:$X$137,C72,0) -> 0 | D27: =HLOOKUP($B$1,'Room Inputs'!$D$3:$X$137,D72,0) -> 0 | E27: =HLOOKUP($B$1,'Room Inputs'!$D$3:$X$137,E72,0) -> 0 | F27: =B27*C27 -> 0 | G27: =HLOOKUP($B$1,'Room Inputs'!$D$3:$X$137,G72,0) -> 0 | H27: =HLOOKUP($B$1,'Room Inputs'!$D$3:$X$137,H72,0) -> 0 | I27: =IF(OR(G27=UvaluesFlr!$U$3,G27=UvaluesFlr!$U$4,ISERROR(M27)),"",M27) ->  | J27: =$K$8-IF(LEFT(G27,2)="So",10,'Site Inputs'!$C$8) ->  | K27: =IF(OR(G27=UvaluesFlr!$U$3,G27=UvaluesFlr!$U$4),IF(ISERROR(F27*J27*H27),"",F27*J27*H27),IF(ISERROR(F27*J27*I27),"",F27*J27*I27)) ->  | M27: =HLOOKUP(N27+MIN(0.6,IF(N27>4,O27/10,0)),$R$26:$AC$29,2,TRUE) ->  | N27: =VLOOKUP(D27,UvaluesFlr!$U$17:$V$22,2,FALSE) ->  | O27: =VLOOKUP(G27,UvaluesFlr!$U$3:$W$14,2,FALSE) ->  | P27: =VLOOKUP(G27,UvaluesFlr!$U$3:$W$14,3,FALSE) ->  | R27: =VLOOKUP(C27,UvaluesFlr!$C$53:$P$59,$P27,TRUE) ->  | S27: =VLOOKUP(B27,UvaluesFlr!$C$53:$P$59,$P27,TRUE) ->  | T27: =VLOOKUP(B27+C27,UvaluesFlr!$C$4:$P$12,$P27,TRUE) ->  | U27: =VLOOKUP(B27,UvaluesFlr!$C$16:$P$21,$P27,TRUE) ->  | V27: =VLOOKUP($C27,UvaluesFlr!$D$26:$P$29,$P27-1,TRUE) ->  | W27: =VLOOKUP($C27,UvaluesFlr!$D$30:$P$31,$P27-1,TRUE) ->  | X27: =VLOOKUP($C27,UvaluesFlr!$D$32:$P$33,$P27-1,TRUE) ->  | Y27: =VLOOKUP($C27,UvaluesFlr!$D$34:$P$35,$P27-1,TRUE) ->  | Z27: =VLOOKUP($C27,UvaluesFlr!$D$39:$P$42,$P27-1,TRUE) ->  | AA27: =VLOOKUP($C27,UvaluesFlr!$D$43:$P$45,$P27-1,TRUE) ->  | AB27: =VLOOKUP($C27,UvaluesFlr!$D$46:$P$48,$P27-1,TRUE) ->  | AC27: =VLOOKUP($C27,UvaluesFlr!$D$49:$P$50,$P27-1,TRUE) -> 
B28: =HLOOKUP($B$1,'Room Inputs'!$D$3:$X$137,B73,0) -> 0 | C28: =HLOOKUP($B$1,'Room Inputs'!$D$3:$X$137,C73,0) -> 0 | D28: =HLOOKUP($B$1,'Room Inputs'!$D$3:$X$137,D73,0) -> 0 | E28: =HLOOKUP($B$1,'Room Inputs'!$D$3:$X$137,E73,0) ->  | F28: =B28*C28 -> 0 | G28: =HLOOKUP($B$1,'Room Inputs'!$D$3:$X$137,G73,0) -> 0 | H28: =HLOOKUP($B$1,'Room Inputs'!$D$3:$X$137,H73,0) -> 0 | I28: =IF(OR(G28=UvaluesFlr!$U$3,G28=UvaluesFlr!$U$4,ISERROR(M28)),"",M28) ->  | J28: =$K$8-IF(LEFT(G28,2)="So",10,'Site Inputs'!$C$8) ->  | K28: =IF(OR(G28=UvaluesFlr!$U$3,G28=UvaluesFlr!$U$4),IF(ISERROR(F28*J28*H28),"",F28*J28*H28),IF(ISERROR(F28*J28*I28),"",F28*J28*I28)) ->  | M28: =HLOOKUP(N28+MIN(0.6,IF(N28>4,O28/10,0)),$R$26:$AC$29,3,TRUE) ->  | N28: =VLOOKUP(D28,UvaluesFlr!$U$17:$V$22,2,FALSE) ->  | O28: =VLOOKUP(G28,UvaluesFlr!$U$3:$W$14,2,FALSE) ->  | P28: =VLOOKUP(G28,UvaluesFlr!$U$3:$W$14,3,FALSE) ->  | R28: =VLOOKUP(C28,UvaluesFlr!$C$53:$P$59,$P28,TRUE) ->  | S28: =VLOOKUP(B28,UvaluesFlr!$C$53:$P$59,$P28,TRUE) ->  | T28: =VLOOKUP(B28+C28,UvaluesFlr!$C$4:$P$12,$P28,TRUE) ->  | U28: =VLOOKUP(B28,UvaluesFlr!$C$16:$P$21,$P28,TRUE) ->  | V28: =VLOOKUP($C28,UvaluesFlr!$D$26:$P$29,$P28-1,TRUE) ->  | W28: =VLOOKUP($C28,UvaluesFlr!$D$30:$P$31,$P28-1,TRUE) ->  | X28: =VLOOKUP($C28,UvaluesFlr!$D$32:$P$33,$P28-1,TRUE) ->  | Y28: =VLOOKUP($C28,UvaluesFlr!$D$34:$P$35,$P28-1,TRUE) ->  | Z28: =VLOOKUP($C28,UvaluesFlr!$D$39:$P$42,$P28-1,TRUE) ->  | AA28: =VLOOKUP($C28,UvaluesFlr!$D$43:$P$45,$P28-1,TRUE) ->  | AB28: =VLOOKUP($C28,UvaluesFlr!$D$46:$P$48,$P28-1,TRUE) ->  | AC28: =VLOOKUP($C28,UvaluesFlr!$D$49:$P$50,$P28-1,TRUE) -> 
B29: =HLOOKUP($B$1,'Room Inputs'!$D$3:$X$137,B74,0) -> 0 | C29: =HLOOKUP($B$1,'Room Inputs'!$D$3:$X$137,C74,0) -> 0 | D29: =HLOOKUP($B$1,'Room Inputs'!$D$3:$X$137,D74,0) -> 0 | E29: =HLOOKUP($B$1,'Room Inputs'!$D$3:$X$137,E74,0) ->  | F29: =B29*C29 -> 0 | G29: =HLOOKUP($B$1,'Room Inputs'!$D$3:$X$137,G74,0) -> 0 | H29: =HLOOKUP($B$1,'Room Inputs'!$D$3:$X$137,H74,0) -> 0 | I29: =IF(OR(G29=UvaluesFlr!$U$3,G29=UvaluesFlr!$U$4,ISERROR(M29)),"",M29) ->  | J29: =$K$8-IF(LEFT(G29,2)="So",10,'Site Inputs'!$C$8) ->  | K29: =IF(OR(G29=UvaluesFlr!$U$3,G29=UvaluesFlr!$U$4),IF(ISERROR(F29*J29*H29),"",F29*J29*H29),IF(ISERROR(F29*J29*I29),"",F29*J29*I29)) ->  | M29: =HLOOKUP(N29+MIN(0.6,IF(N29>4,O29/10,0)),$R$26:$AC$29,4,TRUE) ->  | N29: =VLOOKUP(D29,UvaluesFlr!$U$17:$V$22,2,FALSE) ->  | O29: =VLOOKUP(G29,UvaluesFlr!$U$3:$W$14,2,FALSE) ->  | P29: =VLOOKUP(G29,UvaluesFlr!$U$3:$W$14,3,FALSE) ->  | R29: =VLOOKUP(C29,UvaluesFlr!$C$53:$P$59,$P29,TRUE) ->  | S29: =VLOOKUP(B29,UvaluesFlr!$C$53:$P$59,$P29,TRUE) ->  | T29: =VLOOKUP(B29+C29,UvaluesFlr!$C$4:$P$12,$P29,TRUE) ->  | U29: =VLOOKUP(B29,UvaluesFlr!$C$16:$P$21,$P29,TRUE) ->  | V29: =VLOOKUP($C29,UvaluesFlr!$D$26:$P$29,$P29-1,TRUE) ->  | W29: =VLOOKUP($C29,UvaluesFlr!$D$30:$P$31,$P29-1,TRUE) ->  | X29: =VLOOKUP($C29,UvaluesFlr!$D$32:$P$33,$P29-1,TRUE) ->  | Y29: =VLOOKUP($C29,UvaluesFlr!$D$34:$P$35,$P29-1,TRUE) ->  | Z29: =VLOOKUP($C29,UvaluesFlr!$D$39:$P$42,$P29-1,TRUE) ->  | AA29: =VLOOKUP($C29,UvaluesFlr!$D$43:$P$45,$P29-1,TRUE) ->  | AB29: =VLOOKUP($C29,UvaluesFlr!$D$46:$P$48,$P29-1,TRUE) ->  | AC29: =VLOOKUP($C29,UvaluesFlr!$D$49:$P$50,$P29-1,TRUE) -> 
B32: Windows and doors
B33: Wall or roof with window or door | C33: Window or door height (m) | D33: Window or door width (m) | E33: Area (m²) | F33: Wall/roof U-value (W/m²K) | G33: Frame and glazing type | H33: Entered U- value (W/m²K), if required | I33: U-value | J33: Design temperature difference | K33: Heat loss (W)*
B34: =HLOOKUP($B$1,'Room Inputs'!$D$3:$X$137,B79,0) -> 0 | C34: =HLOOKUP($B$1,'Room Inputs'!$D$3:$X$137,C79,0) -> 0 | D34: =HLOOKUP($B$1,'Room Inputs'!$D$3:$X$137,D79,0) -> 0 | E34: =C34*D34 -> 0 | F34: =IF(B34<>"",IF(VLOOKUP(B34,B$14:I$25,6,FALSE)=UvalueWD!$C$6,VLOOKUP(B34,B$14:I$25,7,FALSE),VLOOKUP(B34,B$14:I$25,8,FALSE)),"") ->  | G34: =HLOOKUP($B$1,'Room Inputs'!$D$3:$X$137,G79,0) -> 0 | H34: =HLOOKUP($B$1,'Room Inputs'!$D$3:$X$137,H79,0) -> 0 | I34: =IF(OR(G34=UvalueWD!C$6,G34=""),"",VLOOKUP(G34,Windows,2,FALSE)) ->  | J34: =IF(ISERROR(VLOOKUP(B34,B$13:K$29,9,FALSE)),"",VLOOKUP(B34,B$13:K$29,9,FALSE)) ->  | K34: =IF(G34=UvaluesWRF!A$2,IF(ISERROR(F34*J34*(H34-F34)),"",F34*J34*(H34-F34)),IF(ISERROR(F34*J34*(F34-I34)),"",(I34-F34)*J34*I34)) -> 
B35: =HLOOKUP($B$1,'Room Inputs'!$D$3:$X$137,B80,0) -> 0 | C35: =HLOOKUP($B$1,'Room Inputs'!$D$3:$X$137,C80,0) -> 0 | D35: =HLOOKUP($B$1,'Room Inputs'!$D$3:$X$137,D80,0) -> 0 | E35: 0 | F35: =IF(B35<>"",IF(VLOOKUP(B35,B$14:I$25,6,FALSE)=UvalueWD!$C$6,VLOOKUP(B35,B$14:I$25,7,FALSE),VLOOKUP(B35,B$14:I$25,8,FALSE)),"") ->  | G35: =HLOOKUP($B$1,'Room Inputs'!$D$3:$X$137,G80,0) -> 0 | H35: =HLOOKUP($B$1,'Room Inputs'!$D$3:$X$137,H80,0) -> 0 | I35: =IF(OR(G35=UvalueWD!C$6,G35=""),"",VLOOKUP(G35,Windows,2,FALSE)) ->  | K35: =IF(G35=UvaluesWRF!A$2,IF(ISERROR(F35*J35*(H35-F35)),"",F35*J35*(H35-F35)),IF(ISERROR(F35*J35*(F35-I35)),"",(I35-F35)*J35*I35)) -> 
B36: =HLOOKUP($B$1,'Room Inputs'!$D$3:$X$137,B81,0) -> 0 | C36: =HLOOKUP($B$1,'Room Inputs'!$D$3:$X$137,C81,0) -> 0 | D36: =HLOOKUP($B$1,'Room Inputs'!$D$3:$X$137,D81,0) -> 0 | E36: 0 | F36: =IF(B36<>"",IF(VLOOKUP(B36,B$14:I$25,6,FALSE)=UvalueWD!$C$6,VLOOKUP(B36,B$14:I$25,7,FALSE),VLOOKUP(B36,B$14:I$25,8,FALSE)),"") ->  | G36: =HLOOKUP($B$1,'Room Inputs'!$D$3:$X$137,G81,0) -> 0 | H36: =HLOOKUP($B$1,'Room Inputs'!$D$3:$X$137,H81,0) -> 0 | I36: =IF(OR(G36=UvalueWD!C$6,G36=""),"",VLOOKUP(G36,Windows,2,FALSE)) ->  | K36: =IF(G36=UvaluesWRF!A$2,IF(ISERROR(F36*J36*(H36-F36)),"",F36*J36*(H36-F36)),IF(ISERROR(F36*J36*(F36-I36)),"",(I36-F36)*J36*I36)) -> 
B37: =HLOOKUP($B$1,'Room Inputs'!$D$3:$X$137,B82,0) -> 0 | C37: =HLOOKUP($B$1,'Room Inputs'!$D$3:$X$137,C82,0) -> 0 | D37: =HLOOKUP($B$1,'Room Inputs'!$D$3:$X$137,D82,0) -> 0 | E37: 0 | F37: =IF(B37<>"",IF(VLOOKUP(B37,B$14:I$25,6,FALSE)=UvalueWD!$C$6,VLOOKUP(B37,B$14:I$25,7,FALSE),VLOOKUP(B37,B$14:I$25,8,FALSE)),"") ->  | G37: =HLOOKUP($B$1,'Room Inputs'!$D$3:$X$137,G82,0) -> 0 | H37: =HLOOKUP($B$1,'Room Inputs'!$D$3:$X$137,H82,0) -> 0 | I37: =IF(OR(G37=UvalueWD!C$6,G37=""),"",VLOOKUP(G37,Windows,2,FALSE)) ->  | K37: =IF(G37=UvaluesWRF!A$2,IF(ISERROR(F37*J37*(H37-F37)),"",F37*J37*(H37-F37)),IF(ISERROR(F37*J37*(F37-I37)),"",(I37-F37)*J37*I37)) -> 
B38: =HLOOKUP($B$1,'Room Inputs'!$D$3:$X$137,B83,0) -> 0 | C38: =HLOOKUP($B$1,'Room Inputs'!$D$3:$X$137,C83,0) -> 0 | D38: =HLOOKUP($B$1,'Room Inputs'!$D$3:$X$137,D83,0) -> 0 | E38: 0 | F38: =IF(B38<>"",IF(VLOOKUP(B38,B$14:I$25,6,FALSE)=UvalueWD!$C$6,VLOOKUP(B38,B$14:I$25,7,FALSE),VLOOKUP(B38,B$14:I$25,8,FALSE)),"") ->  | G38: =HLOOKUP($B$1,'Room Inputs'!$D$3:$X$137,G83,0) -> 0 | H38: =HLOOKUP($B$1,'Room Inputs'!$D$3:$X$137,H83,0) -> 0 | I38: =IF(OR(G38=UvalueWD!C$6,G38=""),"",VLOOKUP(G38,Windows,2,FALSE)) ->  | K38: =IF(G38=UvaluesWRF!A$2,IF(ISERROR(F38*J38*(H38-F38)),"",F38*J38*(H38-F38)),IF(ISERROR(F38*J38*(F38-I38)),"",(I38-F38)*J38*I38)) -> 
B39: =HLOOKUP($B$1,'Room Inputs'!$D$3:$X$137,B84,0) -> 0 | C39: =HLOOKUP($B$1,'Room Inputs'!$D$3:$X$137,C84,0) -> 0 | D39: =HLOOKUP($B$1,'Room Inputs'!$D$3:$X$137,D84,0) -> 0 | E39: 0 | F39: =IF(B39<>"",IF(VLOOKUP(B39,B$14:I$25,6,FALSE)=UvalueWD!$C$6,VLOOKUP(B39,B$14:I$25,7,FALSE),VLOOKUP(B39,B$14:I$25,8,FALSE)),"") ->  | G39: =HLOOKUP($B$1,'Room Inputs'!$D$3:$X$137,G84,0) -> 0 | H39: =HLOOKUP($B$1,'Room Inputs'!$D$3:$X$137,H84,0) -> 0 | I39: =IF(OR(G39=UvalueWD!C$6,G39=""),"",VLOOKUP(G39,Windows,2,FALSE)) ->  | K39: =IF(G39=UvaluesWRF!A$2,IF(ISERROR(F39*J39*(H39-F39)),"",F39*J39*(H39-F39)),IF(ISERROR(F39*J39*(F39-I39)),"",(I39-F39)*J39*I39)) -> 
B41: * this is net heat loss (i.e. the heat loss of the window minus that of a wall of the same area) and so can be negative. This is done so that the area of the window or door does not have to be subtracted from the wall area.
I42: Room heat loss (W) | K42: =SUM(K10:K39) -> 0
B46: Row number lookup map
B48: Room name | C48: 2 | E48: Emitter type | F48: 3 | G48: For convectors consult the manufacturer's data and enter the temperature factor (FTEMP) for the appropriate fan speed | H48: 4 | I48: For radiators enter the n-coefficient (exponent) from manufacturer's data. If unknown 1.3 may be used | K48: 5
B50: Enter floor type and construction | C50: 6 | E50: Enter floor type and construction | F50: 7 | G50: For UFH enter Tog value (See Table 14) | H50: 8 | I50: For UFH enter active or exposed area of the heated floor | K50: 9
B52: Enter Room type below | E52: Enter Open fire/chimney details below
B53: 10 | E53: 11
B54: Room Dimensions
B55: Length (m) | D55: Width (m) | F55: Height (m)
B56: 13 | D56: 14 | F56: 15
B57: Walls, floors not ground floors and ceiling
B58: Name of wall, floor, ceiling | C58: Space on other side | D58: Height or length (m) | E58: Width (m) | G58: Construction | H58: Entered U- value (W/m²K), if required
B59: 16 | C59: 17 | D59: 18 | E59: 19 | G59: 20 | H59: 21
B60: 22 | C60: 23 | D60: 24 | E60: 25 | G60: 26 | H60: 27
B61: 28 | C61: 29 | D61: 30 | E61: 31 | G61: 32 | H61: 33
B62: 35 | C62: 36 | D62: 37 | E62: 38 | G62: 39 | H62: 40
B63: 41 | C63: 42 | D63: 43 | E63: 44 | G63: 45 | H63: 46
B64: 47 | C64: 48 | D64: 49 | E64: 50 | G64: 51 | H64: 52
B65: 53 | C65: 54 | D65: 55 | E65: 56 | G65: 57 | H65: 58
B66: 59 | C66: 60 | D66: 61 | E66: 62 | G66: 63 | H66: 64
B67: 65 | C67: 66 | D67: 67 | E67: 68 | G67: 69 | H67: 70
B68: 71 | C68: 72 | D68: 73 | E68: 74 | G68: 75 | H68: 76
B69: 77 | C69: 78 | D69: 79 | E69: 80 | G69: 81 | H69: 82
B70: 83 | C70: 84 | D70: 85 | E70: 86 | G70: 87 | H70: 88
B71: Ground floors Short length (m) | C71: long length (m) | D71: Edges exposed | G71: Type and Insulation thickness
B72: 89 | C72: 90 | D72: 91 | E72: 92 | G72: 92 | H72: 93
B73: 95 | C73: 96 | D73: 97 | G73: 98 | H73: 99
B74: 100 | C74: 101 | D74: 102 | G74: 103 | H74: 104
B77: Windows and doors
B78: Wall or roof with window or door | C78: Window or door height (m) | D78: Window or door width (m) | E78: Area (m²) | F78: Wall/roof U-value (W/m²K) | G78: Frame and glazing type | H78: Entered U- value (W/m²K), if required
B79: 105 | C79: 106 | D79: 107 | G79: 108 | H79: 109
B80: 111 | C80: 112 | D80: 113 | G80: 114 | H80: 115
B81: 116 | C81: 117 | D81: 118 | G81: 119 | H81: 120
B82: 121 | C82: 122 | D82: 123 | G82: 124 | H82: 125
B83: 126 | C83: 127 | D83: 128 | G83: 129 | H83: 130
B84: 131 | C84: 132 | D84: 133 | G84: 134 | H84: 135

Sheet 7 (hidden)
B1: ='Room Inputs'!J3 -> Room7
B3: Room name | C3: =HLOOKUP($B$1,'Room Inputs'!$D$3:$X$137,C48,0) -> 0 | E3: Emitter type | F3: =HLOOKUP($B$1,'Room Inputs'!$D$3:$X$137,F48,0) -> 0 | G3: For convectors consult the manufacturer's data and enter the temperature factor (FTEMP) for the appropriate fan speed | H3: =HLOOKUP($B$1,'Room Inputs'!$D$3:$X$137,H48,0) -> 0.85 | I3: For radiators enter the n-coefficient (exponent) from manufacturer's data. If unknown 1.3 may be used | K3: =HLOOKUP($B$1,'Room Inputs'!$D$3:$X$137,K48,0) -> 1.3
B5: Enter floor type and construction | C5: =HLOOKUP($B$1,'Room Inputs'!$D$3:$X$137,C50,0) -> 0 | E5: Enter floor type and construction | F5: =HLOOKUP($B$1,'Room Inputs'!$D$3:$X$137,F50,0) -> 0 | G5: For UFH enter Tog value (See Table 14) | H5: =HLOOKUP($B$1,'Room Inputs'!$D$3:$X$137,H50,0) -> 0.25 | I5: For UFH enter active or exposed area of the heated floor | K5: =HLOOKUP($B$1,'Room Inputs'!$D$3:$X$137,K50,0) -> 0
B7: Enter Room type below | E7: Enter Open fire/chimney details below | H7: Design room ventilation rate (air changes per hour) | K7: Design room temperature °C
B8: =HLOOKUP($B$1,'Room Inputs'!$D$3:$X$137,B53,0) -> 0 | E8: =HLOOKUP($B$1,'Room Inputs'!$D$3:$X$137,E53,0) -> 0 | H8: =IF(E8=VTables!B20,VLOOKUP(B8,DRVT,3,FALSE),MAX(VLOOKUP(B8,DRVT,3,FALSE),VLOOKUP(E8,ARVR,2,FALSE))) ->  | K8: =VLOOKUP(B8,DRVT,2,FALSE) -> 
B9: Room Dimensions
B10: Length (m) | D10: Width (m) | F10: Height (m) | G10: Room volume (m³) | J10: Design temperature difference | K10: Heat loss (W)
B11: =HLOOKUP($B$1,'Room Inputs'!$D$3:$X$137,B56,0) -> 0 | D11: =HLOOKUP($B$1,'Room Inputs'!$D$3:$X$137,D56,0) -> 0 | F11: =HLOOKUP($B$1,'Room Inputs'!$D$3:$X$137,F56,0) -> 0 | G11: =B11*D11*F11 -> 0 | J11: =K8-'Site Inputs'!C8 ->  | K11: =IF(G11>0,(ROUND(0.33*G11*H8*J11,2)),"") -> 
B12: Walls, floors not ground floors and ceiling
B13: Name of wall, floor, ceiling | C13: Space on other side | D13: Height or length (m) | E13: Width (m) | F13: Area (m²) | G13: Construction | H13: Entered U- value (W/m²K), if required | I13: U-value (W/m²K) | J13: Design temperature difference | K13: Heat loss (W) | M13: `
B14: =HLOOKUP($B$1,'Room Inputs'!$D$3:$X$137,B59,0) -> 0 | C14: =HLOOKUP($B$1,'Room Inputs'!$D$3:$X$137,C59,0) -> 0 | D14: =HLOOKUP($B$1,'Room Inputs'!$D$3:$X$137,D59,0) -> 0 | E14: =HLOOKUP($B$1,'Room Inputs'!$D$3:$X$137,E59,0) -> 0 | F14: =D14*E14 -> 0 | G14: =HLOOKUP($B$1,'Room Inputs'!$D$3:$X$137,G59,0) -> 0 | H14: =HLOOKUP($B$1,'Room Inputs'!$D$3:$X$137,H59,0) -> 0 | I14: =IF(OR(G14=UvaluesWRF!A$2,ISERROR(VLOOKUP(G14,UvaluesWRF!A$3:B$110,2,FALSE))),"",VLOOKUP(G14,UvaluesWRF!A$3:B$110,2,FALSE)) ->  | J14: =IF(C14="","",$K$8-VLOOKUP(C14,DRVT,2,FALSE)) ->  | K14: =IF(G14=UvaluesWRF!A$2,IF(ISERROR(F14*J14*H14),"",F14*J14*H14),IF(ISERROR(F14*J14*I14),"",F14*J14*I14)) -> 
B15: =HLOOKUP($B$1,'Room Inputs'!$D$3:$X$137,B60,0) -> 0 | C15: =HLOOKUP($B$1,'Room Inputs'!$D$3:$X$137,C60,0) -> 0 | D15: =HLOOKUP($B$1,'Room Inputs'!$D$3:$X$137,D60,0) -> 0 | E15: =HLOOKUP($B$1,'Room Inputs'!$D$3:$X$137,E60,0) -> 0 | F15: =D15*E15 -> 0 | G15: =HLOOKUP($B$1,'Room Inputs'!$D$3:$X$137,G60,0) -> 0 | H15: =HLOOKUP($B$1,'Room Inputs'!$D$3:$X$137,H60,0) -> 0 | I15: =IF(OR(G15=UvaluesWRF!A$2,ISERROR(VLOOKUP(G15,UvaluesWRF!A$3:B$110,2,FALSE))),"",VLOOKUP(G15,UvaluesWRF!A$3:B$110,2,FALSE)) ->  | K15: =IF(G15=UvaluesWRF!A$2,IF(ISERROR(F15*J15*H15),"",F15*J15*H15),IF(ISERROR(F15*J15*I15),"",F15*J15*I15)) -> 
B16: =HLOOKUP($B$1,'Room Inputs'!$D$3:$X$137,B61,0) -> 0 | C16: =HLOOKUP($B$1,'Room Inputs'!$D$3:$X$137,C61,0) -> 0 | D16: =HLOOKUP($B$1,'Room Inputs'!$D$3:$X$137,D61,0) -> 0 | E16: =HLOOKUP($B$1,'Room Inputs'!$D$3:$X$137,E61,0) -> 0 | F16: 0 | G16: =HLOOKUP($B$1,'Room Inputs'!$D$3:$X$137,G61,0) -> 0 | H16: =HLOOKUP($B$1,'Room Inputs'!$D$3:$X$137,H61,0) -> 0 | I16: =IF(OR(G16=UvaluesWRF!A$2,ISERROR(VLOOKUP(G16,UvaluesWRF!A$3:B$110,2,FALSE))),"",VLOOKUP(G16,UvaluesWRF!A$3:B$110,2,FALSE)) ->  | K16: =IF(G16=UvaluesWRF!A$2,IF(ISERROR(F16*J16*H16),"",F16*J16*H16),IF(ISERROR(F16*J16*I16),"",F16*J16*I16)) -> 
B17: =HLOOKUP($B$1,'Room Inputs'!$D$3:$X$137,B62,0) -> 0 | C17: =HLOOKUP($B$1,'Room Inputs'!$D$3:$X$137,C62,0) -> 0 | D17: =HLOOKUP($B$1,'Room Inputs'!$D$3:$X$137,D62,0) -> 0 | E17: =HLOOKUP($B$1,'Room Inputs'!$D$3:$X$137,E62,0) -> 0 | F17: 0 | G17: =HLOOKUP($B$1,'Room Inputs'!$D$3:$X$137,G62,0) -> 0 | H17: =HLOOKUP($B$1,'Room Inputs'!$D$3:$X$137,H62,0) -> 0 | I17: =IF(OR(G17=UvaluesWRF!A$2,ISERROR(VLOOKUP(G17,UvaluesWRF!A$3:B$110,2,FALSE))),"",VLOOKUP(G17,UvaluesWRF!A$3:B$110,2,FALSE)) ->  | K17: =IF(G17=UvaluesWRF!A$2,IF(ISERROR(F17*J17*H17),"",F17*J17*H17),IF(ISERROR(F17*J17*I17),"",F17*J17*I17)) -> 
B18: =HLOOKUP($B$1,'Room Inputs'!$D$3:$X$137,B63,0) -> 0 | C18: =HLOOKUP($B$1,'Room Inputs'!$D$3:$X$137,C63,0) -> 0 | D18: =HLOOKUP($B$1,'Room Inputs'!$D$3:$X$137,D63,0) -> 0 | E18: =HLOOKUP($B$1,'Room Inputs'!$D$3:$X$137,E63,0) -> 0 | F18: 0 | G18: =HLOOKUP($B$1,'Room Inputs'!$D$3:$X$137,G63,0) -> 0 | H18: =HLOOKUP($B$1,'Room Inputs'!$D$3:$X$137,H63,0) -> 0 | I18: =IF(OR(G18=UvaluesWRF!A$2,ISERROR(VLOOKUP(G18,UvaluesWRF!A$3:B$110,2,FALSE))),"",VLOOKUP(G18,UvaluesWRF!A$3:B$110,2,FALSE)) ->  | K18: =IF(G18=UvaluesWRF!A$2,IF(ISERROR(F18*J18*H18),"",F18*J18*H18),IF(ISERROR(F18*J18*I18),"",F18*J18*I18)) -> 
B19: =HLOOKUP($B$1,'Room Inputs'!$D$3:$X$137,B64,0) -> 0 | C19: =HLOOKUP($B$1,'Room Inputs'!$D$3:$X$137,C64,0) -> 0 | D19: =HLOOKUP($B$1,'Room Inputs'!$D$3:$X$137,D64,0) -> 0 | E19: =HLOOKUP($B$1,'Room Inputs'!$D$3:$X$137,E64,0) -> 0 | F19: 0 | G19: =HLOOKUP($B$1,'Room Inputs'!$D$3:$X$137,G64,0) -> 0 | H19: =HLOOKUP($B$1,'Room Inputs'!$D$3:$X$137,H64,0) -> 0 | I19: =IF(OR(G19=UvaluesWRF!A$2,ISERROR(VLOOKUP(G19,UvaluesWRF!A$3:B$110,2,FALSE))),"",VLOOKUP(G19,UvaluesWRF!A$3:B$110,2,FALSE)) ->  | K19: =IF(G19=UvaluesWRF!A$2,IF(ISERROR(F19*J19*H19),"",F19*J19*H19),IF(ISERROR(F19*J19*I19),"",F19*J19*I19)) -> 
B20: =HLOOKUP($B$1,'Room Inputs'!$D$3:$X$137,B65,0) -> 0 | C20: =HLOOKUP($B$1,'Room Inputs'!$D$3:$X$137,C65,0) -> 0 | D20: =HLOOKUP($B$1,'Room Inputs'!$D$3:$X$137,D65,0) -> 0 | E20: =HLOOKUP($B$1,'Room Inputs'!$D$3:$X$137,E65,0) -> 0 | F20: 0 | G20: =HLOOKUP($B$1,'Room Inputs'!$D$3:$X$137,G65,0) -> 0 | H20: =HLOOKUP($B$1,'Room Inputs'!$D$3:$X$137,H65,0) -> 0 | I20: =IF(OR(G20=UvaluesWRF!A$2,ISERROR(VLOOKUP(G20,UvaluesWRF!A$3:B$110,2,FALSE))),"",VLOOKUP(G20,UvaluesWRF!A$3:B$110,2,FALSE)) ->  | K20: =IF(G20=UvaluesWRF!A$2,IF(ISERROR(F20*J20*H20),"",F20*J20*H20),IF(ISERROR(F20*J20*I20),"",F20*J20*I20)) -> 
B21: =HLOOKUP($B$1,'Room Inputs'!$D$3:$X$137,B66,0) -> 0 | C21: =HLOOKUP($B$1,'Room Inputs'!$D$3:$X$137,C66,0) -> 0 | D21: =HLOOKUP($B$1,'Room Inputs'!$D$3:$X$137,D66,0) -> 0 | E21: =HLOOKUP($B$1,'Room Inputs'!$D$3:$X$137,E66,0) -> 0 | F21: 0 | G21: =HLOOKUP($B$1,'Room Inputs'!$D$3:$X$137,G66,0) -> 0 | H21: =HLOOKUP($B$1,'Room Inputs'!$D$3:$X$137,H66,0) -> 0 | I21: =IF(OR(G21=UvaluesWRF!A$2,ISERROR(VLOOKUP(G21,UvaluesWRF!A$3:B$110,2,FALSE))),"",VLOOKUP(G21,UvaluesWRF!A$3:B$110,2,FALSE)) ->  | K21: =IF(G21=UvaluesWRF!A$2,IF(ISERROR(F21*J21*H21),"",F21*J21*H21),IF(ISERROR(F21*J21*I21),"",F21*J21*I21)) -> 
B22: =HLOOKUP($B$1,'Room Inputs'!$D$3:$X$137,B67,0) -> 0 | C22: =HLOOKUP($B$1,'Room Inputs'!$D$3:$X$137,C67,0) -> 0 | D22: =HLOOKUP($B$1,'Room Inputs'!$D$3:$X$137,D67,0) -> 0 | E22: =HLOOKUP($B$1,'Room Inputs'!$D$3:$X$137,E67,0) -> 0 | F22: 0 | G22: =HLOOKUP($B$1,'Room Inputs'!$D$3:$X$137,G67,0) -> 0 | H22: =HLOOKUP($B$1,'Room Inputs'!$D$3:$X$137,H67,0) -> 0 | I22: =IF(OR(G22=UvaluesWRF!A$2,ISERROR(VLOOKUP(G22,UvaluesWRF!A$3:B$110,2,FALSE))),"",VLOOKUP(G22,UvaluesWRF!A$3:B$110,2,FALSE)) ->  | K22: =IF(G22=UvaluesWRF!A$2,IF(ISERROR(F22*J22*H22),"",F22*J22*H22),IF(ISERROR(F22*J22*I22),"",F22*J22*I22)) -> 
B23: =HLOOKUP($B$1,'Room Inputs'!$D$3:$X$137,B68,0) -> 0 | C23: =HLOOKUP($B$1,'Room Inputs'!$D$3:$X$137,C68,0) -> 0 | D23: =HLOOKUP($B$1,'Room Inputs'!$D$3:$X$137,D68,0) -> 0 | E23: =HLOOKUP($B$1,'Room Inputs'!$D$3:$X$137,E68,0) -> 0 | F23: 0 | G23: =HLOOKUP($B$1,'Room Inputs'!$D$3:$X$137,G68,0) -> 0 | H23: =HLOOKUP($B$1,'Room Inputs'!$D$3:$X$137,H68,0) -> 0 | I23: =IF(OR(G23=UvaluesWRF!A$2,ISERROR(VLOOKUP(G23,UvaluesWRF!A$3:B$110,2,FALSE))),"",VLOOKUP(G23,UvaluesWRF!A$3:B$110,2,FALSE)) ->  | K23: =IF(G23=UvaluesWRF!A$2,IF(ISERROR(F23*J23*H23),"",F23*J23*H23),IF(ISERROR(F23*J23*I23),"",F23*J23*I23)) -> 
B24: =HLOOKUP($B$1,'Room Inputs'!$D$3:$X$137,B69,0) -> 0 | C24: =HLOOKUP($B$1,'Room Inputs'!$D$3:$X$137,C69,0) -> 0 | D24: =HLOOKUP($B$1,'Room Inputs'!$D$3:$X$137,D69,0) -> 0 | E24: =HLOOKUP($B$1,'Room Inputs'!$D$3:$X$137,E69,0) -> 0 | F24: 0 | G24: =HLOOKUP($B$1,'Room Inputs'!$D$3:$X$137,G69,0) -> 0 | H24: =HLOOKUP($B$1,'Room Inputs'!$D$3:$X$137,H69,0) -> 0 | I24: =IF(OR(G24=UvaluesWRF!A$2,ISERROR(VLOOKUP(G24,UvaluesWRF!A$3:B$110,2,FALSE))),"",VLOOKUP(G24,UvaluesWRF!A$3:B$110,2,FALSE)) ->  | K24: =IF(G24=UvaluesWRF!A$2,IF(ISERROR(F24*J24*H24),"",F24*J24*H24),IF(ISERROR(F24*J24*I24),"",F24*J24*I24)) -> 
B25: =HLOOKUP($B$1,'Room Inputs'!$D$3:$X$137,B70,0) -> 0 | C25: =HLOOKUP($B$1,'Room Inputs'!$D$3:$X$137,C70,0) -> 0 | D25: =HLOOKUP($B$1,'Room Inputs'!$D$3:$X$137,D70,0) -> 0 | E25: =HLOOKUP($B$1,'Room Inputs'!$D$3:$X$137,E70,0) -> 0 | F25: 0 | G25: =HLOOKUP($B$1,'Room Inputs'!$D$3:$X$137,G70,0) -> 0 | H25: =HLOOKUP($B$1,'Room Inputs'!$D$3:$X$137,H70,0) -> 0 | I25: =IF(OR(G25=UvaluesWRF!A$2,ISERROR(VLOOKUP(G25,UvaluesWRF!A$3:B$110,2,FALSE))),"",VLOOKUP(G25,UvaluesWRF!A$3:B$110,2,FALSE)) ->  | K25: =IF(G25=UvaluesWRF!A$2,IF(ISERROR(F25*J25*H25),"",F25*J25*H25),IF(ISERROR(F25*J25*I25),"",F25*J25*I25)) -> 
B26: Ground floors Short length (m) | C26: long length (m) | D26: Edges exposed | G26: Type and Insulation thickness | M26: U-value | N26: Edge | O26: Insulation | P26: Column | R26: 1 | S26: 2 | T26: 3 | U26: 4 | V26: 5.3 | W26: 5.4 | X26: 5.5 | Y26: 5.6 | Z26: 6.3 | AA26: 6.4 | AB26: 6.5 | AC26: 6.6
B27: =HLOOKUP($B$1,'Room Inputs'!$D$3:$X$137,B72,0) -> 0 | C27: =HLOOKUP($B$1,'Room Inputs'!$D$3:$X$137,C72,0) -> 0 | D27: =HLOOKUP($B$1,'Room Inputs'!$D$3:$X$137,D72,0) -> 0 | E27: =HLOOKUP($B$1,'Room Inputs'!$D$3:$X$137,E72,0) -> 0 | F27: =B27*C27 -> 0 | G27: =HLOOKUP($B$1,'Room Inputs'!$D$3:$X$137,G72,0) -> 0 | H27: =HLOOKUP($B$1,'Room Inputs'!$D$3:$X$137,H72,0) -> 0 | I27: =IF(OR(G27=UvaluesFlr!$U$3,G27=UvaluesFlr!$U$4,ISERROR(M27)),"",M27) ->  | J27: =$K$8-IF(LEFT(G27,2)="So",10,'Site Inputs'!$C$8) ->  | K27: =IF(OR(G27=UvaluesFlr!$U$3,G27=UvaluesFlr!$U$4),IF(ISERROR(F27*J27*H27),"",F27*J27*H27),IF(ISERROR(F27*J27*I27),"",F27*J27*I27)) ->  | M27: =HLOOKUP(N27+MIN(0.6,IF(N27>4,O27/10,0)),$R$26:$AC$29,2,TRUE) ->  | N27: =VLOOKUP(D27,UvaluesFlr!$U$17:$V$22,2,FALSE) ->  | O27: =VLOOKUP(G27,UvaluesFlr!$U$3:$W$14,2,FALSE) ->  | P27: =VLOOKUP(G27,UvaluesFlr!$U$3:$W$14,3,FALSE) ->  | R27: =VLOOKUP(C27,UvaluesFlr!$C$53:$P$59,$P27,TRUE) ->  | S27: =VLOOKUP(B27,UvaluesFlr!$C$53:$P$59,$P27,TRUE) ->  | T27: =VLOOKUP(B27+C27,UvaluesFlr!$C$4:$P$12,$P27,TRUE) ->  | U27: =VLOOKUP(B27,UvaluesFlr!$C$16:$P$21,$P27,TRUE) ->  | V27: =VLOOKUP($C27,UvaluesFlr!$D$26:$P$29,$P27-1,TRUE) ->  | W27: =VLOOKUP($C27,UvaluesFlr!$D$30:$P$31,$P27-1,TRUE) ->  | X27: =VLOOKUP($C27,UvaluesFlr!$D$32:$P$33,$P27-1,TRUE) ->  | Y27: =VLOOKUP($C27,UvaluesFlr!$D$34:$P$35,$P27-1,TRUE) ->  | Z27: =VLOOKUP($C27,UvaluesFlr!$D$39:$P$42,$P27-1,TRUE) ->  | AA27: =VLOOKUP($C27,UvaluesFlr!$D$43:$P$45,$P27-1,TRUE) ->  | AB27: =VLOOKUP($C27,UvaluesFlr!$D$46:$P$48,$P27-1,TRUE) ->  | AC27: =VLOOKUP($C27,UvaluesFlr!$D$49:$P$50,$P27-1,TRUE) -> 
B28: =HLOOKUP($B$1,'Room Inputs'!$D$3:$X$137,B73,0) -> 0 | C28: =HLOOKUP($B$1,'Room Inputs'!$D$3:$X$137,C73,0) -> 0 | D28: =HLOOKUP($B$1,'Room Inputs'!$D$3:$X$137,D73,0) -> 0 | E28: =HLOOKUP($B$1,'Room Inputs'!$D$3:$X$137,E73,0) ->  | F28: =B28*C28 -> 0 | G28: =HLOOKUP($B$1,'Room Inputs'!$D$3:$X$137,G73,0) -> 0 | H28: =HLOOKUP($B$1,'Room Inputs'!$D$3:$X$137,H73,0) -> 0 | I28: =IF(OR(G28=UvaluesFlr!$U$3,G28=UvaluesFlr!$U$4,ISERROR(M28)),"",M28) ->  | J28: =$K$8-IF(LEFT(G28,2)="So",10,'Site Inputs'!$C$8) ->  | K28: =IF(OR(G28=UvaluesFlr!$U$3,G28=UvaluesFlr!$U$4),IF(ISERROR(F28*J28*H28),"",F28*J28*H28),IF(ISERROR(F28*J28*I28),"",F28*J28*I28)) ->  | M28: =HLOOKUP(N28+MIN(0.6,IF(N28>4,O28/10,0)),$R$26:$AC$29,3,TRUE) ->  | N28: =VLOOKUP(D28,UvaluesFlr!$U$17:$V$22,2,FALSE) ->  | O28: =VLOOKUP(G28,UvaluesFlr!$U$3:$W$14,2,FALSE) ->  | P28: =VLOOKUP(G28,UvaluesFlr!$U$3:$W$14,3,FALSE) ->  | R28: =VLOOKUP(C28,UvaluesFlr!$C$53:$P$59,$P28,TRUE) ->  | S28: =VLOOKUP(B28,UvaluesFlr!$C$53:$P$59,$P28,TRUE) ->  | T28: =VLOOKUP(B28+C28,UvaluesFlr!$C$4:$P$12,$P28,TRUE) ->  | U28: =VLOOKUP(B28,UvaluesFlr!$C$16:$P$21,$P28,TRUE) ->  | V28: =VLOOKUP($C28,UvaluesFlr!$D$26:$P$29,$P28-1,TRUE) ->  | W28: =VLOOKUP($C28,UvaluesFlr!$D$30:$P$31,$P28-1,TRUE) ->  | X28: =VLOOKUP($C28,UvaluesFlr!$D$32:$P$33,$P28-1,TRUE) ->  | Y28: =VLOOKUP($C28,UvaluesFlr!$D$34:$P$35,$P28-1,TRUE) ->  | Z28: =VLOOKUP($C28,UvaluesFlr!$D$39:$P$42,$P28-1,TRUE) ->  | AA28: =VLOOKUP($C28,UvaluesFlr!$D$43:$P$45,$P28-1,TRUE) ->  | AB28: =VLOOKUP($C28,UvaluesFlr!$D$46:$P$48,$P28-1,TRUE) ->  | AC28: =VLOOKUP($C28,UvaluesFlr!$D$49:$P$50,$P28-1,TRUE) -> 
B29: =HLOOKUP($B$1,'Room Inputs'!$D$3:$X$137,B74,0) -> 0 | C29: =HLOOKUP($B$1,'Room Inputs'!$D$3:$X$137,C74,0) -> 0 | D29: =HLOOKUP($B$1,'Room Inputs'!$D$3:$X$137,D74,0) -> 0 | E29: =HLOOKUP($B$1,'Room Inputs'!$D$3:$X$137,E74,0) ->  | F29: =B29*C29 -> 0 | G29: =HLOOKUP($B$1,'Room Inputs'!$D$3:$X$137,G74,0) -> 0 | H29: =HLOOKUP($B$1,'Room Inputs'!$D$3:$X$137,H74,0) -> 0 | I29: =IF(OR(G29=UvaluesFlr!$U$3,G29=UvaluesFlr!$U$4,ISERROR(M29)),"",M29) ->  | J29: =$K$8-IF(LEFT(G29,2)="So",10,'Site Inputs'!$C$8) ->  | K29: =IF(OR(G29=UvaluesFlr!$U$3,G29=UvaluesFlr!$U$4),IF(ISERROR(F29*J29*H29),"",F29*J29*H29),IF(ISERROR(F29*J29*I29),"",F29*J29*I29)) ->  | M29: =HLOOKUP(N29+MIN(0.6,IF(N29>4,O29/10,0)),$R$26:$AC$29,4,TRUE) ->  | N29: =VLOOKUP(D29,UvaluesFlr!$U$17:$V$22,2,FALSE) ->  | O29: =VLOOKUP(G29,UvaluesFlr!$U$3:$W$14,2,FALSE) ->  | P29: =VLOOKUP(G29,UvaluesFlr!$U$3:$W$14,3,FALSE) ->  | R29: =VLOOKUP(C29,UvaluesFlr!$C$53:$P$59,$P29,TRUE) ->  | S29: =VLOOKUP(B29,UvaluesFlr!$C$53:$P$59,$P29,TRUE) ->  | T29: =VLOOKUP(B29+C29,UvaluesFlr!$C$4:$P$12,$P29,TRUE) ->  | U29: =VLOOKUP(B29,UvaluesFlr!$C$16:$P$21,$P29,TRUE) ->  | V29: =VLOOKUP($C29,UvaluesFlr!$D$26:$P$29,$P29-1,TRUE) ->  | W29: =VLOOKUP($C29,UvaluesFlr!$D$30:$P$31,$P29-1,TRUE) ->  | X29: =VLOOKUP($C29,UvaluesFlr!$D$32:$P$33,$P29-1,TRUE) ->  | Y29: =VLOOKUP($C29,UvaluesFlr!$D$34:$P$35,$P29-1,TRUE) ->  | Z29: =VLOOKUP($C29,UvaluesFlr!$D$39:$P$42,$P29-1,TRUE) ->  | AA29: =VLOOKUP($C29,UvaluesFlr!$D$43:$P$45,$P29-1,TRUE) ->  | AB29: =VLOOKUP($C29,UvaluesFlr!$D$46:$P$48,$P29-1,TRUE) ->  | AC29: =VLOOKUP($C29,UvaluesFlr!$D$49:$P$50,$P29-1,TRUE) -> 
B32: Windows and doors
B33: Wall or roof with window or door | C33: Window or door height (m) | D33: Window or door width (m) | E33: Area (m²) | F33: Wall/roof U-value (W/m²K) | G33: Frame and glazing type | H33: Entered U- value (W/m²K), if required | I33: U-value | J33: Design temperature difference | K33: Heat loss (W)*
B34: =HLOOKUP($B$1,'Room Inputs'!$D$3:$X$137,B79,0) -> 0 | C34: =HLOOKUP($B$1,'Room Inputs'!$D$3:$X$137,C79,0) -> 0 | D34: =HLOOKUP($B$1,'Room Inputs'!$D$3:$X$137,D79,0) -> 0 | E34: =C34*D34 -> 0 | F34: =IF(B34<>"",IF(VLOOKUP(B34,B$14:I$25,6,FALSE)=UvalueWD!$C$6,VLOOKUP(B34,B$14:I$25,7,FALSE),VLOOKUP(B34,B$14:I$25,8,FALSE)),"") ->  | G34: =HLOOKUP($B$1,'Room Inputs'!$D$3:$X$137,G79,0) -> 0 | H34: =HLOOKUP($B$1,'Room Inputs'!$D$3:$X$137,H79,0) -> 0 | I34: =IF(OR(G34=UvalueWD!C$6,G34=""),"",VLOOKUP(G34,Windows,2,FALSE)) ->  | J34: =IF(ISERROR(VLOOKUP(B34,B$13:K$29,9,FALSE)),"",VLOOKUP(B34,B$13:K$29,9,FALSE)) ->  | K34: =IF(G34=UvaluesWRF!A$2,IF(ISERROR(F34*J34*(H34-F34)),"",F34*J34*(H34-F34)),IF(ISERROR(F34*J34*(F34-I34)),"",(I34-F34)*J34*I34)) -> 
B35: =HLOOKUP($B$1,'Room Inputs'!$D$3:$X$137,B80,0) -> 0 | C35: =HLOOKUP($B$1,'Room Inputs'!$D$3:$X$137,C80,0) -> 0 | D35: =HLOOKUP($B$1,'Room Inputs'!$D$3:$X$137,D80,0) -> 0 | E35: 0 | F35: =IF(B35<>"",IF(VLOOKUP(B35,B$14:I$25,6,FALSE)=UvalueWD!$C$6,VLOOKUP(B35,B$14:I$25,7,FALSE),VLOOKUP(B35,B$14:I$25,8,FALSE)),"") ->  | G35: =HLOOKUP($B$1,'Room Inputs'!$D$3:$X$137,G80,0) -> 0 | H35: =HLOOKUP($B$1,'Room Inputs'!$D$3:$X$137,H80,0) -> 0 | I35: =IF(OR(G35=UvalueWD!C$6,G35=""),"",VLOOKUP(G35,Windows,2,FALSE)) ->  | K35: =IF(G35=UvaluesWRF!A$2,IF(ISERROR(F35*J35*(H35-F35)),"",F35*J35*(H35-F35)),IF(ISERROR(F35*J35*(F35-I35)),"",(I35-F35)*J35*I35)) -> 
B36: =HLOOKUP($B$1,'Room Inputs'!$D$3:$X$137,B81,0) -> 0 | C36: =HLOOKUP($B$1,'Room Inputs'!$D$3:$X$137,C81,0) -> 0 | D36: =HLOOKUP($B$1,'Room Inputs'!$D$3:$X$137,D81,0) -> 0 | E36: 0 | F36: =IF(B36<>"",IF(VLOOKUP(B36,B$14:I$25,6,FALSE)=UvalueWD!$C$6,VLOOKUP(B36,B$14:I$25,7,FALSE),VLOOKUP(B36,B$14:I$25,8,FALSE)),"") ->  | G36: =HLOOKUP($B$1,'Room Inputs'!$D$3:$X$137,G81,0) -> 0 | H36: =HLOOKUP($B$1,'Room Inputs'!$D$3:$X$137,H81,0) -> 0 | I36: =IF(OR(G36=UvalueWD!C$6,G36=""),"",VLOOKUP(G36,Windows,2,FALSE)) ->  | K36: =IF(G36=UvaluesWRF!A$2,IF(ISERROR(F36*J36*(H36-F36)),"",F36*J36*(H36-F36)),IF(ISERROR(F36*J36*(F36-I36)),"",(I36-F36)*J36*I36)) -> 
B37: =HLOOKUP($B$1,'Room Inputs'!$D$3:$X$137,B82,0) -> 0 | C37: =HLOOKUP($B$1,'Room Inputs'!$D$3:$X$137,C82,0) -> 0 | D37: =HLOOKUP($B$1,'Room Inputs'!$D$3:$X$137,D82,0) -> 0 | E37: 0 | F37: =IF(B37<>"",IF(VLOOKUP(B37,B$14:I$25,6,FALSE)=UvalueWD!$C$6,VLOOKUP(B37,B$14:I$25,7,FALSE),VLOOKUP(B37,B$14:I$25,8,FALSE)),"") ->  | G37: =HLOOKUP($B$1,'Room Inputs'!$D$3:$X$137,G82,0) -> 0 | H37: =HLOOKUP($B$1,'Room Inputs'!$D$3:$X$137,H82,0) -> 0 | I37: =IF(OR(G37=UvalueWD!C$6,G37=""),"",VLOOKUP(G37,Windows,2,FALSE)) ->  | K37: =IF(G37=UvaluesWRF!A$2,IF(ISERROR(F37*J37*(H37-F37)),"",F37*J37*(H37-F37)),IF(ISERROR(F37*J37*(F37-I37)),"",(I37-F37)*J37*I37)) -> 
B38: =HLOOKUP($B$1,'Room Inputs'!$D$3:$X$137,B83,0) -> 0 | C38: =HLOOKUP($B$1,'Room Inputs'!$D$3:$X$137,C83,0) -> 0 | D38: =HLOOKUP($B$1,'Room Inputs'!$D$3:$X$137,D83,0) -> 0 | E38: 0 | F38: =IF(B38<>"",IF(VLOOKUP(B38,B$14:I$25,6,FALSE)=UvalueWD!$C$6,VLOOKUP(B38,B$14:I$25,7,FALSE),VLOOKUP(B38,B$14:I$25,8,FALSE)),"") ->  | G38: =HLOOKUP($B$1,'Room Inputs'!$D$3:$X$137,G83,0) -> 0 | H38: =HLOOKUP($B$1,'Room Inputs'!$D$3:$X$137,H83,0) -> 0 | I38: =IF(OR(G38=UvalueWD!C$6,G38=""),"",VLOOKUP(G38,Windows,2,FALSE)) ->  | K38: =IF(G38=UvaluesWRF!A$2,IF(ISERROR(F38*J38*(H38-F38)),"",F38*J38*(H38-F38)),IF(ISERROR(F38*J38*(F38-I38)),"",(I38-F38)*J38*I38)) -> 
B39: =HLOOKUP($B$1,'Room Inputs'!$D$3:$X$137,B84,0) -> 0 | C39: =HLOOKUP($B$1,'Room Inputs'!$D$3:$X$137,C84,0) -> 0 | D39: =HLOOKUP($B$1,'Room Inputs'!$D$3:$X$137,D84,0) -> 0 | E39: 0 | F39: =IF(B39<>"",IF(VLOOKUP(B39,B$14:I$25,6,FALSE)=UvalueWD!$C$6,VLOOKUP(B39,B$14:I$25,7,FALSE),VLOOKUP(B39,B$14:I$25,8,FALSE)),"") ->  | G39: =HLOOKUP($B$1,'Room Inputs'!$D$3:$X$137,G84,0) -> 0 | H39: =HLOOKUP($B$1,'Room Inputs'!$D$3:$X$137,H84,0) -> 0 | I39: =IF(OR(G39=UvalueWD!C$6,G39=""),"",VLOOKUP(G39,Windows,2,FALSE)) ->  | K39: =IF(G39=UvaluesWRF!A$2,IF(ISERROR(F39*J39*(H39-F39)),"",F39*J39*(H39-F39)),IF(ISERROR(F39*J39*(F39-I39)),"",(I39-F39)*J39*I39)) -> 
B41: * this is net heat loss (i.e. the heat loss of the window minus that of a wall of the same area) and so can be negative. This is done so that the area of the window or door does not have to be subtracted from the wall area.
I42: Room heat loss (W) | K42: =SUM(K10:K39) -> 0
B46: Row number lookup map
B48: Room name | C48: 2 | E48: Emitter type | F48: 3 | G48: For convectors consult the manufacturer's data and enter the temperature factor (FTEMP) for the appropriate fan speed | H48: 4 | I48: For radiators enter the n-coefficient (exponent) from manufacturer's data. If unknown 1.3 may be used | K48: 5
B50: Enter floor type and construction | C50: 6 | E50: Enter floor type and construction | F50: 7 | G50: For UFH enter Tog value (See Table 14) | H50: 8 | I50: For UFH enter active or exposed area of the heated floor | K50: 9
B52: Enter Room type below | E52: Enter Open fire/chimney details below
B53: 10 | E53: 11
B54: Room Dimensions
B55: Length (m) | D55: Width (m) | F55: Height (m)
B56: 13 | D56: 14 | F56: 15
B57: Walls, floors not ground floors and ceiling
B58: Name of wall, floor, ceiling | C58: Space on other side | D58: Height or length (m) | E58: Width (m) | G58: Construction | H58: Entered U- value (W/m²K), if required
B59: 16 | C59: 17 | D59: 18 | E59: 19 | G59: 20 | H59: 21
B60: 22 | C60: 23 | D60: 24 | E60: 25 | G60: 26 | H60: 27
B61: 28 | C61: 29 | D61: 30 | E61: 31 | G61: 32 | H61: 33
B62: 35 | C62: 36 | D62: 37 | E62: 38 | G62: 39 | H62: 40
B63: 41 | C63: 42 | D63: 43 | E63: 44 | G63: 45 | H63: 46
B64: 47 | C64: 48 | D64: 49 | E64: 50 | G64: 51 | H64: 52
B65: 53 | C65: 54 | D65: 55 | E65: 56 | G65: 57 | H65: 58
B66: 59 | C66: 60 | D66: 61 | E66: 62 | G66: 63 | H66: 64
B67: 65 | C67: 66 | D67: 67 | E67: 68 | G67: 69 | H67: 70
B68: 71 | C68: 72 | D68: 73 | E68: 74 | G68: 75 | H68: 76
B69: 77 | C69: 78 | D69: 79 | E69: 80 | G69: 81 | H69: 82
B70: 83 | C70: 84 | D70: 85 | E70: 86 | G70: 87 | H70: 88
B71: Ground floors Short length (m) | C71: long length (m) | D71: Edges exposed | G71: Type and Insulation thickness
B72: 89 | C72: 90 | D72: 91 | E72: 92 | G72: 92 | H72: 93
B73: 95 | C73: 96 | D73: 97 | G73: 98 | H73: 99
B74: 100 | C74: 101 | D74: 102 | G74: 103 | H74: 104
B77: Windows and doors
B78: Wall or roof with window or door | C78: Window or door height (m) | D78: Window or door width (m) | E78: Area (m²) | F78: Wall/roof U-value (W/m²K) | G78: Frame and glazing type | H78: Entered U- value (W/m²K), if required
B79: 105 | C79: 106 | D79: 107 | G79: 108 | H79: 109
B80: 111 | C80: 112 | D80: 113 | G80: 114 | H80: 115
B81: 116 | C81: 117 | D81: 118 | G81: 119 | H81: 120
B82: 121 | C82: 122 | D82: 123 | G82: 124 | H82: 125
B83: 126 | C83: 127 | D83: 128 | G83: 129 | H83: 130
B84: 131 | C84: 132 | D84: 133 | G84: 134 | H84: 135

Sheet 8 (hidden)
B1: ='Room Inputs'!K3 -> Room8
B3: Room name | C3: =HLOOKUP($B$1,'Room Inputs'!$D$3:$X$137,C48,0) -> 0 | E3: Emitter type | F3: =HLOOKUP($B$1,'Room Inputs'!$D$3:$X$137,F48,0) -> 0 | G3: For convectors consult the manufacturer's data and enter the temperature factor (FTEMP) for the appropriate fan speed | H3: =HLOOKUP($B$1,'Room Inputs'!$D$3:$X$137,H48,0) -> 0.85 | I3: For radiators enter the n-coefficient (exponent) from manufacturer's data. If unknown 1.3 may be used | K3: =HLOOKUP($B$1,'Room Inputs'!$D$3:$X$137,K48,0) -> 1.3
B5: Enter floor type and construction | C5: =HLOOKUP($B$1,'Room Inputs'!$D$3:$X$137,C50,0) -> 0 | E5: Enter floor type and construction | F5: =HLOOKUP($B$1,'Room Inputs'!$D$3:$X$137,F50,0) -> 0 | G5: For UFH enter Tog value (See Table 14) | H5: =HLOOKUP($B$1,'Room Inputs'!$D$3:$X$137,H50,0) -> 0.25 | I5: For UFH enter active or exposed area of the heated floor | K5: =HLOOKUP($B$1,'Room Inputs'!$D$3:$X$137,K50,0) -> 0
B7: Enter Room type below | E7: Enter Open fire/chimney details below | H7: Design room ventilation rate (air changes per hour) | K7: Design room temperature °C
B8: =HLOOKUP($B$1,'Room Inputs'!$D$3:$X$137,B53,0) -> 0 | E8: =HLOOKUP($B$1,'Room Inputs'!$D$3:$X$137,E53,0) -> 0 | H8: =IF(E8=VTables!B20,VLOOKUP(B8,DRVT,3,FALSE),MAX(VLOOKUP(B8,DRVT,3,FALSE),VLOOKUP(E8,ARVR,2,FALSE))) ->  | K8: =VLOOKUP(B8,DRVT,2,FALSE) -> 
B9: Room Dimensions
B10: Length (m) | D10: Width (m) | F10: Height (m) | G10: Room volume (m³) | J10: Design temperature difference | K10: Heat loss (W)
B11: =HLOOKUP($B$1,'Room Inputs'!$D$3:$X$137,B56,0) -> 0 | D11: =HLOOKUP($B$1,'Room Inputs'!$D$3:$X$137,D56,0) -> 0 | F11: =HLOOKUP($B$1,'Room Inputs'!$D$3:$X$137,F56,0) -> 0 | G11: =B11*D11*F11 -> 0 | J11: =K8-'Site Inputs'!C8 ->  | K11: =IF(G11>0,(ROUND(0.33*G11*H8*J11,2)),"") -> 
B12: Walls, floors not ground floors and ceiling
B13: Name of wall, floor, ceiling | C13: Space on other side | D13: Height or length (m) | E13: Width (m) | F13: Area (m²) | G13: Construction | H13: Entered U- value (W/m²K), if required | I13: U-value (W/m²K) | J13: Design temperature difference | K13: Heat loss (W) | M13: `
B14: =HLOOKUP($B$1,'Room Inputs'!$D$3:$X$137,B59,0) -> 0 | C14: =HLOOKUP($B$1,'Room Inputs'!$D$3:$X$137,C59,0) -> 0 | D14: =HLOOKUP($B$1,'Room Inputs'!$D$3:$X$137,D59,0) -> 0 | E14: =HLOOKUP($B$1,'Room Inputs'!$D$3:$X$137,E59,0) -> 0 | F14: =D14*E14 -> 0 | G14: =HLOOKUP($B$1,'Room Inputs'!$D$3:$X$137,G59,0) -> 0 | H14: =HLOOKUP($B$1,'Room Inputs'!$D$3:$X$137,H59,0) -> 0 | I14: =IF(OR(G14=UvaluesWRF!A$2,ISERROR(VLOOKUP(G14,UvaluesWRF!A$3:B$110,2,FALSE))),"",VLOOKUP(G14,UvaluesWRF!A$3:B$110,2,FALSE)) ->  | J14: =IF(C14="","",$K$8-VLOOKUP(C14,DRVT,2,FALSE)) ->  | K14: =IF(G14=UvaluesWRF!A$2,IF(ISERROR(F14*J14*H14),"",F14*J14*H14),IF(ISERROR(F14*J14*I14),"",F14*J14*I14)) -> 
B15: =HLOOKUP($B$1,'Room Inputs'!$D$3:$X$137,B60,0) -> 0 | C15: =HLOOKUP($B$1,'Room Inputs'!$D$3:$X$137,C60,0) -> 0 | D15: =HLOOKUP($B$1,'Room Inputs'!$D$3:$X$137,D60,0) -> 0 | E15: =HLOOKUP($B$1,'Room Inputs'!$D$3:$X$137,E60,0) -> 0 | F15: =D15*E15 -> 0 | G15: =HLOOKUP($B$1,'Room Inputs'!$D$3:$X$137,G60,0) -> 0 | H15: =HLOOKUP($B$1,'Room Inputs'!$D$3:$X$137,H60,0) -> 0 | I15: =IF(OR(G15=UvaluesWRF!A$2,ISERROR(VLOOKUP(G15,UvaluesWRF!A$3:B$110,2,FALSE))),"",VLOOKUP(G15,UvaluesWRF!A$3:B$110,2,FALSE)) ->  | K15: =IF(G15=UvaluesWRF!A$2,IF(ISERROR(F15*J15*H15),"",F15*J15*H15),IF(ISERROR(F15*J15*I15),"",F15*J15*I15)) -> 
B16: =HLOOKUP($B$1,'Room Inputs'!$D$3:$X$137,B61,0) -> 0 | C16: =HLOOKUP($B$1,'Room Inputs'!$D$3:$X$137,C61,0) -> 0 | D16: =HLOOKUP($B$1,'Room Inputs'!$D$3:$X$137,D61,0) -> 0 | E16: =HLOOKUP($B$1,'Room Inputs'!$D$3:$X$137,E61,0) -> 0 | F16: 0 | G16: =HLOOKUP($B$1,'Room Inputs'!$D$3:$X$137,G61,0) -> 0 | H16: =HLOOKUP($B$1,'Room Inputs'!$D$3:$X$137,H61,0) -> 0 | I16: =IF(OR(G16=UvaluesWRF!A$2,ISERROR(VLOOKUP(G16,UvaluesWRF!A$3:B$110,2,FALSE))),"",VLOOKUP(G16,UvaluesWRF!A$3:B$110,2,FALSE)) ->  | K16: =IF(G16=UvaluesWRF!A$2,IF(ISERROR(F16*J16*H16),"",F16*J16*H16),IF(ISERROR(F16*J16*I16),"",F16*J16*I16)) -> 
B17: =HLOOKUP($B$1,'Room Inputs'!$D$3:$X$137,B62,0) -> 0 | C17: =HLOOKUP($B$1,'Room Inputs'!$D$3:$X$137,C62,0) -> 0 | D17: =HLOOKUP($B$1,'Room Inputs'!$D$3:$X$137,D62,0) -> 0 | E17: =HLOOKUP($B$1,'Room Inputs'!$D$3:$X$137,E62,0) -> 0 | F17: 0 | G17: =HLOOKUP($B$1,'Room Inputs'!$D$3:$X$137,G62,0) -> 0 | H17: =HLOOKUP($B$1,'Room Inputs'!$D$3:$X$137,H62,0) -> 0 | I17: =IF(OR(G17=UvaluesWRF!A$2,ISERROR(VLOOKUP(G17,UvaluesWRF!A$3:B$110,2,FALSE))),"",VLOOKUP(G17,UvaluesWRF!A$3:B$110,2,FALSE)) ->  | K17: =IF(G17=UvaluesWRF!A$2,IF(ISERROR(F17*J17*H17),"",F17*J17*H17),IF(ISERROR(F17*J17*I17),"",F17*J17*I17)) -> 
B18: =HLOOKUP($B$1,'Room Inputs'!$D$3:$X$137,B63,0) -> 0 | C18: =HLOOKUP($B$1,'Room Inputs'!$D$3:$X$137,C63,0) -> 0 | D18: =HLOOKUP($B$1,'Room Inputs'!$D$3:$X$137,D63,0) -> 0 | E18: =HLOOKUP($B$1,'Room Inputs'!$D$3:$X$137,E63,0) -> 0 | F18: 0 | G18: =HLOOKUP($B$1,'Room Inputs'!$D$3:$X$137,G63,0) -> 0 | H18: =HLOOKUP($B$1,'Room Inputs'!$D$3:$X$137,H63,0) -> 0 | I18: =IF(OR(G18=UvaluesWRF!A$2,ISERROR(VLOOKUP(G18,UvaluesWRF!A$3:B$110,2,FALSE))),"",VLOOKUP(G18,UvaluesWRF!A$3:B$110,2,FALSE)) ->  | K18: =IF(G18=UvaluesWRF!A$2,IF(ISERROR(F18*J18*H18),"",F18*J18*H18),IF(ISERROR(F18*J18*I18),"",F18*J18*I18)) -> 
B19: =HLOOKUP($B$1,'Room Inputs'!$D$3:$X$137,B64,0) -> 0 | C19: =HLOOKUP($B$1,'Room Inputs'!$D$3:$X$137,C64,0) -> 0 | D19: =HLOOKUP($B$1,'Room Inputs'!$D$3:$X$137,D64,0) -> 0 | E19: =HLOOKUP($B$1,'Room Inputs'!$D$3:$X$137,E64,0) -> 0 | F19: 0 | G19: =HLOOKUP($B$1,'Room Inputs'!$D$3:$X$137,G64,0) -> 0 | H19: =HLOOKUP($B$1,'Room Inputs'!$D$3:$X$137,H64,0) -> 0 | I19: =IF(OR(G19=UvaluesWRF!A$2,ISERROR(VLOOKUP(G19,UvaluesWRF!A$3:B$110,2,FALSE))),"",VLOOKUP(G19,UvaluesWRF!A$3:B$110,2,FALSE)) ->  | K19: =IF(G19=UvaluesWRF!A$2,IF(ISERROR(F19*J19*H19),"",F19*J19*H19),IF(ISERROR(F19*J19*I19),"",F19*J19*I19)) -> 
B20: =HLOOKUP($B$1,'Room Inputs'!$D$3:$X$137,B65,0) -> 0 | C20: =HLOOKUP($B$1,'Room Inputs'!$D$3:$X$137,C65,0) -> 0 | D20: =HLOOKUP($B$1,'Room Inputs'!$D$3:$X$137,D65,0) -> 0 | E20: =HLOOKUP($B$1,'Room Inputs'!$D$3:$X$137,E65,0) -> 0 | F20: 0 | G20: =HLOOKUP($B$1,'Room Inputs'!$D$3:$X$137,G65,0) -> 0 | H20: =HLOOKUP($B$1,'Room Inputs'!$D$3:$X$137,H65,0) -> 0 | I20: =IF(OR(G20=UvaluesWRF!A$2,ISERROR(VLOOKUP(G20,UvaluesWRF!A$3:B$110,2,FALSE))),"",VLOOKUP(G20,UvaluesWRF!A$3:B$110,2,FALSE)) ->  | K20: =IF(G20=UvaluesWRF!A$2,IF(ISERROR(F20*J20*H20),"",F20*J20*H20),IF(ISERROR(F20*J20*I20),"",F20*J20*I20)) -> 
B21: =HLOOKUP($B$1,'Room Inputs'!$D$3:$X$137,B66,0) -> 0 | C21: =HLOOKUP($B$1,'Room Inputs'!$D$3:$X$137,C66,0) -> 0 | D21: =HLOOKUP($B$1,'Room Inputs'!$D$3:$X$137,D66,0) -> 0 | E21: =HLOOKUP($B$1,'Room Inputs'!$D$3:$X$137,E66,0) -> 0 | F21: 0 | G21: =HLOOKUP($B$1,'Room Inputs'!$D$3:$X$137,G66,0) -> 0 | H21: =HLOOKUP($B$1,'Room Inputs'!$D$3:$X$137,H66,0) -> 0 | I21: =IF(OR(G21=UvaluesWRF!A$2,ISERROR(VLOOKUP(G21,UvaluesWRF!A$3:B$110,2,FALSE))),"",VLOOKUP(G21,UvaluesWRF!A$3:B$110,2,FALSE)) ->  | K21: =IF(G21=UvaluesWRF!A$2,IF(ISERROR(F21*J21*H21),"",F21*J21*H21),IF(ISERROR(F21*J21*I21),"",F21*J21*I21)) -> 
B22: =HLOOKUP($B$1,'Room Inputs'!$D$3:$X$137,B67,0) -> 0 | C22: =HLOOKUP($B$1,'Room Inputs'!$D$3:$X$137,C67,0) -> 0 | D22: =HLOOKUP($B$1,'Room Inputs'!$D$3:$X$137,D67,0) -> 0 | E22: =HLOOKUP($B$1,'Room Inputs'!$D$3:$X$137,E67,0) -> 0 | F22: 0 | G22: =HLOOKUP($B$1,'Room Inputs'!$D$3:$X$137,G67,0) -> 0 | H22: =HLOOKUP($B$1,'Room Inputs'!$D$3:$X$137,H67,0) -> 0 | I22: =IF(OR(G22=UvaluesWRF!A$2,ISERROR(VLOOKUP(G22,UvaluesWRF!A$3:B$110,2,FALSE))),"",VLOOKUP(G22,UvaluesWRF!A$3:B$110,2,FALSE)) ->  | K22: =IF(G22=UvaluesWRF!A$2,IF(ISERROR(F22*J22*H22),"",F22*J22*H22),IF(ISERROR(F22*J22*I22),"",F22*J22*I22)) -> 
B23: =HLOOKUP($B$1,'Room Inputs'!$D$3:$X$137,B68,0) -> 0 | C23: =HLOOKUP($B$1,'Room Inputs'!$D$3:$X$137,C68,0) -> 0 | D23: =HLOOKUP($B$1,'Room Inputs'!$D$3:$X$137,D68,0) -> 0 | E23: =HLOOKUP($B$1,'Room Inputs'!$D$3:$X$137,E68,0) -> 0 | F23: 0 | G23: =HLOOKUP($B$1,'Room Inputs'!$D$3:$X$137,G68,0) -> 0 | H23: =HLOOKUP($B$1,'Room Inputs'!$D$3:$X$137,H68,0) -> 0 | I23: =IF(OR(G23=UvaluesWRF!A$2,ISERROR(VLOOKUP(G23,UvaluesWRF!A$3:B$110,2,FALSE))),"",VLOOKUP(G23,UvaluesWRF!A$3:B$110,2,FALSE)) ->  | K23: =IF(G23=UvaluesWRF!A$2,IF(ISERROR(F23*J23*H23),"",F23*J23*H23),IF(ISERROR(F23*J23*I23),"",F23*J23*I23)) -> 
B24: =HLOOKUP($B$1,'Room Inputs'!$D$3:$X$137,B69,0) -> 0 | C24: =HLOOKUP($B$1,'Room Inputs'!$D$3:$X$137,C69,0) -> 0 | D24: =HLOOKUP($B$1,'Room Inputs'!$D$3:$X$137,D69,0) -> 0 | E24: =HLOOKUP($B$1,'Room Inputs'!$D$3:$X$137,E69,0) -> 0 | F24: 0 | G24: =HLOOKUP($B$1,'Room Inputs'!$D$3:$X$137,G69,0) -> 0 | H24: =HLOOKUP($B$1,'Room Inputs'!$D$3:$X$137,H69,0) -> 0 | I24: =IF(OR(G24=UvaluesWRF!A$2,ISERROR(VLOOKUP(G24,UvaluesWRF!A$3:B$110,2,FALSE))),"",VLOOKUP(G24,UvaluesWRF!A$3:B$110,2,FALSE)) ->  | K24: =IF(G24=UvaluesWRF!A$2,IF(ISERROR(F24*J24*H24),"",F24*J24*H24),IF(ISERROR(F24*J24*I24),"",F24*J24*I24)) -> 
B25: =HLOOKUP($B$1,'Room Inputs'!$D$3:$X$137,B70,0) -> 0 | C25: =HLOOKUP($B$1,'Room Inputs'!$D$3:$X$137,C70,0) -> 0 | D25: =HLOOKUP($B$1,'Room Inputs'!$D$3:$X$137,D70,0) -> 0 | E25: =HLOOKUP($B$1,'Room Inputs'!$D$3:$X$137,E70,0) -> 0 | F25: 0 | G25: =HLOOKUP($B$1,'Room Inputs'!$D$3:$X$137,G70,0) -> 0 | H25: =HLOOKUP($B$1,'Room Inputs'!$D$3:$X$137,H70,0) -> 0 | I25: =IF(OR(G25=UvaluesWRF!A$2,ISERROR(VLOOKUP(G25,UvaluesWRF!A$3:B$110,2,FALSE))),"",VLOOKUP(G25,UvaluesWRF!A$3:B$110,2,FALSE)) ->  | K25: =IF(G25=UvaluesWRF!A$2,IF(ISERROR(F25*J25*H25),"",F25*J25*H25),IF(ISERROR(F25*J25*I25),"",F25*J25*I25)) -> 
B26: Ground floors Short length (m) | C26: long length (m) | D26: Edges exposed | G26: Type and Insulation thickness | M26: U-value | N26: Edge | O26: Insulation | P26: Column | R26: 1 | S26: 2 | T26: 3 | U26: 4 | V26: 5.3 | W26: 5.4 | X26: 5.5 | Y26: 5.6 | Z26: 6.3 | AA26: 6.4 | AB26: 6.5 | AC26: 6.6
B27: =HLOOKUP($B$1,'Room Inputs'!$D$3:$X$137,B72,0) -> 0 | C27: =HLOOKUP($B$1,'Room Inputs'!$D$3:$X$137,C72,0) -> 0 | D27: =HLOOKUP($B$1,'Room Inputs'!$D$3:$X$137,D72,0) -> 0 | E27: =HLOOKUP($B$1,'Room Inputs'!$D$3:$X$137,E72,0) -> 0 | F27: =B27*C27 -> 0 | G27: =HLOOKUP($B$1,'Room Inputs'!$D$3:$X$137,G72,0) -> 0 | H27: =HLOOKUP($B$1,'Room Inputs'!$D$3:$X$137,H72,0) -> 0 | I27: =IF(OR(G27=UvaluesFlr!$U$3,G27=UvaluesFlr!$U$4,ISERROR(M27)),"",M27) ->  | J27: =$K$8-IF(LEFT(G27,2)="So",10,'Site Inputs'!$C$8) ->  | K27: =IF(OR(G27=UvaluesFlr!$U$3,G27=UvaluesFlr!$U$4),IF(ISERROR(F27*J27*H27),"",F27*J27*H27),IF(ISERROR(F27*J27*I27),"",F27*J27*I27)) ->  | M27: =HLOOKUP(N27+MIN(0.6,IF(N27>4,O27/10,0)),$R$26:$AC$29,2,TRUE) ->  | N27: =VLOOKUP(D27,UvaluesFlr!$U$17:$V$22,2,FALSE) ->  | O27: =VLOOKUP(G27,UvaluesFlr!$U$3:$W$14,2,FALSE) ->  | P27: =VLOOKUP(G27,UvaluesFlr!$U$3:$W$14,3,FALSE) ->  | R27: =VLOOKUP(C27,UvaluesFlr!$C$53:$P$59,$P27,TRUE) ->  | S27: =VLOOKUP(B27,UvaluesFlr!$C$53:$P$59,$P27,TRUE) ->  | T27: =VLOOKUP(B27+C27,UvaluesFlr!$C$4:$P$12,$P27,TRUE) ->  | U27: =VLOOKUP(B27,UvaluesFlr!$C$16:$P$21,$P27,TRUE) ->  | V27: =VLOOKUP($C27,UvaluesFlr!$D$26:$P$29,$P27-1,TRUE) ->  | W27: =VLOOKUP($C27,UvaluesFlr!$D$30:$P$31,$P27-1,TRUE) ->  | X27: =VLOOKUP($C27,UvaluesFlr!$D$32:$P$33,$P27-1,TRUE) ->  | Y27: =VLOOKUP($C27,UvaluesFlr!$D$34:$P$35,$P27-1,TRUE) ->  | Z27: =VLOOKUP($C27,UvaluesFlr!$D$39:$P$42,$P27-1,TRUE) ->  | AA27: =VLOOKUP($C27,UvaluesFlr!$D$43:$P$45,$P27-1,TRUE) ->  | AB27: =VLOOKUP($C27,UvaluesFlr!$D$46:$P$48,$P27-1,TRUE) ->  | AC27: =VLOOKUP($C27,UvaluesFlr!$D$49:$P$50,$P27-1,TRUE) -> 
B28: =HLOOKUP($B$1,'Room Inputs'!$D$3:$X$137,B73,0) -> 0 | C28: =HLOOKUP($B$1,'Room Inputs'!$D$3:$X$137,C73,0) -> 0 | D28: =HLOOKUP($B$1,'Room Inputs'!$D$3:$X$137,D73,0) -> 0 | E28: =HLOOKUP($B$1,'Room Inputs'!$D$3:$X$137,E73,0) ->  | F28: =B28*C28 -> 0 | G28: =HLOOKUP($B$1,'Room Inputs'!$D$3:$X$137,G73,0) -> 0 | H28: =HLOOKUP($B$1,'Room Inputs'!$D$3:$X$137,H73,0) -> 0 | I28: =IF(OR(G28=UvaluesFlr!$U$3,G28=UvaluesFlr!$U$4,ISERROR(M28)),"",M28) ->  | J28: =$K$8-IF(LEFT(G28,2)="So",10,'Site Inputs'!$C$8) ->  | K28: =IF(OR(G28=UvaluesFlr!$U$3,G28=UvaluesFlr!$U$4),IF(ISERROR(F28*J28*H28),"",F28*J28*H28),IF(ISERROR(F28*J28*I28),"",F28*J28*I28)) ->  | M28: =HLOOKUP(N28+MIN(0.6,IF(N28>4,O28/10,0)),$R$26:$AC$29,3,TRUE) ->  | N28: =VLOOKUP(D28,UvaluesFlr!$U$17:$V$22,2,FALSE) ->  | O28: =VLOOKUP(G28,UvaluesFlr!$U$3:$W$14,2,FALSE) ->  | P28: =VLOOKUP(G28,UvaluesFlr!$U$3:$W$14,3,FALSE) ->  | R28: =VLOOKUP(C28,UvaluesFlr!$C$53:$P$59,$P28,TRUE) ->  | S28: =VLOOKUP(B28,UvaluesFlr!$C$53:$P$59,$P28,TRUE) ->  | T28: =VLOOKUP(B28+C28,UvaluesFlr!$C$4:$P$12,$P28,TRUE) ->  | U28: =VLOOKUP(B28,UvaluesFlr!$C$16:$P$21,$P28,TRUE) ->  | V28: =VLOOKUP($C28,UvaluesFlr!$D$26:$P$29,$P28-1,TRUE) ->  | W28: =VLOOKUP($C28,UvaluesFlr!$D$30:$P$31,$P28-1,TRUE) ->  | X28: =VLOOKUP($C28,UvaluesFlr!$D$32:$P$33,$P28-1,TRUE) ->  | Y28: =VLOOKUP($C28,UvaluesFlr!$D$34:$P$35,$P28-1,TRUE) ->  | Z28: =VLOOKUP($C28,UvaluesFlr!$D$39:$P$42,$P28-1,TRUE) ->  | AA28: =VLOOKUP($C28,UvaluesFlr!$D$43:$P$45,$P28-1,TRUE) ->  | AB28: =VLOOKUP($C28,UvaluesFlr!$D$46:$P$48,$P28-1,TRUE) ->  | AC28: =VLOOKUP($C28,UvaluesFlr!$D$49:$P$50,$P28-1,TRUE) -> 
B29: =HLOOKUP($B$1,'Room Inputs'!$D$3:$X$137,B74,0) -> 0 | C29: =HLOOKUP($B$1,'Room Inputs'!$D$3:$X$137,C74,0) -> 0 | D29: =HLOOKUP($B$1,'Room Inputs'!$D$3:$X$137,D74,0) -> 0 | E29: =HLOOKUP($B$1,'Room Inputs'!$D$3:$X$137,E74,0) ->  | F29: =B29*C29 -> 0 | G29: =HLOOKUP($B$1,'Room Inputs'!$D$3:$X$137,G74,0) -> 0 | H29: =HLOOKUP($B$1,'Room Inputs'!$D$3:$X$137,H74,0) -> 0 | I29: =IF(OR(G29=UvaluesFlr!$U$3,G29=UvaluesFlr!$U$4,ISERROR(M29)),"",M29) ->  | J29: =$K$8-IF(LEFT(G29,2)="So",10,'Site Inputs'!$C$8) ->  | K29: =IF(OR(G29=UvaluesFlr!$U$3,G29=UvaluesFlr!$U$4),IF(ISERROR(F29*J29*H29),"",F29*J29*H29),IF(ISERROR(F29*J29*I29),"",F29*J29*I29)) ->  | M29: =HLOOKUP(N29+MIN(0.6,IF(N29>4,O29/10,0)),$R$26:$AC$29,4,TRUE) ->  | N29: =VLOOKUP(D29,UvaluesFlr!$U$17:$V$22,2,FALSE) ->  | O29: =VLOOKUP(G29,UvaluesFlr!$U$3:$W$14,2,FALSE) ->  | P29: =VLOOKUP(G29,UvaluesFlr!$U$3:$W$14,3,FALSE) ->  | R29: =VLOOKUP(C29,UvaluesFlr!$C$53:$P$59,$P29,TRUE) ->  | S29: =VLOOKUP(B29,UvaluesFlr!$C$53:$P$59,$P29,TRUE) ->  | T29: =VLOOKUP(B29+C29,UvaluesFlr!$C$4:$P$12,$P29,TRUE) ->  | U29: =VLOOKUP(B29,UvaluesFlr!$C$16:$P$21,$P29,TRUE) ->  | V29: =VLOOKUP($C29,UvaluesFlr!$D$26:$P$29,$P29-1,TRUE) ->  | W29: =VLOOKUP($C29,UvaluesFlr!$D$30:$P$31,$P29-1,TRUE) ->  | X29: =VLOOKUP($C29,UvaluesFlr!$D$32:$P$33,$P29-1,TRUE) ->  | Y29: =VLOOKUP($C29,UvaluesFlr!$D$34:$P$35,$P29-1,TRUE) ->  | Z29: =VLOOKUP($C29,UvaluesFlr!$D$39:$P$42,$P29-1,TRUE) ->  | AA29: =VLOOKUP($C29,UvaluesFlr!$D$43:$P$45,$P29-1,TRUE) ->  | AB29: =VLOOKUP($C29,UvaluesFlr!$D$46:$P$48,$P29-1,TRUE) ->  | AC29: =VLOOKUP($C29,UvaluesFlr!$D$49:$P$50,$P29-1,TRUE) -> 
B32: Windows and doors
B33: Wall or roof with window or door | C33: Window or door height (m) | D33: Window or door width (m) | E33: Area (m²) | F33: Wall/roof U-value (W/m²K) | G33: Frame and glazing type | H33: Entered U- value (W/m²K), if required | I33: U-value | J33: Design temperature difference | K33: Heat loss (W)*
B34: =HLOOKUP($B$1,'Room Inputs'!$D$3:$X$137,B79,0) -> 0 | C34: =HLOOKUP($B$1,'Room Inputs'!$D$3:$X$137,C79,0) -> 0 | D34: =HLOOKUP($B$1,'Room Inputs'!$D$3:$X$137,D79,0) -> 0 | E34: =C34*D34 -> 0 | F34: =IF(B34<>"",IF(VLOOKUP(B34,B$14:I$25,6,FALSE)=UvalueWD!$C$6,VLOOKUP(B34,B$14:I$25,7,FALSE),VLOOKUP(B34,B$14:I$25,8,FALSE)),"") ->  | G34: =HLOOKUP($B$1,'Room Inputs'!$D$3:$X$137,G79,0) -> 0 | H34: =HLOOKUP($B$1,'Room Inputs'!$D$3:$X$137,H79,0) -> 0 | I34: =IF(OR(G34=UvalueWD!C$6,G34=""),"",VLOOKUP(G34,Windows,2,FALSE)) ->  | J34: =IF(ISERROR(VLOOKUP(B34,B$13:K$29,9,FALSE)),"",VLOOKUP(B34,B$13:K$29,9,FALSE)) ->  | K34: =IF(G34=UvaluesWRF!A$2,IF(ISERROR(F34*J34*(H34-F34)),"",F34*J34*(H34-F34)),IF(ISERROR(F34*J34*(F34-I34)),"",(I34-F34)*J34*I34)) -> 
B35: =HLOOKUP($B$1,'Room Inputs'!$D$3:$X$137,B80,0) -> 0 | C35: =HLOOKUP($B$1,'Room Inputs'!$D$3:$X$137,C80,0) -> 0 | D35: =HLOOKUP($B$1,'Room Inputs'!$D$3:$X$137,D80,0) -> 0 | E35: 0 | F35: =IF(B35<>"",IF(VLOOKUP(B35,B$14:I$25,6,FALSE)=UvalueWD!$C$6,VLOOKUP(B35,B$14:I$25,7,FALSE),VLOOKUP(B35,B$14:I$25,8,FALSE)),"") ->  | G35: =HLOOKUP($B$1,'Room Inputs'!$D$3:$X$137,G80,0) -> 0 | H35: =HLOOKUP($B$1,'Room Inputs'!$D$3:$X$137,H80,0) -> 0 | I35: =IF(OR(G35=UvalueWD!C$6,G35=""),"",VLOOKUP(G35,Windows,2,FALSE)) ->  | K35: =IF(G35=UvaluesWRF!A$2,IF(ISERROR(F35*J35*(H35-F35)),"",F35*J35*(H35-F35)),IF(ISERROR(F35*J35*(F35-I35)),"",(I35-F35)*J35*I35)) -> 
B36: =HLOOKUP($B$1,'Room Inputs'!$D$3:$X$137,B81,0) -> 0 | C36: =HLOOKUP($B$1,'Room Inputs'!$D$3:$X$137,C81,0) -> 0 | D36: =HLOOKUP($B$1,'Room Inputs'!$D$3:$X$137,D81,0) -> 0 | E36: 0 | F36: =IF(B36<>"",IF(VLOOKUP(B36,B$14:I$25,6,FALSE)=UvalueWD!$C$6,VLOOKUP(B36,B$14:I$25,7,FALSE),VLOOKUP(B36,B$14:I$25,8,FALSE)),"") ->  | G36: =HLOOKUP($B$1,'Room Inputs'!$D$3:$X$137,G81,0) -> 0 | H36: =HLOOKUP($B$1,'Room Inputs'!$D$3:$X$137,H81,0) -> 0 | I36: =IF(OR(G36=UvalueWD!C$6,G36=""),"",VLOOKUP(G36,Windows,2,FALSE)) ->  | K36: =IF(G36=UvaluesWRF!A$2,IF(ISERROR(F36*J36*(H36-F36)),"",F36*J36*(H36-F36)),IF(ISERROR(F36*J36*(F36-I36)),"",(I36-F36)*J36*I36)) -> 
B37: =HLOOKUP($B$1,'Room Inputs'!$D$3:$X$137,B82,0) -> 0 | C37: =HLOOKUP($B$1,'Room Inputs'!$D$3:$X$137,C82,0) -> 0 | D37: =HLOOKUP($B$1,'Room Inputs'!$D$3:$X$137,D82,0) -> 0 | E37: 0 | F37: =IF(B37<>"",IF(VLOOKUP(B37,B$14:I$25,6,FALSE)=UvalueWD!$C$6,VLOOKUP(B37,B$14:I$25,7,FALSE),VLOOKUP(B37,B$14:I$25,8,FALSE)),"") ->  | G37: =HLOOKUP($B$1,'Room Inputs'!$D$3:$X$137,G82,0) -> 0 | H37: =HLOOKUP($B$1,'Room Inputs'!$D$3:$X$137,H82,0) -> 0 | I37: =IF(OR(G37=UvalueWD!C$6,G37=""),"",VLOOKUP(G37,Windows,2,FALSE)) ->  | K37: =IF(G37=UvaluesWRF!A$2,IF(ISERROR(F37*J37*(H37-F37)),"",F37*J37*(H37-F37)),IF(ISERROR(F37*J37*(F37-I37)),"",(I37-F37)*J37*I37)) -> 
B38: =HLOOKUP($B$1,'Room Inputs'!$D$3:$X$137,B83,0) -> 0 | C38: =HLOOKUP($B$1,'Room Inputs'!$D$3:$X$137,C83,0) -> 0 | D38: =HLOOKUP($B$1,'Room Inputs'!$D$3:$X$137,D83,0) -> 0 | E38: 0 | F38: =IF(B38<>"",IF(VLOOKUP(B38,B$14:I$25,6,FALSE)=UvalueWD!$C$6,VLOOKUP(B38,B$14:I$25,7,FALSE),VLOOKUP(B38,B$14:I$25,8,FALSE)),"") ->  | G38: =HLOOKUP($B$1,'Room Inputs'!$D$3:$X$137,G83,0) -> 0 | H38: =HLOOKUP($B$1,'Room Inputs'!$D$3:$X$137,H83,0) -> 0 | I38: =IF(OR(G38=UvalueWD!C$6,G38=""),"",VLOOKUP(G38,Windows,2,FALSE)) ->  | K38: =IF(G38=UvaluesWRF!A$2,IF(ISERROR(F38*J38*(H38-F38)),"",F38*J38*(H38-F38)),IF(ISERROR(F38*J38*(F38-I38)),"",(I38-F38)*J38*I38)) -> 
B39: =HLOOKUP($B$1,'Room Inputs'!$D$3:$X$137,B84,0) -> 0 | C39: =HLOOKUP($B$1,'Room Inputs'!$D$3:$X$137,C84,0) -> 0 | D39: =HLOOKUP($B$1,'Room Inputs'!$D$3:$X$137,D84,0) -> 0 | E39: 0 | F39: =IF(B39<>"",IF(VLOOKUP(B39,B$14:I$25,6,FALSE)=UvalueWD!$C$6,VLOOKUP(B39,B$14:I$25,7,FALSE),VLOOKUP(B39,B$14:I$25,8,FALSE)),"") ->  | G39: =HLOOKUP($B$1,'Room Inputs'!$D$3:$X$137,G84,0) -> 0 | H39: =HLOOKUP($B$1,'Room Inputs'!$D$3:$X$137,H84,0) -> 0 | I39: =IF(OR(G39=UvalueWD!C$6,G39=""),"",VLOOKUP(G39,Windows,2,FALSE)) ->  | K39: =IF(G39=UvaluesWRF!A$2,IF(ISERROR(F39*J39*(H39-F39)),"",F39*J39*(H39-F39)),IF(ISERROR(F39*J39*(F39-I39)),"",(I39-F39)*J39*I39)) -> 
B41: * this is net heat loss (i.e. the heat loss of the window minus that of a wall of the same area) and so can be negative. This is done so that the area of the window or door does not have to be subtracted from the wall area.
I42: Room heat loss (W) | K42: =SUM(K10:K39) -> 0
B46: Row number lookup map
B48: Room name | C48: 2 | E48: Emitter type | F48: 3 | G48: For convectors consult the manufacturer's data and enter the temperature factor (FTEMP) for the appropriate fan speed | H48: 4 | I48: For radiators enter the n-coefficient (exponent) from manufacturer's data. If unknown 1.3 may be used | K48: 5
B50: Enter floor type and construction | C50: 6 | E50: Enter floor type and construction | F50: 7 | G50: For UFH enter Tog value (See Table 14) | H50: 8 | I50: For UFH enter active or exposed area of the heated floor | K50: 9
B52: Enter Room type below | E52: Enter Open fire/chimney details below
B53: 10 | E53: 11
B54: Room Dimensions
B55: Length (m) | D55: Width (m) | F55: Height (m)
B56: 13 | D56: 14 | F56: 15
B57: Walls, floors not ground floors and ceiling
B58: Name of wall, floor, ceiling | C58: Space on other side | D58: Height or length (m) | E58: Width (m) | G58: Construction | H58: Entered U- value (W/m²K), if required
B59: 16 | C59: 17 | D59: 18 | E59: 19 | G59: 20 | H59: 21
B60: 22 | C60: 23 | D60: 24 | E60: 25 | G60: 26 | H60: 27
B61: 28 | C61: 29 | D61: 30 | E61: 31 | G61: 32 | H61: 33
B62: 35 | C62: 36 | D62: 37 | E62: 38 | G62: 39 | H62: 40
B63: 41 | C63: 42 | D63: 43 | E63: 44 | G63: 45 | H63: 46
B64: 47 | C64: 48 | D64: 49 | E64: 50 | G64: 51 | H64: 52
B65: 53 | C65: 54 | D65: 55 | E65: 56 | G65: 57 | H65: 58
B66: 59 | C66: 60 | D66: 61 | E66: 62 | G66: 63 | H66: 64
B67: 65 | C67: 66 | D67: 67 | E67: 68 | G67: 69 | H67: 70
B68: 71 | C68: 72 | D68: 73 | E68: 74 | G68: 75 | H68: 76
B69: 77 | C69: 78 | D69: 79 | E69: 80 | G69: 81 | H69: 82
B70: 83 | C70: 84 | D70: 85 | E70: 86 | G70: 87 | H70: 88
B71: Ground floors Short length (m) | C71: long length (m) | D71: Edges exposed | G71: Type and Insulation thickness
B72: 89 | C72: 90 | D72: 91 | E72: 92 | G72: 92 | H72: 93
B73: 95 | C73: 96 | D73: 97 | G73: 98 | H73: 99
B74: 100 | C74: 101 | D74: 102 | G74: 103 | H74: 104
B77: Windows and doors
B78: Wall or roof with window or door | C78: Window or door height (m) | D78: Window or door width (m) | E78: Area (m²) | F78: Wall/roof U-value (W/m²K) | G78: Frame and glazing type | H78: Entered U- value (W/m²K), if required
B79: 105 | C79: 106 | D79: 107 | G79: 108 | H79: 109
B80: 111 | C80: 112 | D80: 113 | G80: 114 | H80: 115
B81: 116 | C81: 117 | D81: 118 | G81: 119 | H81: 120
B82: 121 | C82: 122 | D82: 123 | G82: 124 | H82: 125
B83: 126 | C83: 127 | D83: 128 | G83: 129 | H83: 130
B84: 131 | C84: 132 | D84: 133 | G84: 134 | H84: 135

Sheet 9 (hidden)
B1: ='Room Inputs'!L3 -> Room9
B3: Room name | C3: =HLOOKUP($B$1,'Room Inputs'!$D$3:$X$137,C48,0) -> 0 | E3: Emitter type | F3: =HLOOKUP($B$1,'Room Inputs'!$D$3:$X$137,F48,0) -> 0 | G3: For convectors consult the manufacturer's data and enter the temperature factor (FTEMP) for the appropriate fan speed | H3: =HLOOKUP($B$1,'Room Inputs'!$D$3:$X$137,H48,0) -> 0.85 | I3: For radiators enter the n-coefficient (exponent) from manufacturer's data. If unknown 1.3 may be used | K3: =HLOOKUP($B$1,'Room Inputs'!$D$3:$X$137,K48,0) -> 1.3
B5: Enter floor type and construction | C5: =HLOOKUP($B$1,'Room Inputs'!$D$3:$X$137,C50,0) -> 0 | E5: Enter floor type and construction | F5: =HLOOKUP($B$1,'Room Inputs'!$D$3:$X$137,F50,0) -> 0 | G5: For UFH enter Tog value (See Table 14) | H5: =HLOOKUP($B$1,'Room Inputs'!$D$3:$X$137,H50,0) -> 0.25 | I5: For UFH enter active or exposed area of the heated floor | K5: =HLOOKUP($B$1,'Room Inputs'!$D$3:$X$137,K50,0) -> 0
B7: Enter Room type below | E7: Enter Open fire/chimney details below | H7: Design room ventilation rate (air changes per hour) | K7: Design room temperature °C
B8: =HLOOKUP($B$1,'Room Inputs'!$D$3:$X$137,B53,0) -> 0 | E8: =HLOOKUP($B$1,'Room Inputs'!$D$3:$X$137,E53,0) -> 0 | H8: =IF(E8=VTables!B20,VLOOKUP(B8,DRVT,3,FALSE),MAX(VLOOKUP(B8,DRVT,3,FALSE),VLOOKUP(E8,ARVR,2,FALSE))) ->  | K8: =VLOOKUP(B8,DRVT,2,FALSE) -> 
B9: Room Dimensions
B10: Length (m) | D10: Width (m) | F10: Height (m) | G10: Room volume (m³) | J10: Design temperature difference | K10: Heat loss (W)
B11: =HLOOKUP($B$1,'Room Inputs'!$D$3:$X$137,B56,0) -> 0 | D11: =HLOOKUP($B$1,'Room Inputs'!$D$3:$X$137,D56,0) -> 0 | F11: =HLOOKUP($B$1,'Room Inputs'!$D$3:$X$137,F56,0) -> 0 | G11: =B11*D11*F11 -> 0 | J11: =K8-'Site Inputs'!C8 ->  | K11: =IF(G11>0,(ROUND(0.33*G11*H8*J11,2)),"") -> 
B12: Walls, floors not ground floors and ceiling
B13: Name of wall, floor, ceiling | C13: Space on other side | D13: Height or length (m) | E13: Width (m) | F13: Area (m²) | G13: Construction | H13: Entered U- value (W/m²K), if required | I13: U-value (W/m²K) | J13: Design temperature difference | K13: Heat loss (W) | M13: `
B14: =HLOOKUP($B$1,'Room Inputs'!$D$3:$X$137,B59,0) -> 0 | C14: =HLOOKUP($B$1,'Room Inputs'!$D$3:$X$137,C59,0) -> 0 | D14: =HLOOKUP($B$1,'Room Inputs'!$D$3:$X$137,D59,0) -> 0 | E14: =HLOOKUP($B$1,'Room Inputs'!$D$3:$X$137,E59,0) -> 0 | F14: =D14*E14 -> 0 | G14: =HLOOKUP($B$1,'Room Inputs'!$D$3:$X$137,G59,0) -> 0 | H14: =HLOOKUP($B$1,'Room Inputs'!$D$3:$X$137,H59,0) -> 0 | I14: =IF(OR(G14=UvaluesWRF!A$2,ISERROR(VLOOKUP(G14,UvaluesWRF!A$3:B$110,2,FALSE))),"",VLOOKUP(G14,UvaluesWRF!A$3:B$110,2,FALSE)) ->  | J14: =IF(C14="","",$K$8-VLOOKUP(C14,DRVT,2,FALSE)) ->  | K14: =IF(G14=UvaluesWRF!A$2,IF(ISERROR(F14*J14*H14),"",F14*J14*H14),IF(ISERROR(F14*J14*I14),"",F14*J14*I14)) -> 
B15: =HLOOKUP($B$1,'Room Inputs'!$D$3:$X$137,B60,0) -> 0 | C15: =HLOOKUP($B$1,'Room Inputs'!$D$3:$X$137,C60,0) -> 0 | D15: =HLOOKUP($B$1,'Room Inputs'!$D$3:$X$137,D60,0) -> 0 | E15: =HLOOKUP($B$1,'Room Inputs'!$D$3:$X$137,E60,0) -> 0 | F15: =D15*E15 -> 0 | G15: =HLOOKUP($B$1,'Room Inputs'!$D$3:$X$137,G60,0) -> 0 | H15: =HLOOKUP($B$1,'Room Inputs'!$D$3:$X$137,H60,0) -> 0 | I15: =IF(OR(G15=UvaluesWRF!A$2,ISERROR(VLOOKUP(G15,UvaluesWRF!A$3:B$110,2,FALSE))),"",VLOOKUP(G15,UvaluesWRF!A$3:B$110,2,FALSE)) ->  | K15: =IF(G15=UvaluesWRF!A$2,IF(ISERROR(F15*J15*H15),"",F15*J15*H15),IF(ISERROR(F15*J15*I15),"",F15*J15*I15)) -> 
B16: =HLOOKUP($B$1,'Room Inputs'!$D$3:$X$137,B61,0) -> 0 | C16: =HLOOKUP($B$1,'Room Inputs'!$D$3:$X$137,C61,0) -> 0 | D16: =HLOOKUP($B$1,'Room Inputs'!$D$3:$X$137,D61,0) -> 0 | E16: =HLOOKUP($B$1,'Room Inputs'!$D$3:$X$137,E61,0) -> 0 | F16: 0 | G16: =HLOOKUP($B$1,'Room Inputs'!$D$3:$X$137,G61,0) -> 0 | H16: =HLOOKUP($B$1,'Room Inputs'!$D$3:$X$137,H61,0) -> 0 | I16: =IF(OR(G16=UvaluesWRF!A$2,ISERROR(VLOOKUP(G16,UvaluesWRF!A$3:B$110,2,FALSE))),"",VLOOKUP(G16,UvaluesWRF!A$3:B$110,2,FALSE)) ->  | K16: =IF(G16=UvaluesWRF!A$2,IF(ISERROR(F16*J16*H16),"",F16*J16*H16),IF(ISERROR(F16*J16*I16),"",F16*J16*I16)) -> 
B17: =HLOOKUP($B$1,'Room Inputs'!$D$3:$X$137,B62,0) -> 0 | C17: =HLOOKUP($B$1,'Room Inputs'!$D$3:$X$137,C62,0) -> 0 | D17: =HLOOKUP($B$1,'Room Inputs'!$D$3:$X$137,D62,0) -> 0 | E17: =HLOOKUP($B$1,'Room Inputs'!$D$3:$X$137,E62,0) -> 0 | F17: 0 | G17: =HLOOKUP($B$1,'Room Inputs'!$D$3:$X$137,G62,0) -> 0 | H17: =HLOOKUP($B$1,'Room Inputs'!$D$3:$X$137,H62,0) -> 0 | I17: =IF(OR(G17=UvaluesWRF!A$2,ISERROR(VLOOKUP(G17,UvaluesWRF!A$3:B$110,2,FALSE))),"",VLOOKUP(G17,UvaluesWRF!A$3:B$110,2,FALSE)) ->  | K17: =IF(G17=UvaluesWRF!A$2,IF(ISERROR(F17*J17*H17),"",F17*J17*H17),IF(ISERROR(F17*J17*I17),"",F17*J17*I17)) -> 
B18: =HLOOKUP($B$1,'Room Inputs'!$D$3:$X$137,B63,0) -> 0 | C18: =HLOOKUP($B$1,'Room Inputs'!$D$3:$X$137,C63,0) -> 0 | D18: =HLOOKUP($B$1,'Room Inputs'!$D$3:$X$137,D63,0) -> 0 | E18: =HLOOKUP($B$1,'Room Inputs'!$D$3:$X$137,E63,0) -> 0 | F18: 0 | G18: =HLOOKUP($B$1,'Room Inputs'!$D$3:$X$137,G63,0) -> 0 | H18: =HLOOKUP($B$1,'Room Inputs'!$D$3:$X$137,H63,0) -> 0 | I18: =IF(OR(G18=UvaluesWRF!A$2,ISERROR(VLOOKUP(G18,UvaluesWRF!A$3:B$110,2,FALSE))),"",VLOOKUP(G18,UvaluesWRF!A$3:B$110,2,FALSE)) ->  | K18: =IF(G18=UvaluesWRF!A$2,IF(ISERROR(F18*J18*H18),"",F18*J18*H18),IF(ISERROR(F18*J18*I18),"",F18*J18*I18)) -> 
B19: =HLOOKUP($B$1,'Room Inputs'!$D$3:$X$137,B64,0) -> 0 | C19: =HLOOKUP($B$1,'Room Inputs'!$D$3:$X$137,C64,0) -> 0 | D19: =HLOOKUP($B$1,'Room Inputs'!$D$3:$X$137,D64,0) -> 0 | E19: =HLOOKUP($B$1,'Room Inputs'!$D$3:$X$137,E64,0) -> 0 | F19: 0 | G19: =HLOOKUP($B$1,'Room Inputs'!$D$3:$X$137,G64,0) -> 0 | H19: =HLOOKUP($B$1,'Room Inputs'!$D$3:$X$137,H64,0) -> 0 | I19: =IF(OR(G19=UvaluesWRF!A$2,ISERROR(VLOOKUP(G19,UvaluesWRF!A$3:B$110,2,FALSE))),"",VLOOKUP(G19,UvaluesWRF!A$3:B$110,2,FALSE)) ->  | K19: =IF(G19=UvaluesWRF!A$2,IF(ISERROR(F19*J19*H19),"",F19*J19*H19),IF(ISERROR(F19*J19*I19),"",F19*J19*I19)) -> 
B20: =HLOOKUP($B$1,'Room Inputs'!$D$3:$X$137,B65,0) -> 0 | C20: =HLOOKUP($B$1,'Room Inputs'!$D$3:$X$137,C65,0) -> 0 | D20: =HLOOKUP($B$1,'Room Inputs'!$D$3:$X$137,D65,0) -> 0 | E20: =HLOOKUP($B$1,'Room Inputs'!$D$3:$X$137,E65,0) -> 0 | F20: 0 | G20: =HLOOKUP($B$1,'Room Inputs'!$D$3:$X$137,G65,0) -> 0 | H20: =HLOOKUP($B$1,'Room Inputs'!$D$3:$X$137,H65,0) -> 0 | I20: =IF(OR(G20=UvaluesWRF!A$2,ISERROR(VLOOKUP(G20,UvaluesWRF!A$3:B$110,2,FALSE))),"",VLOOKUP(G20,UvaluesWRF!A$3:B$110,2,FALSE)) ->  | K20: =IF(G20=UvaluesWRF!A$2,IF(ISERROR(F20*J20*H20),"",F20*J20*H20),IF(ISERROR(F20*J20*I20),"",F20*J20*I20)) -> 
B21: =HLOOKUP($B$1,'Room Inputs'!$D$3:$X$137,B66,0) -> 0 | C21: =HLOOKUP($B$1,'Room Inputs'!$D$3:$X$137,C66,0) -> 0 | D21: =HLOOKUP($B$1,'Room Inputs'!$D$3:$X$137,D66,0) -> 0 | E21: =HLOOKUP($B$1,'Room Inputs'!$D$3:$X$137,E66,0) -> 0 | F21: 0 | G21: =HLOOKUP($B$1,'Room Inputs'!$D$3:$X$137,G66,0) -> 0 | H21: =HLOOKUP($B$1,'Room Inputs'!$D$3:$X$137,H66,0) -> 0 | I21: =IF(OR(G21=UvaluesWRF!A$2,ISERROR(VLOOKUP(G21,UvaluesWRF!A$3:B$110,2,FALSE))),"",VLOOKUP(G21,UvaluesWRF!A$3:B$110,2,FALSE)) ->  | K21: =IF(G21=UvaluesWRF!A$2,IF(ISERROR(F21*J21*H21),"",F21*J21*H21),IF(ISERROR(F21*J21*I21),"",F21*J21*I21)) -> 
B22: =HLOOKUP($B$1,'Room Inputs'!$D$3:$X$137,B67,0) -> 0 | C22: =HLOOKUP($B$1,'Room Inputs'!$D$3:$X$137,C67,0) -> 0 | D22: =HLOOKUP($B$1,'Room Inputs'!$D$3:$X$137,D67,0) -> 0 | E22: =HLOOKUP($B$1,'Room Inputs'!$D$3:$X$137,E67,0) -> 0 | F22: 0 | G22: =HLOOKUP($B$1,'Room Inputs'!$D$3:$X$137,G67,0) -> 0 | H22: =HLOOKUP($B$1,'Room Inputs'!$D$3:$X$137,H67,0) -> 0 | I22: =IF(OR(G22=UvaluesWRF!A$2,ISERROR(VLOOKUP(G22,UvaluesWRF!A$3:B$110,2,FALSE))),"",VLOOKUP(G22,UvaluesWRF!A$3:B$110,2,FALSE)) ->  | K22: =IF(G22=UvaluesWRF!A$2,IF(ISERROR(F22*J22*H22),"",F22*J22*H22),IF(ISERROR(F22*J22*I22),"",F22*J22*I22)) -> 
B23: =HLOOKUP($B$1,'Room Inputs'!$D$3:$X$137,B68,0) -> 0 | C23: =HLOOKUP($B$1,'Room Inputs'!$D$3:$X$137,C68,0) -> 0 | D23: =HLOOKUP($B$1,'Room Inputs'!$D$3:$X$137,D68,0) -> 0 | E23: =HLOOKUP($B$1,'Room Inputs'!$D$3:$X$137,E68,0) -> 0 | F23: 0 | G23: =HLOOKUP($B$1,'Room Inputs'!$D$3:$X$137,G68,0) -> 0 | H23: =HLOOKUP($B$1,'Room Inputs'!$D$3:$X$137,H68,0) -> 0 | I23: =IF(OR(G23=UvaluesWRF!A$2,ISERROR(VLOOKUP(G23,UvaluesWRF!A$3:B$110,2,FALSE))),"",VLOOKUP(G23,UvaluesWRF!A$3:B$110,2,FALSE)) ->  | K23: =IF(G23=UvaluesWRF!A$2,IF(ISERROR(F23*J23*H23),"",F23*J23*H23),IF(ISERROR(F23*J23*I23),"",F23*J23*I23)) -> 
B24: =HLOOKUP($B$1,'Room Inputs'!$D$3:$X$137,B69,0) -> 0 | C24: =HLOOKUP($B$1,'Room Inputs'!$D$3:$X$137,C69,0) -> 0 | D24: =HLOOKUP($B$1,'Room Inputs'!$D$3:$X$137,D69,0) -> 0 | E24: =HLOOKUP($B$1,'Room Inputs'!$D$3:$X$137,E69,0) -> 0 | F24: 0 | G24: =HLOOKUP($B$1,'Room Inputs'!$D$3:$X$137,G69,0) -> 0 | H24: =HLOOKUP($B$1,'Room Inputs'!$D$3:$X$137,H69,0) -> 0 | I24: =IF(OR(G24=UvaluesWRF!A$2,ISERROR(VLOOKUP(G24,UvaluesWRF!A$3:B$110,2,FALSE))),"",VLOOKUP(G24,UvaluesWRF!A$3:B$110,2,FALSE)) ->  | K24: =IF(G24=UvaluesWRF!A$2,IF(ISERROR(F24*J24*H24),"",F24*J24*H24),IF(ISERROR(F24*J24*I24),"",F24*J24*I24)) -> 
B25: =HLOOKUP($B$1,'Room Inputs'!$D$3:$X$137,B70,0) -> 0 | C25: =HLOOKUP($B$1,'Room Inputs'!$D$3:$X$137,C70,0) -> 0 | D25: =HLOOKUP($B$1,'Room Inputs'!$D$3:$X$137,D70,0) -> 0 | E25: =HLOOKUP($B$1,'Room Inputs'!$D$3:$X$137,E70,0) -> 0 | F25: 0 | G25: =HLOOKUP($B$1,'Room Inputs'!$D$3:$X$137,G70,0) -> 0 | H25: =HLOOKUP($B$1,'Room Inputs'!$D$3:$X$137,H70,0) -> 0 | I25: =IF(OR(G25=UvaluesWRF!A$2,ISERROR(VLOOKUP(G25,UvaluesWRF!A$3:B$110,2,FALSE))),"",VLOOKUP(G25,UvaluesWRF!A$3:B$110,2,FALSE)) ->  | K25: =IF(G25=UvaluesWRF!A$2,IF(ISERROR(F25*J25*H25),"",F25*J25*H25),IF(ISERROR(F25*J25*I25),"",F25*J25*I25)) -> 
B26: Ground floors Short length (m) | C26: long length (m) | D26: Edges exposed | G26: Type and Insulation thickness | M26: U-value | N26: Edge | O26: Insulation | P26: Column | R26: 1 | S26: 2 | T26: 3 | U26: 4 | V26: 5.3 | W26: 5.4 | X26: 5.5 | Y26: 5.6 | Z26: 6.3 | AA26: 6.4 | AB26: 6.5 | AC26: 6.6
B27: =HLOOKUP($B$1,'Room Inputs'!$D$3:$X$137,B72,0) -> 0 | C27: =HLOOKUP($B$1,'Room Inputs'!$D$3:$X$137,C72,0) -> 0 | D27: =HLOOKUP($B$1,'Room Inputs'!$D$3:$X$137,D72,0) -> 0 | E27: =HLOOKUP($B$1,'Room Inputs'!$D$3:$X$137,E72,0) -> 0 | F27: =B27*C27 -> 0 | G27: =HLOOKUP($B$1,'Room Inputs'!$D$3:$X$137,G72,0) -> 0 | H27: =HLOOKUP($B$1,'Room Inputs'!$D$3:$X$137,H72,0) -> 0 | I27: =IF(OR(G27=UvaluesFlr!$U$3,G27=UvaluesFlr!$U$4,ISERROR(M27)),"",M27) ->  | J27: =$K$8-IF(LEFT(G27,2)="So",10,'Site Inputs'!$C$8) ->  | K27: =IF(OR(G27=UvaluesFlr!$U$3,G27=UvaluesFlr!$U$4),IF(ISERROR(F27*J27*H27),"",F27*J27*H27),IF(ISERROR(F27*J27*I27),"",F27*J27*I27)) ->  | M27: =HLOOKUP(N27+MIN(0.6,IF(N27>4,O27/10,0)),$R$26:$AC$29,2,TRUE) ->  | N27: =VLOOKUP(D27,UvaluesFlr!$U$17:$V$22,2,FALSE) ->  | O27: =VLOOKUP(G27,UvaluesFlr!$U$3:$W$14,2,FALSE) ->  | P27: =VLOOKUP(G27,UvaluesFlr!$U$3:$W$14,3,FALSE) ->  | R27: =VLOOKUP(C27,UvaluesFlr!$C$53:$P$59,$P27,TRUE) ->  | S27: =VLOOKUP(B27,UvaluesFlr!$C$53:$P$59,$P27,TRUE) ->  | T27: =VLOOKUP(B27+C27,UvaluesFlr!$C$4:$P$12,$P27,TRUE) ->  | U27: =VLOOKUP(B27,UvaluesFlr!$C$16:$P$21,$P27,TRUE) ->  | V27: =VLOOKUP($C27,UvaluesFlr!$D$26:$P$29,$P27-1,TRUE) ->  | W27: =VLOOKUP($C27,UvaluesFlr!$D$30:$P$31,$P27-1,TRUE) ->  | X27: =VLOOKUP($C27,UvaluesFlr!$D$32:$P$33,$P27-1,TRUE) ->  | Y27: =VLOOKUP($C27,UvaluesFlr!$D$34:$P$35,$P27-1,TRUE) ->  | Z27: =VLOOKUP($C27,UvaluesFlr!$D$39:$P$42,$P27-1,TRUE) ->  | AA27: =VLOOKUP($C27,UvaluesFlr!$D$43:$P$45,$P27-1,TRUE) ->  | AB27: =VLOOKUP($C27,UvaluesFlr!$D$46:$P$48,$P27-1,TRUE) ->  | AC27: =VLOOKUP($C27,UvaluesFlr!$D$49:$P$50,$P27-1,TRUE) -> 
B28: =HLOOKUP($B$1,'Room Inputs'!$D$3:$X$137,B73,0) -> 0 | C28: =HLOOKUP($B$1,'Room Inputs'!$D$3:$X$137,C73,0) -> 0 | D28: =HLOOKUP($B$1,'Room Inputs'!$D$3:$X$137,D73,0) -> 0 | E28: =HLOOKUP($B$1,'Room Inputs'!$D$3:$X$137,E73,0) ->  | F28: =B28*C28 -> 0 | G28: =HLOOKUP($B$1,'Room Inputs'!$D$3:$X$137,G73,0) -> 0 | H28: =HLOOKUP($B$1,'Room Inputs'!$D$3:$X$137,H73,0) -> 0 | I28: =IF(OR(G28=UvaluesFlr!$U$3,G28=UvaluesFlr!$U$4,ISERROR(M28)),"",M28) ->  | J28: =$K$8-IF(LEFT(G28,2)="So",10,'Site Inputs'!$C$8) ->  | K28: =IF(OR(G28=UvaluesFlr!$U$3,G28=UvaluesFlr!$U$4),IF(ISERROR(F28*J28*H28),"",F28*J28*H28),IF(ISERROR(F28*J28*I28),"",F28*J28*I28)) ->  | M28: =HLOOKUP(N28+MIN(0.6,IF(N28>4,O28/10,0)),$R$26:$AC$29,3,TRUE) ->  | N28: =VLOOKUP(D28,UvaluesFlr!$U$17:$V$22,2,FALSE) ->  | O28: =VLOOKUP(G28,UvaluesFlr!$U$3:$W$14,2,FALSE) ->  | P28: =VLOOKUP(G28,UvaluesFlr!$U$3:$W$14,3,FALSE) ->  | R28: =VLOOKUP(C28,UvaluesFlr!$C$53:$P$59,$P28,TRUE) ->  | S28: =VLOOKUP(B28,UvaluesFlr!$C$53:$P$59,$P28,TRUE) ->  | T28: =VLOOKUP(B28+C28,UvaluesFlr!$C$4:$P$12,$P28,TRUE) ->  | U28: =VLOOKUP(B28,UvaluesFlr!$C$16:$P$21,$P28,TRUE) ->  | V28: =VLOOKUP($C28,UvaluesFlr!$D$26:$P$29,$P28-1,TRUE) ->  | W28: =VLOOKUP($C28,UvaluesFlr!$D$30:$P$31,$P28-1,TRUE) ->  | X28: =VLOOKUP($C28,UvaluesFlr!$D$32:$P$33,$P28-1,TRUE) ->  | Y28: =VLOOKUP($C28,UvaluesFlr!$D$34:$P$35,$P28-1,TRUE) ->  | Z28: =VLOOKUP($C28,UvaluesFlr!$D$39:$P$42,$P28-1,TRUE) ->  | AA28: =VLOOKUP($C28,UvaluesFlr!$D$43:$P$45,$P28-1,TRUE) ->  | AB28: =VLOOKUP($C28,UvaluesFlr!$D$46:$P$48,$P28-1,TRUE) ->  | AC28: =VLOOKUP($C28,UvaluesFlr!$D$49:$P$50,$P28-1,TRUE) -> 
B29: =HLOOKUP($B$1,'Room Inputs'!$D$3:$X$137,B74,0) -> 0 | C29: =HLOOKUP($B$1,'Room Inputs'!$D$3:$X$137,C74,0) -> 0 | D29: =HLOOKUP($B$1,'Room Inputs'!$D$3:$X$137,D74,0) -> 0 | E29: =HLOOKUP($B$1,'Room Inputs'!$D$3:$X$137,E74,0) ->  | F29: =B29*C29 -> 0 | G29: =HLOOKUP($B$1,'Room Inputs'!$D$3:$X$137,G74,0) -> 0 | H29: =HLOOKUP($B$1,'Room Inputs'!$D$3:$X$137,H74,0) -> 0 | I29: =IF(OR(G29=UvaluesFlr!$U$3,G29=UvaluesFlr!$U$4,ISERROR(M29)),"",M29) ->  | J29: =$K$8-IF(LEFT(G29,2)="So",10,'Site Inputs'!$C$8) ->  | K29: =IF(OR(G29=UvaluesFlr!$U$3,G29=UvaluesFlr!$U$4),IF(ISERROR(F29*J29*H29),"",F29*J29*H29),IF(ISERROR(F29*J29*I29),"",F29*J29*I29)) ->  | M29: =HLOOKUP(N29+MIN(0.6,IF(N29>4,O29/10,0)),$R$26:$AC$29,4,TRUE) ->  | N29: =VLOOKUP(D29,UvaluesFlr!$U$17:$V$22,2,FALSE) ->  | O29: =VLOOKUP(G29,UvaluesFlr!$U$3:$W$14,2,FALSE) ->  | P29: =VLOOKUP(G29,UvaluesFlr!$U$3:$W$14,3,FALSE) ->  | R29: =VLOOKUP(C29,UvaluesFlr!$C$53:$P$59,$P29,TRUE) ->  | S29: =VLOOKUP(B29,UvaluesFlr!$C$53:$P$59,$P29,TRUE) ->  | T29: =VLOOKUP(B29+C29,UvaluesFlr!$C$4:$P$12,$P29,TRUE) ->  | U29: =VLOOKUP(B29,UvaluesFlr!$C$16:$P$21,$P29,TRUE) ->  | V29: =VLOOKUP($C29,UvaluesFlr!$D$26:$P$29,$P29-1,TRUE) ->  | W29: =VLOOKUP($C29,UvaluesFlr!$D$30:$P$31,$P29-1,TRUE) ->  | X29: =VLOOKUP($C29,UvaluesFlr!$D$32:$P$33,$P29-1,TRUE) ->  | Y29: =VLOOKUP($C29,UvaluesFlr!$D$34:$P$35,$P29-1,TRUE) ->  | Z29: =VLOOKUP($C29,UvaluesFlr!$D$39:$P$42,$P29-1,TRUE) ->  | AA29: =VLOOKUP($C29,UvaluesFlr!$D$43:$P$45,$P29-1,TRUE) ->  | AB29: =VLOOKUP($C29,UvaluesFlr!$D$46:$P$48,$P29-1,TRUE) ->  | AC29: =VLOOKUP($C29,UvaluesFlr!$D$49:$P$50,$P29-1,TRUE) -> 
B32: Windows and doors
B33: Wall or roof with window or door | C33: Window or door height (m) | D33: Window or door width (m) | E33: Area (m²) | F33: Wall/roof U-value (W/m²K) | G33: Frame and glazing type | H33: Entered U- value (W/m²K), if required | I33: U-value | J33: Design temperature difference | K33: Heat loss (W)*
B34: =HLOOKUP($B$1,'Room Inputs'!$D$3:$X$137,B79,0) -> 0 | C34: =HLOOKUP($B$1,'Room Inputs'!$D$3:$X$137,C79,0) -> 0 | D34: =HLOOKUP($B$1,'Room Inputs'!$D$3:$X$137,D79,0) -> 0 | E34: =C34*D34 -> 0 | F34: =IF(B34<>"",IF(VLOOKUP(B34,B$14:I$25,6,FALSE)=UvalueWD!$C$6,VLOOKUP(B34,B$14:I$25,7,FALSE),VLOOKUP(B34,B$14:I$25,8,FALSE)),"") ->  | G34: =HLOOKUP($B$1,'Room Inputs'!$D$3:$X$137,G79,0) -> 0 | H34: =HLOOKUP($B$1,'Room Inputs'!$D$3:$X$137,H79,0) -> 0 | I34: =IF(OR(G34=UvalueWD!C$6,G34=""),"",VLOOKUP(G34,Windows,2,FALSE)) ->  | J34: =IF(ISERROR(VLOOKUP(B34,B$13:K$29,9,FALSE)),"",VLOOKUP(B34,B$13:K$29,9,FALSE)) ->  | K34: =IF(G34=UvaluesWRF!A$2,IF(ISERROR(F34*J34*(H34-F34)),"",F34*J34*(H34-F34)),IF(ISERROR(F34*J34*(F34-I34)),"",(I34-F34)*J34*I34)) -> 
B35: =HLOOKUP($B$1,'Room Inputs'!$D$3:$X$137,B80,0) -> 0 | C35: =HLOOKUP($B$1,'Room Inputs'!$D$3:$X$137,C80,0) -> 0 | D35: =HLOOKUP($B$1,'Room Inputs'!$D$3:$X$137,D80,0) -> 0 | E35: 0 | F35: =IF(B35<>"",IF(VLOOKUP(B35,B$14:I$25,6,FALSE)=UvalueWD!$C$6,VLOOKUP(B35,B$14:I$25,7,FALSE),VLOOKUP(B35,B$14:I$25,8,FALSE)),"") ->  | G35: =HLOOKUP($B$1,'Room Inputs'!$D$3:$X$137,G80,0) -> 0 | H35: =HLOOKUP($B$1,'Room Inputs'!$D$3:$X$137,H80,0) -> 0 | I35: =IF(OR(G35=UvalueWD!C$6,G35=""),"",VLOOKUP(G35,Windows,2,FALSE)) ->  | K35: =IF(G35=UvaluesWRF!A$2,IF(ISERROR(F35*J35*(H35-F35)),"",F35*J35*(H35-F35)),IF(ISERROR(F35*J35*(F35-I35)),"",(I35-F35)*J35*I35)) -> 
B36: =HLOOKUP($B$1,'Room Inputs'!$D$3:$X$137,B81,0) -> 0 | C36: =HLOOKUP($B$1,'Room Inputs'!$D$3:$X$137,C81,0) -> 0 | D36: =HLOOKUP($B$1,'Room Inputs'!$D$3:$X$137,D81,0) -> 0 | E36: 0 | F36: =IF(B36<>"",IF(VLOOKUP(B36,B$14:I$25,6,FALSE)=UvalueWD!$C$6,VLOOKUP(B36,B$14:I$25,7,FALSE),VLOOKUP(B36,B$14:I$25,8,FALSE)),"") ->  | G36: =HLOOKUP($B$1,'Room Inputs'!$D$3:$X$137,G81,0) -> 0 | H36: =HLOOKUP($B$1,'Room Inputs'!$D$3:$X$137,H81,0) -> 0 | I36: =IF(OR(G36=UvalueWD!C$6,G36=""),"",VLOOKUP(G36,Windows,2,FALSE)) ->  | K36: =IF(G36=UvaluesWRF!A$2,IF(ISERROR(F36*J36*(H36-F36)),"",F36*J36*(H36-F36)),IF(ISERROR(F36*J36*(F36-I36)),"",(I36-F36)*J36*I36)) -> 
B37: =HLOOKUP($B$1,'Room Inputs'!$D$3:$X$137,B82,0) -> 0 | C37: =HLOOKUP($B$1,'Room Inputs'!$D$3:$X$137,C82,0) -> 0 | D37: =HLOOKUP($B$1,'Room Inputs'!$D$3:$X$137,D82,0) -> 0 | E37: 0 | F37: =IF(B37<>"",IF(VLOOKUP(B37,B$14:I$25,6,FALSE)=UvalueWD!$C$6,VLOOKUP(B37,B$14:I$25,7,FALSE),VLOOKUP(B37,B$14:I$25,8,FALSE)),"") ->  | G37: =HLOOKUP($B$1,'Room Inputs'!$D$3:$X$137,G82,0) -> 0 | H37: =HLOOKUP($B$1,'Room Inputs'!$D$3:$X$137,H82,0) -> 0 | I37: =IF(OR(G37=UvalueWD!C$6,G37=""),"",VLOOKUP(G37,Windows,2,FALSE)) ->  | K37: =IF(G37=UvaluesWRF!A$2,IF(ISERROR(F37*J37*(H37-F37)),"",F37*J37*(H37-F37)),IF(ISERROR(F37*J37*(F37-I37)),"",(I37-F37)*J37*I37)) -> 
B38: =HLOOKUP($B$1,'Room Inputs'!$D$3:$X$137,B83,0) -> 0 | C38: =HLOOKUP($B$1,'Room Inputs'!$D$3:$X$137,C83,0) -> 0 | D38: =HLOOKUP($B$1,'Room Inputs'!$D$3:$X$137,D83,0) -> 0 | E38: 0 | F38: =IF(B38<>"",IF(VLOOKUP(B38,B$14:I$25,6,FALSE)=UvalueWD!$C$6,VLOOKUP(B38,B$14:I$25,7,FALSE),VLOOKUP(B38,B$14:I$25,8,FALSE)),"") ->  | G38: =HLOOKUP($B$1,'Room Inputs'!$D$3:$X$137,G83,0) -> 0 | H38: =HLOOKUP($B$1,'Room Inputs'!$D$3:$X$137,H83,0) -> 0 | I38: =IF(OR(G38=UvalueWD!C$6,G38=""),"",VLOOKUP(G38,Windows,2,FALSE)) ->  | K38: =IF(G38=UvaluesWRF!A$2,IF(ISERROR(F38*J38*(H38-F38)),"",F38*J38*(H38-F38)),IF(ISERROR(F38*J38*(F38-I38)),"",(I38-F38)*J38*I38)) -> 
B39: =HLOOKUP($B$1,'Room Inputs'!$D$3:$X$137,B84,0) -> 0 | C39: =HLOOKUP($B$1,'Room Inputs'!$D$3:$X$137,C84,0) -> 0 | D39: =HLOOKUP($B$1,'Room Inputs'!$D$3:$X$137,D84,0) -> 0 | E39: 0 | F39: =IF(B39<>"",IF(VLOOKUP(B39,B$14:I$25,6,FALSE)=UvalueWD!$C$6,VLOOKUP(B39,B$14:I$25,7,FALSE),VLOOKUP(B39,B$14:I$25,8,FALSE)),"") ->  | G39: =HLOOKUP($B$1,'Room Inputs'!$D$3:$X$137,G84,0) -> 0 | H39: =HLOOKUP($B$1,'Room Inputs'!$D$3:$X$137,H84,0) -> 0 | I39: =IF(OR(G39=UvalueWD!C$6,G39=""),"",VLOOKUP(G39,Windows,2,FALSE)) ->  | K39: =IF(G39=UvaluesWRF!A$2,IF(ISERROR(F39*J39*(H39-F39)),"",F39*J39*(H39-F39)),IF(ISERROR(F39*J39*(F39-I39)),"",(I39-F39)*J39*I39)) -> 
B41: * this is net heat loss (i.e. the heat loss of the window minus that of a wall of the same area) and so can be negative. This is done so that the area of the window or door does not have to be subtracted from the wall area.
I42: Room heat loss (W) | K42: =SUM(K10:K39) -> 0
B46: Row number lookup map
B48: Room name | C48: 2 | E48: Emitter type | F48: 3 | G48: For convectors consult the manufacturer's data and enter the temperature factor (FTEMP) for the appropriate fan speed | H48: 4 | I48: For radiators enter the n-coefficient (exponent) from manufacturer's data. If unknown 1.3 may be used | K48: 5
B50: Enter floor type and construction | C50: 6 | E50: Enter floor type and construction | F50: 7 | G50: For UFH enter Tog value (See Table 14) | H50: 8 | I50: For UFH enter active or exposed area of the heated floor | K50: 9
B52: Enter Room type below | E52: Enter Open fire/chimney details below
B53: 10 | E53: 11
B54: Room Dimensions
B55: Length (m) | D55: Width (m) | F55: Height (m)
B56: 13 | D56: 14 | F56: 15
B57: Walls, floors not ground floors and ceiling
B58: Name of wall, floor, ceiling | C58: Space on other side | D58: Height or length (m) | E58: Width (m) | G58: Construction | H58: Entered U- value (W/m²K), if required
B59: 16 | C59: 17 | D59: 18 | E59: 19 | G59: 20 | H59: 21
B60: 22 | C60: 23 | D60: 24 | E60: 25 | G60: 26 | H60: 27
B61: 28 | C61: 29 | D61: 30 | E61: 31 | G61: 32 | H61: 33
B62: 35 | C62: 36 | D62: 37 | E62: 38 | G62: 39 | H62: 40
B63: 41 | C63: 42 | D63: 43 | E63: 44 | G63: 45 | H63: 46
B64: 47 | C64: 48 | D64: 49 | E64: 50 | G64: 51 | H64: 52
B65: 53 | C65: 54 | D65: 55 | E65: 56 | G65: 57 | H65: 58
B66: 59 | C66: 60 | D66: 61 | E66: 62 | G66: 63 | H66: 64
B67: 65 | C67: 66 | D67: 67 | E67: 68 | G67: 69 | H67: 70
B68: 71 | C68: 72 | D68: 73 | E68: 74 | G68: 75 | H68: 76
B69: 77 | C69: 78 | D69: 79 | E69: 80 | G69: 81 | H69: 82
B70: 83 | C70: 84 | D70: 85 | E70: 86 | G70: 87 | H70: 88
B71: Ground floors Short length (m) | C71: long length (m) | D71: Edges exposed | G71: Type and Insulation thickness
B72: 89 | C72: 90 | D72: 91 | E72: 92 | G72: 92 | H72: 93
B73: 95 | C73: 96 | D73: 97 | G73: 98 | H73: 99
B74: 100 | C74: 101 | D74: 102 | G74: 103 | H74: 104
B77: Windows and doors
B78: Wall or roof with window or door | C78: Window or door height (m) | D78: Window or door width (m) | E78: Area (m²) | F78: Wall/roof U-value (W/m²K) | G78: Frame and glazing type | H78: Entered U- value (W/m²K), if required
B79: 105 | C79: 106 | D79: 107 | G79: 108 | H79: 109
B80: 111 | C80: 112 | D80: 113 | G80: 114 | H80: 115
B81: 116 | C81: 117 | D81: 118 | G81: 119 | H81: 120
B82: 121 | C82: 122 | D82: 123 | G82: 124 | H82: 125
B83: 126 | C83: 127 | D83: 128 | G83: 129 | H83: 130
B84: 131 | C84: 132 | D84: 133 | G84: 134 | H84: 135

Sheet 10 (hidden)
B1: ='Room Inputs'!M3 -> Room10
B3: Room name | C3: =HLOOKUP($B$1,'Room Inputs'!$D$3:$X$137,C48,0) -> 0 | E3: Emitter type | F3: =HLOOKUP($B$1,'Room Inputs'!$D$3:$X$137,F48,0) -> 0 | G3: For convectors consult the manufacturer's data and enter the temperature factor (FTEMP) for the appropriate fan speed | H3: =HLOOKUP($B$1,'Room Inputs'!$D$3:$X$137,H48,0) -> 0.85 | I3: For radiators enter the n-coefficient (exponent) from manufacturer's data. If unknown 1.3 may be used | K3: =HLOOKUP($B$1,'Room Inputs'!$D$3:$X$137,K48,0) -> 1.3
B5: Enter floor type and construction | C5: =HLOOKUP($B$1,'Room Inputs'!$D$3:$X$137,C50,0) -> 0 | E5: Enter floor type and construction | F5: =HLOOKUP($B$1,'Room Inputs'!$D$3:$X$137,F50,0) -> 0 | G5: For UFH enter Tog value (See Table 14) | H5: =HLOOKUP($B$1,'Room Inputs'!$D$3:$X$137,H50,0) -> 0.25 | I5: For UFH enter active or exposed area of the heated floor | K5: =HLOOKUP($B$1,'Room Inputs'!$D$3:$X$137,K50,0) -> 0
B7: Enter Room type below | E7: Enter Open fire/chimney details below | H7: Design room ventilation rate (air changes per hour) | K7: Design room temperature °C
B8: =HLOOKUP($B$1,'Room Inputs'!$D$3:$X$137,B53,0) -> 0 | E8: =HLOOKUP($B$1,'Room Inputs'!$D$3:$X$137,E53,0) -> 0 | H8: =IF(E8=VTables!B20,VLOOKUP(B8,DRVT,3,FALSE),MAX(VLOOKUP(B8,DRVT,3,FALSE),VLOOKUP(E8,ARVR,2,FALSE))) ->  | K8: =VLOOKUP(B8,DRVT,2,FALSE) -> 
B9: Room Dimensions
B10: Length (m) | D10: Width (m) | F10: Height (m) | G10: Room volume (m³) | J10: Design temperature difference | K10: Heat loss (W)
B11: =HLOOKUP($B$1,'Room Inputs'!$D$3:$X$137,B56,0) -> 0 | D11: =HLOOKUP($B$1,'Room Inputs'!$D$3:$X$137,D56,0) -> 0 | F11: =HLOOKUP($B$1,'Room Inputs'!$D$3:$X$137,F56,0) -> 0 | G11: =B11*D11*F11 -> 0 | J11: =K8-'Site Inputs'!C8 ->  | K11: =IF(G11>0,(ROUND(0.33*G11*H8*J11,2)),"") -> 
B12: Walls, floors not ground floors and ceiling
B13: Name of wall, floor, ceiling | C13: Space on other side | D13: Height or length (m) | E13: Width (m) | F13: Area (m²) | G13: Construction | H13: Entered U- value (W/m²K), if required | I13: U-value (W/m²K) | J13: Design temperature difference | K13: Heat loss (W) | M13: `
B14: =HLOOKUP($B$1,'Room Inputs'!$D$3:$X$137,B59,0) -> 0 | C14: =HLOOKUP($B$1,'Room Inputs'!$D$3:$X$137,C59,0) -> 0 | D14: =HLOOKUP($B$1,'Room Inputs'!$D$3:$X$137,D59,0) -> 0 | E14: =HLOOKUP($B$1,'Room Inputs'!$D$3:$X$137,E59,0) -> 0 | F14: =D14*E14 -> 0 | G14: =HLOOKUP($B$1,'Room Inputs'!$D$3:$X$137,G59,0) -> 0 | H14: =HLOOKUP($B$1,'Room Inputs'!$D$3:$X$137,H59,0) -> 0 | I14: =IF(OR(G14=UvaluesWRF!A$2,ISERROR(VLOOKUP(G14,UvaluesWRF!A$3:B$110,2,FALSE))),"",VLOOKUP(G14,UvaluesWRF!A$3:B$110,2,FALSE)) ->  | J14: =IF(C14="","",$K$8-VLOOKUP(C14,DRVT,2,FALSE)) ->  | K14: =IF(G14=UvaluesWRF!A$2,IF(ISERROR(F14*J14*H14),"",F14*J14*H14),IF(ISERROR(F14*J14*I14),"",F14*J14*I14)) -> 
B15: =HLOOKUP($B$1,'Room Inputs'!$D$3:$X$137,B60,0) -> 0 | C15: =HLOOKUP($B$1,'Room Inputs'!$D$3:$X$137,C60,0) -> 0 | D15: =HLOOKUP($B$1,'Room Inputs'!$D$3:$X$137,D60,0) -> 0 | E15: =HLOOKUP($B$1,'Room Inputs'!$D$3:$X$137,E60,0) -> 0 | F15: =D15*E15 -> 0 | G15: =HLOOKUP($B$1,'Room Inputs'!$D$3:$X$137,G60,0) -> 0 | H15: =HLOOKUP($B$1,'Room Inputs'!$D$3:$X$137,H60,0) -> 0 | I15: =IF(OR(G15=UvaluesWRF!A$2,ISERROR(VLOOKUP(G15,UvaluesWRF!A$3:B$110,2,FALSE))),"",VLOOKUP(G15,UvaluesWRF!A$3:B$110,2,FALSE)) ->  | K15: =IF(G15=UvaluesWRF!A$2,IF(ISERROR(F15*J15*H15),"",F15*J15*H15),IF(ISERROR(F15*J15*I15),"",F15*J15*I15)) -> 
B16: =HLOOKUP($B$1,'Room Inputs'!$D$3:$X$137,B61,0) -> 0 | C16: =HLOOKUP($B$1,'Room Inputs'!$D$3:$X$137,C61,0) -> 0 | D16: =HLOOKUP($B$1,'Room Inputs'!$D$3:$X$137,D61,0) -> 0 | E16: =HLOOKUP($B$1,'Room Inputs'!$D$3:$X$137,E61,0) -> 0 | F16: 0 | G16: =HLOOKUP($B$1,'Room Inputs'!$D$3:$X$137,G61,0) -> 0 | H16: =HLOOKUP($B$1,'Room Inputs'!$D$3:$X$137,H61,0) -> 0 | I16: =IF(OR(G16=UvaluesWRF!A$2,ISERROR(VLOOKUP(G16,UvaluesWRF!A$3:B$110,2,FALSE))),"",VLOOKUP(G16,UvaluesWRF!A$3:B$110,2,FALSE)) ->  | K16: =IF(G16=UvaluesWRF!A$2,IF(ISERROR(F16*J16*H16),"",F16*J16*H16),IF(ISERROR(F16*J16*I16),"",F16*J16*I16)) -> 
B17: =HLOOKUP($B$1,'Room Inputs'!$D$3:$X$137,B62,0) -> 0 | C17: =HLOOKUP($B$1,'Room Inputs'!$D$3:$X$137,C62,0) -> 0 | D17: =HLOOKUP($B$1,'Room Inputs'!$D$3:$X$137,D62,0) -> 0 | E17: =HLOOKUP($B$1,'Room Inputs'!$D$3:$X$137,E62,0) -> 0 | F17: 0 | G17: =HLOOKUP($B$1,'Room Inputs'!$D$3:$X$137,G62,0) -> 0 | H17: =HLOOKUP($B$1,'Room Inputs'!$D$3:$X$137,H62,0) -> 0 | I17: =IF(OR(G17=UvaluesWRF!A$2,ISERROR(VLOOKUP(G17,UvaluesWRF!A$3:B$110,2,FALSE))),"",VLOOKUP(G17,UvaluesWRF!A$3:B$110,2,FALSE)) ->  | K17: =IF(G17=UvaluesWRF!A$2,IF(ISERROR(F17*J17*H17),"",F17*J17*H17),IF(ISERROR(F17*J17*I17),"",F17*J17*I17)) -> 
B18: =HLOOKUP($B$1,'Room Inputs'!$D$3:$X$137,B63,0) -> 0 | C18: =HLOOKUP($B$1,'Room Inputs'!$D$3:$X$137,C63,0) -> 0 | D18: =HLOOKUP($B$1,'Room Inputs'!$D$3:$X$137,D63,0) -> 0 | E18: =HLOOKUP($B$1,'Room Inputs'!$D$3:$X$137,E63,0) -> 0 | F18: 0 | G18: =HLOOKUP($B$1,'Room Inputs'!$D$3:$X$137,G63,0) -> 0 | H18: =HLOOKUP($B$1,'Room Inputs'!$D$3:$X$137,H63,0) -> 0 | I18: =IF(OR(G18=UvaluesWRF!A$2,ISERROR(VLOOKUP(G18,UvaluesWRF!A$3:B$110,2,FALSE))),"",VLOOKUP(G18,UvaluesWRF!A$3:B$110,2,FALSE)) ->  | K18: =IF(G18=UvaluesWRF!A$2,IF(ISERROR(F18*J18*H18),"",F18*J18*H18),IF(ISERROR(F18*J18*I18),"",F18*J18*I18)) -> 
B19: =HLOOKUP($B$1,'Room Inputs'!$D$3:$X$137,B64,0) -> 0 | C19: =HLOOKUP($B$1,'Room Inputs'!$D$3:$X$137,C64,0) -> 0 | D19: =HLOOKUP($B$1,'Room Inputs'!$D$3:$X$137,D64,0) -> 0 | E19: =HLOOKUP($B$1,'Room Inputs'!$D$3:$X$137,E64,0) -> 0 | F19: 0 | G19: =HLOOKUP($B$1,'Room Inputs'!$D$3:$X$137,G64,0) -> 0 | H19: =HLOOKUP($B$1,'Room Inputs'!$D$3:$X$137,H64,0) -> 0 | I19: =IF(OR(G19=UvaluesWRF!A$2,ISERROR(VLOOKUP(G19,UvaluesWRF!A$3:B$110,2,FALSE))),"",VLOOKUP(G19,UvaluesWRF!A$3:B$110,2,FALSE)) ->  | K19: =IF(G19=UvaluesWRF!A$2,IF(ISERROR(F19*J19*H19),"",F19*J19*H19),IF(ISERROR(F19*J19*I19),"",F19*J19*I19)) -> 
B20: =HLOOKUP($B$1,'Room Inputs'!$D$3:$X$137,B65,0) -> 0 | C20: =HLOOKUP($B$1,'Room Inputs'!$D$3:$X$137,C65,0) -> 0 | D20: =HLOOKUP($B$1,'Room Inputs'!$D$3:$X$137,D65,0) -> 0 | E20: =HLOOKUP($B$1,'Room Inputs'!$D$3:$X$137,E65,0) -> 0 | F20: 0 | G20: =HLOOKUP($B$1,'Room Inputs'!$D$3:$X$137,G65,0) -> 0 | H20: =HLOOKUP($B$1,'Room Inputs'!$D$3:$X$137,H65,0) -> 0 | I20: =IF(OR(G20=UvaluesWRF!A$2,ISERROR(VLOOKUP(G20,UvaluesWRF!A$3:B$110,2,FALSE))),"",VLOOKUP(G20,UvaluesWRF!A$3:B$110,2,FALSE)) ->  | K20: =IF(G20=UvaluesWRF!A$2,IF(ISERROR(F20*J20*H20),"",F20*J20*H20),IF(ISERROR(F20*J20*I20),"",F20*J20*I20)) -> 
B21: =HLOOKUP($B$1,'Room Inputs'!$D$3:$X$137,B66,0) -> 0 | C21: =HLOOKUP($B$1,'Room Inputs'!$D$3:$X$137,C66,0) -> 0 | D21: =HLOOKUP($B$1,'Room Inputs'!$D$3:$X$137,D66,0) -> 0 | E21: =HLOOKUP($B$1,'Room Inputs'!$D$3:$X$137,E66,0) -> 0 | F21: 0 | G21: =HLOOKUP($B$1,'Room Inputs'!$D$3:$X$137,G66,0) -> 0 | H21: =HLOOKUP($B$1,'Room Inputs'!$D$3:$X$137,H66,0) -> 0 | I21: =IF(OR(G21=UvaluesWRF!A$2,ISERROR(VLOOKUP(G21,UvaluesWRF!A$3:B$110,2,FALSE))),"",VLOOKUP(G21,UvaluesWRF!A$3:B$110,2,FALSE)) ->  | K21: =IF(G21=UvaluesWRF!A$2,IF(ISERROR(F21*J21*H21),"",F21*J21*H21),IF(ISERROR(F21*J21*I21),"",F21*J21*I21)) -> 
B22: =HLOOKUP($B$1,'Room Inputs'!$D$3:$X$137,B67,0) -> 0 | C22: =HLOOKUP($B$1,'Room Inputs'!$D$3:$X$137,C67,0) -> 0 | D22: =HLOOKUP($B$1,'Room Inputs'!$D$3:$X$137,D67,0) -> 0 | E22: =HLOOKUP($B$1,'Room Inputs'!$D$3:$X$137,E67,0) -> 0 | F22: 0 | G22: =HLOOKUP($B$1,'Room Inputs'!$D$3:$X$137,G67,0) -> 0 | H22: =HLOOKUP($B$1,'Room Inputs'!$D$3:$X$137,H67,0) -> 0 | I22: =IF(OR(G22=UvaluesWRF!A$2,ISERROR(VLOOKUP(G22,UvaluesWRF!A$3:B$110,2,FALSE))),"",VLOOKUP(G22,UvaluesWRF!A$3:B$110,2,FALSE)) ->  | K22: =IF(G22=UvaluesWRF!A$2,IF(ISERROR(F22*J22*H22),"",F22*J22*H22),IF(ISERROR(F22*J22*I22),"",F22*J22*I22)) -> 
B23: =HLOOKUP($B$1,'Room Inputs'!$D$3:$X$137,B68,0) -> 0 | C23: =HLOOKUP($B$1,'Room Inputs'!$D$3:$X$137,C68,0) -> 0 | D23: =HLOOKUP($B$1,'Room Inputs'!$D$3:$X$137,D68,0) -> 0 | E23: =HLOOKUP($B$1,'Room Inputs'!$D$3:$X$137,E68,0) -> 0 | F23: 0 | G23: =HLOOKUP($B$1,'Room Inputs'!$D$3:$X$137,G68,0) -> 0 | H23: =HLOOKUP($B$1,'Room Inputs'!$D$3:$X$137,H68,0) -> 0 | I23: =IF(OR(G23=UvaluesWRF!A$2,ISERROR(VLOOKUP(G23,UvaluesWRF!A$3:B$110,2,FALSE))),"",VLOOKUP(G23,UvaluesWRF!A$3:B$110,2,FALSE)) ->  | K23: =IF(G23=UvaluesWRF!A$2,IF(ISERROR(F23*J23*H23),"",F23*J23*H23),IF(ISERROR(F23*J23*I23),"",F23*J23*I23)) -> 
B24: =HLOOKUP($B$1,'Room Inputs'!$D$3:$X$137,B69,0) -> 0 | C24: =HLOOKUP($B$1,'Room Inputs'!$D$3:$X$137,C69,0) -> 0 | D24: =HLOOKUP($B$1,'Room Inputs'!$D$3:$X$137,D69,0) -> 0 | E24: =HLOOKUP($B$1,'Room Inputs'!$D$3:$X$137,E69,0) -> 0 | F24: 0 | G24: =HLOOKUP($B$1,'Room Inputs'!$D$3:$X$137,G69,0) -> 0 | H24: =HLOOKUP($B$1,'Room Inputs'!$D$3:$X$137,H69,0) -> 0 | I24: =IF(OR(G24=UvaluesWRF!A$2,ISERROR(VLOOKUP(G24,UvaluesWRF!A$3:B$110,2,FALSE))),"",VLOOKUP(G24,UvaluesWRF!A$3:B$110,2,FALSE)) ->  | K24: =IF(G24=UvaluesWRF!A$2,IF(ISERROR(F24*J24*H24),"",F24*J24*H24),IF(ISERROR(F24*J24*I24),"",F24*J24*I24)) -> 
B25: =HLOOKUP($B$1,'Room Inputs'!$D$3:$X$137,B70,0) -> 0 | C25: =HLOOKUP($B$1,'Room Inputs'!$D$3:$X$137,C70,0) -> 0 | D25: =HLOOKUP($B$1,'Room Inputs'!$D$3:$X$137,D70,0) -> 0 | E25: =HLOOKUP($B$1,'Room Inputs'!$D$3:$X$137,E70,0) -> 0 | F25: 0 | G25: =HLOOKUP($B$1,'Room Inputs'!$D$3:$X$137,G70,0) -> 0 | H25: =HLOOKUP($B$1,'Room Inputs'!$D$3:$X$137,H70,0) -> 0 | I25: =IF(OR(G25=UvaluesWRF!A$2,ISERROR(VLOOKUP(G25,UvaluesWRF!A$3:B$110,2,FALSE))),"",VLOOKUP(G25,UvaluesWRF!A$3:B$110,2,FALSE)) ->  | K25: =IF(G25=UvaluesWRF!A$2,IF(ISERROR(F25*J25*H25),"",F25*J25*H25),IF(ISERROR(F25*J25*I25),"",F25*J25*I25)) -> 
B26: Ground floors Short length (m) | C26: long length (m) | D26: Edges exposed | G26: Type and Insulation thickness | M26: U-value | N26: Edge | O26: Insulation | P26: Column | R26: 1 | S26: 2 | T26: 3 | U26: 4 | V26: 5.3 | W26: 5.4 | X26: 5.5 | Y26: 5.6 | Z26: 6.3 | AA26: 6.4 | AB26: 6.5 | AC26: 6.6
B27: =HLOOKUP($B$1,'Room Inputs'!$D$3:$X$137,B72,0) -> 0 | C27: =HLOOKUP($B$1,'Room Inputs'!$D$3:$X$137,C72,0) -> 0 | D27: =HLOOKUP($B$1,'Room Inputs'!$D$3:$X$137,D72,0) -> 0 | E27: =HLOOKUP($B$1,'Room Inputs'!$D$3:$X$137,E72,0) -> 0 | F27: =B27*C27 -> 0 | G27: =HLOOKUP($B$1,'Room Inputs'!$D$3:$X$137,G72,0) -> 0 | H27: =HLOOKUP($B$1,'Room Inputs'!$D$3:$X$137,H72,0) -> 0 | I27: =IF(OR(G27=UvaluesFlr!$U$3,G27=UvaluesFlr!$U$4,ISERROR(M27)),"",M27) ->  | J27: =$K$8-IF(LEFT(G27,2)="So",10,'Site Inputs'!$C$8) ->  | K27: =IF(OR(G27=UvaluesFlr!$U$3,G27=UvaluesFlr!$U$4),IF(ISERROR(F27*J27*H27),"",F27*J27*H27),IF(ISERROR(F27*J27*I27),"",F27*J27*I27)) ->  | M27: =HLOOKUP(N27+MIN(0.6,IF(N27>4,O27/10,0)),$R$26:$AC$29,2,TRUE) ->  | N27: =VLOOKUP(D27,UvaluesFlr!$U$17:$V$22,2,FALSE) ->  | O27: =VLOOKUP(G27,UvaluesFlr!$U$3:$W$14,2,FALSE) ->  | P27: =VLOOKUP(G27,UvaluesFlr!$U$3:$W$14,3,FALSE) ->  | R27: =VLOOKUP(C27,UvaluesFlr!$C$53:$P$59,$P27,TRUE) ->  | S27: =VLOOKUP(B27,UvaluesFlr!$C$53:$P$59,$P27,TRUE) ->  | T27: =VLOOKUP(B27+C27,UvaluesFlr!$C$4:$P$12,$P27,TRUE) ->  | U27: =VLOOKUP(B27,UvaluesFlr!$C$16:$P$21,$P27,TRUE) ->  | V27: =VLOOKUP($C27,UvaluesFlr!$D$26:$P$29,$P27-1,TRUE) ->  | W27: =VLOOKUP($C27,UvaluesFlr!$D$30:$P$31,$P27-1,TRUE) ->  | X27: =VLOOKUP($C27,UvaluesFlr!$D$32:$P$33,$P27-1,TRUE) ->  | Y27: =VLOOKUP($C27,UvaluesFlr!$D$34:$P$35,$P27-1,TRUE) ->  | Z27: =VLOOKUP($C27,UvaluesFlr!$D$39:$P$42,$P27-1,TRUE) ->  | AA27: =VLOOKUP($C27,UvaluesFlr!$D$43:$P$45,$P27-1,TRUE) ->  | AB27: =VLOOKUP($C27,UvaluesFlr!$D$46:$P$48,$P27-1,TRUE) ->  | AC27: =VLOOKUP($C27,UvaluesFlr!$D$49:$P$50,$P27-1,TRUE) -> 
B28: =HLOOKUP($B$1,'Room Inputs'!$D$3:$X$137,B73,0) -> 0 | C28: =HLOOKUP($B$1,'Room Inputs'!$D$3:$X$137,C73,0) -> 0 | D28: =HLOOKUP($B$1,'Room Inputs'!$D$3:$X$137,D73,0) -> 0 | E28: =HLOOKUP($B$1,'Room Inputs'!$D$3:$X$137,E73,0) ->  | F28: =B28*C28 -> 0 | G28: =HLOOKUP($B$1,'Room Inputs'!$D$3:$X$137,G73,0) -> 0 | H28: =HLOOKUP($B$1,'Room Inputs'!$D$3:$X$137,H73,0) -> 0 | I28: =IF(OR(G28=UvaluesFlr!$U$3,G28=UvaluesFlr!$U$4,ISERROR(M28)),"",M28) ->  | J28: =$K$8-IF(LEFT(G28,2)="So",10,'Site Inputs'!$C$8) ->  | K28: =IF(OR(G28=UvaluesFlr!$U$3,G28=UvaluesFlr!$U$4),IF(ISERROR(F28*J28*H28),"",F28*J28*H28),IF(ISERROR(F28*J28*I28),"",F28*J28*I28)) ->  | M28: =HLOOKUP(N28+MIN(0.6,IF(N28>4,O28/10,0)),$R$26:$AC$29,3,TRUE) ->  | N28: =VLOOKUP(D28,UvaluesFlr!$U$17:$V$22,2,FALSE) ->  | O28: =VLOOKUP(G28,UvaluesFlr!$U$3:$W$14,2,FALSE) ->  | P28: =VLOOKUP(G28,UvaluesFlr!$U$3:$W$14,3,FALSE) ->  | R28: =VLOOKUP(C28,UvaluesFlr!$C$53:$P$59,$P28,TRUE) ->  | S28: =VLOOKUP(B28,UvaluesFlr!$C$53:$P$59,$P28,TRUE) ->  | T28: =VLOOKUP(B28+C28,UvaluesFlr!$C$4:$P$12,$P28,TRUE) ->  | U28: =VLOOKUP(B28,UvaluesFlr!$C$16:$P$21,$P28,TRUE) ->  | V28: =VLOOKUP($C28,UvaluesFlr!$D$26:$P$29,$P28-1,TRUE) ->  | W28: =VLOOKUP($C28,UvaluesFlr!$D$30:$P$31,$P28-1,TRUE) ->  | X28: =VLOOKUP($C28,UvaluesFlr!$D$32:$P$33,$P28-1,TRUE) ->  | Y28: =VLOOKUP($C28,UvaluesFlr!$D$34:$P$35,$P28-1,TRUE) ->  | Z28: =VLOOKUP($C28,UvaluesFlr!$D$39:$P$42,$P28-1,TRUE) ->  | AA28: =VLOOKUP($C28,UvaluesFlr!$D$43:$P$45,$P28-1,TRUE) ->  | AB28: =VLOOKUP($C28,UvaluesFlr!$D$46:$P$48,$P28-1,TRUE) ->  | AC28: =VLOOKUP($C28,UvaluesFlr!$D$49:$P$50,$P28-1,TRUE) -> 
B29: =HLOOKUP($B$1,'Room Inputs'!$D$3:$X$137,B74,0) -> 0 | C29: =HLOOKUP($B$1,'Room Inputs'!$D$3:$X$137,C74,0) -> 0 | D29: =HLOOKUP($B$1,'Room Inputs'!$D$3:$X$137,D74,0) -> 0 | E29: =HLOOKUP($B$1,'Room Inputs'!$D$3:$X$137,E74,0) ->  | F29: =B29*C29 -> 0 | G29: =HLOOKUP($B$1,'Room Inputs'!$D$3:$X$137,G74,0) -> 0 | H29: =HLOOKUP($B$1,'Room Inputs'!$D$3:$X$137,H74,0) -> 0 | I29: =IF(OR(G29=UvaluesFlr!$U$3,G29=UvaluesFlr!$U$4,ISERROR(M29)),"",M29) ->  | J29: =$K$8-IF(LEFT(G29,2)="So",10,'Site Inputs'!$C$8) ->  | K29: =IF(OR(G29=UvaluesFlr!$U$3,G29=UvaluesFlr!$U$4),IF(ISERROR(F29*J29*H29),"",F29*J29*H29),IF(ISERROR(F29*J29*I29),"",F29*J29*I29)) ->  | M29: =HLOOKUP(N29+MIN(0.6,IF(N29>4,O29/10,0)),$R$26:$AC$29,4,TRUE) ->  | N29: =VLOOKUP(D29,UvaluesFlr!$U$17:$V$22,2,FALSE) ->  | O29: =VLOOKUP(G29,UvaluesFlr!$U$3:$W$14,2,FALSE) ->  | P29: =VLOOKUP(G29,UvaluesFlr!$U$3:$W$14,3,FALSE) ->  | R29: =VLOOKUP(C29,UvaluesFlr!$C$53:$P$59,$P29,TRUE) ->  | S29: =VLOOKUP(B29,UvaluesFlr!$C$53:$P$59,$P29,TRUE) ->  | T29: =VLOOKUP(B29+C29,UvaluesFlr!$C$4:$P$12,$P29,TRUE) ->  | U29: =VLOOKUP(B29,UvaluesFlr!$C$16:$P$21,$P29,TRUE) ->  | V29: =VLOOKUP($C29,UvaluesFlr!$D$26:$P$29,$P29-1,TRUE) ->  | W29: =VLOOKUP($C29,UvaluesFlr!$D$30:$P$31,$P29-1,TRUE) ->  | X29: =VLOOKUP($C29,UvaluesFlr!$D$32:$P$33,$P29-1,TRUE) ->  | Y29: =VLOOKUP($C29,UvaluesFlr!$D$34:$P$35,$P29-1,TRUE) ->  | Z29: =VLOOKUP($C29,UvaluesFlr!$D$39:$P$42,$P29-1,TRUE) ->  | AA29: =VLOOKUP($C29,UvaluesFlr!$D$43:$P$45,$P29-1,TRUE) ->  | AB29: =VLOOKUP($C29,UvaluesFlr!$D$46:$P$48,$P29-1,TRUE) ->  | AC29: =VLOOKUP($C29,UvaluesFlr!$D$49:$P$50,$P29-1,TRUE) -> 
B32: Windows and doors
B33: Wall or roof with window or door | C33: Window or door height (m) | D33: Window or door width (m) | E33: Area (m²) | F33: Wall/roof U-value (W/m²K) | G33: Frame and glazing type | H33: Entered U- value (W/m²K), if required | I33: U-value | J33: Design temperature difference | K33: Heat loss (W)*
B34: =HLOOKUP($B$1,'Room Inputs'!$D$3:$X$137,B79,0) -> 0 | C34: =HLOOKUP($B$1,'Room Inputs'!$D$3:$X$137,C79,0) -> 0 | D34: =HLOOKUP($B$1,'Room Inputs'!$D$3:$X$137,D79,0) -> 0 | E34: =C34*D34 -> 0 | F34: =IF(B34<>"",IF(VLOOKUP(B34,B$14:I$25,6,FALSE)=UvalueWD!$C$6,VLOOKUP(B34,B$14:I$25,7,FALSE),VLOOKUP(B34,B$14:I$25,8,FALSE)),"") ->  | G34: =HLOOKUP($B$1,'Room Inputs'!$D$3:$X$137,G79,0) -> 0 | H34: =HLOOKUP($B$1,'Room Inputs'!$D$3:$X$137,H79,0) -> 0 | I34: =IF(OR(G34=UvalueWD!C$6,G34=""),"",VLOOKUP(G34,Windows,2,FALSE)) ->  | J34: =IF(ISERROR(VLOOKUP(B34,B$13:K$29,9,FALSE)),"",VLOOKUP(B34,B$13:K$29,9,FALSE)) ->  | K34: =IF(G34=UvaluesWRF!A$2,IF(ISERROR(F34*J34*(H34-F34)),"",F34*J34*(H34-F34)),IF(ISERROR(F34*J34*(F34-I34)),"",(I34-F34)*J34*I34)) -> 
B35: =HLOOKUP($B$1,'Room Inputs'!$D$3:$X$137,B80,0) -> 0 | C35: =HLOOKUP($B$1,'Room Inputs'!$D$3:$X$137,C80,0) -> 0 | D35: =HLOOKUP($B$1,'Room Inputs'!$D$3:$X$137,D80,0) -> 0 | E35: 0 | F35: =IF(B35<>"",IF(VLOOKUP(B35,B$14:I$25,6,FALSE)=UvalueWD!$C$6,VLOOKUP(B35,B$14:I$25,7,FALSE),VLOOKUP(B35,B$14:I$25,8,FALSE)),"") ->  | G35: =HLOOKUP($B$1,'Room Inputs'!$D$3:$X$137,G80,0) -> 0 | H35: =HLOOKUP($B$1,'Room Inputs'!$D$3:$X$137,H80,0) -> 0 | I35: =IF(OR(G35=UvalueWD!C$6,G35=""),"",VLOOKUP(G35,Windows,2,FALSE)) ->  | K35: =IF(G35=UvaluesWRF!A$2,IF(ISERROR(F35*J35*(H35-F35)),"",F35*J35*(H35-F35)),IF(ISERROR(F35*J35*(F35-I35)),"",(I35-F35)*J35*I35)) -> 
B36: =HLOOKUP($B$1,'Room Inputs'!$D$3:$X$137,B81,0) -> 0 | C36: =HLOOKUP($B$1,'Room Inputs'!$D$3:$X$137,C81,0) -> 0 | D36: =HLOOKUP($B$1,'Room Inputs'!$D$3:$X$137,D81,0) -> 0 | E36: 0 | F36: =IF(B36<>"",IF(VLOOKUP(B36,B$14:I$25,6,FALSE)=UvalueWD!$C$6,VLOOKUP(B36,B$14:I$25,7,FALSE),VLOOKUP(B36,B$14:I$25,8,FALSE)),"") ->  | G36: =HLOOKUP($B$1,'Room Inputs'!$D$3:$X$137,G81,0) -> 0 | H36: =HLOOKUP($B$1,'Room Inputs'!$D$3:$X$137,H81,0) -> 0 | I36: =IF(OR(G36=UvalueWD!C$6,G36=""),"",VLOOKUP(G36,Windows,2,FALSE)) ->  | K36: =IF(G36=UvaluesWRF!A$2,IF(ISERROR(F36*J36*(H36-F36)),"",F36*J36*(H36-F36)),IF(ISERROR(F36*J36*(F36-I36)),"",(I36-F36)*J36*I36)) -> 
B37: =HLOOKUP($B$1,'Room Inputs'!$D$3:$X$137,B82,0) -> 0 | C37: =HLOOKUP($B$1,'Room Inputs'!$D$3:$X$137,C82,0) -> 0 | D37: =HLOOKUP($B$1,'Room Inputs'!$D$3:$X$137,D82,0) -> 0 | E37: 0 | F37: =IF(B37<>"",IF(VLOOKUP(B37,B$14:I$25,6,FALSE)=UvalueWD!$C$6,VLOOKUP(B37,B$14:I$25,7,FALSE),VLOOKUP(B37,B$14:I$25,8,FALSE)),"") ->  | G37: =HLOOKUP($B$1,'Room Inputs'!$D$3:$X$137,G82,0) -> 0 | H37: =HLOOKUP($B$1,'Room Inputs'!$D$3:$X$137,H82,0) -> 0 | I37: =IF(OR(G37=UvalueWD!C$6,G37=""),"",VLOOKUP(G37,Windows,2,FALSE)) ->  | K37: =IF(G37=UvaluesWRF!A$2,IF(ISERROR(F37*J37*(H37-F37)),"",F37*J37*(H37-F37)),IF(ISERROR(F37*J37*(F37-I37)),"",(I37-F37)*J37*I37)) -> 
B38: =HLOOKUP($B$1,'Room Inputs'!$D$3:$X$137,B83,0) -> 0 | C38: =HLOOKUP($B$1,'Room Inputs'!$D$3:$X$137,C83,0) -> 0 | D38: =HLOOKUP($B$1,'Room Inputs'!$D$3:$X$137,D83,0) -> 0 | E38: 0 | F38: =IF(B38<>"",IF(VLOOKUP(B38,B$14:I$25,6,FALSE)=UvalueWD!$C$6,VLOOKUP(B38,B$14:I$25,7,FALSE),VLOOKUP(B38,B$14:I$25,8,FALSE)),"") ->  | G38: =HLOOKUP($B$1,'Room Inputs'!$D$3:$X$137,G83,0) -> 0 | H38: =HLOOKUP($B$1,'Room Inputs'!$D$3:$X$137,H83,0) -> 0 | I38: =IF(OR(G38=UvalueWD!C$6,G38=""),"",VLOOKUP(G38,Windows,2,FALSE)) ->  | K38: =IF(G38=UvaluesWRF!A$2,IF(ISERROR(F38*J38*(H38-F38)),"",F38*J38*(H38-F38)),IF(ISERROR(F38*J38*(F38-I38)),"",(I38-F38)*J38*I38)) -> 
B39: =HLOOKUP($B$1,'Room Inputs'!$D$3:$X$137,B84,0) -> 0 | C39: =HLOOKUP($B$1,'Room Inputs'!$D$3:$X$137,C84,0) -> 0 | D39: =HLOOKUP($B$1,'Room Inputs'!$D$3:$X$137,D84,0) -> 0 | E39: 0 | F39: =IF(B39<>"",IF(VLOOKUP(B39,B$14:I$25,6,FALSE)=UvalueWD!$C$6,VLOOKUP(B39,B$14:I$25,7,FALSE),VLOOKUP(B39,B$14:I$25,8,FALSE)),"") ->  | G39: =HLOOKUP($B$1,'Room Inputs'!$D$3:$X$137,G84,0) -> 0 | H39: =HLOOKUP($B$1,'Room Inputs'!$D$3:$X$137,H84,0) -> 0 | I39: =IF(OR(G39=UvalueWD!C$6,G39=""),"",VLOOKUP(G39,Windows,2,FALSE)) ->  | K39: =IF(G39=UvaluesWRF!A$2,IF(ISERROR(F39*J39*(H39-F39)),"",F39*J39*(H39-F39)),IF(ISERROR(F39*J39*(F39-I39)),"",(I39-F39)*J39*I39)) -> 
B41: * this is net heat loss (i.e. the heat loss of the window minus that of a wall of the same area) and so can be negative. This is done so that the area of the window or door does not have to be subtracted from the wall area.
I42: Room heat loss (W) | K42: =SUM(K10:K39) -> 0
B46: Row number lookup map
B48: Room name | C48: 2 | E48: Emitter type | F48: 3 | G48: For convectors consult the manufacturer's data and enter the temperature factor (FTEMP) for the appropriate fan speed | H48: 4 | I48: For radiators enter the n-coefficient (exponent) from manufacturer's data. If unknown 1.3 may be used | K48: 5
B50: Enter floor type and construction | C50: 6 | E50: Enter floor type and construction | F50: 7 | G50: For UFH enter Tog value (See Table 14) | H50: 8 | I50: For UFH enter active or exposed area of the heated floor | K50: 9
B52: Enter Room type below | E52: Enter Open fire/chimney details below
B53: 10 | E53: 11
B54: Room Dimensions
B55: Length (m) | D55: Width (m) | F55: Height (m)
B56: 13 | D56: 14 | F56: 15
B57: Walls, floors not ground floors and ceiling
B58: Name of wall, floor, ceiling | C58: Space on other side | D58: Height or length (m) | E58: Width (m) | G58: Construction | H58: Entered U- value (W/m²K), if required
B59: 16 | C59: 17 | D59: 18 | E59: 19 | G59: 20 | H59: 21
B60: 22 | C60: 23 | D60: 24 | E60: 25 | G60: 26 | H60: 27
B61: 28 | C61: 29 | D61: 30 | E61: 31 | G61: 32 | H61: 33
B62: 35 | C62: 36 | D62: 37 | E62: 38 | G62: 39 | H62: 40
B63: 41 | C63: 42 | D63: 43 | E63: 44 | G63: 45 | H63: 46
B64: 47 | C64: 48 | D64: 49 | E64: 50 | G64: 51 | H64: 52
B65: 53 | C65: 54 | D65: 55 | E65: 56 | G65: 57 | H65: 58
B66: 59 | C66: 60 | D66: 61 | E66: 62 | G66: 63 | H66: 64
B67: 65 | C67: 66 | D67: 67 | E67: 68 | G67: 69 | H67: 70
B68: 71 | C68: 72 | D68: 73 | E68: 74 | G68: 75 | H68: 76
B69: 77 | C69: 78 | D69: 79 | E69: 80 | G69: 81 | H69: 82
B70: 83 | C70: 84 | D70: 85 | E70: 86 | G70: 87 | H70: 88
B71: Ground floors Short length (m) | C71: long length (m) | D71: Edges exposed | G71: Type and Insulation thickness
B72: 89 | C72: 90 | D72: 91 | E72: 92 | G72: 92 | H72: 93
B73: 95 | C73: 96 | D73: 97 | G73: 98 | H73: 99
B74: 100 | C74: 101 | D74: 102 | G74: 103 | H74: 104
B77: Windows and doors
B78: Wall or roof with window or door | C78: Window or door height (m) | D78: Window or door width (m) | E78: Area (m²) | F78: Wall/roof U-value (W/m²K) | G78: Frame and glazing type | H78: Entered U- value (W/m²K), if required
B79: 105 | C79: 106 | D79: 107 | G79: 108 | H79: 109
B80: 111 | C80: 112 | D80: 113 | G80: 114 | H80: 115
B81: 116 | C81: 117 | D81: 118 | G81: 119 | H81: 120
B82: 121 | C82: 122 | D82: 123 | G82: 124 | H82: 125
B83: 126 | C83: 127 | D83: 128 | G83: 129 | H83: 130
B84: 131 | C84: 132 | D84: 133 | G84: 134 | H84: 135

Sheet 11 (hidden)
B1: ='Room Inputs'!O3 -> Room11
B3: Room name | C3: =HLOOKUP($B$1,'Room Inputs'!$D$3:$X$137,C48,0) -> 0 | E3: Emitter type | F3: =HLOOKUP($B$1,'Room Inputs'!$D$3:$X$137,F48,0) -> 0 | G3: For convectors consult the manufacturer's data and enter the temperature factor (FTEMP) for the appropriate fan speed | H3: =HLOOKUP($B$1,'Room Inputs'!$D$3:$X$137,H48,0) -> 0.85 | I3: For radiators enter the n-coefficient (exponent) from manufacturer's data. If unknown 1.3 may be used | K3: =HLOOKUP($B$1,'Room Inputs'!$D$3:$X$137,K48,0) -> 1.3
B5: Enter floor type and construction | C5: =HLOOKUP($B$1,'Room Inputs'!$D$3:$X$137,C50,0) -> 0 | E5: Enter floor type and construction | F5: =HLOOKUP($B$1,'Room Inputs'!$D$3:$X$137,F50,0) -> 0 | G5: For UFH enter Tog value (See Table 14) | H5: =HLOOKUP($B$1,'Room Inputs'!$D$3:$X$137,H50,0) -> 0.25 | I5: For UFH enter active or exposed area of the heated floor | K5: =HLOOKUP($B$1,'Room Inputs'!$D$3:$X$137,K50,0) -> 0
B7: Enter Room type below | E7: Enter Open fire/chimney details below | H7: Design room ventilation rate (air changes per hour) | K7: Design room temperature °C
B8: =HLOOKUP($B$1,'Room Inputs'!$D$3:$X$137,B53,0) -> 0 | E8: =HLOOKUP($B$1,'Room Inputs'!$D$3:$X$137,E53,0) -> 0 | H8: =IF(E8=VTables!B20,VLOOKUP(B8,DRVT,3,FALSE),MAX(VLOOKUP(B8,DRVT,3,FALSE),VLOOKUP(E8,ARVR,2,FALSE))) ->  | K8: =VLOOKUP(B8,DRVT,2,FALSE) -> 
B9: Room Dimensions
B10: Length (m) | D10: Width (m) | F10: Height (m) | G10: Room volume (m³) | J10: Design temperature difference | K10: Heat loss (W)
B11: =HLOOKUP($B$1,'Room Inputs'!$D$3:$X$137,B56,0) -> 0 | D11: =HLOOKUP($B$1,'Room Inputs'!$D$3:$X$137,D56,0) -> 0 | F11: =HLOOKUP($B$1,'Room Inputs'!$D$3:$X$137,F56,0) -> 0 | G11: =B11*D11*F11 -> 0 | J11: =K8-'Site Inputs'!C8 ->  | K11: =IF(G11>0,(ROUND(0.33*G11*H8*J11,2)),"") -> 
B12: Walls, floors not ground floors and ceiling
B13: Name of wall, floor, ceiling | C13: Space on other side | D13: Height or length (m) | E13: Width (m) | F13: Area (m²) | G13: Construction | H13: Entered U- value (W/m²K), if required | I13: U-value (W/m²K) | J13: Design temperature difference | K13: Heat loss (W) | M13: `
B14: =HLOOKUP($B$1,'Room Inputs'!$D$3:$X$137,B59,0) -> 0 | C14: =HLOOKUP($B$1,'Room Inputs'!$D$3:$X$137,C59,0) -> 0 | D14: =HLOOKUP($B$1,'Room Inputs'!$D$3:$X$137,D59,0) -> 0 | E14: =HLOOKUP($B$1,'Room Inputs'!$D$3:$X$137,E59,0) -> 0 | F14: =D14*E14 -> 0 | G14: =HLOOKUP($B$1,'Room Inputs'!$D$3:$X$137,G59,0) -> 0 | H14: =HLOOKUP($B$1,'Room Inputs'!$D$3:$X$137,H59,0) -> 0 | I14: =IF(OR(G14=UvaluesWRF!A$2,ISERROR(VLOOKUP(G14,UvaluesWRF!A$3:B$110,2,FALSE))),"",VLOOKUP(G14,UvaluesWRF!A$3:B$110,2,FALSE)) ->  | J14: =IF(C14="","",$K$8-VLOOKUP(C14,DRVT,2,FALSE)) ->  | K14: =IF(G14=UvaluesWRF!A$2,IF(ISERROR(F14*J14*H14),"",F14*J14*H14),IF(ISERROR(F14*J14*I14),"",F14*J14*I14)) -> 
B15: =HLOOKUP($B$1,'Room Inputs'!$D$3:$X$137,B60,0) -> 0 | C15: =HLOOKUP($B$1,'Room Inputs'!$D$3:$X$137,C60,0) -> 0 | D15: =HLOOKUP($B$1,'Room Inputs'!$D$3:$X$137,D60,0) -> 0 | E15: =HLOOKUP($B$1,'Room Inputs'!$D$3:$X$137,E60,0) -> 0 | F15: =D15*E15 -> 0 | G15: =HLOOKUP($B$1,'Room Inputs'!$D$3:$X$137,G60,0) -> 0 | H15: =HLOOKUP($B$1,'Room Inputs'!$D$3:$X$137,H60,0) -> 0 | I15: =IF(OR(G15=UvaluesWRF!A$2,ISERROR(VLOOKUP(G15,UvaluesWRF!A$3:B$110,2,FALSE))),"",VLOOKUP(G15,UvaluesWRF!A$3:B$110,2,FALSE)) ->  | K15: =IF(G15=UvaluesWRF!A$2,IF(ISERROR(F15*J15*H15),"",F15*J15*H15),IF(ISERROR(F15*J15*I15),"",F15*J15*I15)) -> 
B16: =HLOOKUP($B$1,'Room Inputs'!$D$3:$X$137,B61,0) -> 0 | C16: =HLOOKUP($B$1,'Room Inputs'!$D$3:$X$137,C61,0) -> 0 | D16: =HLOOKUP($B$1,'Room Inputs'!$D$3:$X$137,D61,0) -> 0 | E16: =HLOOKUP($B$1,'Room Inputs'!$D$3:$X$137,E61,0) -> 0 | F16: 0 | G16: =HLOOKUP($B$1,'Room Inputs'!$D$3:$X$137,G61,0) -> 0 | H16: =HLOOKUP($B$1,'Room Inputs'!$D$3:$X$137,H61,0) -> 0 | I16: =IF(OR(G16=UvaluesWRF!A$2,ISERROR(VLOOKUP(G16,UvaluesWRF!A$3:B$110,2,FALSE))),"",VLOOKUP(G16,UvaluesWRF!A$3:B$110,2,FALSE)) ->  | K16: =IF(G16=UvaluesWRF!A$2,IF(ISERROR(F16*J16*H16),"",F16*J16*H16),IF(ISERROR(F16*J16*I16),"",F16*J16*I16)) -> 
B17: =HLOOKUP($B$1,'Room Inputs'!$D$3:$X$137,B62,0) -> 0 | C17: =HLOOKUP($B$1,'Room Inputs'!$D$3:$X$137,C62,0) -> 0 | D17: =HLOOKUP($B$1,'Room Inputs'!$D$3:$X$137,D62,0) -> 0 | E17: =HLOOKUP($B$1,'Room Inputs'!$D$3:$X$137,E62,0) -> 0 | F17: 0 | G17: =HLOOKUP($B$1,'Room Inputs'!$D$3:$X$137,G62,0) -> 0 | H17: =HLOOKUP($B$1,'Room Inputs'!$D$3:$X$137,H62,0) -> 0 | I17: =IF(OR(G17=UvaluesWRF!A$2,ISERROR(VLOOKUP(G17,UvaluesWRF!A$3:B$110,2,FALSE))),"",VLOOKUP(G17,UvaluesWRF!A$3:B$110,2,FALSE)) ->  | K17: =IF(G17=UvaluesWRF!A$2,IF(ISERROR(F17*J17*H17),"",F17*J17*H17),IF(ISERROR(F17*J17*I17),"",F17*J17*I17)) -> 
B18: =HLOOKUP($B$1,'Room Inputs'!$D$3:$X$137,B63,0) -> 0 | C18: =HLOOKUP($B$1,'Room Inputs'!$D$3:$X$137,C63,0) -> 0 | D18: =HLOOKUP($B$1,'Room Inputs'!$D$3:$X$137,D63,0) -> 0 | E18: =HLOOKUP($B$1,'Room Inputs'!$D$3:$X$137,E63,0) -> 0 | F18: 0 | G18: =HLOOKUP($B$1,'Room Inputs'!$D$3:$X$137,G63,0) -> 0 | H18: =HLOOKUP($B$1,'Room Inputs'!$D$3:$X$137,H63,0) -> 0 | I18: =IF(OR(G18=UvaluesWRF!A$2,ISERROR(VLOOKUP(G18,UvaluesWRF!A$3:B$110,2,FALSE))),"",VLOOKUP(G18,UvaluesWRF!A$3:B$110,2,FALSE)) ->  | K18: =IF(G18=UvaluesWRF!A$2,IF(ISERROR(F18*J18*H18),"",F18*J18*H18),IF(ISERROR(F18*J18*I18),"",F18*J18*I18)) -> 
B19: =HLOOKUP($B$1,'Room Inputs'!$D$3:$X$137,B64,0) -> 0 | C19: =HLOOKUP($B$1,'Room Inputs'!$D$3:$X$137,C64,0) -> 0 | D19: =HLOOKUP($B$1,'Room Inputs'!$D$3:$X$137,D64,0) -> 0 | E19: =HLOOKUP($B$1,'Room Inputs'!$D$3:$X$137,E64,0) -> 0 | F19: 0 | G19: =HLOOKUP($B$1,'Room Inputs'!$D$3:$X$137,G64,0) -> 0 | H19: =HLOOKUP($B$1,'Room Inputs'!$D$3:$X$137,H64,0) -> 0 | I19: =IF(OR(G19=UvaluesWRF!A$2,ISERROR(VLOOKUP(G19,UvaluesWRF!A$3:B$110,2,FALSE))),"",VLOOKUP(G19,UvaluesWRF!A$3:B$110,2,FALSE)) ->  | K19: =IF(G19=UvaluesWRF!A$2,IF(ISERROR(F19*J19*H19),"",F19*J19*H19),IF(ISERROR(F19*J19*I19),"",F19*J19*I19)) -> 
B20: =HLOOKUP($B$1,'Room Inputs'!$D$3:$X$137,B65,0) -> 0 | C20: =HLOOKUP($B$1,'Room Inputs'!$D$3:$X$137,C65,0) -> 0 | D20: =HLOOKUP($B$1,'Room Inputs'!$D$3:$X$137,D65,0) -> 0 | E20: =HLOOKUP($B$1,'Room Inputs'!$D$3:$X$137,E65,0) -> 0 | F20: 0 | G20: =HLOOKUP($B$1,'Room Inputs'!$D$3:$X$137,G65,0) -> 0 | H20: =HLOOKUP($B$1,'Room Inputs'!$D$3:$X$137,H65,0) -> 0 | I20: =IF(OR(G20=UvaluesWRF!A$2,ISERROR(VLOOKUP(G20,UvaluesWRF!A$3:B$110,2,FALSE))),"",VLOOKUP(G20,UvaluesWRF!A$3:B$110,2,FALSE)) ->  | K20: =IF(G20=UvaluesWRF!A$2,IF(ISERROR(F20*J20*H20),"",F20*J20*H20),IF(ISERROR(F20*J20*I20),"",F20*J20*I20)) -> 
B21: =HLOOKUP($B$1,'Room Inputs'!$D$3:$X$137,B66,0) -> 0 | C21: =HLOOKUP($B$1,'Room Inputs'!$D$3:$X$137,C66,0) -> 0 | D21: =HLOOKUP($B$1,'Room Inputs'!$D$3:$X$137,D66,0) -> 0 | E21: =HLOOKUP($B$1,'Room Inputs'!$D$3:$X$137,E66,0) -> 0 | F21: 0 | G21: =HLOOKUP($B$1,'Room Inputs'!$D$3:$X$137,G66,0) -> 0 | H21: =HLOOKUP($B$1,'Room Inputs'!$D$3:$X$137,H66,0) -> 0 | I21: =IF(OR(G21=UvaluesWRF!A$2,ISERROR(VLOOKUP(G21,UvaluesWRF!A$3:B$110,2,FALSE))),"",VLOOKUP(G21,UvaluesWRF!A$3:B$110,2,FALSE)) ->  | K21: =IF(G21=UvaluesWRF!A$2,IF(ISERROR(F21*J21*H21),"",F21*J21*H21),IF(ISERROR(F21*J21*I21),"",F21*J21*I21)) -> 
B22: =HLOOKUP($B$1,'Room Inputs'!$D$3:$X$137,B67,0) -> 0 | C22: =HLOOKUP($B$1,'Room Inputs'!$D$3:$X$137,C67,0) -> 0 | D22: =HLOOKUP($B$1,'Room Inputs'!$D$3:$X$137,D67,0) -> 0 | E22: =HLOOKUP($B$1,'Room Inputs'!$D$3:$X$137,E67,0) -> 0 | F22: 0 | G22: =HLOOKUP($B$1,'Room Inputs'!$D$3:$X$137,G67,0) -> 0 | H22: =HLOOKUP($B$1,'Room Inputs'!$D$3:$X$137,H67,0) -> 0 | I22: =IF(OR(G22=UvaluesWRF!A$2,ISERROR(VLOOKUP(G22,UvaluesWRF!A$3:B$110,2,FALSE))),"",VLOOKUP(G22,UvaluesWRF!A$3:B$110,2,FALSE)) ->  | K22: =IF(G22=UvaluesWRF!A$2,IF(ISERROR(F22*J22*H22),"",F22*J22*H22),IF(ISERROR(F22*J22*I22),"",F22*J22*I22)) -> 
B23: =HLOOKUP($B$1,'Room Inputs'!$D$3:$X$137,B68,0) -> 0 | C23: =HLOOKUP($B$1,'Room Inputs'!$D$3:$X$137,C68,0) -> 0 | D23: =HLOOKUP($B$1,'Room Inputs'!$D$3:$X$137,D68,0) -> 0 | E23: =HLOOKUP($B$1,'Room Inputs'!$D$3:$X$137,E68,0) -> 0 | F23: 0 | G23: =HLOOKUP($B$1,'Room Inputs'!$D$3:$X$137,G68,0) -> 0 | H23: =HLOOKUP($B$1,'Room Inputs'!$D$3:$X$137,H68,0) -> 0 | I23: =IF(OR(G23=UvaluesWRF!A$2,ISERROR(VLOOKUP(G23,UvaluesWRF!A$3:B$110,2,FALSE))),"",VLOOKUP(G23,UvaluesWRF!A$3:B$110,2,FALSE)) ->  | K23: =IF(G23=UvaluesWRF!A$2,IF(ISERROR(F23*J23*H23),"",F23*J23*H23),IF(ISERROR(F23*J23*I23),"",F23*J23*I23)) -> 
B24: =HLOOKUP($B$1,'Room Inputs'!$D$3:$X$137,B69,0) -> 0 | C24: =HLOOKUP($B$1,'Room Inputs'!$D$3:$X$137,C69,0) -> 0 | D24: =HLOOKUP($B$1,'Room Inputs'!$D$3:$X$137,D69,0) -> 0 | E24: =HLOOKUP($B$1,'Room Inputs'!$D$3:$X$137,E69,0) -> 0 | F24: 0 | G24: =HLOOKUP($B$1,'Room Inputs'!$D$3:$X$137,G69,0) -> 0 | H24: =HLOOKUP($B$1,'Room Inputs'!$D$3:$X$137,H69,0) -> 0 | I24: =IF(OR(G24=UvaluesWRF!A$2,ISERROR(VLOOKUP(G24,UvaluesWRF!A$3:B$110,2,FALSE))),"",VLOOKUP(G24,UvaluesWRF!A$3:B$110,2,FALSE)) ->  | K24: =IF(G24=UvaluesWRF!A$2,IF(ISERROR(F24*J24*H24),"",F24*J24*H24),IF(ISERROR(F24*J24*I24),"",F24*J24*I24)) -> 
B25: =HLOOKUP($B$1,'Room Inputs'!$D$3:$X$137,B70,0) -> 0 | C25: =HLOOKUP($B$1,'Room Inputs'!$D$3:$X$137,C70,0) -> 0 | D25: =HLOOKUP($B$1,'Room Inputs'!$D$3:$X$137,D70,0) -> 0 | E25: =HLOOKUP($B$1,'Room Inputs'!$D$3:$X$137,E70,0) -> 0 | F25: 0 | G25: =HLOOKUP($B$1,'Room Inputs'!$D$3:$X$137,G70,0) -> 0 | H25: =HLOOKUP($B$1,'Room Inputs'!$D$3:$X$137,H70,0) -> 0 | I25: =IF(OR(G25=UvaluesWRF!A$2,ISERROR(VLOOKUP(G25,UvaluesWRF!A$3:B$110,2,FALSE))),"",VLOOKUP(G25,UvaluesWRF!A$3:B$110,2,FALSE)) ->  | K25: =IF(G25=UvaluesWRF!A$2,IF(ISERROR(F25*J25*H25),"",F25*J25*H25),IF(ISERROR(F25*J25*I25),"",F25*J25*I25)) -> 
B26: Ground floors Short length (m) | C26: long length (m) | D26: Edges exposed | G26: Type and Insulation thickness | M26: U-value | N26: Edge | O26: Insulation | P26: Column | R26: 1 | S26: 2 | T26: 3 | U26: 4 | V26: 5.3 | W26: 5.4 | X26: 5.5 | Y26: 5.6 | Z26: 6.3 | AA26: 6.4 | AB26: 6.5 | AC26: 6.6
B27: =HLOOKUP($B$1,'Room Inputs'!$D$3:$X$137,B72,0) -> 0 | C27: =HLOOKUP($B$1,'Room Inputs'!$D$3:$X$137,C72,0) -> 0 | D27: =HLOOKUP($B$1,'Room Inputs'!$D$3:$X$137,D72,0) -> 0 | E27: =HLOOKUP($B$1,'Room Inputs'!$D$3:$X$137,E72,0) -> 0 | F27: =B27*C27 -> 0 | G27: =HLOOKUP($B$1,'Room Inputs'!$D$3:$X$137,G72,0) -> 0 | H27: =HLOOKUP($B$1,'Room Inputs'!$D$3:$X$137,H72,0) -> 0 | I27: =IF(OR(G27=UvaluesFlr!$U$3,G27=UvaluesFlr!$U$4,ISERROR(M27)),"",M27) ->  | J27: =$K$8-IF(LEFT(G27,2)="So",10,'Site Inputs'!$C$8) ->  | K27: =IF(OR(G27=UvaluesFlr!$U$3,G27=UvaluesFlr!$U$4),IF(ISERROR(F27*J27*H27),"",F27*J27*H27),IF(ISERROR(F27*J27*I27),"",F27*J27*I27)) ->  | M27: =HLOOKUP(N27+MIN(0.6,IF(N27>4,O27/10,0)),$R$26:$AC$29,2,TRUE) ->  | N27: =VLOOKUP(D27,UvaluesFlr!$U$17:$V$22,2,FALSE) ->  | O27: =VLOOKUP(G27,UvaluesFlr!$U$3:$W$14,2,FALSE) ->  | P27: =VLOOKUP(G27,UvaluesFlr!$U$3:$W$14,3,FALSE) ->  | R27: =VLOOKUP(C27,UvaluesFlr!$C$53:$P$59,$P27,TRUE) ->  | S27: =VLOOKUP(B27,UvaluesFlr!$C$53:$P$59,$P27,TRUE) ->  | T27: =VLOOKUP(B27+C27,UvaluesFlr!$C$4:$P$12,$P27,TRUE) ->  | U27: =VLOOKUP(B27,UvaluesFlr!$C$16:$P$21,$P27,TRUE) ->  | V27: =VLOOKUP($C27,UvaluesFlr!$D$26:$P$29,$P27-1,TRUE) ->  | W27: =VLOOKUP($C27,UvaluesFlr!$D$30:$P$31,$P27-1,TRUE) ->  | X27: =VLOOKUP($C27,UvaluesFlr!$D$32:$P$33,$P27-1,TRUE) ->  | Y27: =VLOOKUP($C27,UvaluesFlr!$D$34:$P$35,$P27-1,TRUE) ->  | Z27: =VLOOKUP($C27,UvaluesFlr!$D$39:$P$42,$P27-1,TRUE) ->  | AA27: =VLOOKUP($C27,UvaluesFlr!$D$43:$P$45,$P27-1,TRUE) ->  | AB27: =VLOOKUP($C27,UvaluesFlr!$D$46:$P$48,$P27-1,TRUE) ->  | AC27: =VLOOKUP($C27,UvaluesFlr!$D$49:$P$50,$P27-1,TRUE) -> 
B28: =HLOOKUP($B$1,'Room Inputs'!$D$3:$X$137,B73,0) -> 0 | C28: =HLOOKUP($B$1,'Room Inputs'!$D$3:$X$137,C73,0) -> 0 | D28: =HLOOKUP($B$1,'Room Inputs'!$D$3:$X$137,D73,0) -> 0 | E28: =HLOOKUP($B$1,'Room Inputs'!$D$3:$X$137,E73,0) ->  | F28: =B28*C28 -> 0 | G28: =HLOOKUP($B$1,'Room Inputs'!$D$3:$X$137,G73,0) -> 0 | H28: =HLOOKUP($B$1,'Room Inputs'!$D$3:$X$137,H73,0) -> 0 | I28: =IF(OR(G28=UvaluesFlr!$U$3,G28=UvaluesFlr!$U$4,ISERROR(M28)),"",M28) ->  | J28: =$K$8-IF(LEFT(G28,2)="So",10,'Site Inputs'!$C$8) ->  | K28: =IF(OR(G28=UvaluesFlr!$U$3,G28=UvaluesFlr!$U$4),IF(ISERROR(F28*J28*H28),"",F28*J28*H28),IF(ISERROR(F28*J28*I28),"",F28*J28*I28)) ->  | M28: =HLOOKUP(N28+MIN(0.6,IF(N28>4,O28/10,0)),$R$26:$AC$29,3,TRUE) ->  | N28: =VLOOKUP(D28,UvaluesFlr!$U$17:$V$22,2,FALSE) ->  | O28: =VLOOKUP(G28,UvaluesFlr!$U$3:$W$14,2,FALSE) ->  | P28: =VLOOKUP(G28,UvaluesFlr!$U$3:$W$14,3,FALSE) ->  | R28: =VLOOKUP(C28,UvaluesFlr!$C$53:$P$59,$P28,TRUE) ->  | S28: =VLOOKUP(B28,UvaluesFlr!$C$53:$P$59,$P28,TRUE) ->  | T28: =VLOOKUP(B28+C28,UvaluesFlr!$C$4:$P$12,$P28,TRUE) ->  | U28: =VLOOKUP(B28,UvaluesFlr!$C$16:$P$21,$P28,TRUE) ->  | V28: =VLOOKUP($C28,UvaluesFlr!$D$26:$P$29,$P28-1,TRUE) ->  | W28: =VLOOKUP($C28,UvaluesFlr!$D$30:$P$31,$P28-1,TRUE) ->  | X28: =VLOOKUP($C28,UvaluesFlr!$D$32:$P$33,$P28-1,TRUE) ->  | Y28: =VLOOKUP($C28,UvaluesFlr!$D$34:$P$35,$P28-1,TRUE) ->  | Z28: =VLOOKUP($C28,UvaluesFlr!$D$39:$P$42,$P28-1,TRUE) ->  | AA28: =VLOOKUP($C28,UvaluesFlr!$D$43:$P$45,$P28-1,TRUE) ->  | AB28: =VLOOKUP($C28,UvaluesFlr!$D$46:$P$48,$P28-1,TRUE) ->  | AC28: =VLOOKUP($C28,UvaluesFlr!$D$49:$P$50,$P28-1,TRUE) -> 
B29: =HLOOKUP($B$1,'Room Inputs'!$D$3:$X$137,B74,0) -> 0 | C29: =HLOOKUP($B$1,'Room Inputs'!$D$3:$X$137,C74,0) -> 0 | D29: =HLOOKUP($B$1,'Room Inputs'!$D$3:$X$137,D74,0) -> 0 | E29: =HLOOKUP($B$1,'Room Inputs'!$D$3:$X$137,E74,0) ->  | F29: =B29*C29 -> 0 | G29: =HLOOKUP($B$1,'Room Inputs'!$D$3:$X$137,G74,0) -> 0 | H29: =HLOOKUP($B$1,'Room Inputs'!$D$3:$X$137,H74,0) -> 0 | I29: =IF(OR(G29=UvaluesFlr!$U$3,G29=UvaluesFlr!$U$4,ISERROR(M29)),"",M29) ->  | J29: =$K$8-IF(LEFT(G29,2)="So",10,'Site Inputs'!$C$8) ->  | K29: =IF(OR(G29=UvaluesFlr!$U$3,G29=UvaluesFlr!$U$4),IF(ISERROR(F29*J29*H29),"",F29*J29*H29),IF(ISERROR(F29*J29*I29),"",F29*J29*I29)) ->  | M29: =HLOOKUP(N29+MIN(0.6,IF(N29>4,O29/10,0)),$R$26:$AC$29,4,TRUE) ->  | N29: =VLOOKUP(D29,UvaluesFlr!$U$17:$V$22,2,FALSE) ->  | O29: =VLOOKUP(G29,UvaluesFlr!$U$3:$W$14,2,FALSE) ->  | P29: =VLOOKUP(G29,UvaluesFlr!$U$3:$W$14,3,FALSE) ->  | R29: =VLOOKUP(C29,UvaluesFlr!$C$53:$P$59,$P29,TRUE) ->  | S29: =VLOOKUP(B29,UvaluesFlr!$C$53:$P$59,$P29,TRUE) ->  | T29: =VLOOKUP(B29+C29,UvaluesFlr!$C$4:$P$12,$P29,TRUE) ->  | U29: =VLOOKUP(B29,UvaluesFlr!$C$16:$P$21,$P29,TRUE) ->  | V29: =VLOOKUP($C29,UvaluesFlr!$D$26:$P$29,$P29-1,TRUE) ->  | W29: =VLOOKUP($C29,UvaluesFlr!$D$30:$P$31,$P29-1,TRUE) ->  | X29: =VLOOKUP($C29,UvaluesFlr!$D$32:$P$33,$P29-1,TRUE) ->  | Y29: =VLOOKUP($C29,UvaluesFlr!$D$34:$P$35,$P29-1,TRUE) ->  | Z29: =VLOOKUP($C29,UvaluesFlr!$D$39:$P$42,$P29-1,TRUE) ->  | AA29: =VLOOKUP($C29,UvaluesFlr!$D$43:$P$45,$P29-1,TRUE) ->  | AB29: =VLOOKUP($C29,UvaluesFlr!$D$46:$P$48,$P29-1,TRUE) ->  | AC29: =VLOOKUP($C29,UvaluesFlr!$D$49:$P$50,$P29-1,TRUE) -> 
B32: Windows and doors
B33: Wall or roof with window or door | C33: Window or door height (m) | D33: Window or door width (m) | E33: Area (m²) | F33: Wall/roof U-value (W/m²K) | G33: Frame and glazing type | H33: Entered U- value (W/m²K), if required | I33: U-value | J33: Design temperature difference | K33: Heat loss (W)*
B34: =HLOOKUP($B$1,'Room Inputs'!$D$3:$X$137,B79,0) -> 0 | C34: =HLOOKUP($B$1,'Room Inputs'!$D$3:$X$137,C79,0) -> 0 | D34: =HLOOKUP($B$1,'Room Inputs'!$D$3:$X$137,D79,0) -> 0 | E34: =C34*D34 -> 0 | F34: =IF(B34<>"",IF(VLOOKUP(B34,B$14:I$25,6,FALSE)=UvalueWD!$C$6,VLOOKUP(B34,B$14:I$25,7,FALSE),VLOOKUP(B34,B$14:I$25,8,FALSE)),"") ->  | G34: =HLOOKUP($B$1,'Room Inputs'!$D$3:$X$137,G79,0) -> 0 | H34: =HLOOKUP($B$1,'Room Inputs'!$D$3:$X$137,H79,0) -> 0 | I34: =IF(OR(G34=UvalueWD!C$6,G34=""),"",VLOOKUP(G34,Windows,2,FALSE)) ->  | J34: =IF(ISERROR(VLOOKUP(B34,B$13:K$29,9,FALSE)),"",VLOOKUP(B34,B$13:K$29,9,FALSE)) ->  | K34: =IF(G34=UvaluesWRF!A$2,IF(ISERROR(F34*J34*(H34-F34)),"",F34*J34*(H34-F34)),IF(ISERROR(F34*J34*(F34-I34)),"",(I34-F34)*J34*I34)) -> 
B35: =HLOOKUP($B$1,'Room Inputs'!$D$3:$X$137,B80,0) -> 0 | C35: =HLOOKUP($B$1,'Room Inputs'!$D$3:$X$137,C80,0) -> 0 | D35: =HLOOKUP($B$1,'Room Inputs'!$D$3:$X$137,D80,0) -> 0 | E35: 0 | F35: =IF(B35<>"",IF(VLOOKUP(B35,B$14:I$25,6,FALSE)=UvalueWD!$C$6,VLOOKUP(B35,B$14:I$25,7,FALSE),VLOOKUP(B35,B$14:I$25,8,FALSE)),"") ->  | G35: =HLOOKUP($B$1,'Room Inputs'!$D$3:$X$137,G80,0) -> 0 | H35: =HLOOKUP($B$1,'Room Inputs'!$D$3:$X$137,H80,0) -> 0 | I35: =IF(OR(G35=UvalueWD!C$6,G35=""),"",VLOOKUP(G35,Windows,2,FALSE)) ->  | K35: =IF(G35=UvaluesWRF!A$2,IF(ISERROR(F35*J35*(H35-F35)),"",F35*J35*(H35-F35)),IF(ISERROR(F35*J35*(F35-I35)),"",(I35-F35)*J35*I35)) -> 
B36: =HLOOKUP($B$1,'Room Inputs'!$D$3:$X$137,B81,0) -> 0 | C36: =HLOOKUP($B$1,'Room Inputs'!$D$3:$X$137,C81,0) -> 0 | D36: =HLOOKUP($B$1,'Room Inputs'!$D$3:$X$137,D81,0) -> 0 | E36: 0 | F36: =IF(B36<>"",IF(VLOOKUP(B36,B$14:I$25,6,FALSE)=UvalueWD!$C$6,VLOOKUP(B36,B$14:I$25,7,FALSE),VLOOKUP(B36,B$14:I$25,8,FALSE)),"") ->  | G36: =HLOOKUP($B$1,'Room Inputs'!$D$3:$X$137,G81,0) -> 0 | H36: =HLOOKUP($B$1,'Room Inputs'!$D$3:$X$137,H81,0) -> 0 | I36: =IF(OR(G36=UvalueWD!C$6,G36=""),"",VLOOKUP(G36,Windows,2,FALSE)) ->  | K36: =IF(G36=UvaluesWRF!A$2,IF(ISERROR(F36*J36*(H36-F36)),"",F36*J36*(H36-F36)),IF(ISERROR(F36*J36*(F36-I36)),"",(I36-F36)*J36*I36)) -> 
B37: =HLOOKUP($B$1,'Room Inputs'!$D$3:$X$137,B82,0) -> 0 | C37: =HLOOKUP($B$1,'Room Inputs'!$D$3:$X$137,C82,0) -> 0 | D37: =HLOOKUP($B$1,'Room Inputs'!$D$3:$X$137,D82,0) -> 0 | E37: 0 | F37: =IF(B37<>"",IF(VLOOKUP(B37,B$14:I$25,6,FALSE)=UvalueWD!$C$6,VLOOKUP(B37,B$14:I$25,7,FALSE),VLOOKUP(B37,B$14:I$25,8,FALSE)),"") ->  | G37: =HLOOKUP($B$1,'Room Inputs'!$D$3:$X$137,G82,0) -> 0 | H37: =HLOOKUP($B$1,'Room Inputs'!$D$3:$X$137,H82,0) -> 0 | I37: =IF(OR(G37=UvalueWD!C$6,G37=""),"",VLOOKUP(G37,Windows,2,FALSE)) ->  | K37: =IF(G37=UvaluesWRF!A$2,IF(ISERROR(F37*J37*(H37-F37)),"",F37*J37*(H37-F37)),IF(ISERROR(F37*J37*(F37-I37)),"",(I37-F37)*J37*I37)) -> 
B38: =HLOOKUP($B$1,'Room Inputs'!$D$3:$X$137,B83,0) -> 0 | C38: =HLOOKUP($B$1,'Room Inputs'!$D$3:$X$137,C83,0) -> 0 | D38: =HLOOKUP($B$1,'Room Inputs'!$D$3:$X$137,D83,0) -> 0 | E38: 0 | F38: =IF(B38<>"",IF(VLOOKUP(B38,B$14:I$25,6,FALSE)=UvalueWD!$C$6,VLOOKUP(B38,B$14:I$25,7,FALSE),VLOOKUP(B38,B$14:I$25,8,FALSE)),"") ->  | G38: =HLOOKUP($B$1,'Room Inputs'!$D$3:$X$137,G83,0) -> 0 | H38: =HLOOKUP($B$1,'Room Inputs'!$D$3:$X$137,H83,0) -> 0 | I38: =IF(OR(G38=UvalueWD!C$6,G38=""),"",VLOOKUP(G38,Windows,2,FALSE)) ->  | K38: =IF(G38=UvaluesWRF!A$2,IF(ISERROR(F38*J38*(H38-F38)),"",F38*J38*(H38-F38)),IF(ISERROR(F38*J38*(F38-I38)),"",(I38-F38)*J38*I38)) -> 
B39: =HLOOKUP($B$1,'Room Inputs'!$D$3:$X$137,B84,0) -> 0 | C39: =HLOOKUP($B$1,'Room Inputs'!$D$3:$X$137,C84,0) -> 0 | D39: =HLOOKUP($B$1,'Room Inputs'!$D$3:$X$137,D84,0) -> 0 | E39: 0 | F39: =IF(B39<>"",IF(VLOOKUP(B39,B$14:I$25,6,FALSE)=UvalueWD!$C$6,VLOOKUP(B39,B$14:I$25,7,FALSE),VLOOKUP(B39,B$14:I$25,8,FALSE)),"") ->  | G39: =HLOOKUP($B$1,'Room Inputs'!$D$3:$X$137,G84,0) -> 0 | H39: =HLOOKUP($B$1,'Room Inputs'!$D$3:$X$137,H84,0) -> 0 | I39: =IF(OR(G39=UvalueWD!C$6,G39=""),"",VLOOKUP(G39,Windows,2,FALSE)) ->  | K39: =IF(G39=UvaluesWRF!A$2,IF(ISERROR(F39*J39*(H39-F39)),"",F39*J39*(H39-F39)),IF(ISERROR(F39*J39*(F39-I39)),"",(I39-F39)*J39*I39)) -> 
B41: * this is net heat loss (i.e. the heat loss of the window minus that of a wall of the same area) and so can be negative. This is done so that the area of the window or door does not have to be subtracted from the wall area.
I42: Room heat loss (W) | K42: =SUM(K10:K39) -> 0
B46: Row number lookup map
B48: Room name | C48: 2 | E48: Emitter type | F48: 3 | G48: For convectors consult the manufacturer's data and enter the temperature factor (FTEMP) for the appropriate fan speed | H48: 4 | I48: For radiators enter the n-coefficient (exponent) from manufacturer's data. If unknown 1.3 may be used | K48: 5
B50: Enter floor type and construction | C50: 6 | E50: Enter floor type and construction | F50: 7 | G50: For UFH enter Tog value (See Table 14) | H50: 8 | I50: For UFH enter active or exposed area of the heated floor | K50: 9
B52: Enter Room type below | E52: Enter Open fire/chimney details below
B53: 10 | E53: 11
B54: Room Dimensions
B55: Length (m) | D55: Width (m) | F55: Height (m)
B56: 13 | D56: 14 | F56: 15
B57: Walls, floors not ground floors and ceiling
B58: Name of wall, floor, ceiling | C58: Space on other side | D58: Height or length (m) | E58: Width (m) | G58: Construction | H58: Entered U- value (W/m²K), if required
B59: 16 | C59: 17 | D59: 18 | E59: 19 | G59: 20 | H59: 21
B60: 22 | C60: 23 | D60: 24 | E60: 25 | G60: 26 | H60: 27
B61: 28 | C61: 29 | D61: 30 | E61: 31 | G61: 32 | H61: 33
B62: 35 | C62: 36 | D62: 37 | E62: 38 | G62: 39 | H62: 40
B63: 41 | C63: 42 | D63: 43 | E63: 44 | G63: 45 | H63: 46
B64: 47 | C64: 48 | D64: 49 | E64: 50 | G64: 51 | H64: 52
B65: 53 | C65: 54 | D65: 55 | E65: 56 | G65: 57 | H65: 58
B66: 59 | C66: 60 | D66: 61 | E66: 62 | G66: 63 | H66: 64
B67: 65 | C67: 66 | D67: 67 | E67: 68 | G67: 69 | H67: 70
B68: 71 | C68: 72 | D68: 73 | E68: 74 | G68: 75 | H68: 76
B69: 77 | C69: 78 | D69: 79 | E69: 80 | G69: 81 | H69: 82
B70: 83 | C70: 84 | D70: 85 | E70: 86 | G70: 87 | H70: 88
B71: Ground floors Short length (m) | C71: long length (m) | D71: Edges exposed | G71: Type and Insulation thickness
B72: 89 | C72: 90 | D72: 91 | E72: 92 | G72: 92 | H72: 93
B73: 95 | C73: 96 | D73: 97 | G73: 98 | H73: 99
B74: 100 | C74: 101 | D74: 102 | G74: 103 | H74: 104
B77: Windows and doors
B78: Wall or roof with window or door | C78: Window or door height (m) | D78: Window or door width (m) | E78: Area (m²) | F78: Wall/roof U-value (W/m²K) | G78: Frame and glazing type | H78: Entered U- value (W/m²K), if required
B79: 105 | C79: 106 | D79: 107 | G79: 108 | H79: 109
B80: 111 | C80: 112 | D80: 113 | G80: 114 | H80: 115
B81: 116 | C81: 117 | D81: 118 | G81: 119 | H81: 120
B82: 121 | C82: 122 | D82: 123 | G82: 124 | H82: 125
B83: 126 | C83: 127 | D83: 128 | G83: 129 | H83: 130
B84: 131 | C84: 132 | D84: 133 | G84: 134 | H84: 135

Sheet 12 (hidden)
B1: ='Room Inputs'!P3 -> Room12
B3: Room name | C3: =HLOOKUP($B$1,'Room Inputs'!$D$3:$X$137,C48,0) -> 0 | E3: Emitter type | F3: =HLOOKUP($B$1,'Room Inputs'!$D$3:$X$137,F48,0) -> 0 | G3: For convectors consult the manufacturer's data and enter the temperature factor (FTEMP) for the appropriate fan speed | H3: =HLOOKUP($B$1,'Room Inputs'!$D$3:$X$137,H48,0) -> 0.85 | I3: For radiators enter the n-coefficient (exponent) from manufacturer's data. If unknown 1.3 may be used | K3: =HLOOKUP($B$1,'Room Inputs'!$D$3:$X$137,K48,0) -> 1.3
B5: Enter floor type and construction | C5: =HLOOKUP($B$1,'Room Inputs'!$D$3:$X$137,C50,0) -> 0 | E5: Enter floor type and construction | F5: =HLOOKUP($B$1,'Room Inputs'!$D$3:$X$137,F50,0) -> 0 | G5: For UFH enter Tog value (See Table 14) | H5: =HLOOKUP($B$1,'Room Inputs'!$D$3:$X$137,H50,0) -> 0.25 | I5: For UFH enter active or exposed area of the heated floor | K5: =HLOOKUP($B$1,'Room Inputs'!$D$3:$X$137,K50,0) -> 0
B7: Enter Room type below | E7: Enter Open fire/chimney details below | H7: Design room ventilation rate (air changes per hour) | K7: Design room temperature °C
B8: =HLOOKUP($B$1,'Room Inputs'!$D$3:$X$137,B53,0) -> 0 | E8: =HLOOKUP($B$1,'Room Inputs'!$D$3:$X$137,E53,0) -> 0 | H8: =IF(E8=VTables!B20,VLOOKUP(B8,DRVT,3,FALSE),MAX(VLOOKUP(B8,DRVT,3,FALSE),VLOOKUP(E8,ARVR,2,FALSE))) ->  | K8: =VLOOKUP(B8,DRVT,2,FALSE) -> 
B9: Room Dimensions
B10: Length (m) | D10: Width (m) | F10: Height (m) | G10: Room volume (m³) | J10: Design temperature difference | K10: Heat loss (W)
B11: =HLOOKUP($B$1,'Room Inputs'!$D$3:$X$137,B56,0) -> 0 | D11: =HLOOKUP($B$1,'Room Inputs'!$D$3:$X$137,D56,0) -> 0 | F11: =HLOOKUP($B$1,'Room Inputs'!$D$3:$X$137,F56,0) -> 0 | G11: =B11*D11*F11 -> 0 | J11: =K8-'Site Inputs'!C8 ->  | K11: =IF(G11>0,(ROUND(0.33*G11*H8*J11,2)),"") -> 
B12: Walls, floors not ground floors and ceiling
B13: Name of wall, floor, ceiling | C13: Space on other side | D13: Height or length (m) | E13: Width (m) | F13: Area (m²) | G13: Construction | H13: Entered U- value (W/m²K), if required | I13: U-value (W/m²K) | J13: Design temperature difference | K13: Heat loss (W) | M13: `
B14: =HLOOKUP($B$1,'Room Inputs'!$D$3:$X$137,B59,0) -> 0 | C14: =HLOOKUP($B$1,'Room Inputs'!$D$3:$X$137,C59,0) -> 0 | D14: =HLOOKUP($B$1,'Room Inputs'!$D$3:$X$137,D59,0) -> 0 | E14: =HLOOKUP($B$1,'Room Inputs'!$D$3:$X$137,E59,0) -> 0 | F14: =D14*E14 -> 0 | G14: =HLOOKUP($B$1,'Room Inputs'!$D$3:$X$137,G59,0) -> 0 | H14: =HLOOKUP($B$1,'Room Inputs'!$D$3:$X$137,H59,0) -> 0 | I14: =IF(OR(G14=UvaluesWRF!A$2,ISERROR(VLOOKUP(G14,UvaluesWRF!A$3:B$110,2,FALSE))),"",VLOOKUP(G14,UvaluesWRF!A$3:B$110,2,FALSE)) ->  | J14: =IF(C14="","",$K$8-VLOOKUP(C14,DRVT,2,FALSE)) ->  | K14: =IF(G14=UvaluesWRF!A$2,IF(ISERROR(F14*J14*H14),"",F14*J14*H14),IF(ISERROR(F14*J14*I14),"",F14*J14*I14)) -> 
B15: =HLOOKUP($B$1,'Room Inputs'!$D$3:$X$137,B60,0) -> 0 | C15: =HLOOKUP($B$1,'Room Inputs'!$D$3:$X$137,C60,0) -> 0 | D15: =HLOOKUP($B$1,'Room Inputs'!$D$3:$X$137,D60,0) -> 0 | E15: =HLOOKUP($B$1,'Room Inputs'!$D$3:$X$137,E60,0) -> 0 | F15: =D15*E15 -> 0 | G15: =HLOOKUP($B$1,'Room Inputs'!$D$3:$X$137,G60,0) -> 0 | H15: =HLOOKUP($B$1,'Room Inputs'!$D$3:$X$137,H60,0) -> 0 | I15: =IF(OR(G15=UvaluesWRF!A$2,ISERROR(VLOOKUP(G15,UvaluesWRF!A$3:B$110,2,FALSE))),"",VLOOKUP(G15,UvaluesWRF!A$3:B$110,2,FALSE)) ->  | K15: =IF(G15=UvaluesWRF!A$2,IF(ISERROR(F15*J15*H15),"",F15*J15*H15),IF(ISERROR(F15*J15*I15),"",F15*J15*I15)) -> 
B16: =HLOOKUP($B$1,'Room Inputs'!$D$3:$X$137,B61,0) -> 0 | C16: =HLOOKUP($B$1,'Room Inputs'!$D$3:$X$137,C61,0) -> 0 | D16: =HLOOKUP($B$1,'Room Inputs'!$D$3:$X$137,D61,0) -> 0 | E16: =HLOOKUP($B$1,'Room Inputs'!$D$3:$X$137,E61,0) -> 0 | F16: 0 | G16: =HLOOKUP($B$1,'Room Inputs'!$D$3:$X$137,G61,0) -> 0 | H16: =HLOOKUP($B$1,'Room Inputs'!$D$3:$X$137,H61,0) -> 0 | I16: =IF(OR(G16=UvaluesWRF!A$2,ISERROR(VLOOKUP(G16,UvaluesWRF!A$3:B$110,2,FALSE))),"",VLOOKUP(G16,UvaluesWRF!A$3:B$110,2,FALSE)) ->  | K16: =IF(G16=UvaluesWRF!A$2,IF(ISERROR(F16*J16*H16),"",F16*J16*H16),IF(ISERROR(F16*J16*I16),"",F16*J16*I16)) -> 
B17: =HLOOKUP($B$1,'Room Inputs'!$D$3:$X$137,B62,0) -> 0 | C17: =HLOOKUP($B$1,'Room Inputs'!$D$3:$X$137,C62,0) -> 0 | D17: =HLOOKUP($B$1,'Room Inputs'!$D$3:$X$137,D62,0) -> 0 | E17: =HLOOKUP($B$1,'Room Inputs'!$D$3:$X$137,E62,0) -> 0 | F17: 0 | G17: =HLOOKUP($B$1,'Room Inputs'!$D$3:$X$137,G62,0) -> 0 | H17: =HLOOKUP($B$1,'Room Inputs'!$D$3:$X$137,H62,0) -> 0 | I17: =IF(OR(G17=UvaluesWRF!A$2,ISERROR(VLOOKUP(G17,UvaluesWRF!A$3:B$110,2,FALSE))),"",VLOOKUP(G17,UvaluesWRF!A$3:B$110,2,FALSE)) ->  | K17: =IF(G17=UvaluesWRF!A$2,IF(ISERROR(F17*J17*H17),"",F17*J17*H17),IF(ISERROR(F17*J17*I17),"",F17*J17*I17)) -> 
B18: =HLOOKUP($B$1,'Room Inputs'!$D$3:$X$137,B63,0) -> 0 | C18: =HLOOKUP($B$1,'Room Inputs'!$D$3:$X$137,C63,0) -> 0 | D18: =HLOOKUP($B$1,'Room Inputs'!$D$3:$X$137,D63,0) -> 0 | E18: =HLOOKUP($B$1,'Room Inputs'!$D$3:$X$137,E63,0) -> 0 | F18: 0 | G18: =HLOOKUP($B$1,'Room Inputs'!$D$3:$X$137,G63,0) -> 0 | H18: =HLOOKUP($B$1,'Room Inputs'!$D$3:$X$137,H63,0) -> 0 | I18: =IF(OR(G18=UvaluesWRF!A$2,ISERROR(VLOOKUP(G18,UvaluesWRF!A$3:B$110,2,FALSE))),"",VLOOKUP(G18,UvaluesWRF!A$3:B$110,2,FALSE)) ->  | K18: =IF(G18=UvaluesWRF!A$2,IF(ISERROR(F18*J18*H18),"",F18*J18*H18),IF(ISERROR(F18*J18*I18),"",F18*J18*I18)) -> 
B19: =HLOOKUP($B$1,'Room Inputs'!$D$3:$X$137,B64,0) -> 0 | C19: =HLOOKUP($B$1,'Room Inputs'!$D$3:$X$137,C64,0) -> 0 | D19: =HLOOKUP($B$1,'Room Inputs'!$D$3:$X$137,D64,0) -> 0 | E19: =HLOOKUP($B$1,'Room Inputs'!$D$3:$X$137,E64,0) -> 0 | F19: 0 | G19: =HLOOKUP($B$1,'Room Inputs'!$D$3:$X$137,G64,0) -> 0 | H19: =HLOOKUP($B$1,'Room Inputs'!$D$3:$X$137,H64,0) -> 0 | I19: =IF(OR(G19=UvaluesWRF!A$2,ISERROR(VLOOKUP(G19,UvaluesWRF!A$3:B$110,2,FALSE))),"",VLOOKUP(G19,UvaluesWRF!A$3:B$110,2,FALSE)) ->  | K19: =IF(G19=UvaluesWRF!A$2,IF(ISERROR(F19*J19*H19),"",F19*J19*H19),IF(ISERROR(F19*J19*I19),"",F19*J19*I19)) -> 
B20: =HLOOKUP($B$1,'Room Inputs'!$D$3:$X$137,B65,0) -> 0 | C20: =HLOOKUP($B$1,'Room Inputs'!$D$3:$X$137,C65,0) -> 0 | D20: =HLOOKUP($B$1,'Room Inputs'!$D$3:$X$137,D65,0) -> 0 | E20: =HLOOKUP($B$1,'Room Inputs'!$D$3:$X$137,E65,0) -> 0 | F20: 0 | G20: =HLOOKUP($B$1,'Room Inputs'!$D$3:$X$137,G65,0) -> 0 | H20: =HLOOKUP($B$1,'Room Inputs'!$D$3:$X$137,H65,0) -> 0 | I20: =IF(OR(G20=UvaluesWRF!A$2,ISERROR(VLOOKUP(G20,UvaluesWRF!A$3:B$110,2,FALSE))),"",VLOOKUP(G20,UvaluesWRF!A$3:B$110,2,FALSE)) ->  | K20: =IF(G20=UvaluesWRF!A$2,IF(ISERROR(F20*J20*H20),"",F20*J20*H20),IF(ISERROR(F20*J20*I20),"",F20*J20*I20)) -> 
B21: =HLOOKUP($B$1,'Room Inputs'!$D$3:$X$137,B66,0) -> 0 | C21: =HLOOKUP($B$1,'Room Inputs'!$D$3:$X$137,C66,0) -> 0 | D21: =HLOOKUP($B$1,'Room Inputs'!$D$3:$X$137,D66,0) -> 0 | E21: =HLOOKUP($B$1,'Room Inputs'!$D$3:$X$137,E66,0) -> 0 | F21: 0 | G21: =HLOOKUP($B$1,'Room Inputs'!$D$3:$X$137,G66,0) -> 0 | H21: =HLOOKUP($B$1,'Room Inputs'!$D$3:$X$137,H66,0) -> 0 | I21: =IF(OR(G21=UvaluesWRF!A$2,ISERROR(VLOOKUP(G21,UvaluesWRF!A$3:B$110,2,FALSE))),"",VLOOKUP(G21,UvaluesWRF!A$3:B$110,2,FALSE)) ->  | K21: =IF(G21=UvaluesWRF!A$2,IF(ISERROR(F21*J21*H21),"",F21*J21*H21),IF(ISERROR(F21*J21*I21),"",F21*J21*I21)) -> 
B22: =HLOOKUP($B$1,'Room Inputs'!$D$3:$X$137,B67,0) -> 0 | C22: =HLOOKUP($B$1,'Room Inputs'!$D$3:$X$137,C67,0) -> 0 | D22: =HLOOKUP($B$1,'Room Inputs'!$D$3:$X$137,D67,0) -> 0 | E22: =HLOOKUP($B$1,'Room Inputs'!$D$3:$X$137,E67,0) -> 0 | F22: 0 | G22: =HLOOKUP($B$1,'Room Inputs'!$D$3:$X$137,G67,0) -> 0 | H22: =HLOOKUP($B$1,'Room Inputs'!$D$3:$X$137,H67,0) -> 0 | I22: =IF(OR(G22=UvaluesWRF!A$2,ISERROR(VLOOKUP(G22,UvaluesWRF!A$3:B$110,2,FALSE))),"",VLOOKUP(G22,UvaluesWRF!A$3:B$110,2,FALSE)) ->  | K22: =IF(G22=UvaluesWRF!A$2,IF(ISERROR(F22*J22*H22),"",F22*J22*H22),IF(ISERROR(F22*J22*I22),"",F22*J22*I22)) -> 
